Workbook

Sheet AER Inputs
C2: AER Draft Decision | J2: Ausgrid Proposal
C3: 2018-19 | D3: 2019-20 | E3: 2020-21 | F3: 2021-22 | G3: 2022-23 | H3: 2023-24 | J3: 2018-19 | K3: 2019-20 | L3: 2020-21 | M3: 2021-22 | N3: 2022-23 | O3: 2023-24
B5: Nominal Vanilla WACC | D5: 0.05955790745 | K5: 0.06327762522
B7: Forecast CPI | C7: 0.02241968375 | D7: 0.02424874658 | J7: 0.02241968375 | K7: 0.025
B9: Real Labour Escalator | C9: 0.009463713656 | D9: 0.004385385989 | E9: 0.007132486318 | F9: 0.01152946999 | G9: 0.01279817807 | H9: 0.01084550347 | J9: 0.009463713656 | K9: 0.008790770725 | L9: 0.01368154247 | M9: 0.0173726537 | N9: 0.0172875434 | O9: 0.01333326255
B11: ='Input - General'!B62 -> Bulk cycle/ spot failure rate assumption: | C11: ='Input - General'!H69 -> AER Draft Decision | J11: ='Input - General'!B71 -> Theoretical Lamp Failure Rates @ 4 Year BLR
B12: Refer sheet "Input - General'!B60"
B17: Real Vanilla WACC | C17: =(1+'Input - General'!J22)/(1+'Input - General'!J9)-1 -> 0.03447322829
B19: Revenue | C19: NPV | D19: 2019-20 | E19: 2020-21 | F19: 2021-22 | G19: 2022-23 | H19: 2023-24
B20: ='AER Tariff Smoothing'!U10 -> Unsmoothed Revenue (Real $ 2018/19) | C20: =NPV($C$17,D20:H20) -> 58560628.73 | D20: ='AER Tariff Smoothing'!U76 -> 13846926.17 | E20: ='AER Tariff Smoothing'!V76 -> 13134869.98 | F20: ='AER Tariff Smoothing'!W76 -> 12571017.95 | G20: ='AER Tariff Smoothing'!X76 -> 12534516.19 | H20: ='AER Tariff Smoothing'!Y76 -> 12557553.45
B22: ='AER Tariff Smoothing'!AB10 -> Smoothed Revenue (Real $ 2018/19) | C22: =NPV($C$17,D22:H22) -> 58560628.73 | D22: ='AER Tariff Smoothing'!AB76 -> 13915549.4 | E22: ='AER Tariff Smoothing'!AC76 -> 13179633.85 | F22: ='AER Tariff Smoothing'!AD76 -> 12577304.34 | G22: ='AER Tariff Smoothing'!AE76 -> 12490035.3 | H22: ='AER Tariff Smoothing'!AF76 -> 12468699.14
B24: Difference in NPV | C24: =C20-C22 -> 0
B30: Failure rates - Approved
C32: Sr No | D32: Description | E32: Type | F32: Ausgrid proposed rates - Theoretical Rates | G32: AER 2014-19 determination | H32: Draft decision
C33: 1 | D33: O/U | E33: Connection
C34: 2 | D34: OH | E34: Connection
C35: 3 | D35: OH2 | E35: Connection
C36: 4 | D36: OHS | E36: Connection
C37: 5 | D37: UG2 | E37: Connection
C38: 6 | D38: UGR1 | E38: Connection
C39: 7 | D39: UGR2 | E39: Connection
C40: 8 | D40: UGS | E40: Connection
C41: 9 | D41: UG-SP | E41: Connection
C42: 10 | D42: LED TRIAL | E42: Lamp | F42: 0 | G42: 0 | H42: 0
C43: 11 | D43: LED1x100 | E43: Lamp | F43: 0 | G43: 0 | H43: 0
C44: 12 | D44: LED1x17 | E44: Lamp | F44: 0 | G44: 0 | H44: 0
C45: 13 | D45: LED1x18 | E45: Lamp | F45: 0 | G45: 0 | H45: 0
C46: 14 | D46: LED1x20 | E46: Lamp | F46: 0 | G46: 0 | H46: 0
C47: 15 | D47: LED1x200 | E47: Lamp | F47: 0 | G47: 0 | H47: 0
C48: 16 | D48: LED1x22 | E48: Lamp | F48: 0 | G48: 0 | H48: 0
C49: 17 | D49: LED1x25 GE | E49: Lamp | F49: 0 | G49: 0 | H49: 0
C50: 18 | D50: LED1x28 | E50: Lamp | F50: 0 | G50: 0 | H50: 0
C51: 19 | D51: LED1x29 | E51: Lamp | F51: 0 | G51: 0 | H51: 0
C52: 20 | D52: LED1x298 | E52: Lamp | F52: 0 | G52: 0 | H52: 0
C53: 21 | D53: LED1x33 | E53: Lamp | F53: 0 | G53: 0 | H53: 0
C54: 22 | D54: LED1x42 | E54: Lamp | F54: 0 | G54: 0 | H54: 0
C55: 23 | D55: MBF1x1000 | E55: Lamp | F55: 0.2318765897 | G55: 0.08 | H55: 0.08
C56: 24 | D56: MBF1x125 | E56: Lamp | F56: 0.07974539338 | G56: 0.0501 | H56: 0.0501
C57: 25 | D57: MBF1x250 | E57: Lamp | F57: 0.2318765897 | G57: 0.0501 | H57: 0.0501
C58: 26 | D58: MBF1x400 | E58: Lamp | F58: 0.2318765897 | G58: 0.0501 | H58: 0.0501
C59: 27 | D59: MBF1x42 | E59: Lamp | F59: 0.0901 | G59: 0.0353 | H59: 0.0353
C60: 28 | D60: MBF1x50 | E60: Lamp | F60: 0.07974539338 | G60: 0.0501 | H60: 0.0501
C61: 29 | D61: MBF1x80 | E61: Lamp | F61: 0.07974539338 | G61: 0.0447 | H61: 0.0447
C62: 30 | D62: MBF2x80 | E62: Lamp | F62: 0.153131459 | G62: 0.08 | H62: 0.08
C63: 31 | D63: MBI1x100 | E63: Lamp | F63: 0.2318765897 | G63: 0.04 | H63: 0.04
C64: 32 | D64: MBI1x1000 | E64: Lamp | F64: 0.2318765897 | G64: 0.04 | H64: 0.04
C65: 33 | D65: MBI1x150 | E65: Lamp | F65: 0.2318765897 | G65: 0.04 | H65: 0.04
C66: 34 | D66: MBI1x250 | E66: Lamp | F66: 0.2318765897 | G66: 0.04 | H66: 0.04
C67: 35 | D67: MBI1x400 | E67: Lamp | F67: 0.2318765897 | G67: 0.04 | H67: 0.04
C68: 36 | D68: MBI1x70 | E68: Lamp | F68: 0.2318765897 | G68: 0.04 | H68: 0.04
C69: 37 | D69: MBI1x70 II | E69: Lamp | F69: 0.07974539338 | G69: 0.04 | H69: 0.04
C70: 38 | D70: SON1x100 | E70: Lamp | F70: 0.06518620254 | G70: 0.1344 | H70: 0.06518620254
C71: 39 | D71: SON1x1000 | E71: Lamp | F71: 0.06518620254 | G71: 0.05 | H71: 0.06518620254
C72: 40 | D72: SON1x150 | E72: Lamp | F72: 0.06518620254 | G72: 0.0972 | H72: 0.06518620254
C73: 41 | D73: SON1x150 AR | E73: Lamp | F73: 0.06518620254 | G73: 0.07033333333 | H73: 0.06518620254
C74: 42 | D74: SON1x250 | E74: Lamp | F74: 0.06518620254 | G74: 0.1072 | H74: 0.06518620254
C75: 43 | D75: SON1x250 AR | E75: Lamp | F75: 0.06518620254 | G75: 0.0734 | H75: 0.06518620254
C76: 44 | D76: SON1x400 | E76: Lamp | F76: 0.06518620254 | G76: 0.0972 | H76: 0.06518620254
C77: 45 | D77: SON1x400 AR | E77: Lamp | F77: 0.06518620254 | G77: 0.08171666667 | H77: 0.06518620254
C78: 46 | D78: SON1x50 | E78: Lamp | F78: 0.06518620254 | G78: 0.05 | H78: 0.06518620254
C79: 47 | D79: SON1x600 | E79: Lamp | F79: 0.06518620254 | G79: 0.0972 | H79: 0.06518620254
C80: 48 | D80: SON1x70 | E80: Lamp | F80: 0.06518620254 | G80: 0.1125333333 | H80: 0.06518620254
C81: 49 | D81: SON2x250 | E81: Lamp | F81: 0.1261231641 | G81: 0.2250666667 | H81: 0.1261231641
C82: 50 | D82: SON2x400 | E82: Lamp | F82: 0.1261231641 | G82: 0.1944 | H82: 0.1261231641
C83: 51 | D83: SON4x250 | E83: Lamp | F83: 0.2363392756 | G83: 0.4700884481 | H83: 0.2363392756
C84: 52 | D84: SON4x600 | E84: Lamp | F84: 0.2363392756 | G84: 0.5102186727 | H84: 0.2363392756
C85: 53 | D85: TF1x20 | E85: Lamp | F85: 0.1437293284 | G85: 0.06 | H85: 0.06
C86: 54 | D86: TF1x40 | E86: Lamp | F86: 0.1437293284 | G86: 0.158 | H86: 0.158
C87: 55 | D87: TF1x80 | E87: Lamp | F87: 0.1437293284 | G87: 0.06 | H87: 0.06
C88: 56 | D88: TF2x14 T5 | E88: Lamp | F88: 0.0901 | G88: 0.06 | H88: 0.06
C89: 57 | D89: TF2x20 | E89: Lamp | F89: 0.2668005369 | G89: 0.1029 | H89: 0.1029
C90: 58 | D90: TF2x26 | E90: Lamp | F90: 0.2668005369 | G90: 0.06 | H90: 0.06
C91: 59 | D91: TF2x40 | E91: Lamp | F91: 0.2668005369 | G91: 0.06 | H91: 0.06
C92: 60 | D92: TF4x20 | E92: Lamp | F92: 0.4624185473 | G92: 0.06 | H92: 0.06
C93: 61 | D93: TF4x40 | E93: Lamp | F93: 0.4624185473 | G93: 0.06 | H93: 0.06
C94: 62 | D94: TH1x1500 | E94: Lamp | F94: 0.2318765897 | G94: 0.06 | H94: 0.06
C95: 63 | D95: TH1x500 | E95: Lamp | F95: 0.2318765897 | G95: 0.06 | H95: 0.06
C96: 64 | D96: TH1x750 | E96: Lamp | F96: 0.2318765897 | G96: 0.06 | H96: 0.06

Sheet AER Tariff Smoothing
B1: Maintenance charges per component
C3: 2019/20 | D3: 2020/21 | E3: 2021/22 | F3: 2022/23 | G3: 2023/24
B4: CPI | C4: ='Input - General'!J9 -> 0.02424874658 | D4: ='Input - General'!K9 -> 0.02424874658 | E4: ='Input - General'!L9 -> 0.02424874658 | F4: ='Input - General'!M9 -> 0.02424874658 | G4: ='Input - General'!N9 -> 0.02424874658
B5: CPI Index | C5: =1+C4 -> 1.024248747 | D5: =C5*(1+D4) -> 1.049085495 | E5: =D5*(1+E4) -> 1.074524503 | F5: =E5*(1+F4) -> 1.100580376 | G5: =F5*(1+G4) -> 1.12726807
B7: Nominal Vanilla WACC | C7: ='Input - General'!J22 -> 0.05955790745
B8: Real Vanilla WACC | C8: =(1+C7)/(1+C4)-1 -> 0.03447322829
C10: Volumes | I10: Unsmoothed Prices (Real $ 2018/19) | O10: Smoothed Prices (Real $ 2018/19) | U10: Unsmoothed Revenue (Real $ 2018/19) | AB10: Smoothed Revenue (Real $ 2018/19) | AI10: NPV Difference
A11: Description | B11: Component | C11: 2019/20 | D11: 2020/21 | E11: 2021/22 | F11: 2022/23 | G11: 2023/24 | I11: 2019/20 | J11: 2020/21 | K11: 2021/22 | L11: 2022/23 | M11: 2023/24 | O11: 2019/20 | P11: 2020/21 | Q11: 2021/22 | R11: 2022/23 | S11: 2023/24 | U11: 2019/20 | V11: 2020/21 | W11: 2021/22 | X11: 2022/23 | Y11: 2023/24 | Z11: NPV | AB11: 2019/20 | AC11: 2020/21 | AD11: 2021/22 | AE11: 2022/23 | AF11: 2023/24 | AG11: NPV
A12: ='Calc - Opex FY20'!C12 -> O/U | B12: ='Calc - Opex FY20'!I12 -> Connection - O/U | C12: ='Calc - Opex FY20'!L12 -> 576 | D12: ='Calc - Opex FY21'!L12 -> 576 | E12: ='Calc - Opex FY22'!L12 -> 576 | F12: ='Calc - Opex FY23'!L12 -> 576 | G12: ='Calc - Opex FY24'!L12 -> 576 | I12: ='Calc - Opex FY20'!K12/C$5 -> 103.1278753 | J12: ='Calc - Opex FY21'!K12/D$5 -> 103.1278753 | K12: ='Calc - Opex FY22'!K12/E$5 -> 103.1278753 | L12: ='Calc - Opex FY23'!K12/F$5 -> 103.1278753 | M12: ='Calc - Opex FY24'!K12/G$5 -> 103.1278753 | O12: =IFERROR(NPV($C$8,U12:Y12)/NPV($C$8,C12:G12),0) -> 103.1278753 | P12: =O12 -> 103.1278753 | Q12: =P12 -> 103.1278753 | R12: 103.1278753 | S12: 103.1278753 | U12: =C12*I12 -> 59401.65618 | V12: =D12*J12 -> 59401.65618 | W12: =E12*K12 -> 59401.65618 | X12: =F12*L12 -> 59401.65618 | Y12: =G12*M12 -> 59401.65618 | Z12: =NPV($C$8,U12:Y12) -> 268602.1821 | AB12: =C12*O12 -> 59401.65618 | AC12: =D12*P12 -> 59401.65618 | AD12: =E12*Q12 -> 59401.65618 | AE12: =F12*R12 -> 59401.65618 | AF12: =G12*S12 -> 59401.65618 | AG12: =NPV($C$8,AB12:AF12) -> 268602.1821 | AI12: =AG12-Z12 -> 0 | AJ12: =IFERROR(AI12/Z12,0) -> 0
A13: ='Calc - Opex FY20'!C13 -> OH | B13: ='Calc - Opex FY20'!I13 -> Connection - OH | C13: ='Calc - Opex FY20'!L13 -> 196623 | D13: ='Calc - Opex FY21'!L13 -> 196623 | E13: ='Calc - Opex FY22'!L13 -> 196623 | F13: ='Calc - Opex FY23'!L13 -> 196623 | G13: ='Calc - Opex FY24'!L13 -> 196623 | I13: ='Calc - Opex FY20'!K13/C$5 -> 0 | J13: ='Calc - Opex FY21'!K13/D$5 -> 0 | K13: ='Calc - Opex FY22'!K13/E$5 -> 0 | L13: ='Calc - Opex FY23'!K13/F$5 -> 0 | M13: ='Calc - Opex FY24'!K13/G$5 -> 0 | O13: 0 | P13: =O13 -> 0 | Q13: 0 | R13: 0 | S13: 0 | U13: =C13*I13 -> 0 | V13: 0 | W13: 0 | X13: 0 | Y13: 0 | Z13: 0 | AB13: =C13*O13 -> 0 | AC13: 0 | AD13: 0 | AE13: 0 | AF13: 0 | AG13: 0 | AI13: =AG13-Z13 -> 0 | AJ13: =IFERROR(AI13/Z13,0) -> 0
A14: ='Calc - Opex FY20'!C14 -> OH2 | B14: ='Calc - Opex FY20'!I14 -> Connection - OH2 | C14: ='Calc - Opex FY20'!L14 -> 718 | D14: ='Calc - Opex FY21'!L14 -> 718 | E14: ='Calc - Opex FY22'!L14 -> 718 | F14: ='Calc - Opex FY23'!L14 -> 718 | G14: ='Calc - Opex FY24'!L14 -> 718 | I14: ='Calc - Opex FY20'!K14/C$5 -> 0 | J14: ='Calc - Opex FY21'!K14/D$5 -> 0 | K14: ='Calc - Opex FY22'!K14/E$5 -> 0 | L14: ='Calc - Opex FY23'!K14/F$5 -> 0 | M14: ='Calc - Opex FY24'!K14/G$5 -> 0 | O14: 0 | P14: =O14 -> 0 | Q14: 0 | R14: 0 | S14: 0 | U14: 0 | V14: 0 | W14: 0 | X14: 0 | Y14: 0 | Z14: 0 | AB14: 0 | AC14: 0 | AD14: 0 | AE14: 0 | AF14: 0 | AG14: 0 | AI14: 0 | AJ14: 0
A15: ='Calc - Opex FY20'!C15 -> OHS | B15: ='Calc - Opex FY20'!I15 -> Connection - OHS | C15: ='Calc - Opex FY20'!L15 -> 9 | D15: ='Calc - Opex FY21'!L15 -> 9 | E15: ='Calc - Opex FY22'!L15 -> 9 | F15: ='Calc - Opex FY23'!L15 -> 9 | G15: ='Calc - Opex FY24'!L15 -> 9 | I15: ='Calc - Opex FY20'!K15/C$5 -> 0 | J15: ='Calc - Opex FY21'!K15/D$5 -> 0 | K15: ='Calc - Opex FY22'!K15/E$5 -> 0 | L15: ='Calc - Opex FY23'!K15/F$5 -> 0 | M15: ='Calc - Opex FY24'!K15/G$5 -> 0 | O15: 0 | P15: =O15 -> 0 | Q15: 0 | R15: 0 | S15: 0 | U15: 0 | V15: 0 | W15: 0 | X15: 0 | Y15: 0 | Z15: 0 | AB15: 0 | AC15: 0 | AD15: 0 | AE15: 0 | AF15: 0 | AG15: 0 | AI15: 0 | AJ15: 0
A16: ='Calc - Opex FY20'!C16 -> UG2 | B16: ='Calc - Opex FY20'!I16 -> Connection - UG2 | C16: ='Calc - Opex FY20'!L16 -> 1134 | D16: ='Calc - Opex FY21'!L16 -> 1134 | E16: ='Calc - Opex FY22'!L16 -> 1134 | F16: ='Calc - Opex FY23'!L16 -> 1134 | G16: ='Calc - Opex FY24'!L16 -> 1134 | I16: ='Calc - Opex FY20'!K16/C$5 -> 0 | J16: ='Calc - Opex FY21'!K16/D$5 -> 0 | K16: ='Calc - Opex FY22'!K16/E$5 -> 0 | L16: ='Calc - Opex FY23'!K16/F$5 -> 0 | M16: ='Calc - Opex FY24'!K16/G$5 -> 0 | O16: 0 | P16: =O16 -> 0 | Q16: 0 | R16: 0 | S16: 0 | U16: 0 | V16: 0 | W16: 0 | X16: 0 | Y16: 0 | Z16: 0 | AB16: 0 | AC16: 0 | AD16: 0 | AE16: 0 | AF16: 0 | AG16: 0 | AI16: =AG16-Z16 -> 0 | AJ16: =IFERROR(AI16/Z16,0) -> 0
A17: ='Calc - Opex FY20'!C17 -> UGR1 | B17: ='Calc - Opex FY20'!I17 -> Connection - UGR1 | C17: ='Calc - Opex FY20'!L17 -> 31792 | D17: ='Calc - Opex FY21'!L17 -> 31792 | E17: ='Calc - Opex FY22'!L17 -> 31792 | F17: ='Calc - Opex FY23'!L17 -> 31792 | G17: ='Calc - Opex FY24'!L17 -> 31792 | I17: ='Calc - Opex FY20'!K17/C$5 -> 94.5314959 | J17: ='Calc - Opex FY21'!K17/D$5 -> 94.5314959 | K17: ='Calc - Opex FY22'!K17/E$5 -> 94.5314959 | L17: ='Calc - Opex FY23'!K17/F$5 -> 94.5314959 | M17: ='Calc - Opex FY24'!K17/G$5 -> 94.5314959 | O17: 94.5314959 | P17: =O17 -> 94.5314959 | Q17: 94.5314959 | R17: 94.5314959 | S17: 94.5314959 | U17: 3005345.317 | V17: 3005345.317 | W17: 3005345.317 | X17: 3005345.317 | Y17: 3005345.317 | Z17: 13589558.98 | AB17: 3005345.317 | AC17: 3005345.317 | AD17: 3005345.317 | AE17: 3005345.317 | AF17: 3005345.317 | AG17: 13589558.98 | AI17: 0 | AJ17: 0
A18: ='Calc - Opex FY20'!C18 -> UGR2 | B18: ='Calc - Opex FY20'!I18 -> Connection - UGR2 | C18: ='Calc - Opex FY20'!L18 -> 20937 | D18: ='Calc - Opex FY21'!L18 -> 20937 | E18: ='Calc - Opex FY22'!L18 -> 20937 | F18: ='Calc - Opex FY23'!L18 -> 20937 | G18: ='Calc - Opex FY24'!L18 -> 20937 | I18: ='Calc - Opex FY20'!K18/C$5 -> 34.37084401 | J18: ='Calc - Opex FY21'!K18/D$5 -> 34.37084401 | K18: ='Calc - Opex FY22'!K18/E$5 -> 34.37084401 | L18: ='Calc - Opex FY23'!K18/F$5 -> 34.37084401 | M18: ='Calc - Opex FY24'!K18/G$5 -> 34.37084401 | O18: 34.37084401 | P18: =O18 -> 34.37084401 | Q18: 34.37084401 | R18: 34.37084401 | S18: 34.37084401 | U18: 719622.3609 | V18: 719622.3609 | W18: 719622.3609 | X18: 719622.3609 | Y18: 719622.3609 | Z18: 3253985.644 | AB18: 719622.3609 | AC18: 719622.3609 | AD18: 719622.3609 | AE18: 719622.3609 | AF18: 719622.3609 | AG18: 3253985.644 | AI18: 0 | AJ18: 0
A19: ='Calc - Opex FY20'!C19 -> UGS | B19: ='Calc - Opex FY20'!I19 -> Connection - UGS | C19: ='Calc - Opex FY20'!L19 -> 108 | D19: ='Calc - Opex FY21'!L19 -> 108 | E19: ='Calc - Opex FY22'!L19 -> 108 | F19: ='Calc - Opex FY23'!L19 -> 108 | G19: ='Calc - Opex FY24'!L19 -> 108 | I19: ='Calc - Opex FY20'!K19/C$5 -> 0 | J19: ='Calc - Opex FY21'!K19/D$5 -> 0 | K19: ='Calc - Opex FY22'!K19/E$5 -> 0 | L19: ='Calc - Opex FY23'!K19/F$5 -> 0 | M19: ='Calc - Opex FY24'!K19/G$5 -> 0 | O19: 0 | P19: =O19 -> 0 | Q19: 0 | R19: 0 | S19: 0 | U19: 0 | V19: 0 | W19: 0 | X19: 0 | Y19: 0 | Z19: 0 | AB19: 0 | AC19: 0 | AD19: 0 | AE19: 0 | AF19: 0 | AG19: 0 | AI19: 0 | AJ19: 0
A20: ='Calc - Opex FY20'!C20 -> UG-SP | B20: ='Calc - Opex FY20'!I20 -> Connection - UG-SP | C20: ='Calc - Opex FY20'!L20 -> 13 | D20: ='Calc - Opex FY21'!L20 -> 13 | E20: ='Calc - Opex FY22'!L20 -> 13 | F20: ='Calc - Opex FY23'!L20 -> 13 | G20: ='Calc - Opex FY24'!L20 -> 13 | I20: ='Calc - Opex FY20'!K20/C$5 -> 0 | J20: ='Calc - Opex FY21'!K20/D$5 -> 0 | K20: ='Calc - Opex FY22'!K20/E$5 -> 0 | L20: ='Calc - Opex FY23'!K20/F$5 -> 0 | M20: ='Calc - Opex FY24'!K20/G$5 -> 0 | O20: 0 | P20: =O20 -> 0 | Q20: 0 | R20: 0 | S20: 0 | U20: 0 | V20: 0 | W20: 0 | X20: 0 | Y20: 0 | Z20: 0 | AB20: 0 | AC20: 0 | AD20: 0 | AE20: 0 | AF20: 0 | AG20: 0 | AI20: 0 | AJ20: 0
A21: ='Calc - Opex FY20'!C21 -> LED TRIAL | B21: ='Calc - Opex FY20'!I21 -> Lamp - LED TRIAL | C21: ='Calc - Opex FY20'!L21 -> 67 | D21: ='Calc - Opex FY21'!L21 -> 67 | E21: ='Calc - Opex FY22'!L21 -> 67 | F21: ='Calc - Opex FY23'!L21 -> 67 | G21: ='Calc - Opex FY24'!L21 -> 67 | I21: ='Calc - Opex FY20'!K21/C$5 -> 22.93668106 | J21: ='Calc - Opex FY21'!K21/D$5 -> 23.00471527 | K21: ='Calc - Opex FY22'!K21/E$5 -> 23.11547512 | L21: ='Calc - Opex FY23'!K21/F$5 -> 23.23984056 | M21: ='Calc - Opex FY24'!K21/G$5 -> 23.34657983 | O21: 23.12152171 | P21: =O21 -> 23.12152171 | Q21: 23.12152171 | R21: 23.12152171 | S21: 23.12152171 | U21: 1536.757631 | V21: 1541.315923 | W21: 1548.736833 | X21: 1557.069318 | Y21: 1564.220848 | Z21: 7004.904175 | AB21: 1549.141954 | AC21: 1549.141954 | AD21: 1549.141954 | AE21: 1549.141954 | AF21: 1549.141954 | AG21: 7004.904175 | AI21: 0 | AJ21: 0
A22: ='Calc - Opex FY20'!C22 -> LED1x100 | B22: ='Calc - Opex FY20'!I22 -> Lamp - LED1x100 | C22: ='Calc - Opex FY20'!L22 -> 4982.666667 | D22: ='Calc - Opex FY21'!L22 -> 10159 | E22: ='Calc - Opex FY22'!L22 -> 15343 | F22: ='Calc - Opex FY23'!L22 -> 15554 | G22: ='Calc - Opex FY24'!L22 -> 15761 | I22: ='Calc - Opex FY20'!K22/C$5 -> 30.41032211 | J22: ='Calc - Opex FY21'!K22/D$5 -> 30.51237343 | K22: ='Calc - Opex FY22'!K22/E$5 -> 30.6785132 | L22: ='Calc - Opex FY23'!K22/F$5 -> 30.86506137 | M22: ='Calc - Opex FY24'!K22/G$5 -> 31.02517026 | O22: 30.75619299 | P22: =O22 -> 30.75619299 | Q22: 30.75619299 | R22: 30.75619299 | S22: 30.75619299 | U22: 151524.4983 | V22: 309975.2016 | W22: 470700.4281 | X22: 480075.1645 | Y22: 488987.7084 | Z22: 1693303.098 | AB22: 153247.8576 | AC22: 312452.1646 | AD22: 471892.2691 | AE22: 478381.8258 | AF22: 484748.3578 | AG22: 1693303.098 | AI22: 0 | AJ22: 0
A23: ='Calc - Opex FY20'!C23 -> LED1x17 | B23: ='Calc - Opex FY20'!I23 -> Lamp - LED1x17 | C23: ='Calc - Opex FY20'!L23 -> 34068 | D23: ='Calc - Opex FY21'!L23 -> 64297 | E23: ='Calc - Opex FY22'!L23 -> 89881 | F23: ='Calc - Opex FY23'!L23 -> 93783 | G23: ='Calc - Opex FY24'!L23 -> 94011 | I23: ='Calc - Opex FY20'!K23/C$5 -> 22.93668106 | J23: ='Calc - Opex FY21'!K23/D$5 -> 23.00471527 | K23: ='Calc - Opex FY22'!K23/E$5 -> 23.11547512 | L23: ='Calc - Opex FY23'!K23/F$5 -> 23.23984056 | M23: ='Calc - Opex FY24'!K23/G$5 -> 23.34657983 | O23: 23.16311571 | P23: =O23 -> 23.16311571 | Q23: 23.16311571 | R23: 23.16311571 | S23: 23.16311571 | U23: 781406.8503 | V23: 1479134.178 | W23: 2077642.02 | X23: 2179501.968 | Y23: 2194835.316 | Z23: 7770223.345 | AB23: 789121.0261 | AC23: 1489318.851 | AD23: 2081924.003 | AE23: 2172306.481 | AF23: 2177587.671 | AG23: 7770223.345 | AI23: 0 | AJ23: 0
A24: ='Calc - Opex FY20'!C24 -> LED1x18 | B24: ='Calc - Opex FY20'!I24 -> Lamp - LED1x18 | C24: ='Calc - Opex FY20'!L24+1 -> 1 | D24: ='Calc - Opex FY21'!L24+1 -> 1 | E24: ='Calc - Opex FY22'!L24+1 -> 1 | F24: ='Calc - Opex FY23'!L24+1 -> 1 | G24: ='Calc - Opex FY24'!L24+1 -> 1 | I24: ='Calc - Opex FY20'!K24/C$5 -> 22.93668106 | J24: ='Calc - Opex FY21'!K24/D$5 -> 23.00471527 | K24: ='Calc - Opex FY22'!K24/E$5 -> 23.11547512 | L24: ='Calc - Opex FY23'!K24/F$5 -> 23.23984056 | M24: ='Calc - Opex FY24'!K24/G$5 -> 23.34657983 | O24: 23.12152171 | P24: =O24 -> 23.12152171 | Q24: 23.12152171 | R24: 23.12152171 | S24: 23.12152171 | U24: 22.93668106 | V24: 23.00471527 | W24: 23.11547512 | X24: 23.23984056 | Y24: 23.34657983 | Z24: 104.5508086 | AB24: 23.12152171 | AC24: 23.12152171 | AD24: 23.12152171 | AE24: 23.12152171 | AF24: 23.12152171 | AG24: 104.5508086 | AI24: 0 | AJ24: 0
A25: ='Calc - Opex FY20'!C25 -> LED1x20 | B25: ='Calc - Opex FY20'!I25 -> Lamp - LED1x20 | C25: ='Calc - Opex FY20'!L25+1 -> 1 | D25: ='Calc - Opex FY21'!L25+1 -> 1 | E25: ='Calc - Opex FY22'!L25+1 -> 1 | F25: ='Calc - Opex FY23'!L25+1 -> 1 | G25: ='Calc - Opex FY24'!L25+1 -> 1 | I25: ='Calc - Opex FY20'!K25/C$5 -> 22.93668106 | J25: ='Calc - Opex FY21'!K25/D$5 -> 23.00471527 | K25: ='Calc - Opex FY22'!K25/E$5 -> 23.11547512 | L25: ='Calc - Opex FY23'!K25/F$5 -> 23.23984056 | M25: ='Calc - Opex FY24'!K25/G$5 -> 23.34657983 | O25: 23.12152171 | P25: =O25 -> 23.12152171 | Q25: 23.12152171 | R25: 23.12152171 | S25: 23.12152171 | U25: 22.93668106 | V25: 23.00471527 | W25: 23.11547512 | X25: 23.23984056 | Y25: 23.34657983 | Z25: 104.5508086 | AB25: 23.12152171 | AC25: 23.12152171 | AD25: 23.12152171 | AE25: 23.12152171 | AF25: 23.12152171 | AG25: 104.5508086 | AI25: 0 | AJ25: 0
A26: ='Calc - Opex FY20'!C26 -> LED1x200 | B26: ='Calc - Opex FY20'!I26 -> Lamp - LED1x200 | C26: ='Calc - Opex FY20'!L26 -> 1795 | D26: ='Calc - Opex FY21'!L26 -> 3776 | E26: ='Calc - Opex FY22'!L26 -> 5756 | F26: ='Calc - Opex FY23'!L26 -> 6164 | G26: ='Calc - Opex FY24'!L26 -> 6378 | I26: ='Calc - Opex FY20'!K26/C$5 -> 30.41032211 | J26: ='Calc - Opex FY21'!K26/D$5 -> 30.51237343 | K26: ='Calc - Opex FY22'!K26/E$5 -> 30.6785132 | L26: ='Calc - Opex FY23'!K26/F$5 -> 30.86506137 | M26: ='Calc - Opex FY24'!K26/G$5 -> 31.02517026 | O26: 30.76418813 | P26: =O26 -> 30.76418813 | Q26: 30.76418813 | R26: 30.76418813 | S26: 30.76418813 | U26: 54586.52818 | V26: 115214.7221 | W26: 176585.522 | X26: 190252.2383 | Y26: 197878.5359 | Z26: 653109.5026 | AB26: 55221.7177 | AC26: 116165.5744 | AD26: 177078.6669 | AE26: 189630.4556 | AF26: 196213.9919 | AG26: 653109.5026 | AI26: 0 | AJ26: 0
A27: ='Calc - Opex FY20'!C27 -> LED1x22 | B27: ='Calc - Opex FY20'!I27 -> Lamp - LED1x22 | C27: ='Calc - Opex FY20'!L27 -> 14394 | D27: ='Calc - Opex FY21'!L27 -> 14394 | E27: ='Calc - Opex FY22'!L27 -> 14394 | F27: ='Calc - Opex FY23'!L27 -> 14394 | G27: ='Calc - Opex FY24'!L27 -> 14394 | I27: ='Calc - Opex FY20'!K27/C$5 -> 22.93668106 | J27: ='Calc - Opex FY21'!K27/D$5 -> 23.00471527 | K27: ='Calc - Opex FY22'!K27/E$5 -> 23.11547512 | L27: ='Calc - Opex FY23'!K27/F$5 -> 23.23984056 | M27: ='Calc - Opex FY24'!K27/G$5 -> 23.34657983 | O27: 23.12152171 | P27: =O27 -> 23.12152171 | Q27: 23.12152171 | R27: 23.12152171 | S27: 23.12152171 | U27: 330150.5872 | V27: 331129.8716 | W27: 332724.1489 | X27: 334514.2651 | Y27: 336050.67 | Z27: 1504904.339 | AB27: 332811.1834 | AC27: 332811.1834 | AD27: 332811.1834 | AE27: 332811.1834 | AF27: 332811.1834 | AG27: 1504904.339 | AI27: 0 | AJ27: 0
A28: ='Calc - Opex FY20'!C28 -> LED1x25 GE | B28: ='Calc - Opex FY20'!I28 -> Lamp - LED1x25 GE | C28: ='Calc - Opex FY20'!L28 -> 3665 | D28: ='Calc - Opex FY21'!L28 -> 3665 | E28: ='Calc - Opex FY22'!L28 -> 3665 | F28: ='Calc - Opex FY23'!L28 -> 3665 | G28: ='Calc - Opex FY24'!L28 -> 3665 | I28: ='Calc - Opex FY20'!K28/C$5 -> 22.93668106 | J28: ='Calc - Opex FY21'!K28/D$5 -> 23.00471527 | K28: ='Calc - Opex FY22'!K28/E$5 -> 23.11547512 | L28: ='Calc - Opex FY23'!K28/F$5 -> 23.23984056 | M28: ='Calc - Opex FY24'!K28/G$5 -> 23.34657983 | O28: 23.12152171 | P28: =O28 -> 23.12152171 | Q28: 23.12152171 | R28: 23.12152171 | S28: 23.12152171 | U28: 84062.93608 | V28: 84312.28147 | W28: 84718.21633 | X28: 85174.01567 | Y28: 85565.21506 | Z28: 383178.7134 | AB28: 84740.37705 | AC28: 84740.37705 | AD28: 84740.37705 | AE28: 84740.37705 | AF28: 84740.37705 | AG28: 383178.7134 | AI28: 0 | AJ28: 0
A29: ='Calc - Opex FY20'!C29 -> LED1x28 | B29: ='Calc - Opex FY20'!I29 -> Lamp - LED1x28 | C29: ='Calc - Opex FY20'!L29 -> 1395 | D29: ='Calc - Opex FY21'!L29 -> 2791 | E29: ='Calc - Opex FY22'!L29 -> 4186 | F29: ='Calc - Opex FY23'!L29 -> 4440 | G29: ='Calc - Opex FY24'!L29 -> 4464 | I29: ='Calc - Opex FY20'!K29/C$5 -> 22.93668106 | J29: ='Calc - Opex FY21'!K29/D$5 -> 23.00471527 | K29: ='Calc - Opex FY22'!K29/E$5 -> 23.11547512 | L29: ='Calc - Opex FY23'!K29/F$5 -> 23.23984056 | M29: ='Calc - Opex FY24'!K29/G$5 -> 23.34657983 | O29: 23.1689776 | P29: =O29 -> 23.1689776 | Q29: 23.1689776 | R29: 23.1689776 | S29: 23.1689776 | U29: 31996.67008 | V29: 64206.16032 | W29: 96761.37887 | X29: 103184.8921 | Y29: 104219.1323 | Z29: 356411.5313 | AB29: 32320.72375 | AC29: 64664.61648 | AD29: 96985.34023 | AE29: 102870.2605 | AF29: 103426.316 | AG29: 356411.5313 | AI29: 0 | AJ29: 0
A30: ='Calc - Opex FY20'!C30 -> LED1x29 | B30: ='Calc - Opex FY20'!I30 -> Lamp - LED1x29 | C30: ='Calc - Opex FY20'!L30 -> 15545 | D30: ='Calc - Opex FY21'!L30 -> 15545 | E30: ='Calc - Opex FY22'!L30 -> 15545 | F30: ='Calc - Opex FY23'!L30 -> 15545 | G30: ='Calc - Opex FY24'!L30 -> 15545 | I30: ='Calc - Opex FY20'!K30/C$5 -> 22.93668106 | J30: ='Calc - Opex FY21'!K30/D$5 -> 23.00471527 | K30: ='Calc - Opex FY22'!K30/E$5 -> 23.11547512 | L30: ='Calc - Opex FY23'!K30/F$5 -> 23.23984056 | M30: ='Calc - Opex FY24'!K30/G$5 -> 23.34657983 | O30: 23.12152171 | P30: =O30 -> 23.12152171 | Q30: 23.12152171 | R30: 23.12152171 | S30: 23.12152171 | U30: 356550.7071 | V30: 357608.2989 | W30: 359330.0608 | X30: 361263.3216 | Y30: 362922.5834 | Z30: 1625242.319 | AB30: 359424.0549 | AC30: 359424.0549 | AD30: 359424.0549 | AE30: 359424.0549 | AF30: 359424.0549 | AG30: 1625242.319 | AI30: 0 | AJ30: 0
A31: ='Calc - Opex FY20'!C31 -> LED1x298 | B31: ='Calc - Opex FY20'!I31 -> Lamp - LED1x298 | C31: ='Calc - Opex FY20'!L31 -> 52 | D31: ='Calc - Opex FY21'!L31 -> 75 | E31: ='Calc - Opex FY22'!L31 -> 102 | F31: ='Calc - Opex FY23'!L31 -> 152 | G31: ='Calc - Opex FY24'!L31 -> 178 | I31: ='Calc - Opex FY20'!K31/C$5 -> 30.41032211 | J31: ='Calc - Opex FY21'!K31/D$5 -> 30.51237343 | K31: ='Calc - Opex FY22'!K31/E$5 -> 30.6785132 | L31: ='Calc - Opex FY23'!K31/F$5 -> 30.86506137 | M31: ='Calc - Opex FY24'!K31/G$5 -> 31.02517026 | O31: 30.78290172 | P31: =O31 -> 30.78290172 | Q31: 30.78290172 | R31: 30.78290172 | S31: 30.78290172 | U31: 1581.33675 | V31: 2288.428007 | W31: 3129.208347 | X31: 4691.489328 | Y31: 5522.480306 | Z31: 15252.09505 | AB31: 1600.710889 | AC31: 2308.717629 | AD31: 3139.855975 | AE31: 4679.001061 | AF31: 5479.356505 | AG31: 15252.09505 | AI31: 0 | AJ31: 0
A32: ='Calc - Opex FY20'!C32 -> LED1x33 | B32: ='Calc - Opex FY20'!I32 -> Lamp - LED1x33 | C32: ='Calc - Opex FY20'!L32 -> 5 | D32: ='Calc - Opex FY21'!L32 -> 10 | E32: ='Calc - Opex FY22'!L32 -> 15 | F32: ='Calc - Opex FY23'!L32 -> 25 | G32: ='Calc - Opex FY24'!L32 -> 30 | I32: ='Calc - Opex FY20'!K32/C$5 -> 22.93668106 | J32: ='Calc - Opex FY21'!K32/D$5 -> 23.00471527 | K32: ='Calc - Opex FY22'!K32/E$5 -> 23.11547512 | L32: ='Calc - Opex FY23'!K32/F$5 -> 23.23984056 | M32: ='Calc - Opex FY24'!K32/G$5 -> 23.34657983 | O32: 23.20452426 | P32: =O32 -> 23.20452426 | Q32: 23.20452426 | R32: 23.20452426 | S32: 23.20452426 | U32: 114.6834053 | V32: 230.0471527 | W32: 346.7321269 | X32: 580.9960141 | Y32: 700.3973948 | Z32: 1737.597728 | AB32: 116.0226213 | AC32: 232.0452426 | AD32: 348.067864 | AE32: 580.1131066 | AF32: 696.1357279 | AG32: 1737.597728 | AI32: 0 | AJ32: 0
A33: ='Calc - Opex FY20'!C33 -> LED1x42 | B33: ='Calc - Opex FY20'!I33 -> Lamp - LED1x42 | C33: ='Calc - Opex FY20'!L33 -> 17 | D33: ='Calc - Opex FY21'!L33 -> 17 | E33: ='Calc - Opex FY22'!L33 -> 112 | F33: ='Calc - Opex FY23'!L33 -> 207 | G33: ='Calc - Opex FY24'!L33 -> 303 | I33: ='Calc - Opex FY20'!K33/C$5 -> 22.93668106 | J33: ='Calc - Opex FY21'!K33/D$5 -> 23.00471527 | K33: ='Calc - Opex FY22'!K33/E$5 -> 23.11547512 | L33: ='Calc - Opex FY23'!K33/F$5 -> 23.23984056 | M33: ='Calc - Opex FY24'!K33/G$5 -> 23.34657983 | O33: 23.25036846 | P33: =O33 -> 23.25036846 | Q33: 23.25036846 | R33: 23.25036846 | S33: 23.25036846 | U33: 389.923578 | V33: 391.0801596 | W33: 2588.933214 | X33: 4810.646997 | Y33: 7074.013687 | Z33: 13253.07384 | AB33: 395.2562639 | AC33: 395.2562639 | AD33: 2604.041268 | AE33: 4812.826272 | AF33: 7044.861644 | AG33: 13253.07384 | AI33: 0 | AJ33: 0
A34: ='Calc - Opex FY20'!C34 -> MBF1x1000 | B34: ='Calc - Opex FY20'!I34 -> Lamp - MBF1x1000 | C34: ='Calc - Opex FY20'!L34 -> 6 | D34: ='Calc - Opex FY21'!L34 -> 6 | E34: ='Calc - Opex FY22'!L34 -> 6 | F34: ='Calc - Opex FY23'!L34 -> 0 | G34: ='Calc - Opex FY24'!L34 -> 0 | I34: ='Calc - Opex FY20'!K34/C$5 -> 76.38481449 | J34: ='Calc - Opex FY21'!K34/D$5 -> 76.64269763 | K34: ='Calc - Opex FY22'!K34/E$5 -> 77.06253197 | L34: ='Calc - Opex FY23'!K34/F$5 -> 77.53393819 | M34: ='Calc - Opex FY24'!K34/G$5 -> 77.93853251 | O34: 76.68903669 | P34: =O34 -> 76.68903669 | Q34: 76.68903669 | R34: 76.68903669 | S34: 76.68903669 | U34: 458.3088869 | V34: 459.8561858 | W34: 462.3751918 | X34: 0 | Y34: 0 | Z34: 1290.427323 | AB34: 460.1342201 | AC34: 460.1342201 | AD34: 460.1342201 | AE34: 0 | AF34: 0 | AG34: 1290.427323 | AI34: 0 | AJ34: 0
A35: ='Calc - Opex FY20'!C35 -> MBF1x125 | B35: ='Calc - Opex FY20'!I35 -> Lamp - MBF1x125 | C35: ='Calc - Opex FY20'!L35 -> 3091 | D35: ='Calc - Opex FY21'!L35 -> 1719 | E35: ='Calc - Opex FY22'!L35 -> 348 | F35: ='Calc - Opex FY23'!L35 -> 143 | G35: ='Calc - Opex FY24'!L35 -> 143 | I35: ='Calc - Opex FY20'!K35/C$5 -> 40.40648805 | J35: ='Calc - Opex FY21'!K35/D$5 -> 40.53958205 | K35: ='Calc - Opex FY22'!K35/E$5 -> 40.75625938 | L35: ='Calc - Opex FY23'!K35/F$5 -> 40.99955306 | M35: ='Calc - Opex FY24'!K35/G$5 -> 41.20836499 | O35: 40.50244672 | P35: =O35 -> 40.50244672 | Q35: 40.50244672 | R35: 40.50244672 | S35: 40.50244672 | U35: 124896.4546 | V35: 69687.54155 | W35: 14183.17827 | X35: 5862.936088 | Y35: 5892.796193 | Z35: 208760.5007 | AB35: 125193.0628 | AC35: 69623.70591 | AD35: 14094.85146 | AE35: 5791.849881 | AF35: 5791.849881 | AG35: 208760.5007 | AI35: 0 | AJ35: 0
A36: ='Calc - Opex FY20'!C36 -> MBF1x250 | B36: ='Calc - Opex FY20'!I36 -> Lamp - MBF1x250 | C36: ='Calc - Opex FY20'!L36 -> 10054 | D36: ='Calc - Opex FY21'!L36 -> 5078 | E36: ='Calc - Opex FY22'!L36 -> 101 | F36: ='Calc - Opex FY23'!L36 -> 101 | G36: ='Calc - Opex FY24'!L36 -> 101 | I36: ='Calc - Opex FY20'!K36/C$5 -> 54.7645863 | J36: ='Calc - Opex FY21'!K36/D$5 -> 54.9642273 | K36: ='Calc - Opex FY22'!K36/E$5 -> 55.2892433 | L36: ='Calc - Opex FY23'!K36/F$5 -> 55.65418382 | M36: ='Calc - Opex FY24'!K36/G$5 -> 55.96740171 | O36: 54.84444382 | P36: =O36 -> 54.84444382 | Q36: 54.84444382 | R36: 54.84444382 | S36: 54.84444382 | U36: 550603.1507 | V36: 279108.3462 | W36: 5584.213573 | X36: 5621.072565 | Y36: 5652.707572 | Z36: 807794.9873 | AB36: 551406.0381 | AC36: 278500.0857 | AD36: 5539.288825 | AE36: 5539.288825 | AF36: 5539.288825 | AG36: 807794.9873 | AI36: 0 | AJ36: 0
A37: ='Calc - Opex FY20'!C37 -> MBF1x400 | B37: ='Calc - Opex FY20'!I37 -> Lamp - MBF1x400 | C37: ='Calc - Opex FY20'!L37 -> 3724 | D37: ='Calc - Opex FY21'!L37 -> 1957 | E37: ='Calc - Opex FY22'!L37 -> 190 | F37: ='Calc - Opex FY23'!L37 -> 0 | G37: ='Calc - Opex FY24'!L37 -> 0 | I37: ='Calc - Opex FY20'!K37/C$5 -> 54.7645863 | J37: ='Calc - Opex FY21'!K37/D$5 -> 54.9642273 | K37: ='Calc - Opex FY22'!K37/E$5 -> 55.2892433 | L37: ='Calc - Opex FY23'!K37/F$5 -> 55.65418382 | M37: ='Calc - Opex FY24'!K37/G$5 -> 55.96740171 | O37: 54.84585721 | P37: =O37 -> 54.84585721 | Q37: 54.84585721 | R37: 54.84585721 | S37: 54.84585721 | U37: 203943.3194 | V37: 107564.9928 | W37: 10504.95623 | X37: 0 | Y37: 0 | Z37: 307151.7373 | AB37: 204245.9722 | AC37: 107333.3426 | AD37: 10420.71287 | AE37: 0 | AF37: 0 | AG37: 307151.7373 | AI37: 0 | AJ37: 0
A38: ='Calc - Opex FY20'!C38 -> MBF1x42 | B38: ='Calc - Opex FY20'!I38 -> Lamp - MBF1x42 | C38: ='Calc - Opex FY20'!L38 -> 41952 | D38: ='Calc - Opex FY21'!L38 -> 41752 | E38: ='Calc - Opex FY22'!L38 -> 41552 | F38: ='Calc - Opex FY23'!L38 -> 41152 | G38: ='Calc - Opex FY24'!L38 -> 40952 | I38: ='Calc - Opex FY20'!K38/C$5 -> 35.81906967 | J38: ='Calc - Opex FY21'!K38/D$5 -> 35.93294441 | K38: ='Calc - Opex FY22'!K38/E$5 -> 36.11833275 | L38: ='Calc - Opex FY23'!K38/F$5 -> 36.32649393 | M38: ='Calc - Opex FY24'!K38/G$5 -> 36.50515266 | O38: 36.12623535 | P38: =O38 -> 36.12623535 | Q38: 36.12623535 | R38: 36.12623535 | S38: 36.12623535 | U38: 1502681.611 | V38: 1500272.295 | W38: 1500788.962 | X38: 1494907.878 | Y38: 1494959.012 | Z38: 6777551.927 | AB38: 1515567.825 | AC38: 1508342.578 | AD38: 1501117.331 | AE38: 1486666.837 | AF38: 1479441.59 | AG38: 6777551.927 | AI38: 0 | AJ38: 0
A39: ='Calc - Opex FY20'!C39 -> MBF1x50 | B39: ='Calc - Opex FY20'!I39 -> Lamp - MBF1x50 | C39: ='Calc - Opex FY20'!L39 -> 6357 | D39: ='Calc - Opex FY21'!L39 -> 3248 | E39: ='Calc - Opex FY22'!L39 -> 138 | F39: ='Calc - Opex FY23'!L39 -> 0 | G39: ='Calc - Opex FY24'!L39 -> 0 | I39: ='Calc - Opex FY20'!K39/C$5 -> 40.55215369 | J39: ='Calc - Opex FY21'!K39/D$5 -> 40.68524769 | K39: ='Calc - Opex FY22'!K39/E$5 -> 40.90192502 | L39: ='Calc - Opex FY23'!K39/F$5 -> 41.1452187 | M39: ='Calc - Opex FY24'!K39/G$5 -> 41.35403063 | O39: 40.60025281 | P39: =O39 -> 40.60025281 | Q39: 40.60025281 | R39: 40.60025281 | S39: 40.60025281 | U39: 257790.041 | V39: 132145.6845 | W39: 5644.465653 | X39: 0 | Y39: 0 | Z39: 377783.1772 | AB39: 258095.8071 | AC39: 131869.6211 | AD39: 5602.834887 | AE39: 0 | AF39: 0 | AG39: 377783.1772 | AI39: 0 | AJ39: 0
A40: ='Calc - Opex FY20'!C40 -> MBF1x80 | B40: ='Calc - Opex FY20'!I40 -> Lamp - MBF1x80 | C40: ='Calc - Opex FY20'!L40 -> 47982 | D40: ='Calc - Opex FY21'!L40 -> 25736 | E40: ='Calc - Opex FY22'!L40 -> 3490 | F40: ='Calc - Opex FY23'!L40 -> 162 | G40: ='Calc - Opex FY24'!L40 -> 162 | I40: ='Calc - Opex FY20'!K40/C$5 -> 38.40837894 | J40: ='Calc - Opex FY21'!K40/D$5 -> 38.53446051 | K40: ='Calc - Opex FY22'!K40/E$5 -> 38.73972158 | L40: ='Calc - Opex FY23'!K40/F$5 -> 38.97019665 | M40: ='Calc - Opex FY24'!K40/G$5 -> 39.16800673 | O40: 38.46605473 | P40: =O40 -> 38.46605473 | Q40: 38.46605473 | R40: 38.46605473 | S40: 38.46605473 | U40: 1842910.838 | V40: 991722.8756 | W40: 135201.6283 | X40: 6313.171857 | Y40: 6345.21709 | Z40: 2841223.299 | AB40: 1845678.238 | AC40: 989962.3845 | AD40: 134246.531 | AE40: 6231.500866 | AF40: 6231.500866 | AG40: 2841223.299 | AI40: 0 | AJ40: 0
A41: ='Calc - Opex FY20'!C41 -> MBF2x80 | B41: ='Calc - Opex FY20'!I41 -> Lamp - MBF2x80 | C41: ='Calc - Opex FY20'!L41 -> 16 | D41: ='Calc - Opex FY21'!L41 -> 16 | E41: ='Calc - Opex FY22'!L41 -> 13 | F41: ='Calc - Opex FY23'!L41 -> 10 | G41: ='Calc - Opex FY24'!L41 -> 8 | I41: ='Calc - Opex FY20'!K41/C$5 -> 48.63728877 | J41: ='Calc - Opex FY21'!K41/D$5 -> 48.80921087 | K41: ='Calc - Opex FY22'!K41/E$5 -> 49.08910042 | L41: ='Calc - Opex FY23'!K41/F$5 -> 49.40337123 | M41: ='Calc - Opex FY24'!K41/G$5 -> 49.67310078 | O41: 49.01130172 | P41: =O41 -> 49.01130172 | Q41: 49.01130172 | R41: 49.01130172 | S41: 49.01130172 | U41: 778.1966203 | V41: 780.9473738 | W41: 638.1583055 | X41: 494.0337123 | Y41: 397.3848062 | Z41: 2825.330536 | AB41: 784.1808276 | AC41: 784.1808276 | AD41: 637.1469224 | AE41: 490.1130172 | AF41: 392.0904138 | AG41: 2825.330536 | AI41: 0 | AJ41: 0
A42: ='Calc - Opex FY20'!C42 -> MBI1x100 | B42: ='Calc - Opex FY20'!I42 -> Lamp - MBI1x100 | C42: ='Calc - Opex FY20'!L42 -> 26 | D42: ='Calc - Opex FY21'!L42 -> 22 | E42: ='Calc - Opex FY22'!L42 -> 18 | F42: ='Calc - Opex FY23'!L42 -> 9 | G42: ='Calc - Opex FY24'!L42 -> 5 | I42: ='Calc - Opex FY20'!K42/C$5 -> 54.48019872 | J42: ='Calc - Opex FY21'!K42/D$5 -> 54.66016595 | K42: ='Calc - Opex FY22'!K42/E$5 -> 54.95315301 | L42: ='Calc - Opex FY23'!K42/F$5 -> 55.2821302 | M42: ='Calc - Opex FY24'!K42/G$5 -> 55.5644818 | O42: 54.78099949 | P42: =O42 -> 54.78099949 | Q42: 54.78099949 | R42: 54.78099949 | S42: 54.78099949 | U42: 1416.485167 | V42: 1202.523651 | W42: 989.1567542 | X42: 497.5391718 | Y42: 277.822409 | Z42: 4055.495843 | AB42: 1424.305987 | AC42: 1205.181989 | AD42: 986.0579909 | AE42: 493.0289954 | AF42: 273.9049975 | AG42: 4055.495843 | AI42: 0 | AJ42: 0
A43: ='Calc - Opex FY20'!C43 -> MBI1x1000 | B43: ='Calc - Opex FY20'!I43 -> Lamp - MBI1x1000 | C43: ='Calc - Opex FY20'!L43 -> 6 | D43: ='Calc - Opex FY21'!L43 -> 0 | E43: ='Calc - Opex FY22'!L43 -> 0 | F43: ='Calc - Opex FY23'!L43 -> 0 | G43: ='Calc - Opex FY24'!L43 -> 0 | I43: ='Calc - Opex FY20'!K43/C$5 -> 68.20259937 | J43: ='Calc - Opex FY21'!K43/D$5 -> 68.3825666 | K43: ='Calc - Opex FY22'!K43/E$5 -> 68.67555366 | L43: ='Calc - Opex FY23'!K43/F$5 -> 69.00453085 | M43: ='Calc - Opex FY24'!K43/G$5 -> 69.28688245 | O43: 68.20259937 | P43: =O43 -> 68.20259937 | Q43: 68.20259937 | R43: 68.20259937 | S43: 68.20259937 | U43: 409.2155962 | V43: 0 | W43: 0 | X43: 0 | Y43: 0 | Z43: 395.5787207 | AB43: 409.2155962 | AC43: 0 | AD43: 0 | AE43: 0 | AF43: 0 | AG43: 395.5787207 | AI43: 0 | AJ43: 0
A44: ='Calc - Opex FY20'!C44 -> MBI1x150 | B44: ='Calc - Opex FY20'!I44 -> Lamp - MBI1x150 | C44: ='Calc - Opex FY20'!L44 -> 4 | D44: ='Calc - Opex FY21'!L44 -> 4 | E44: ='Calc - Opex FY22'!L44 -> 4 | F44: ='Calc - Opex FY23'!L44 -> 0 | G44: ='Calc - Opex FY24'!L44 -> 0 | I44: ='Calc - Opex FY20'!K44/C$5 -> 54.48019872 | J44: ='Calc - Opex FY21'!K44/D$5 -> 54.66016595 | K44: ='Calc - Opex FY22'!K44/E$5 -> 54.95315301 | L44: ='Calc - Opex FY23'!K44/F$5 -> 55.2821302 | M44: ='Calc - Opex FY24'!K44/G$5 -> 55.5644818 | O44: =IFERROR(NPV($C$8,U44:Y44)/NPV($C$8,C44:G44),0) -> 54.69250429 | P44: =O44 -> 54.69250429 | Q44: 54.69250429 | R44: 54.69250429 | S44: 54.69250429 | U44: 217.9207949 | V44: 218.6406638 | W44: 219.812612 | X44: 0 | Y44: 0 | Z44: =NPV($C$8,U44:Y44) -> 613.5314333 | AB44: 218.7700171 | AC44: 218.7700171 | AD44: 218.7700171 | AE44: 0 | AF44: 0 | AG44: =NPV($C$8,AB44:AF44) -> 613.5314333 | AI44: 0 | AJ44: 0
A45: ='Calc - Opex FY20'!C45 -> MBI1x250 | B45: ='Calc - Opex FY20'!I45 -> Lamp - MBI1x250 | C45: ='Calc - Opex FY20'!L45 -> 53 | D45: ='Calc - Opex FY21'!L45 -> 50 | E45: ='Calc - Opex FY22'!L45 -> 46 | F45: ='Calc - Opex FY23'!L45 -> 38 | G45: ='Calc - Opex FY24'!L45 -> 35 | I45: ='Calc - Opex FY20'!K45/C$5 -> 51.99472287 | J45: ='Calc - Opex FY21'!K45/D$5 -> 52.1746901 | K45: ='Calc - Opex FY22'!K45/E$5 -> 52.46767716 | L45: ='Calc - Opex FY23'!K45/F$5 -> 52.79665435 | M45: ='Calc - Opex FY24'!K45/G$5 -> 53.07900595 | O45: 52.42345616 | P45: =O45 -> 52.42345616 | Q45: 52.42345616 | R45: 52.42345616 | S45: 52.42345616 | U45: 2755.720312 | V45: 2608.734505 | W45: 2413.513149 | X45: 2006.272865 | Y45: 1857.765208 | Z45: 10601.91749 | AB45: 2778.443177 | AC45: 2621.172808 | AD45: 2411.478983 | AE45: 1992.091334 | AF45: 1834.820966 | AG45: 10601.91749 | AI45: 0 | AJ45: 0
A46: ='Calc - Opex FY20'!C46 -> MBI1x400 | B46: ='Calc - Opex FY20'!I46 -> Lamp - MBI1x400 | C46: ='Calc - Opex FY20'!L46 -> 120 | D46: ='Calc - Opex FY21'!L46 -> 113 | E46: ='Calc - Opex FY22'!L46 -> 105 | F46: ='Calc - Opex FY23'!L46 -> 90 | G46: ='Calc - Opex FY24'!L46 -> 82 | I46: ='Calc - Opex FY20'!K46/C$5 -> 51.91428676 | J46: ='Calc - Opex FY21'!K46/D$5 -> 52.09425399 | K46: ='Calc - Opex FY22'!K46/E$5 -> 52.38724105 | L46: ='Calc - Opex FY23'!K46/F$5 -> 52.71621824 | M46: ='Calc - Opex FY24'!K46/G$5 -> 52.99856984 | O46: 52.34926183 | P46: =O46 -> 52.34926183 | Q46: 52.34926183 | R46: 52.34926183 | S46: 52.34926183 | U46: 6229.714411 | V46: 5886.650701 | W46: 5500.66031 | X46: 4744.459641 | Y46: 4345.882727 | Z46: 24303.21852 | AB46: 6281.91142 | AC46: 5915.466587 | AD46: 5496.672492 | AE46: 4711.433565 | AF46: 4292.63947 | AG46: 24303.21852 | AI46: 0 | AJ46: 0
A47: ='Calc - Opex FY20'!C47 -> MBI1x70 | B47: ='Calc - Opex FY20'!I47 -> Lamp - MBI1x70 | C47: ='Calc - Opex FY20'!L47 -> 289 | D47: ='Calc - Opex FY21'!L47 -> 287 | E47: ='Calc - Opex FY22'!L47 -> 285 | F47: ='Calc - Opex FY23'!L47 -> 281 | G47: ='Calc - Opex FY24'!L47 -> 279 | I47: ='Calc - Opex FY20'!K47/C$5 -> 41.596408 | J47: ='Calc - Opex FY21'!K47/D$5 -> 41.71638616 | K47: ='Calc - Opex FY22'!K47/E$5 -> 41.91171086 | L47: ='Calc - Opex FY23'!K47/F$5 -> 42.13102899 | M47: ='Calc - Opex FY24'!K47/G$5 -> 42.31926339 | O47: 41.91896443 | P47: =O47 -> 41.91896443 | Q47: 41.91896443 | R47: 41.91896443 | S47: 41.91896443 | U47: 12021.36191 | V47: 11972.60283 | W47: 11944.8376 | X47: 11838.81915 | Y47: 11807.07449 | Z47: 53903.17502 | AB47: 12114.58072 | AC47: 12030.74279 | AD47: 11946.90486 | AE47: 11779.22901 | AF47: 11695.39108 | AG47: 53903.17502 | AI47: 0 | AJ47: 0
A48: ='Calc - Opex FY20'!C48 -> MBI1x70 II | B48: ='Calc - Opex FY20'!I48 -> Lamp - MBI1x70 II | C48: ='Calc - Opex FY20'!L48 -> 393 | D48: ='Calc - Opex FY21'!L48 -> 390 | E48: ='Calc - Opex FY22'!L48 -> 387 | F48: ='Calc - Opex FY23'!L48 -> 381 | G48: ='Calc - Opex FY24'!L48 -> 378 | I48: ='Calc - Opex FY20'!K48/C$5 -> 59.09126229 | J48: ='Calc - Opex FY21'!K48/D$5 -> 59.21124045 | K48: ='Calc - Opex FY22'!K48/E$5 -> 59.40656515 | L48: ='Calc - Opex FY23'!K48/F$5 -> 59.62588328 | M48: ='Calc - Opex FY24'!K48/G$5 -> 59.81411768 | O48: 59.41346104 | P48: =O48 -> 59.41346104 | Q48: 59.41346104 | R48: 59.41346104 | S48: 59.41346104 | U48: 23222.86608 | V48: 23092.38377 | W48: 22990.34071 | X48: 22717.46153 | Y48: 22609.73648 | Z48: 103718.2083 | AB48: 23349.49019 | AC48: 23171.2498 | AD48: 22993.00942 | AE48: 22636.52866 | AF48: 22458.28827 | AG48: 103718.2083 | AI48: 0 | AJ48: 0
A49: ='Calc - Opex FY20'!C49 -> SON1x100 | B49: ='Calc - Opex FY20'!I49 -> Lamp - SON1x100 | C49: ='Calc - Opex FY20'!L49 -> 1424 | D49: ='Calc - Opex FY21'!L49 -> 1424 | E49: ='Calc - Opex FY22'!L49 -> 1329 | F49: ='Calc - Opex FY23'!L49 -> 1234 | G49: ='Calc - Opex FY24'!L49 -> 1138 | I49: ='Calc - Opex FY20'!K49/C$5 -> 63.9027142 | J49: ='Calc - Opex FY21'!K49/D$5 -> 64.13174158 | K49: ='Calc - Opex FY22'!K49/E$5 -> 64.50459867 | L49: ='Calc - Opex FY23'!K49/F$5 -> 64.92325701 | M49: ='Calc - Opex FY24'!K49/G$5 -> 65.28257936 | O49: 64.48337182 | P49: =O49 -> 64.48337182 | Q49: 64.48337182 | R49: 64.48337182 | S49: 64.48337182 | U49: 90997.46502 | V49: 91323.60001 | W49: 85726.61163 | X49: 80115.29915 | Y49: 74291.57532 | Z49: 383411.2066 | AB49: 91824.32148 | AC49: 91824.32148 | AD49: 85698.40115 | AE49: 79572.48083 | AF49: 73382.07714 | AG49: 383411.2066 | AI49: 0 | AJ49: 0
A50: ='Calc - Opex FY20'!C50 -> SON1x1000 | B50: ='Calc - Opex FY20'!I50 -> Lamp - SON1x1000 | C50: ='Calc - Opex FY20'!L50 -> 49 | D50: ='Calc - Opex FY21'!L50 -> 49 | E50: ='Calc - Opex FY22'!L50 -> 40 | F50: ='Calc - Opex FY23'!L50 -> 31 | G50: ='Calc - Opex FY24'!L50 -> 23 | I50: ='Calc - Opex FY20'!K50/C$5 -> 70.27140001 | J50: ='Calc - Opex FY21'!K50/D$5 -> 70.50042739 | K50: ='Calc - Opex FY22'!K50/E$5 -> 70.87328448 | L50: ='Calc - Opex FY23'!K50/F$5 -> 71.29194283 | M50: ='Calc - Opex FY24'!K50/G$5 -> 71.65126518 | O50: 70.76436647 | P50: =O50 -> 70.76436647 | Q50: 70.76436647 | R50: 70.76436647 | S50: 70.76436647 | U50: 3443.298601 | V50: 3454.520942 | W50: 2834.931379 | X50: 2210.050228 | Y50: 1647.979099 | Z50: 12438.47139 | AB50: 3467.453957 | AC50: 3467.453957 | AD50: 2830.574659 | AE50: 2193.69536 | AF50: 1627.580429 | AG50: 12438.47139 | AI50: 0 | AJ50: 0
A51: ='Calc - Opex FY20'!C51 -> SON1x150 | B51: ='Calc - Opex FY20'!I51 -> Lamp - SON1x150 | C51: ='Calc - Opex FY20'!L51 -> 19878 | D51: ='Calc - Opex FY21'!L51 -> 19678 | E51: ='Calc - Opex FY22'!L51 -> 19478 | F51: ='Calc - Opex FY23'!L51 -> 19278 | G51: ='Calc - Opex FY24'!L51 -> 19078 | I51: ='Calc - Opex FY20'!K51/C$5 -> 60.74241232 | J51: ='Calc - Opex FY21'!K51/D$5 -> 60.9714397 | K51: ='Calc - Opex FY22'!K51/E$5 -> 61.34429679 | L51: ='Calc - Opex FY23'!K51/F$5 -> 61.76295513 | M51: ='Calc - Opex FY24'!K51/G$5 -> 62.12227748 | O51: 61.35739641 | P51: =O51 -> 61.35739641 | Q51: 61.35739641 | R51: 61.35739641 | S51: 61.35739641 | U51: 1207437.672 | V51: 1199795.99 | W51: 1194864.213 | X51: 1190666.249 | Y51: 1185168.81 | Z51: 5407845.634 | AB51: 1219662.326 | AC51: 1207390.847 | AD51: 1195119.367 | AE51: 1182847.888 | AF51: 1170576.409 | AG51: 5407845.634 | AI51: 0 | AJ51: 0
A52: ='Calc - Opex FY20'!C52 -> SON1x150 AR | B52: ='Calc - Opex FY20'!I52 -> Lamp - SON1x150 AR | C52: ='Calc - Opex FY20'!L52 -> 2615 | D52: ='Calc - Opex FY21'!L52 -> 2615 | E52: ='Calc - Opex FY22'!L52 -> 2615 | F52: ='Calc - Opex FY23'!L52 -> 2615 | G52: ='Calc - Opex FY24'!L52 -> 2615 | I52: ='Calc - Opex FY20'!K52/C$5 -> 60.74241232 | J52: ='Calc - Opex FY21'!K52/D$5 -> 60.9714397 | K52: ='Calc - Opex FY22'!K52/E$5 -> 61.34429679 | L52: ='Calc - Opex FY23'!K52/F$5 -> 61.76295513 | M52: ='Calc - Opex FY24'!K52/G$5 -> 62.12227748 | O52: 61.36465174 | P52: =O52 -> 61.36465174 | Q52: 61.36465174 | R52: 61.36465174 | S52: 61.36465174 | U52: 158841.4082 | V52: 159440.3148 | W52: 160415.3361 | X52: 161510.1277 | Y52: 162449.7556 | Z52: 725606.1414 | AB52: 160468.5643 | AC52: 160468.5643 | AD52: 160468.5643 | AE52: 160468.5643 | AF52: 160468.5643 | AG52: 725606.1414 | AI52: 0 | AJ52: 0
A53: ='Calc - Opex FY20'!C53 -> SON1x250 | B53: ='Calc - Opex FY20'!I53 -> Lamp - SON1x250 | C53: ='Calc - Opex FY20'!L53 -> 24760 | D53: ='Calc - Opex FY21'!L53 -> 24560 | E53: ='Calc - Opex FY22'!L53 -> 24360 | F53: ='Calc - Opex FY23'!L53 -> 24160 | G53: ='Calc - Opex FY24'!L53 -> 23960 | I53: ='Calc - Opex FY20'!K53/C$5 -> 62.22858471 | J53: ='Calc - Opex FY21'!K53/D$5 -> 62.45761209 | K53: ='Calc - Opex FY22'!K53/E$5 -> 62.83046918 | L53: ='Calc - Opex FY23'!K53/F$5 -> 63.24912752 | M53: ='Calc - Opex FY24'!K53/G$5 -> 63.60844987 | O53: 62.84502204 | P53: =O53 -> 62.84502204 | Q53: 62.84502204 | R53: 62.84502204 | S53: 62.84502204 | U53: 1540779.757 | V53: 1533958.953 | W53: 1530550.229 | X53: 1528098.921 | Y53: 1524058.459 | Z53: 6926289.785 | AB53: 1556042.746 | AC53: 1543473.741 | AD53: 1530904.737 | AE53: 1518335.732 | AF53: 1505766.728 | AG53: 6926289.785 | AI53: 0 | AJ53: 0
A54: ='Calc - Opex FY20'!C54 -> SON1x250 AR | B54: ='Calc - Opex FY20'!I54 -> Lamp - SON1x250 AR | C54: ='Calc - Opex FY20'!L54 -> 3296 | D54: ='Calc - Opex FY21'!L54 -> 3286 | E54: ='Calc - Opex FY22'!L54 -> 3276 | F54: ='Calc - Opex FY23'!L54 -> 3266 | G54: ='Calc - Opex FY24'!L54 -> 3256 | I54: ='Calc - Opex FY20'!K54/C$5 -> 62.22858471 | J54: ='Calc - Opex FY21'!K54/D$5 -> 62.45761209 | K54: ='Calc - Opex FY22'!K54/E$5 -> 62.83046918 | L54: ='Calc - Opex FY23'!K54/F$5 -> 63.24912752 | M54: ='Calc - Opex FY24'!K54/G$5 -> 63.60844987 | O54: 62.84866619 | P54: =O54 -> 62.84866619 | Q54: 62.84866619 | R54: 62.84866619 | S54: 62.84866619 | U54: 205105.4152 | V54: 205235.7133 | W54: 205832.617 | X54: 206571.6505 | Y54: 207109.1128 | Z54: 931195.2422 | AB54: 207149.2038 | AC54: 206520.7171 | AD54: 205892.2304 | AE54: 205263.7438 | AF54: 204635.2571 | AG54: 931195.2422 | AI54: 0 | AJ54: 0
A55: ='Calc - Opex FY20'!C55 -> SON1x400 | B55: ='Calc - Opex FY20'!I55 -> Lamp - SON1x400 | C55: ='Calc - Opex FY20'!L55 -> 2112 | D55: ='Calc - Opex FY21'!L55 -> 2102 | E55: ='Calc - Opex FY22'!L55 -> 2092 | F55: ='Calc - Opex FY23'!L55 -> 2072 | G55: ='Calc - Opex FY24'!L55 -> 2062 | I55: ='Calc - Opex FY20'!K55/C$5 -> 62.884249 | J55: ='Calc - Opex FY21'!K55/D$5 -> 63.11327638 | K55: ='Calc - Opex FY22'!K55/E$5 -> 63.48613347 | L55: ='Calc - Opex FY23'!K55/F$5 -> 63.90479182 | M55: ='Calc - Opex FY24'!K55/G$5 -> 64.26411417 | O55: 63.50205812 | P55: =O55 -> 63.50205812 | Q55: 63.50205812 | R55: 63.50205812 | S55: 63.50205812 | U55: 132811.5339 | V55: 132664.107 | W55: 132812.9912 | X55: 132410.7286 | Y55: 132512.6034 | Z55: 599807.915 | AB55: 134116.3467 | AC55: 133481.3262 | AD55: 132846.3056 | AE55: 131576.2644 | AF55: 130941.2438 | AG55: 599807.915 | AI55: 0 | AJ55: 0
A56: ='Calc - Opex FY20'!C56 -> SON1x400 AR | B56: ='Calc - Opex FY20'!I56 -> Lamp - SON1x400 AR | C56: ='Calc - Opex FY20'!L56 -> 332 | D56: ='Calc - Opex FY21'!L56 -> 332 | E56: ='Calc - Opex FY22'!L56 -> 332 | F56: ='Calc - Opex FY23'!L56 -> 332 | G56: ='Calc - Opex FY24'!L56 -> 332 | I56: ='Calc - Opex FY20'!K56/C$5 -> 85.62342306 | J56: ='Calc - Opex FY21'!K56/D$5 -> 85.30378155 | K56: ='Calc - Opex FY22'!K56/E$5 -> 85.14095931 | L56: ='Calc - Opex FY23'!K56/F$5 -> 85.03662035 | M56: ='Calc - Opex FY24'!K56/G$5 -> 84.88532718 | O56: 85.20987935 | P56: =O56 -> 85.20987935 | Q56: 85.20987935 | R56: 85.20987935 | S56: 85.20987935 | U56: 28426.97646 | V56: 28320.85548 | W56: 28266.79849 | X56: 28232.15795 | Y56: 28181.92862 | Z56: 127920.1668 | AB56: 28289.67994 | AC56: 28289.67994 | AD56: 28289.67994 | AE56: 28289.67994 | AF56: 28289.67994 | AG56: 127920.1668 | AI56: 0 | AJ56: 0
A57: ='Calc - Opex FY20'!C57 -> SON1x50 | B57: ='Calc - Opex FY20'!I57 -> Lamp - SON1x50 | C57: ='Calc - Opex FY20'!L57 -> 459 | D57: ='Calc - Opex FY21'!L57 -> 453 | E57: ='Calc - Opex FY22'!L57 -> 447 | F57: ='Calc - Opex FY23'!L57 -> 435 | G57: ='Calc - Opex FY24'!L57 -> 429 | I57: ='Calc - Opex FY20'!K57/C$5 -> 46.44405366 | J57: ='Calc - Opex FY21'!K57/D$5 -> 46.59673858 | K57: ='Calc - Opex FY22'!K57/E$5 -> 46.84530997 | L57: ='Calc - Opex FY23'!K57/F$5 -> 47.12441554 | M57: ='Calc - Opex FY24'!K57/G$5 -> 47.36396377 | O57: 46.85056379 | P57: =O57 -> 46.85056379 | Q57: 46.85056379 | R57: 46.85056379 | S57: 46.85056379 | U57: 21317.82063 | V57: 21108.32258 | W57: 20939.85356 | X57: 20499.12076 | Y57: 20319.14046 | Z57: 94299.7374 | AB57: 21504.40878 | AC57: 21223.3054 | AD57: 20942.20201 | AE57: 20379.99525 | AF57: 20098.89187 | AG57: 94299.7374 | AI57: 0 | AJ57: 0
A58: ='Calc - Opex FY20'!C58 -> SON1x600 | B58: ='Calc - Opex FY20'!I58 -> Lamp - SON1x600 | C58: ='Calc - Opex FY20'!L58 -> 1 | D58: ='Calc - Opex FY21'!L58 -> 1 | E58: ='Calc - Opex FY22'!L58 -> 1 | F58: ='Calc - Opex FY23'!L58 -> 1 | G58: ='Calc - Opex FY24'!L58 -> 1 | I58: ='Calc - Opex FY20'!K58/C$5 -> 70.27140001 | J58: ='Calc - Opex FY21'!K58/D$5 -> 70.50042739 | K58: ='Calc - Opex FY22'!K58/E$5 -> 70.87328448 | L58: ='Calc - Opex FY23'!K58/F$5 -> 71.29194283 | M58: ='Calc - Opex FY24'!K58/G$5 -> 71.65126518 | O58: 70.89363943 | P58: =O58 -> 70.89363943 | Q58: 70.89363943 | R58: 70.89363943 | S58: 70.89363943 | U58: 70.27140001 | V58: 70.50042739 | W58: 70.87328448 | X58: 71.29194283 | Y58: 71.65126518 | Z58: 320.5665881 | AB58: 70.89363943 | AC58: 70.89363943 | AD58: 70.89363943 | AE58: 70.89363943 | AF58: 70.89363943 | AG58: 320.5665881 | AI58: 0 | AJ58: 0
A59: ='Calc - Opex FY20'!C59 -> SON1x70 | B59: ='Calc - Opex FY20'!I59 -> Lamp - SON1x70 | C59: ='Calc - Opex FY20'!L59 -> 1985 | D59: ='Calc - Opex FY21'!L59 -> 1965 | E59: ='Calc - Opex FY22'!L59 -> 1945 | F59: ='Calc - Opex FY23'!L59 -> 1905 | G59: ='Calc - Opex FY24'!L59 -> 1885 | I59: ='Calc - Opex FY20'!K59/C$5 -> 44.80052184 | J59: ='Calc - Opex FY21'!K59/D$5 -> 44.95320676 | K59: ='Calc - Opex FY22'!K59/E$5 -> 45.20177815 | L59: ='Calc - Opex FY23'!K59/F$5 -> 45.48088371 | M59: ='Calc - Opex FY24'!K59/G$5 -> 45.72043195 | O59: 45.20898365 | P59: =O59 -> 45.20898365 | Q59: 45.20898365 | R59: 45.20898365 | S59: 45.20898365 | U59: 88929.03585 | V59: 88333.05128 | W59: 87917.4585 | X59: 86641.08348 | Y59: 86183.01422 | Z59: 396332.4189 | AB59: 89739.83255 | AC59: 88835.65288 | AD59: 87931.4732 | AE59: 86123.11386 | AF59: 85218.93418 | AG59: 396332.4189 | AI59: 0 | AJ59: 0
A60: ='Calc - Opex FY20'!C60 -> SON2x250 | B60: ='Calc - Opex FY20'!I60 -> Lamp - SON2x250 | C60: ='Calc - Opex FY20'!L60 -> 30 | D60: ='Calc - Opex FY21'!L60 -> 30 | E60: ='Calc - Opex FY22'!L60 -> 30 | F60: ='Calc - Opex FY23'!L60 -> 30 | G60: ='Calc - Opex FY24'!L60 -> 30 | I60: ='Calc - Opex FY20'!K60/C$5 -> 89.08036309 | J60: ='Calc - Opex FY21'!K60/D$5 -> 89.42808944 | K60: ='Calc - Opex FY22'!K60/E$5 -> 89.99418873 | L60: ='Calc - Opex FY23'!K60/F$5 -> 90.62982688 | M60: ='Calc - Opex FY24'!K60/G$5 -> 91.17537672 | O60: 90.02509312 | P60: =O60 -> 90.02509312 | Q60: 90.02509312 | R60: 90.02509312 | S60: 90.02509312 | U60: 2672.410893 | V60: 2682.842683 | W60: 2699.825662 | X60: 2718.894806 | Y60: 2735.261301 | Z60: 12212.25367 | AB60: 2700.752794 | AC60: 2700.752794 | AD60: 2700.752794 | AE60: 2700.752794 | AF60: 2700.752794 | AG60: 12212.25367 | AI60: 0 | AJ60: 0
A61: ='Calc - Opex FY20'!C61 -> SON2x400 | B61: ='Calc - Opex FY20'!I61 -> Lamp - SON2x400 | C61: ='Calc - Opex FY20'!L61 -> 4 | D61: ='Calc - Opex FY21'!L61 -> 4 | E61: ='Calc - Opex FY22'!L61 -> 4 | F61: ='Calc - Opex FY23'!L61 -> 4 | G61: ='Calc - Opex FY24'!L61 -> 4 | I61: ='Calc - Opex FY20'!K61/C$5 -> 90.38285221 | J61: ='Calc - Opex FY21'!K61/D$5 -> 90.73057857 | K61: ='Calc - Opex FY22'!K61/E$5 -> 91.29667785 | L61: ='Calc - Opex FY23'!K61/F$5 -> 91.932316 | M61: ='Calc - Opex FY24'!K61/G$5 -> 92.47786584 | O61: 91.32758225 | P61: =O61 -> 91.32758225 | Q61: 91.32758225 | R61: 91.32758225 | S61: 91.32758225 | U61: 361.5314089 | V61: 362.9223143 | W61: 365.1867114 | X61: 367.729264 | Y61: 369.9114634 | Z61: 1651.858851 | AB61: 365.310329 | AC61: 365.310329 | AD61: 365.310329 | AE61: 365.310329 | AF61: 365.310329 | AG61: 1651.858851 | AI61: 0 | AJ61: 0
A62: ='Calc - Opex FY20'!C62 -> SON4x250 | B62: ='Calc - Opex FY20'!I62 -> Lamp - SON4x250 | C62: ='Calc - Opex FY20'!L62 -> 6 | D62: ='Calc - Opex FY21'!L62 -> 6 | E62: ='Calc - Opex FY22'!L62 -> 6 | F62: ='Calc - Opex FY23'!L62 -> 6 | G62: ='Calc - Opex FY24'!L62 -> 6 | I62: ='Calc - Opex FY20'!K62/C$5 -> 138.2704098 | J62: ='Calc - Opex FY21'!K62/D$5 -> 138.8328259 | K62: ='Calc - Opex FY22'!K62/E$5 -> 139.7484405 | L62: ='Calc - Opex FY23'!K62/F$5 -> 140.776528 | M62: ='Calc - Opex FY24'!K62/G$5 -> 141.6589058 | O62: 139.7984256 | P62: =O62 -> 139.7984256 | Q62: 139.7984256 | R62: 139.7984256 | S62: 139.7984256 | U62: 829.6224588 | V62: 832.9969553 | W62: 838.4906431 | X62: 844.659168 | Y62: 849.9534345 | Z62: 3792.839923 | AB62: 838.7905535 | AC62: 838.7905535 | AD62: 838.7905535 | AE62: 838.7905535 | AF62: 838.7905535 | AG62: 3792.839923 | AI62: 0 | AJ62: 0
A63: ='Calc - Opex FY20'!C63 -> SON4x600 | B63: ='Calc - Opex FY20'!I63 -> Lamp - SON4x600 | C63: ='Calc - Opex FY20'!L63 -> 2 | D63: ='Calc - Opex FY21'!L63 -> 2 | E63: ='Calc - Opex FY22'!L63 -> 2 | F63: ='Calc - Opex FY23'!L63 -> 2 | G63: ='Calc - Opex FY24'!L63 -> 2 | I63: ='Calc - Opex FY20'!K63/C$5 -> 169.8188988 | J63: ='Calc - Opex FY21'!K63/D$5 -> 170.3813149 | K63: ='Calc - Opex FY22'!K63/E$5 -> 171.2969295 | L63: ='Calc - Opex FY23'!K63/F$5 -> 172.325017 | M63: ='Calc - Opex FY24'!K63/G$5 -> 173.2073948 | O63: 171.3469146 | P63: =O63 -> 171.3469146 | Q63: 171.3469146 | R63: 171.3469146 | S63: 171.3469146 | U63: 339.6377976 | V63: 340.7626298 | W63: 342.593859 | X63: 344.650034 | Y63: 346.4147895 | Z63: 1549.591648 | AB63: 342.6938292 | AC63: 342.6938292 | AD63: 342.6938292 | AE63: 342.6938292 | AF63: 342.6938292 | AG63: 1549.591648 | AI63: 0 | AJ63: 0
A64: ='Calc - Opex FY20'!C64 -> TF1x20 | B64: ='Calc - Opex FY20'!I64 -> Lamp - TF1x20 | C64: ='Calc - Opex FY20'!L64 -> 4 | D64: ='Calc - Opex FY21'!L64 -> 4 | E64: ='Calc - Opex FY22'!L64 -> 4 | F64: ='Calc - Opex FY23'!L64 -> 4 | G64: ='Calc - Opex FY24'!L64 -> 4 | I64: ='Calc - Opex FY20'!K64/C$5 -> 41.31208162 | J64: ='Calc - Opex FY21'!K64/D$5 -> 41.45803175 | K64: ='Calc - Opex FY22'!K64/E$5 -> 41.69563888 | L64: ='Calc - Opex FY23'!K64/F$5 -> 41.96243335 | M64: ='Calc - Opex FY24'!K64/G$5 -> 42.19141532 | O64: 41.70861029 | P64: =O64 -> 41.70861029 | Q64: 41.70861029 | R64: 41.70861029 | S64: 41.70861029 | U64: 165.2483265 | V64: 165.832127 | W64: 166.7825555 | X64: 167.8497334 | Y64: 168.7656613 | Z64: 754.3913391 | AB64: 166.8344411 | AC64: 166.8344411 | AD64: 166.8344411 | AE64: 166.8344411 | AF64: 166.8344411 | AG64: 754.3913391 | AI64: 0 | AJ64: 0
A65: ='Calc - Opex FY20'!C65 -> TF1x40 | B65: ='Calc - Opex FY20'!I65 -> Lamp - TF1x40 | C65: ='Calc - Opex FY20'!L65 -> 123 | D65: ='Calc - Opex FY21'!L65 -> 0 | E65: ='Calc - Opex FY22'!L65 -> 0 | F65: ='Calc - Opex FY23'!L65 -> 0 | G65: ='Calc - Opex FY24'!L65 -> 0 | I65: ='Calc - Opex FY20'!K65/C$5 -> 66.04508615 | J65: ='Calc - Opex FY21'!K65/D$5 -> 66.31829893 | K65: ='Calc - Opex FY22'!K65/E$5 -> 66.76308995 | L65: ='Calc - Opex FY23'!K65/F$5 -> 67.2625185 | M65: ='Calc - Opex FY24'!K65/G$5 -> 67.69116357 | O65: 66.04508615 | P65: =O65 -> 66.04508615 | Q65: 66.04508615 | R65: 66.04508615 | S65: 66.04508615 | U65: 8123.545596 | V65: 0 | W65: 0 | X65: 0 | Y65: 0 | Z65: 7852.833088 | AB65: 8123.545596 | AC65: 0 | AD65: 0 | AE65: 0 | AF65: 0 | AG65: 7852.833088 | AI65: 0 | AJ65: 0
A66: ='Calc - Opex FY20'!C66 -> TF1x80 | B66: ='Calc - Opex FY20'!I66 -> Lamp - TF1x80 | C66: ='Calc - Opex FY20'!L66 -> 48 | D66: ='Calc - Opex FY21'!L66 -> 0 | E66: ='Calc - Opex FY22'!L66 -> 0 | F66: ='Calc - Opex FY23'!L66 -> 0 | G66: ='Calc - Opex FY24'!L66 -> 0 | I66: ='Calc - Opex FY20'!K66/C$5 -> 41.39806505 | J66: ='Calc - Opex FY21'!K66/D$5 -> 41.54401518 | K66: ='Calc - Opex FY22'!K66/E$5 -> 41.78162231 | L66: ='Calc - Opex FY23'!K66/F$5 -> 42.04841678 | M66: ='Calc - Opex FY24'!K66/G$5 -> 42.27739875 | O66: 41.39806505 | P66: =O66 -> 41.39806505 | Q66: 41.39806505 | R66: 41.39806505 | S66: 41.39806505 | U66: 1987.107123 | V66: 0 | W66: 0 | X66: 0 | Y66: 0 | Z66: 1920.887915 | AB66: 1987.107123 | AC66: 0 | AD66: 0 | AE66: 0 | AF66: 0 | AG66: 1920.887915 | AI66: 0 | AJ66: 0
A67: ='Calc - Opex FY20'!C67 -> TF2x14 T5 | B67: ='Calc - Opex FY20'!I67 -> Lamp - TF2x14 T5 | C67: ='Calc - Opex FY20'!L67 -> 222 | D67: ='Calc - Opex FY21'!L67 -> 222 | E67: ='Calc - Opex FY22'!L67 -> 202 | F67: ='Calc - Opex FY23'!L67 -> 182 | G67: ='Calc - Opex FY24'!L67 -> 162 | I67: ='Calc - Opex FY20'!K67/C$5 -> 41.91812612 | J67: ='Calc - Opex FY21'!K67/D$5 -> 42.06407624 | K67: ='Calc - Opex FY22'!K67/E$5 -> 42.30168338 | L67: ='Calc - Opex FY23'!K67/F$5 -> 42.56847784 | M67: ='Calc - Opex FY24'!K67/G$5 -> 42.79745982 | O67: 42.27790273 | P67: =O67 -> 42.27790273 | Q67: 42.27790273 | R67: 42.27790273 | S67: 42.27790273 | U67: 9305.823998 | V67: 9338.224926 | W67: 8544.940042 | X67: 7747.462967 | Y67: 6933.188491 | Z67: 38058.41744 | AB67: 9385.694405 | AC67: 9385.694405 | AD67: 8540.136351 | AE67: 7694.578296 | AF67: 6849.020242 | AG67: 38058.41744 | AI67: 0 | AJ67: 0
A68: ='Calc - Opex FY20'!C68 -> TF2x20 | B68: ='Calc - Opex FY20'!I68 -> Lamp - TF2x20 | C68: ='Calc - Opex FY20'!L68 -> 4477 | D68: ='Calc - Opex FY21'!L68 -> 0 | E68: ='Calc - Opex FY22'!L68 -> 0 | F68: ='Calc - Opex FY23'!L68 -> 0 | G68: ='Calc - Opex FY24'!L68 -> 0 | I68: ='Calc - Opex FY20'!K68/C$5 -> 52.54026145 | J68: ='Calc - Opex FY21'!K68/D$5 -> 52.74192145 | K68: ='Calc - Opex FY22'!K68/E$5 -> 53.07022439 | L68: ='Calc - Opex FY23'!K68/F$5 -> 53.43885561 | M68: ='Calc - Opex FY24'!K68/G$5 -> 53.75524113 | O68: 52.54026145 | P68: =O68 -> 52.54026145 | Q68: 52.54026145 | R68: 52.54026145 | S68: 52.54026145 | U68: 235222.7505 | V68: 0 | W68: 0 | X68: 0 | Y68: 0 | Z68: 227384.087 | AB68: 235222.7505 | AC68: 0 | AD68: 0 | AE68: 0 | AF68: 0 | AG68: 227384.087 | AI68: 0 | AJ68: 0
A69: ='Calc - Opex FY20'!C69 -> TF2x26 | B69: ='Calc - Opex FY20'!I69 -> Lamp - TF2x26 | C69: ='Calc - Opex FY20'!L69 -> 7 | D69: ='Calc - Opex FY21'!L69 -> 0 | E69: ='Calc - Opex FY22'!L69 -> 0 | F69: ='Calc - Opex FY23'!L69 -> 0 | G69: ='Calc - Opex FY24'!L69 -> 0 | I69: ='Calc - Opex FY20'!K69/C$5 -> 41.91812612 | J69: ='Calc - Opex FY21'!K69/D$5 -> 42.06407624 | K69: ='Calc - Opex FY22'!K69/E$5 -> 42.30168338 | L69: ='Calc - Opex FY23'!K69/F$5 -> 42.56847784 | M69: ='Calc - Opex FY24'!K69/G$5 -> 42.79745982 | O69: 41.91812612 | P69: =O69 -> 41.91812612 | Q69: 41.91812612 | R69: 41.91812612 | S69: 41.91812612 | U69: 293.4268828 | V69: 0 | W69: 0 | X69: 0 | Y69: 0 | Z69: 283.6485999 | AB69: 293.4268828 | AC69: 0 | AD69: 0 | AE69: 0 | AF69: 0 | AG69: 283.6485999 | AI69: 0 | AJ69: 0
A70: ='Calc - Opex FY20'!C70 -> TF2x40 | B70: ='Calc - Opex FY20'!I70 -> Lamp - TF2x40 | C70: ='Calc - Opex FY20'!L70 -> 7 | D70: ='Calc - Opex FY21'!L70 -> 0 | E70: ='Calc - Opex FY22'!L70 -> 0 | F70: ='Calc - Opex FY23'!L70 -> 0 | G70: ='Calc - Opex FY24'!L70 -> 0 | I70: ='Calc - Opex FY20'!K70/C$5 -> 41.91812612 | J70: ='Calc - Opex FY21'!K70/D$5 -> 42.06407624 | K70: ='Calc - Opex FY22'!K70/E$5 -> 42.30168338 | L70: ='Calc - Opex FY23'!K70/F$5 -> 42.56847784 | M70: ='Calc - Opex FY24'!K70/G$5 -> 42.79745982 | O70: 41.91812612 | P70: =O70 -> 41.91812612 | Q70: 41.91812612 | R70: 41.91812612 | S70: 41.91812612 | U70: 293.4268828 | V70: 0 | W70: 0 | X70: 0 | Y70: 0 | Z70: 283.6485999 | AB70: 293.4268828 | AC70: 0 | AD70: 0 | AE70: 0 | AF70: 0 | AG70: 283.6485999 | AI70: 0 | AJ70: 0
A71: ='Calc - Opex FY20'!C71 -> TF4x20 | B71: ='Calc - Opex FY20'!I71 -> Lamp - TF4x20 | C71: ='Calc - Opex FY20'!L71 -> 6 | D71: ='Calc - Opex FY21'!L71 -> 0 | E71: ='Calc - Opex FY22'!L71 -> 0 | F71: ='Calc - Opex FY23'!L71 -> 0 | G71: ='Calc - Opex FY24'!L71 -> 0 | I71: ='Calc - Opex FY20'!K71/C$5 -> 41.76280121 | J71: ='Calc - Opex FY21'!K71/D$5 -> 41.90875134 | K71: ='Calc - Opex FY22'!K71/E$5 -> 42.14635847 | L71: ='Calc - Opex FY23'!K71/F$5 -> 42.41315294 | M71: ='Calc - Opex FY24'!K71/G$5 -> 42.64213491 | O71: 41.76280121 | P71: =O71 -> 41.76280121 | Q71: 41.76280121 | R71: 41.76280121 | S71: 41.76280121 | U71: 250.5768073 | V71: 0 | W71: 0 | X71: 0 | Y71: 0 | Z71: 242.2264786 | AB71: 250.5768073 | AC71: 0 | AD71: 0 | AE71: 0 | AF71: 0 | AG71: 242.2264786 | AI71: 0 | AJ71: 0
A72: ='Calc - Opex FY20'!C72 -> TF4x40 | B72: ='Calc - Opex FY20'!I72 -> Lamp - TF4x40 | C72: ='Calc - Opex FY20'!L72 -> 2 | D72: ='Calc - Opex FY21'!L72 -> 2 | E72: ='Calc - Opex FY22'!L72 -> 2 | F72: ='Calc - Opex FY23'!L72 -> 2 | G72: ='Calc - Opex FY24'!L72 -> 2 | I72: ='Calc - Opex FY20'!K72/C$5 -> 42.95824825 | J72: ='Calc - Opex FY21'!K72/D$5 -> 43.10419838 | K72: ='Calc - Opex FY22'!K72/E$5 -> 43.34180551 | L72: ='Calc - Opex FY23'!K72/F$5 -> 43.60859998 | M72: ='Calc - Opex FY24'!K72/G$5 -> 43.83758195 | O72: 43.35477692 | P72: =O72 -> 43.35477692 | Q72: 43.35477692 | R72: 43.35477692 | S72: 43.35477692 | U72: 85.91649651 | V72: 86.20839676 | W72: 86.68361102 | X72: 87.21719995 | Y72: 87.6751639 | Z72: 392.0829295 | AB72: 86.70955383 | AC72: 86.70955383 | AD72: 86.70955383 | AE72: 86.70955383 | AF72: 86.70955383 | AG72: 392.0829295 | AI72: 0 | AJ72: 0
A73: ='Calc - Opex FY20'!C73 -> TH1x1500 | B73: ='Calc - Opex FY20'!I73 -> Lamp - TH1x1500 | C73: ='Calc - Opex FY20'!L73+1 -> 1 | D73: ='Calc - Opex FY21'!L73+1 -> 1 | E73: ='Calc - Opex FY22'!L73+1 -> 1 | F73: ='Calc - Opex FY23'!L73+1 -> 1 | G73: ='Calc - Opex FY24'!L73+1 -> 1 | I73: ='Calc - Opex FY20'!K73/C$5 -> 60.86553834 | J73: ='Calc - Opex FY21'!K73/D$5 -> 61.08446353 | K73: ='Calc - Opex FY22'!K73/E$5 -> 61.44087423 | L73: ='Calc - Opex FY23'!K73/F$5 -> 61.84106593 | M73: ='Calc - Opex FY24'!K73/G$5 -> 62.18453889 | O73: 61.46033134 | P73: =O73 -> 61.46033134 | Q73: 61.46033134 | R73: 61.46033134 | S73: 61.46033134 | U73: 60.86553834 | V73: 61.08446353 | W73: 61.44087423 | X73: 61.84106593 | Y73: 62.18453889 | Z73: 277.9110916 | AB73: 61.46033134 | AC73: 61.46033134 | AD73: 61.46033134 | AE73: 61.46033134 | AF73: 61.46033134 | AG73: 277.9110916 | AI73: 0 | AJ73: 0
A74: ='Calc - Opex FY20'!C74 -> TH1x500 | B74: ='Calc - Opex FY20'!I74 -> Lamp - TH1x500 | C74: ='Calc - Opex FY20'!L74+1 -> 1 | D74: ='Calc - Opex FY21'!L74+1 -> 1 | E74: ='Calc - Opex FY22'!L74+1 -> 1 | F74: ='Calc - Opex FY23'!L74+1 -> 1 | G74: ='Calc - Opex FY24'!L74+1 -> 1 | I74: ='Calc - Opex FY20'!K74/C$5 -> 60.86553834 | J74: ='Calc - Opex FY21'!K74/D$5 -> 61.08446353 | K74: ='Calc - Opex FY22'!K74/E$5 -> 61.44087423 | L74: ='Calc - Opex FY23'!K74/F$5 -> 61.84106593 | M74: ='Calc - Opex FY24'!K74/G$5 -> 62.18453889 | O74: 61.46033134 | P74: =O74 -> 61.46033134 | Q74: 61.46033134 | R74: 61.46033134 | S74: 61.46033134 | U74: 60.86553834 | V74: 61.08446353 | W74: 61.44087423 | X74: 61.84106593 | Y74: 62.18453889 | Z74: 277.9110916 | AB74: 61.46033134 | AC74: 61.46033134 | AD74: 61.46033134 | AE74: 61.46033134 | AF74: 61.46033134 | AG74: 277.9110916 | AI74: 0 | AJ74: 0
A75: ='Calc - Opex FY20'!C75 -> TH1x750 | B75: ='Calc - Opex FY20'!I75 -> Lamp - TH1x750 | C75: ='Calc - Opex FY20'!L75+1 -> 1 | D75: ='Calc - Opex FY21'!L75+1 -> 1 | E75: ='Calc - Opex FY22'!L75+1 -> 1 | F75: ='Calc - Opex FY23'!L75+1 -> 1 | G75: ='Calc - Opex FY24'!L75+1 -> 1 | I75: ='Calc - Opex FY20'!K75/C$5 -> 60.86553834 | J75: ='Calc - Opex FY21'!K75/D$5 -> 61.08446353 | K75: ='Calc - Opex FY22'!K75/E$5 -> 61.44087423 | L75: ='Calc - Opex FY23'!K75/F$5 -> 61.84106593 | M75: ='Calc - Opex FY24'!K75/G$5 -> 62.18453889 | O75: 61.46033134 | P75: =O75 -> 61.46033134 | Q75: 61.46033134 | R75: 61.46033134 | S75: 61.46033134 | U75: 60.86553834 | V75: 61.08446353 | W75: 61.44087423 | X75: 61.84106593 | Y75: 62.18453889 | Z75: 277.9110916 | AB75: 61.46033134 | AC75: 61.46033134 | AD75: 61.46033134 | AE75: 61.46033134 | AF75: 61.46033134 | AG75: 277.9110916 | AI75: 0 | AJ75: 0
C76: =SUM(C12:C75) -> 503822.6667 | D76: =SUM(D12:D75) -> 503824 | E76: 503829 | F76: 503837 | G76: 503845 | U76: =SUM(U12:U75) -> 13846926.17 | V76: =SUM(V12:V75) -> 13134869.98 | W76: 12571017.95 | X76: 12534516.19 | Y76: 12557553.45 | Z76: 58560628.73 | AB76: =SUM(AB12:AB75) -> 13915549.4 | AC76: =SUM(AC12:AC75) -> 13179633.85 | AD76: =SUM(AD12:AD75) -> 12577304.34 | AE76: =SUM(AE12:AE75) -> 12490035.3 | AF76: =SUM(AF12:AF75) -> 12468699.14 | AG76: =SUM(AG12:AG75) -> 58560628.73 | AI76: 0 | AJ76: 0

Sheet Cover

Sheet Input - General
B2: Cell colour legend
B4: Inputs - hardcoded value
B5: Derived Inputs - Calculated or referenced to another cell
B7: General assumptions | D7: Driver | F7: Inputs | H7: FY18 | I7: FY19 | J7: FY20 | K7: FY21 | L7: FY22 | M7: FY23 | N7: FY24
B9: CPI (%) | D9: % p.a. | H9: 0.01951870655 | I9: ='AER Inputs'!C7 -> 0.02241968375 | J9: ='AER Inputs'!$D$7 -> 0.02424874658 | K9: ='AER Inputs'!$D$7 -> 0.02424874658 | L9: ='AER Inputs'!$D$7 -> 0.02424874658 | M9: ='AER Inputs'!$D$7 -> 0.02424874658 | N9: ='AER Inputs'!$D$7 -> 0.02424874658
B10: Labour real price escalation (%) | D10: % p.a. | H10: 0.005228652534 | I10: ='AER Inputs'!C9 -> 0.009463713656 | J10: ='AER Inputs'!D9 -> 0.004385385989 | K10: ='AER Inputs'!E9 -> 0.007132486318 | L10: ='AER Inputs'!F9 -> 0.01152946999 | M10: ='AER Inputs'!G9 -> 0.01279817807 | N10: ='AER Inputs'!H9 -> 0.01084550347
B11: Labour rate ($/hour) | D11: $/hour | H11: 52.91 | I11: =INDIRECT("PriceLabour"&H$7)*(1+INDIRECT("EscLabour"&I$7))*(1+INDIRECT("CPI"&I$7)) -> 54.60817665 | J11: 56.17764146 | K11: 57.95028125 | L11: 60.03984043 | M11: 62.28276462 | N11: 64.48491127
B12: Labour rate - overtime (1.89 times) ($/hour) | D12: $/hour | F12: 1.89 | H12: =PriceLabourFY18*F12 -> 99.9999 | I12: =PriceLabourFY19*F12 -> 103.2094539 | J12: =PriceLabourFY20*F12 -> 106.1757424 | K12: =PriceLabourFY21*F12 -> 109.5260316 | L12: =PriceLabourFY22*F12 -> 113.4752984 | M12: =PriceLabourFY23*F12 -> 117.7144251 | N12: =PriceLabourFY24*F12 -> 121.8764823
B13: EWP ($/hour) | D13: $/hour | H13: 32.09162584 | I13: =INDIRECT("priceewp"&H7)*(1+INDIRECT("CPI"&I7)) -> 32.81110994 | J13: =INDIRECT("priceewp"&I7)*(1+INDIRECT("CPI"&J7)) -> 33.60673823 | K13: 34.42165951 | L13: 35.2563416 | M13: 36.1112637 | N13: 36.98691658
B14: Average Visor cost | D14: $/unit | H14: 49.71973843 | I14: =INDIRECT("PriceVisor"&H7)*(1+INDIRECT("CPI"&I7)) -> 50.83443924 | J14: =INDIRECT("PriceVisor"&I7)*(1+INDIRECT("CPI"&J7)) -> 52.06711068 | K14: 53.32967285 | L14: 54.62285057 | M14: 55.94738623 | N14: 57.30404022
B15: Average PE cell cost | D15: $/unit | H15: 11.04255977 | I15: =INDIRECT("PricePECell"&H7)*((1+INDIRECT("CPI"&I7))) -> 11.29013046 | J15: =INDIRECT("PricePECell"&I7)*((1+INDIRECT("CPI"&J7))) -> 11.56390198 | K15: 11.84431211 | L15: 12.13152183 | M15: 12.42569603 | N15: 12.72700358
B16: Average miscellaneous materials cost | D16: $/unit | H16: 15 | I16: =INDIRECT("PriceMisc"&H7)*(1+INDIRECT("CPI"&I7)) -> 15.33629526 | J16: =INDIRECT("PriceMisc"&I7)*(1+INDIRECT("CPI"&J7)) -> 15.70818119 | K16: 16.0890849 | L16: 16.47922504 | M16: 16.87882559 | N16: 17.28811596
B17: Proportion of work in overtime hours (%) | D17: % p.a. | F17: 0.07
B18: Proportion of work in standard hours (%) | D18: % p.a. | F18: 0.93
B19: Labour oncosts (%) | D19: % p.a. | F19: 0.5223
B20: Corporate Overheads (CAM) | D20: % p.a. | F20: 0.109307573
B21: Overhead cost allocation (Direct + Indirect) (%) | D21: % p.a. | F21: 0.2227618911
B22: Nominal Vanilla WACC | J22: ='AER Inputs'!$D$5 -> 0.05955790745 | K22: ='AER Inputs'!$D$5 -> 0.05955790745 | L22: ='AER Inputs'!$D$5 -> 0.05955790745 | M22: ='AER Inputs'!$D$5 -> 0.05955790745 | N22: ='AER Inputs'!$D$5 -> 0.05955790745
B23: Bulk maintenance assumptions | D23: Driver | F23: Inputs | H23: FY18 | I23: FY19 | J23: FY20 | K23: FY21 | L23: FY22 | M23: FY23 | N23: FY24
B26: Servicing of Minor Luminaire - Scheduled | D26: Cycle time (Yrs) | F26: 4 | H26: 24.6719008 | I26: =INDIRECT("PriceBulkTask1"&H$23)*(1+ INDIRECT("CPI"&I$23)) -> 25.22503701 | J26: =INDIRECT("PriceBulkTask1"&I$23)*(1+ INDIRECT("CPI"&J$23)) -> 25.83671254 | K26: 26.46322044 | L26: 27.10492036 | M26: 27.76218071 | N26: 28.43537879
B27: Servicing of Major Luminaire - Scheduled | D27: Cycle time (Yrs) | F27: 4 | H27: 28.738834 | I27: =INDIRECT("PriceBulkTask2"&H$23)*(1+ INDIRECT("CPI"&I$23)) -> 29.38314957 | J27: =INDIRECT("PriceBulkTask2"&I$23)*(1+ INDIRECT("CPI"&J$23)) -> 30.09565412 | K27: 30.82543601 | L27: 31.57291419 | M27: 32.33851779 | N27: 33.12268631
B28: Servicing of Minor LED Luminaire - Scheduled | D28: Cycle time (Yrs) | F28: 6 | H28: 24.6719008 | I28: =INDIRECT("PriceBulkTask1LED"&H$23)*(1+ INDIRECT("CPI"&I$23)) -> 25.22503701 | J28: =INDIRECT("PriceBulkTask1LED"&I$23)*(1+ INDIRECT("CPI"&J$23)) -> 25.83671254 | K28: 26.46322044 | L28: 27.10492036 | M28: 27.76218071 | N28: 28.43537879
B29: Servicing of Major LED Luminaire - Scheduled | D29: Cycle time (Yrs) | F29: 6 | H29: 28.738834 | I29: =INDIRECT("PriceBulkTask2LED"&H$23)*(1+ INDIRECT("CPI"&I$23)) -> 29.38314957 | J29: =INDIRECT("PriceBulkTask2LED"&I$23)*(1+ INDIRECT("CPI"&J$23)) -> 30.09565412 | K29: 30.82543601 | L29: 31.57291419 | M29: 32.33851779 | N29: 33.12268631
B30: Replacement of Luminaire Visor | D30: Cycle time (Yrs) | F30: 140.3875791 | H30: 11.48500442 | I30: =INDIRECT("PriceBulkTask3"&H$23)*(1+ INDIRECT("CPI"&I$23)) -> 11.74249459 | J30: =INDIRECT("PriceBulkTask3"&I$23)*(1+ INDIRECT("CPI"&J$23)) -> 12.02723537 | K30: 12.31888075 | L30: 12.61759817 | M30: 12.92355911 | N30: 13.23693922
B31: Replacement of Photo-electric Cell | D31: Cycle time (Yrs) | F31: 0 | H31: 5.574180491 | I31: =INDIRECT("PriceBulkTask4"&H$23)*(1+ INDIRECT("CPI"&I$23)) -> 5.699151855 | J31: =INDIRECT("PriceBulkTask4"&I$23)*(1+ INDIRECT("CPI"&J$23)) -> 5.837349144 | K31: 5.978897544 | L31: 6.123878315 | M31: 6.272374689 | N31: 6.424471913
B32: Minor Non-Electrical Repair | D32: Cycle time (Yrs) | F32: 168.6008287 | H32: 24.13954103 | I32: =INDIRECT("PriceBulkTask5"&H$23)*(1+ INDIRECT("CPI"&I$23)) -> 24.68074191 | J32: =INDIRECT("PriceBulkTask5"&I$23)*(1+ INDIRECT("CPI"&J$23)) -> 25.27921896 | K32: 25.89220834 | L32: 26.52006193 | M32: 27.1631402 | N32: 27.8218123
B33: Apply Temporary Insulation | D33: Cycle time (Yrs) | F33: 49.92515337 | H33: 14.46149856 | I33: =INDIRECT("PriceBulkTask6"&H$23)*(1+ INDIRECT("CPI"&I$23)) -> 14.78572079 | J33: =INDIRECT("PriceBulkTask6"&I$23)*(1+ INDIRECT("CPI"&J$23)) -> 15.14425598 | K33: 15.51148521 | L33: 15.88761928 | M33: 16.27287414 | N33: 16.66747094
B34: Minor Electrical Work | D34: Cycle time (Yrs) | F34: 66.50340507 | H34: 40.19950453 | I34: =INDIRECT("PriceBulkTask7"&H$23)*(1+ INDIRECT("CPI"&I$23)) -> 41.10076471 | J34: =INDIRECT("PriceBulkTask7"&I$23)*(1+ INDIRECT("CPI"&J$23)) -> 42.09740674 | K34: 43.11821609 | L34: 44.16377878 | M34: 45.23469506 | N34: 46.33157972
B35: Night Time Traffic Route Luminaire (TRL) Patrol | D35: Cycle time (Yrs) | F35: 16275.6 | H35: 8290.488177 | I35: =INDIRECT("PriceBulkTask8"&H$23)*(1+ INDIRECT("CPI"&I$23)) -> 8476.3583 | J35: =INDIRECT("PriceBulkTask8"&I$23)*(1+ INDIRECT("CPI"&J$23)) -> 8681.899365 | K35: 8892.424542 | L35: 9108.054691 | M35: 9328.913601 | N35: 9555.128063
B37: Spot maintenance assumptions | D37: Driver | F37: Inputs
B40: Number of workers in standard crew | D40: no. of ppl | F40: 2
B41: Additional workers on traffic route | D41: no. of ppl | F41: 1
B42: Time required for average spot lamp replacement (hours) | D42: no. of hrs | F42: =45.4/60 -> 0.7566666667
B43: Time for PE Cell replacement (hours) | D43: no. of hrs | F43: =45.4/60 -> 0.7566666667
B44: Time for other spot maintenance task (hours) | D44: no. of hrs | F44: =45.4/60 -> 0.7566666667
B45: Annual average failure rate for PE cells | D45: % p.a. | F45: 0.0198285774
B46: Annual average failure rates for other components | D46: % p.a. | F46: 0.03256191236
B48: Connection maintenance assumptions | D48: Driver | F48: Type
B51: Connection type - "O/U" | D51: $/unit | F51: O/U | H51: 74.36233111 | I51: =H51*(1+INDIRECT("CPI"&I$77)) -> 76.02951105 | J51: 77.8731314 | K51: 79.76145723 | L51: 81.69557259 | M51: 83.67658783 | N51: 85.7056402
B52: Connection type - "OH" | D52: $/unit | F52: OH | H52: 0 | I52: 0 | J52: 0 | K52: 0 | L52: 0 | M52: 0 | N52: 0
B53: Connection type - "OH2" | D53: $/unit | F53: OH2 | H53: 0 | I53: 0 | J53: 0 | K53: 0 | L53: 0 | M53: 0 | N53: 0
B54: Connection type - "OHS" | D54: $/unit | F54: OHS | H54: 0 | I54: 0 | J54: 0 | K54: 0 | L54: 0 | M54: 0 | N54: 0
B55: Connection type - "UG2" | D55: $/unit | F55: UG2 | H55: 0 | I55: 0 | J55: 0 | K55: 0 | L55: 0 | M55: 0 | N55: 0
B56: Connection type - "UGR1" | D56: $/unit | F56: UGR1 | H56: 68.16374696 | I56: 69.69195661 | J56: 71.38189921 | K56: 73.11282079 | L56: 74.88571505 | M56: 76.70159978 | N56: 78.56151744
B57: Connection type - "UGR2" | D57: $/unit | F57: UGR2 | H57: 24.78375584 | I57: 25.33939981 | J57: 25.9538485 | K57: 26.58319679 | L57: 27.22780599 | M57: 27.88804616 | N57: 28.56429632
B58: Connection type - "UGS" | D58: $/unit | F58: UGS | H58: 0 | I58: 0 | J58: 0 | K58: 0 | L58: 0 | M58: 0 | N58: 0
B59: Connection type - "UG-SP" | D59: $/unit | F59: UG-SP | H59: 0 | I59: 0 | J59: 0 | K59: 0 | L59: 0 | M59: 0 | N59: 0
B60: Options
B62: Bulk cycle/ spot failure rate assumption:
B65: Traffic | F65: 1
B66: Non-Traffic | F66: 0
B68: Bulk cycle options: | C68: Option Number
B69: AER 2014 determination | C69: 1 | H69: AER Draft Decision
B70: AER Draft Decision | C70: 2 | H70: 2
B71: Theoretical Lamp Failure Rates @ 4 Year BLR | C71: 3
B72: Weibull Results @ 4 year BLR | C72: 4
C73: 5
C74: 6
H76: Summary Expenditure
H77: FY18 | I77: FY19 | J77: FY20 | K77: FY21 | L77: FY22 | M77: FY23 | N77: FY24
H79: ='Calc - Opex FY18'!M4 -> 14219966.36 | I79: ='Calc - Opex FY19'!M4 -> 14587326.69 | J79: ='Calc - Opex FY20'!M4 -> 14182462.76 | K79: ='Calc - Opex FY21'!M4 -> 13779361.05 | L79: ='Calc - Opex FY22'!M4 -> 13507619.08 | M79: ='Calc - Opex FY23'!M4 -> 13794987.2 | N79: ='Calc - Opex FY24'!M4 -> 14155466.12 | O79: =NPV(J$22,J79:N79) -> 58559585.89
H80: Required OH | J80: 2500000 | K80: 2500000 | L80: 2500000 | M80: 2500000 | N80: 2500000 | O80: =NPV(J$22,J80:N80) -> 10543586.79
H81: Required OH | J81: 1500000 | K81: 1500000 | L81: 1500000 | M81: 1500000 | N81: 1500000 | O81: 6326152.074
H83: Recovered OH | J83: ='Calc - Opex FY20'!$BR4 -> 2329156.526 | K83: ='Calc - Opex FY21'!$BR4 -> 2262955.966 | L83: ='Calc - Opex FY22'!$BR4 -> 2218328.344 | M83: ='Calc - Opex FY23'!$BR4 -> 2265522.216 | N83: ='Calc - Opex FY24'!$BR4 -> 2324722.922 | O83: 9617119.672
H84: Recovered OH | J84: ='Calc - Opex FY20'!$BV4 -> 1397493.915 | K84: ='Calc - Opex FY21'!$BV4 -> 1357773.58 | L84: ='Calc - Opex FY22'!$BV4 -> 1330997.006 | M84: ='Calc - Opex FY23'!$BV4 -> 1359313.329 | N84: ='Calc - Opex FY24'!$BV4 -> 1394833.753 | O84: 5770271.803
P86: Overhead Calc - Goal Seek
P87: CAM Calc - Goal Seek

Sheet Input - Inventory
C2: Cell colour legend
C3: Inputs - hardcoded value
C4: Derived Inputs - Calculated or referenced to another cell | X4: CONFIDENTIAL
P6: Qty of assets being maintained | X6: Price | AF6: Average annual failure under selected bulk cycle | AH6: Spot rates for different bulk cycles
B7: # | C7: Description | D7: Type | E7: Route | F7: Category | G7: Is LED | H7: Lamps (#) | I7: Rate 1 | J7: Rate 2 | K7: Rate 3 | L7: Rate 4 | M7: Rate 5 | N7: Total | P7: FY18 | Q7: FY19 | R7: FY20 | S7: FY21 | T7: FY22 | U7: FY23 | V7: FY24 | X7: FY18 | Y7: FY19 | Z7: FY20 | AA7: FY21 | AB7: FY22 | AC7: FY23 | AD7: FY24 | AH7: AER 2014 determination | AI7: AER draft decision | AJ7: Theoretical Lamp Failure Rates @ 4 Year BLR | AK7: Weibull Results @ 4 year BLR | AL7: Average Call Out Rate
B9: 1 | C9: O/U | D9: Connection | E9: NonTraffic | F9: n/a | G9: N | H9: 0 | I9: 560 | J9: 16 | K9: 19 | L9: 0 | M9: 0 | N9: =SUM(I9:M9) -> 595 | P9: =I9+J9+L9+M9 -> 576 | Q9: =Count1FY18 -> 576 | R9: 576 | S9: 576 | T9: 576 | U9: 576 | V9: 576 | AF9: =OFFSET(AH9,0,BulkOptionNumber-1) -> 0
B10: 2 | C10: OH | D10: Connection | E10: NonTraffic | F10: n/a | G10: N | H10: 0 | I10: 193907 | J10: 2255 | K10: 1582 | L10: 1 | M10: 460 | N10: =SUM(I10:M10) -> 198205 | P10: =I10+J10+L10+M10 -> 196623 | Q10: =Count2FY18 -> 196623 | R10: 196623 | S10: 196623 | T10: 196623 | U10: 196623 | V10: 196623 | AF10: 0
B11: 3 | C11: OH2 | D11: Connection | E11: NonTraffic | F11: n/a | G11: N | H11: 0 | I11: 521 | J11: 197 | K11: 10 | L11: 0 | M11: 0 | N11: 728 | P11: 718 | Q11: =Count3FY18 -> 718 | R11: 718 | S11: 718 | T11: 718 | U11: 718 | V11: 718 | AF11: 0
B12: 4 | C12: OHS | D12: Connection | E12: NonTraffic | F12: n/a | G12: N | H12: 0 | I12: 8 | J12: 1 | K12: 0 | L12: 0 | M12: 0 | N12: 9 | P12: 9 | Q12: =Count4FY18 -> 9 | R12: 9 | S12: 9 | T12: 9 | U12: 9 | V12: 9 | AF12: 0
B13: 5 | C13: UG2 | D13: Connection | E13: NonTraffic | F13: n/a | G13: N | H13: 0 | I13: 649 | J13: 485 | K13: 161 | L13: 0 | M13: 0 | N13: 1295 | P13: 1134 | Q13: =Count5FY18 -> 1134 | R13: 1134 | S13: 1134 | T13: 1134 | U13: 1134 | V13: 1134 | AF13: 0
B14: 6 | C14: UGR1 | D14: Connection | E14: NonTraffic | F14: n/a | G14: N | H14: 0 | I14: 31681 | J14: 0 | K14: 1741 | L14: 0 | M14: 111 | N14: 33533 | P14: 31792 | Q14: =Count6FY18 -> 31792 | R14: 31792 | S14: 31792 | T14: 31792 | U14: 31792 | V14: 31792 | AF14: 0 | AO14: Number of Spot Tasks
B15: 7 | C15: UGR2 | D15: Connection | E15: NonTraffic | F15: n/a | G15: N | H15: 0 | I15: 0 | J15: 20883 | K15: 785 | L15: 54 | M15: 0 | N15: 21722 | P15: 20937 | Q15: =Count7FY18 -> 20937 | R15: 20937 | S15: 20937 | T15: 20937 | U15: 20937 | V15: 20937 | AF15: 0 | AO15: FY18 | AP15: FY19 | AQ15: FY20 | AR15: FY21 | AS15: FY22 | AT15: FY23 | AU15: FY24
B16: 8 | C16: UGS | D16: Connection | E16: NonTraffic | F16: n/a | G16: N | H16: 0 | I16: 30 | J16: 78 | K16: 1 | L16: 0 | M16: 0 | N16: 109 | P16: 108 | Q16: =Count8FY18 -> 108 | R16: 108 | S16: 108 | T16: 108 | U16: 108 | V16: 108 | AF16: 0
B17: 9 | C17: UG-SP | D17: Connection | E17: NonTraffic | F17: n/a | G17: N | H17: 0 | I17: 6 | J17: 7 | K17: 1185 | L17: 0 | M17: 0 | N17: 1198 | P17: 13 | Q17: =Count9FY18 -> 13 | R17: 13 | S17: 13 | T17: 13 | U17: 13 | V17: 13 | AF17: 0
B18: 10 | C18: LED TRIAL | D18: Lamp | E18: NonTraffic | F18: Minor | G18: Y | H18: 1 | I18: 67 | J18: 0 | K18: 0 | L18: 0 | M18: 0 | N18: 67 | P18: 67 | Q18: 67 | R18: 67 | S18: 67 | T18: 67 | U18: 67 | V18: 67 | Y18: =X18*(1+INDIRECT("CPI"&Y$7)) -> 0 | Z18: =Y18*(1+INDIRECT("CPI"&Z$7)) -> 0 | AA18: 0 | AB18: 0 | AC18: 0 | AD18: 0 | AF18: 0 | AH18: 0 | AI18: 0 | AJ18: 0 | AL18: 0.1205027699 | AO18: =P18*FailurePECellAnnual+P18*FailureMiscAnnual+P18*$AF18 -> 3.510162814 | AP18: =Q18*FailurePECellAnnual+Q18*FailureMiscAnnual+Q18*$AF18 -> 3.510162814 | AQ18: =R18*FailurePECellAnnual+R18*FailureMiscAnnual+R18*$AF18 -> 3.510162814 | AR18: =S18*FailurePECellAnnual+S18*FailureMiscAnnual+S18*$AF18 -> 3.510162814 | AS18: =T18*FailurePECellAnnual+T18*FailureMiscAnnual+T18*$AF18 -> 3.510162814 | AT18: =U18*FailurePECellAnnual+U18*FailureMiscAnnual+U18*$AF18 -> 3.510162814 | AU18: =V18*FailurePECellAnnual+V18*FailureMiscAnnual+V18*$AF18 -> 3.510162814
B19: 11 | C19: LED1x100 | D19: Lamp | E19: Traffic | F19: Major | G19: Y | H19: 1 | I19: 6 | J19: 0 | K19: 0 | L19: 0 | M19: 0 | N19: 6 | P19: 6 | Q19: 6 | R19: 4982.666667 | S19: 10159 | T19: 15343 | U19: 15554 | V19: 15761 | Y19: =X19*(1+INDIRECT("CPI"&Y$7)) -> 0 | Z19: 0 | AA19: 0 | AB19: 0 | AC19: 0 | AD19: 0 | AF19: 0 | AH19: 0 | AI19: 0 | AJ19: 0 | AL19: 0.1205027699 | AO19: 0.3143429385 | AP19: 0.3143429385 | AQ19: 261.044347 | AR19: 532.2349854 | AS19: 803.8272843 | AT19: 814.8816777 | AU19: 825.7265091
B20: 12 | C20: LED1x17 | D20: Lamp | E20: NonTraffic | F20: Minor | G20: Y | H20: 1 | I20: 2106 | J20: 88 | K20: 0 | L20: 28 | M20: 571 | N20: 2793 | P20: 2793 | Q20: 2793 | R20: 34068 | S20: 64297 | T20: 89881 | U20: 93783 | V20: 94011 | Y20: =X20*(1+INDIRECT("CPI"&Y$7)) -> 0 | Z20: 0 | AA20: 0 | AB20: 0 | AC20: 0 | AD20: 0 | AF20: 0 | AH20: 0 | AI20: 0 | AJ20: 0 | AK20: 0.06781921194 | AL20: 0.1205027699 | AO20: 146.3266379 | AP20: 146.3266379 | AQ20: 1784.839205 | AR20: 3368.55132 | AS20: 4708.90961 | AT20: 4913.337301 | AU20: 4925.282333
B21: 13 | C21: LED1x18 | D21: Lamp | E21: NonTraffic | F21: Minor | G21: Y | H21: 1 | I21: 0 | J21: 0 | K21: 0 | L21: 0 | M21: 0 | N21: 0 | P21: 0 | Q21: 0 | R21: 0 | S21: 0 | T21: 0 | U21: 0 | V21: 0 | Y21: =X21*(1+INDIRECT("CPI"&Y$7)) -> 0 | Z21: 0 | AA21: 0 | AB21: 0 | AC21: 0 | AD21: 0 | AF21: 0 | AH21: 0 | AI21: 0 | AJ21: 0 | AL21: 0.1205027699 | AO21: 0 | AP21: 0 | AQ21: 0 | AR21: 0 | AS21: 0 | AT21: 0 | AU21: 0
B22: 14 | C22: LED1x20 | D22: Lamp | E22: NonTraffic | F22: Minor | G22: Y | H22: 1 | I22: 0 | J22: 0 | K22: 0 | L22: 0 | M22: 0 | N22: 0 | P22: 0 | Q22: 0 | R22: 0 | S22: 0 | T22: 0 | U22: 0 | V22: 0 | Y22: =X22*(1+INDIRECT("CPI"&Y$7)) -> 0 | Z22: 0 | AA22: 0 | AB22: 0 | AC22: 0 | AD22: 0 | AF22: 0 | AH22: 0 | AI22: 0 | AJ22: 0 | AL22: 0.1205027699 | AO22: 0 | AP22: 0 | AQ22: 0 | AR22: 0 | AS22: 0 | AT22: 0 | AU22: 0
B23: 15 | C23: LED1x200 | D23: Lamp | E23: Traffic | F23: Major | G23: Y | H23: 1 | I23: 14 | J23: 0 | K23: 0 | L23: 0 | M23: 0 | N23: 14 | P23: 14 | Q23: 14 | R23: 1795 | S23: 3776 | T23: 5756 | U23: 6164 | V23: 6378 | Y23: =X23*(1+INDIRECT("CPI"&Y$7)) -> 0 | Z23: 0 | AA23: 0 | AB23: 0 | AC23: 0 | AD23: 0 | AF23: 0 | AH23: 0 | AI23: 0 | AJ23: 0 | AL23: 0.1205027699 | AO23: 0.7334668566 | AP23: 0.7334668566 | AQ23: 94.04092911 | AR23: 197.8264893 | AS23: 301.559659 | AT23: 322.9349789 | AU23: 334.1465437
B24: 16 | C24: LED1x22 | D24: Lamp | E24: NonTraffic | F24: Minor | G24: Y | H24: 1 | I24: 12528 | J24: 1858 | K24: 0 | L24: 8 | M24: 0 | N24: 14394 | P24: 14394 | Q24: 14394 | R24: 14394 | S24: 14394 | T24: 14394 | U24: 14394 | V24: 14394 | Y24: =X24*(1+INDIRECT("CPI"&Y$7)) -> 0 | Z24: 0 | AA24: 0 | AB24: 0 | AC24: 0 | AD24: 0 | AF24: 0 | AH24: 0 | AI24: 0 | AJ24: 0 | AK24: 0.212034189 | AL24: 0.1205027699 | AO24: 754.1087096 | AP24: 754.1087096 | AQ24: 754.1087096 | AR24: 754.1087096 | AS24: 754.1087096 | AT24: 754.1087096 | AU24: 754.1087096
B25: 17 | C25: LED1x25 GE | D25: Lamp | E25: NonTraffic | F25: Minor | G25: Y | H25: 1 | I25: 3340 | J25: 320 | K25: 1 | L25: 5 | M25: 0 | N25: 3666 | P25: 3665 | Q25: 3665 | R25: 3665 | S25: 3665 | T25: 3665 | U25: 3665 | V25: 3665 | Y25: =X25*(1+INDIRECT("CPI"&Y$7)) -> 0 | Z25: 0 | AA25: 0 | AB25: 0 | AC25: 0 | AD25: 0 | AF25: 0 | AH25: 0 | AI25: 0 | AJ25: 0 | AK25: 0.1780476132 | AL25: 0.1205027699 | AO25: 192.011145 | AP25: 192.011145 | AQ25: 192.011145 | AR25: 192.011145 | AS25: 192.011145 | AT25: 192.011145 | AU25: 192.011145
B26: 18 | C26: LED1x28 | D26: Lamp | E26: NonTraffic | F26: Minor | G26: Y | H26: 1 | I26: 0 | J26: 0 | K26: 0 | L26: 0 | M26: 0 | N26: 0 | P26: 0 | Q26: 0 | R26: 1395 | S26: 2791 | T26: 4186 | U26: 4440 | V26: 4464 | Y26: =X26*(1+INDIRECT("CPI"&Y$7)) -> 0 | Z26: 0 | AA26: 0 | AB26: 0 | AC26: 0 | AD26: 0 | AF26: 0 | AH26: 0 | AI26: 0 | AJ26: 0 | AL26: 0.1205027699 | AO26: 0 | AP26: 0 | AQ26: 73.08473321 | AR26: 146.2218569 | AS26: 219.3065901 | AT26: 232.6137745 | AU26: 233.8711463
B27: 19 | C27: LED1x29 | D27: Lamp | E27: NonTraffic | F27: Minor | G27: Y | H27: 1 | I27: 14188 | J27: 1356 | K27: 3 | L27: 1 | M27: 0 | N27: 15548 | P27: 15545 | Q27: 15545 | R27: 15545 | S27: 15545 | T27: 15545 | U27: 15545 | V27: 15545 | Y27: =X27*(1+INDIRECT("CPI"&Y$7)) -> 0 | Z27: 0 | AA27: 0 | AB27: 0 | AC27: 0 | AD27: 0 | AF27: 0 | AH27: 0 | AI27: 0 | AJ27: 0 | AK27: 0.1311798131 | AL27: 0.1205027699 | AO27: 814.4101633 | AP27: 814.4101633 | AQ27: 814.4101633 | AR27: 814.4101633 | AS27: 814.4101633 | AT27: 814.4101633 | AU27: 814.4101633
B28: 20 | C28: LED1x298 | D28: Lamp | E28: Traffic | F28: Major | G28: Y | H28: 1 | I28: 0 | J28: 0 | K28: 0 | L28: 0 | M28: 0 | N28: 0 | P28: 0 | Q28: 0 | R28: 52 | S28: 75 | T28: 102 | U28: 152 | V28: 178 | Y28: =X28*(1+INDIRECT("CPI"&Y$7)) -> 0 | Z28: 0 | AA28: 0 | AB28: 0 | AC28: 0 | AD28: 0 | AF28: 0 | AH28: 0 | AI28: 0 | AJ28: 0 | AL28: 0.1205027699 | AO28: 0 | AP28: 0 | AQ28: 2.724305467 | AR28: 3.929286732 | AS28: 5.343829955 | AT28: 7.963354443 | AU28: 9.325507177
B29: 21 | C29: LED1x33 | D29: Lamp | E29: NonTraffic | F29: Minor | G29: Y | H29: 1 | I29: 0 | J29: 0 | K29: 0 | L29: 0 | M29: 0 | N29: 0 | P29: 0 | Q29: 0 | R29: 5 | S29: 10 | T29: 15 | U29: 25 | V29: 30 | Y29: =X29*(1+INDIRECT("CPI"&Y$7)) -> 0 | Z29: 0 | AA29: 0 | AB29: 0 | AC29: 0 | AD29: 0 | AF29: 0 | AH29: 0 | AI29: 0 | AJ29: 0 | AL29: 0.1205027699 | AO29: 0 | AP29: 0 | AQ29: 0.2619524488 | AR29: 0.5239048976 | AS29: 0.7858573464 | AT29: 1.309762244 | AU29: 1.571714693
B30: 22 | C30: LED1x42 | D30: Lamp | E30: NonTraffic | F30: Minor | G30: Y | H30: 1 | I30: 4 | J30: 13 | K30: 0 | L30: 0 | M30: 0 | N30: 17 | P30: 17 | Q30: 17 | R30: 17 | S30: 17 | T30: 112 | U30: 207 | V30: 303 | Y30: =X30*(1+INDIRECT("CPI"&Y$7)) -> 0 | Z30: 0 | AA30: 0 | AB30: 0 | AC30: 0 | AD30: 0 | AF30: 0 | AH30: 0 | AI30: 0 | AJ30: 0 | AL30: 0.1205027699 | AO30: 0.8906383259 | AP30: 0.8906383259 | AQ30: 0.8906383259 | AR30: 0.8906383259 | AS30: 5.867734853 | AT30: 10.84483138 | AU30: 15.8743184
B31: 23 | C31: MBF1x1000 | D31: Lamp | E31: Traffic | F31: Major | G31: N | H31: 1 | I31: 6 | J31: 0 | K31: 1 | L31: 0 | M31: 0 | N31: 7 | P31: 6 | Q31: 6 | R31: 6 | S31: 6 | T31: 6 | U31: 0 | V31: 0 | X31: 27.8 | Y31: =X31*(1+INDIRECT("CPI"&Y$7)) -> 28.42326721 | Z31: 29.11249581 | AA31: 29.81843734 | AB31: 30.54149708 | AC31: 31.2820901 | AD31: 32.04064157 | AF31: 0.08 | AH31: 0.08 | AI31: 0.08 | AJ31: 0.2318765897 | AK31: 0.1600183591 | AL31: 0.1205027699 | AO31: 0.7943429385 | AP31: 0.7943429385 | AQ31: 0.7943429385 | AR31: 0.7943429385 | AS31: 0.7943429385 | AT31: 0 | AU31: 0
B32: 24 | C32: MBF1x125 | D32: Lamp | E32: NonTraffic | F32: Minor | G32: N | H32: 1 | I32: 4123 | J32: 339 | K32: 706 | L32: 0 | M32: 0 | N32: 5168 | P32: 4462 | Q32: 4462 | R32: 3091 | S32: 1719 | T32: 348 | U32: 143 | V32: 143 | X32: 5.1 | Y32: =X32*(1+INDIRECT("CPI"&Y$7)) -> 5.214340387 | Z32: 5.340781606 | AA32: 5.470288865 | AB32: 5.602936514 | AC32: 5.738800701 | AD32: 5.877959425 | AF32: 0.0501 | AH32: 0.0501 | AI32: 0.0501 | AJ32: 0.07974539338 | AK32: 0.1307574619 | AL32: 0.1205027699 | AO32: 457.3125653 | AP32: 457.3125653 | AQ32: 316.7981038 | AR32: 176.1811519 | AS32: 35.66669044 | AT32: 14.65614004 | AU32: 14.65614004
B33: 25 | C33: MBF1x250 | D33: Lamp | E33: Traffic | F33: Major | G33: N | H33: 1 | I33: 14865 | J33: 166 | K33: 186 | L33: 0 | M33: 0 | N33: 15217 | P33: 15031 | Q33: 15031 | R33: 10054 | S33: 5078 | T33: 101 | U33: 101 | V33: 101 | X33: 5.5 | Y33: =X33*(1+INDIRECT("CPI"&Y$7)) -> 5.623308261 | Z33: 5.759666438 | AA33: 5.899331129 | AB33: 6.042382515 | AC33: 6.188902717 | AD33: 6.338975851 | AF33: 0.0501 | AH33: 0.0501 | AI33: 0.0501 | AJ33: 0.2318765897 | AK33: 0.1410059698 | AL33: 0.1205027699 | AO33: 1540.534552 | AP33: 1540.534552 | AQ33: 1030.439384 | AR33: 520.446707 | AS33: 10.35153947 | AT33: 10.35153947 | AU33: 10.35153947
B34: 26 | C34: MBF1x400 | D34: Lamp | E34: Traffic | F34: Major | G34: N | H34: 1 | I34: 5393 | J34: 98 | K34: 111 | L34: 0 | M34: 0 | N34: 5602 | P34: 5491 | Q34: 5491 | R34: 3724 | S34: 1957 | T34: 190 | U34: 0 | V34: 0 | X34: 5.5 | Y34: =X34*(1+INDIRECT("CPI"&Y$7)) -> 5.623308261 | Z34: 5.759666438 | AA34: 5.899331129 | AB34: 6.042382515 | AC34: 6.188902717 | AD34: 6.338975851 | AF34: 0.0501 | AH34: 0.0501 | AI34: 0.0501 | AJ34: 0.2318765897 | AK34: 0.1600183591 | AL34: 0.1205027699 | AO34: 562.7752793 | AP34: 562.7752793 | AQ34: 381.6745839 | AR34: 200.5738885 | AS34: 19.47319305 | AT34: 0 | AU34: 0
B35: 27 | C35: MBF1x42 | D35: Lamp | E35: NonTraffic | F35: Minor | G35: N | H35: 1 | I35: 37582 | J35: 4557 | K35: 10 | L35: 13 | M35: 0 | N35: 42162 | P35: 42152 | Q35: 42152 | R35: 41952 | S35: 41752 | T35: 41552 | U35: 41152 | V35: 40952 | X35: 3.1 | Y35: =X35*(1+INDIRECT("CPI"&Y$7)) -> 3.16950102 | Z35: 3.246357447 | AA35: 3.325077546 | AB35: 3.405706508 | AC35: 3.488290622 | AD35: 3.572877298 | AF35: 0.0353 | AH35: 0.0353 | AI35: 0.0353 | AJ35: 0.0901 | AK35: 0.1009785899 | AL35: 0.1205027699 | AO35: 3696.329524 | AP35: 3696.329524 | AQ35: 3678.791426 | AR35: 3661.253328 | AS35: 3643.71523 | AT35: 3608.639034 | AU35: 3591.100937
B36: 28 | C36: MBF1x50 | D36: Lamp | E36: NonTraffic | F36: Minor | G36: N | H36: 1 | I36: 7080 | J36: 2387 | K36: 51 | L36: 0 | M36: 0 | N36: 9518 | P36: 9467 | Q36: 9467 | R36: 6357 | S36: 3248 | T36: 138 | U36: 0 | V36: 0 | X36: 5.45 | Y36: =X36*(1+INDIRECT("CPI"&Y$7)) -> 5.572187276 | Z36: 5.707305834 | AA36: 5.845700846 | AB36: 5.987451765 | AC36: 6.132639965 | AD36: 6.281348798 | AF36: 0.0501 | AH36: 0.0501 | AI36: 0.0501 | AJ36: 0.07974539338 | AK36: 0.09175017232 | AL36: 0.1205027699 | AO36: 970.2774665 | AP36: 970.2774665 | AQ36: 651.5320434 | AR36: 332.8891107 | AS36: 14.14368759 | AT36: 0 | AU36: 0
B37: 29 | C37: MBF1x80 | D37: Lamp | E37: NonTraffic | F37: Minor | G37: N | H37: 1 | I37: 62761 | J37: 7467 | K37: 155 | L37: 0 | M37: 0 | N37: 70383 | P37: 70228 | Q37: 70228 | R37: 47982 | S37: 25736 | T37: 3490 | U37: 162 | V37: 162 | X37: 3.6 | Y37: =X37*(1+INDIRECT("CPI"&Y$7)) -> 3.680710862 | Z37: 3.769963486 | AA37: 3.861380376 | AB37: 3.95501401 | AC37: 4.050918142 | AD37: 4.14914783 | AF37: 0.0447 | AH37: 0.0447 | AI37: 0.0447 | AJ37: 0.07974539338 | AK37: 0.07868681674 | AL37: 0.1205027699 | AO37: 6818.470915 | AP37: 6818.470915 | AQ37: 4658.59588 | AR37: 2498.720844 | AS37: 338.8458093 | AT37: 15.72865934 | AU37: 15.72865934
B38: 30 | C38: MBF2x80 | D38: Lamp | E38: NonTraffic | F38: Minor | G38: N | H38: 2 | I38: 16 | J38: 0 | K38: 0 | L38: 0 | M38: 0 | N38: 16 | P38: 16 | Q38: 16 | R38: 16 | S38: 16 | T38: 13 | U38: 10 | V38: 8 | X38: 3.6 | Y38: =X38*(1+INDIRECT("CPI"&Y$7)) -> 3.680710862 | Z38: 3.769963486 | AA38: 3.861380376 | AB38: 3.95501401 | AC38: 4.050918142 | AD38: 4.14914783 | AF38: 0.08 | AH38: 0.08 | AI38: 0.08 | AJ38: 0.153131459 | AK38: 0.07868681674 | AL38: 0.1205027699 | AO38: 2.118247836 | AP38: 2.118247836 | AQ38: 2.118247836 | AR38: 2.118247836 | AS38: 1.721076367 | AT38: 1.323904898 | AU38: 1.059123918
B39: 31 | C39: MBI1x100 | D39: Lamp | E39: Traffic | F39: Major | G39: N | H39: 1 | I39: 30 | J39: 0 | K39: 15 | L39: 0 | M39: 0 | N39: 45 | P39: 30 | Q39: 30 | R39: 26 | S39: 22 | T39: 18 | U39: 9 | V39: 5 | X39: 14.38 | Y39: =X39*(1+INDIRECT("CPI"&Y$7)) -> 14.70239505 | Z39: 15.0589097 | AA39: 15.42406939 | AB39: 15.79808374 | AC39: 16.18116747 | AD39: 16.5735405 | AF39: 0.04 | AH39: 0.04 | AI39: 0.04 | AJ39: 0.2318765897 | AK39: 0.1600183591 | AL39: 0.1205027699 | AO39: 2.771714693 | AP39: 2.771714693 | AQ39: 2.402152734 | AR39: 2.032590775 | AS39: 1.663028816 | AT39: 0.8315144078 | AU39: 0.4619524488
B40: 32 | C40: MBI1x1000 | D40: Lamp | E40: Traffic | F40: Major | G40: N | H40: 1 | I40: 13 | J40: 0 | K40: 0 | L40: 0 | M40: 0 | N40: 13 | P40: 13 | Q40: 13 | R40: 6 | S40: 0 | T40: 0 | U40: 0 | V40: 0 | X40: 48.5 | Y40: =X40*(1+INDIRECT("CPI"&Y$7)) -> 49.58735466 | Z40: 50.78978586 | AA40: 52.0213745 | AB40: 53.28282763 | AC40: 54.57486942 | AD40: 55.89824159 | AF40: 0.04 | AH40: 0.04 | AI40: 0.04 | AJ40: 0.2318765897 | AK40: 0.1600183591 | AL40: 0.1205027699 | AO40: 1.201076367 | AP40: 1.201076367 | AQ40: 0.5543429385 | AR40: 0 | AS40: 0 | AT40: 0 | AU40: 0
B41: 33 | C41: MBI1x150 | D41: Lamp | E41: Traffic | F41: Major | G41: N | H41: 1 | I41: 4 | J41: 0 | K41: 0 | L41: 0 | M41: 0 | N41: 4 | P41: 4 | Q41: 4 | R41: 4 | S41: 4 | T41: 4 | U41: 0 | V41: 0 | X41: 14.38 | Y41: =X41*(1+INDIRECT("CPI"&Y$7)) -> 14.70239505 | Z41: 15.0589097 | AA41: 15.42406939 | AB41: 15.79808374 | AC41: 16.18116747 | AD41: 16.5735405 | AF41: =OFFSET(AH41,0,BulkOptionNumber-1) -> 0.04 | AH41: 0.04 | AI41: 0.04 | AJ41: 0.2318765897 | AK41: 0.1600183591 | AL41: 0.1205027699 | AO41: 0.369561959 | AP41: 0.369561959 | AQ41: 0.369561959 | AR41: 0.369561959 | AS41: 0.369561959 | AT41: 0 | AU41: 0
B42: 34 | C42: MBI1x250 | D42: Lamp | E42: Traffic | F42: Major | G42: N | H42: 1 | I42: 54 | J42: 3 | K42: 50 | L42: 0 | M42: 0 | N42: 107 | P42: 57 | Q42: 57 | R42: 53 | S42: 50 | T42: 46 | U42: 38 | V42: 35 | X42: 8.2 | Y42: =X42*(1+INDIRECT("CPI"&Y$7)) -> 8.383841407 | Z42: 8.587139052 | AA42: 8.795366411 | AB42: 9.008643022 | AC42: 9.227091324 | AD42: 9.450836723 | AF42: 0.04 | AH42: 0.04 | AI42: 0.04 | AJ42: 0.2318765897 | AK42: 0.1600183591 | AL42: 0.1205027699 | AO42: 5.266257916 | AP42: 5.266257916 | AQ42: 4.896695957 | AR42: 4.619524488 | AS42: 4.249962529 | AT42: 3.510838611 | AU42: 3.233667141
B43: 35 | C43: MBI1x400 | D43: Lamp | E43: Traffic | F43: Major | G43: N | H43: 1 | I43: 91 | J43: 37 | K43: 63 | L43: 0 | M43: 0 | N43: 191 | P43: 128 | Q43: 128 | R43: 120 | S43: 113 | T43: 105 | U43: 90 | V43: 82 | X43: 8 | Y43: =X43*(1+INDIRECT("CPI"&Y$7)) -> 8.17935747 | Z43: 8.377696636 | AA43: 8.580845279 | AB43: 8.788920022 | AC43: 9.002040316 | AD43: 9.22032851 | AF43: 0.04 | AH43: 0.04 | AI43: 0.04 | AJ43: 0.2318765897 | AK43: 0.1600183591 | AL43: 0.1205027699 | AO43: 11.82598269 | AP43: 11.82598269 | AQ43: 11.08685877 | AR43: 10.44012534 | AS43: 9.701001424 | AT43: 8.315144078 | AU43: 7.57602016
B44: 36 | C44: MBI1x70 | D44: Lamp | E44: NonTraffic | F44: Minor | G44: N | H44: 1 | I44: 272 | J44: 19 | K44: 35 | L44: 0 | M44: 0 | N44: 326 | P44: 291 | Q44: 291 | R44: 289 | S44: 287 | T44: 285 | U44: 281 | V44: 279 | X44: 14.5 | Y44: =X44*(1+INDIRECT("CPI"&Y$7)) -> 14.82508541 | Z44: 15.18457515 | AA44: 15.55278207 | AB44: 15.92991754 | AC44: 16.31619807 | AD44: 16.71184542 | AF44: 0.04 | AH44: 0.04 | AI44: 0.04 | AJ44: 0.2318765897 | AK44: 0.1600183591 | AL44: 0.1205027699 | AO44: 26.88563252 | AP44: 26.88563252 | AQ44: 26.70085154 | AR44: 26.51607056 | AS44: 26.33128958 | AT44: 25.96172762 | AU44: 25.77694664
B45: 37 | C45: MBI1x70 II | D45: Lamp | E45: NonTraffic | F45: Minor | G45: N | H45: 1 | I45: 366 | J45: 30 | K45: 0 | L45: 0 | M45: 0 | N45: 396 | P45: 396 | Q45: 396 | R45: 393 | S45: 390 | T45: 387 | U45: 381 | V45: 378 | X45: 58 | Y45: =X45*(1+INDIRECT("CPI"&Y$7)) -> 59.30034166 | Z45: 60.73830061 | AA45: 62.21112827 | AB45: 63.71967016 | AC45: 65.26479229 | AD45: 66.8473817 | AF45: 0.04 | AH45: 0.04 | AI45: 0.04 | AJ45: 0.07974539338 | AK45: 0.07868681674 | AL45: 0.1205027699 | AO45: 36.58663394 | AP45: 36.58663394 | AQ45: 36.30946247 | AR45: 36.03229101 | AS45: 35.75511954 | AT45: 35.2007766 | AU45: 34.92360513
B46: 38 | C46: SON1x100 | D46: Lamp | E46: Traffic | F46: Major | G46: N | H46: 1 | I46: 1344 | J46: 80 | K46: 71 | L46: 0 | M46: 0 | N46: 1495 | P46: 1424 | Q46: 1424 | R46: 1424 | S46: 1424 | T46: 1329 | U46: 1234 | V46: 1138 | X46: 13.23 | Y46: =X46*(1+INDIRECT("CPI"&Y$7)) -> 13.52661242 | Z46: 13.85461581 | AA46: 14.19057288 | AB46: 14.53467649 | AC46: 14.88712417 | AD46: 15.24811827 | AF46: 0.06518620254 | AH46: 0.1344 | AI46: 0.06518620254 | AJ46: 0.06518620254 | AK46: 0.114404201 | AL46: 0.1205027699 | AO46: 167.4292098 | AP46: 167.4292098 | AQ46: 167.4292098 | AR46: 167.4292098 | AS46: 156.2594241 | AT46: 145.0896383 | AU46: 133.8022758
B47: 39 | C47: SON1x1000 | D47: Lamp | E47: Traffic | F47: Major | G47: N | H47: 1 | I47: 45 | J47: 4 | K47: 3 | L47: 0 | M47: 0 | N47: 52 | P47: 49 | Q47: 49 | R47: 49 | S47: 49 | T47: 40 | U47: 31 | V47: 23 | X47: 27.8 | Y47: =X47*(1+INDIRECT("CPI"&Y$7)) -> 28.42326721 | Z47: 29.11249581 | AA47: 29.81843734 | AB47: 30.54149708 | AC47: 31.2820901 | AD47: 32.04064157 | AF47: 0.06518620254 | AH47: 0.05 | AI47: 0.06518620254 | AJ47: 0.06518620254 | AK47: 0.1543702539 | AL47: 0.1205027699 | AO47: 5.761257922 | AP47: 5.761257922 | AQ47: 5.761257922 | AR47: 5.761257922 | AS47: 4.703067692 | AT47: 3.644877461 | AU47: 2.704263923
B48: 40 | C48: SON1x150 | D48: Lamp | E48: Traffic | F48: Major | G48: N | H48: 1 | I48: 18788 | J48: 1090 | K48: 150 | L48: 0 | M48: 0 | N48: 20028 | P48: 19878 | Q48: 19878 | R48: 19878 | S48: 19678 | T48: 19478 | U48: 19278 | V48: 19078 | X48: 6 | Y48: =X48*(1+INDIRECT("CPI"&Y$7)) -> 6.134518103 | Z48: 6.283272477 | AA48: 6.435633959 | AB48: 6.591690016 | AC48: 6.751530237 | AD48: 6.915246383 | AF48: 0.06518620254 | AH48: 0.0972 | AI48: 0.06518620254 | AJ48: 0.06518620254 | AK48: 0.1052708992 | AL48: 0.1205027699 | AO48: 2337.189489 | AP48: 2337.189489 | AQ48: 2337.189489 | AR48: 2313.674151 | AS48: 2290.158813 | AT48: 2266.643474 | AU48: 2243.128136
B49: 41 | C49: SON1x150 AR | D49: Lamp | E49: Traffic | F49: Major | G49: N | H49: 1 | I49: 2384 | J49: 231 | K49: 5 | L49: 0 | M49: 0 | N49: 2620 | P49: 2615 | Q49: 2615 | R49: 2615 | S49: 2615 | T49: 2615 | U49: 2615 | V49: 2615 | X49: 6 | Y49: =X49*(1+INDIRECT("CPI"&Y$7)) -> 6.134518103 | Z49: 6.283272477 | AA49: 6.435633959 | AB49: 6.591690016 | AC49: 6.751530237 | AD49: 6.915246383 | AF49: 0.06518620254 | AH49: 0.07033333333 | AI49: 0.06518620254 | AJ49: 0.06518620254 | AK49: 0.2029767594 | AL49: 0.1205027699 | AO49: 307.4630503 | AP49: 307.4630503 | AQ49: 307.4630503 | AR49: 307.4630503 | AS49: 307.4630503 | AT49: 307.4630503 | AU49: 307.4630503
B50: 42 | C50: SON1x250 | D50: Lamp | E50: Traffic | F50: Major | G50: N | H50: 1 | I50: 22184 | J50: 2576 | K50: 580 | L50: 0 | M50: 0 | N50: 25340 | P50: 24760 | Q50: 24760 | R50: 24760 | S50: 24560 | T50: 24360 | U50: 24160 | V50: 23960 | X50: 9.4 | Y50: =X50*(1+INDIRECT("CPI"&Y$7)) -> 9.610745027 | Z50: 9.843793548 | AA50: 10.0824932 | AB50: 10.32698103 | AC50: 10.57739737 | AD50: 10.833886 | AF50: 0.06518620254 | AH50: 0.1072 | AI50: 0.06518620254 | AJ50: 0.06518620254 | AK50: 0.1274549712 | AL50: 0.1205027699 | AO50: =P50*FailurePECellAnnual+P50*FailureMiscAnnual+P50*$AF50 -> 2911.198901 | AP50: =Q50*FailurePECellAnnual+Q50*FailureMiscAnnual+Q50*$AF50 -> 2911.198901 | AQ50: =R50*FailurePECellAnnual+R50*FailureMiscAnnual+R50*$AF50 -> 2911.198901 | AR50: =S50*FailurePECellAnnual+S50*FailureMiscAnnual+S50*$AF50 -> 2887.683563 | AS50: =T50*FailurePECellAnnual+T50*FailureMiscAnnual+T50*$AF50 -> 2864.168224 | AT50: =U50*FailurePECellAnnual+U50*FailureMiscAnnual+U50*$AF50 -> 2840.652886 | AU50: =V50*FailurePECellAnnual+V50*FailureMiscAnnual+V50*$AF50 -> 2817.137547
B51: 43 | C51: SON1x250 AR | D51: Lamp | E51: Traffic | F51: Major | G51: N | H51: 1 | I51: 2953 | J51: 353 | K51: 3 | L51: 0 | M51: 0 | N51: 3309 | P51: 3306 | Q51: 3306 | R51: 3296 | S51: 3286 | T51: 3276 | U51: 3266 | V51: 3256 | X51: 9.4 | Y51: =X51*(1+INDIRECT("CPI"&Y$7)) -> 9.610745027 | Z51: 9.843793548 | AA51: 10.0824932 | AB51: 10.32698103 | AC51: 10.57739737 | AD51: 10.833886 | AF51: 0.06518620254 | AH51: 0.0734 | AI51: 0.06518620254 | AJ51: 0.06518620254 | AK51: 0.2166712643 | AL51: 0.1205027699 | AO51: 388.7085447 | AP51: 388.7085447 | AQ51: 387.5327778 | AR51: 386.3570109 | AS51: 385.181244 | AT51: 384.005477 | AU51: 382.8297101
B52: 44 | C52: SON1x400 | D52: Lamp | E52: Traffic | F52: Major | G52: N | H52: 1 | I52: 1772 | J52: 350 | K52: 267 | L52: 0 | M52: 0 | N52: 2389 | P52: 2122 | Q52: 2122 | R52: 2112 | S52: 2102 | T52: 2092 | U52: 2072 | V52: 2062 | X52: 10.9 | Y52: =X52*(1+INDIRECT("CPI"&Y$7)) -> 11.14437455 | Z52: 11.41461167 | AA52: 11.69140169 | AB52: 11.97490353 | AC52: 12.26527993 | AD52: 12.5626976 | AF52: 0.06518620254 | AH52: 0.0972 | AI52: 0.06518620254 | AJ52: 0.06518620254 | AK52: 0.1543702539 | AL52: 0.1205027699 | AO52: 249.497741 | AP52: 249.497741 | AQ52: 248.3219741 | AR52: 247.1462072 | AS52: 245.9704403 | AT52: 243.6189064 | AU52: 242.4431395
B53: 45 | C53: SON1x400 AR | D53: Lamp | E53: Traffic | F53: Major | G53: N | H53: 1 | I53: 224 | J53: 108 | K53: 0 | L53: 0 | M53: 0 | N53: 332 | P53: 332 | Q53: 332 | R53: 332 | S53: 332 | T53: 332 | U53: 332 | V53: 332 | X53: 10.9 | Y53: =X53*(1+INDIRECT("CPI"&Y$7)) -> 11.14437455 | Z53: 11.41461167 | AA53: 11.69140169 | AB53: 11.97490353 | AC53: 12.26527993 | AD53: 12.5626976 | AF53: 0.06518620254 | AH53: 0.08171666667 | AI53: 0.06518620254 | AJ53: 0.06518620254 | AK53: 0.1649253223 | AL53: 0.1205027699 | AO53: 39.03546184 | AP53: 39.03546184 | AQ53: 39.03546184 | AR53: 39.03546184 | AS53: 39.03546184 | AT53: 39.03546184 | AU53: 39.03546184
B54: 46 | C54: SON1x50 | D54: Lamp | E54: NonTraffic | F54: Minor | G54: N | H54: 1 | I54: 460 | J54: 5 | K54: 0 | L54: 0 | M54: 0 | N54: 465 | P54: 465 | Q54: 465 | R54: 459 | S54: 453 | T54: 447 | U54: 435 | V54: 429 | X54: 10.06 | Y54: =X54*(1+INDIRECT("CPI"&Y$7)) -> 10.28554202 | Z54: 10.53495352 | AA54: 10.79041294 | AB54: 11.05206693 | AC54: 11.3200657 | AD54: 11.5945631 | AF54: 0.06518620254 | AH54: 0.05 | AI54: 0.06518620254 | AJ54: 0.06518620254 | AK54: 0.1052708992 | AL54: 0.1205027699 | AO54: 54.67316192 | AP54: 54.67316192 | AQ54: 53.96770176 | AR54: 53.26224161 | AS54: 52.55678146 | AT54: 51.14586115 | AU54: 50.44040099
B55: 47 | C55: SON1x600 | D55: Lamp | E55: Traffic | F55: Major | G55: N | H55: 1 | I55: 1 | J55: 0 | K55: 0 | L55: 0 | M55: 0 | N55: 1 | P55: 1 | Q55: 1 | R55: 1 | S55: 1 | T55: 1 | U55: 1 | V55: 1 | X55: 27.8 | Y55: =X55*(1+INDIRECT("CPI"&Y$7)) -> 28.42326721 | Z55: 29.11249581 | AA55: 29.81843734 | AB55: 30.54149708 | AC55: 31.2820901 | AD55: 32.04064157 | AF55: 0.06518620254 | AH55: 0.0972 | AI55: 0.06518620254 | AJ55: 0.06518620254 | AK55: 0.1543702539 | AL55: 0.1205027699 | AO55: 0.1175766923 | AP55: 0.1175766923 | AQ55: 0.1175766923 | AR55: 0.1175766923 | AS55: 0.1175766923 | AT55: 0.1175766923 | AU55: 0.1175766923
B56: 48 | C56: SON1x70 | D56: Lamp | E56: NonTraffic | F56: Minor | G56: N | H56: 1 | I56: 1695 | J56: 310 | K56: 99 | L56: 0 | M56: 0 | N56: 2104 | P56: 2005 | Q56: 2005 | R56: 1985 | S56: 1965 | T56: 1945 | U56: 1905 | V56: 1885 | X56: 6.3 | Y56: =X56*(1+INDIRECT("CPI"&Y$7)) -> 6.441244008 | Z56: 6.597436101 | AA56: 6.757415657 | AB56: 6.921274517 | AC56: 7.089106749 | AD56: 7.261008702 | AF56: 0.06518620254 | AH56: 0.1125333333 | AI56: 0.06518620254 | AJ56: 0.06518620254 | AK56: 0.133808285 | AL56: 0.1205027699 | AO56: 235.7412681 | AP56: 235.7412681 | AQ56: 233.3897342 | AR56: 231.0382004 | AS56: 228.6866665 | AT56: 223.9835988 | AU56: 221.632065
B57: 49 | C57: SON2x250 | D57: Lamp | E57: Traffic | F57: Major | G57: N | H57: 2 | I57: 28 | J57: 2 | K57: 1 | L57: 0 | M57: 0 | N57: 31 | P57: 30 | Q57: 30 | R57: 30 | S57: 30 | T57: 30 | U57: 30 | V57: 30 | X57: 9.4 | Y57: =X57*(1+INDIRECT("CPI"&Y$7)) -> 9.610745027 | Z57: 9.843793548 | AA57: 10.0824932 | AB57: 10.32698103 | AC57: 10.57739737 | AD57: 10.833886 | AF57: 0.1261231641 | AH57: 0.2250666667 | AI57: 0.1261231641 | AJ57: 0.1261231641 | AK57: 0.1274549712 | AL57: 0.1205027699 | AO57: 5.355409615 | AP57: 5.355409615 | AQ57: 5.355409615 | AR57: 5.355409615 | AS57: 5.355409615 | AT57: 5.355409615 | AU57: 5.355409615
B58: 50 | C58: SON2x400 | D58: Lamp | E58: Traffic | F58: Major | G58: N | H58: 2 | I58: 4 | J58: 0 | K58: 0 | L58: 0 | M58: 0 | N58: 4 | P58: 4 | Q58: 4 | R58: 4 | S58: 4 | T58: 4 | U58: 4 | V58: 4 | X58: 10.9 | Y58: =X58*(1+INDIRECT("CPI"&Y$7)) -> 11.14437455 | Z58: 11.41461167 | AA58: 11.69140169 | AB58: 11.97490353 | AC58: 12.26527993 | AD58: 12.5626976 | AF58: 0.1261231641 | AH58: 0.1944 | AI58: 0.1261231641 | AJ58: 0.1261231641 | AK58: 0.1543702539 | AL58: 0.1205027699 | AO58: 0.7140546153 | AP58: 0.7140546153 | AQ58: 0.7140546153 | AR58: 0.7140546153 | AS58: 0.7140546153 | AT58: 0.7140546153 | AU58: 0.7140546153
B59: 51 | C59: SON4x250 | D59: Lamp | E59: Traffic | F59: Major | G59: N | H59: 4 | I59: 6 | J59: 0 | K59: 0 | L59: 0 | M59: 0 | N59: 6 | P59: 6 | Q59: 6 | R59: 6 | S59: 6 | T59: 6 | U59: 6 | V59: 6 | X59: 9.4 | Y59: =X59*(1+INDIRECT("CPI"&Y$7)) -> 9.610745027 | Z59: 9.843793548 | AA59: 10.0824932 | AB59: 10.32698103 | AC59: 10.57739737 | AD59: 10.833886 | AF59: 0.2363392756 | AH59: 0.4700884481 | AI59: 0.2363392756 | AJ59: 0.2363392756 | AK59: 0.2166712643 | AL59: 0.1205027699 | AO59: 1.732378592 | AP59: 1.732378592 | AQ59: 1.732378592 | AR59: 1.732378592 | AS59: 1.732378592 | AT59: 1.732378592 | AU59: 1.732378592
B60: 52 | C60: SON4x600 | D60: Lamp | E60: Traffic | F60: Major | G60: N | H60: 4 | I60: 2 | J60: 0 | K60: 0 | L60: 0 | M60: 0 | N60: 2 | P60: 2 | Q60: 2 | R60: 2 | S60: 2 | T60: 2 | U60: 2 | V60: 2 | X60: 27.8 | Y60: =X60*(1+INDIRECT("CPI"&Y$7)) -> 28.42326721 | Z60: 29.11249581 | AA60: 29.81843734 | AB60: 30.54149708 | AC60: 31.2820901 | AD60: 32.04064157 | AF60: 0.2363392756 | AH60: 0.5102186727 | AI60: 0.2363392756 | AJ60: 0.2363392756 | AK60: 0.1543702539 | AL60: 0.1205027699 | AO60: 0.5774595308 | AP60: 0.5774595308 | AQ60: 0.5774595308 | AR60: 0.5774595308 | AS60: 0.5774595308 | AT60: 0.5774595308 | AU60: 0.5774595308
B61: 53 | C61: TF1x20 | D61: Lamp | E61: NonTraffic | F61: Minor | G61: N | H61: 1 | I61: 4 | J61: 0 | K61: 231 | L61: 0 | M61: 0 | N61: 235 | P61: 4 | Q61: 4 | R61: 4 | S61: 4 | T61: 4 | U61: 4 | V61: 4 | X61: 1.3 | Y61: =X61*(1+INDIRECT("CPI"&Y$7)) -> 1.329145589 | Z61: 1.361375703 | AA61: 1.394387358 | AB61: 1.428199504 | AC61: 1.462831551 | AD61: 1.498303383 | AF61: 0.06 | AH61: 0.06 | AI61: 0.06 | AJ61: 0.1437293284 | AK61: 0.1532291407 | AL61: 0.1205027699 | AO61: 0.449561959 | AP61: 0.449561959 | AQ61: 0.449561959 | AR61: 0.449561959 | AS61: 0.449561959 | AT61: 0.449561959 | AU61: 0.449561959
B62: 54 | C62: TF1x40 | D62: Lamp | E62: NonTraffic | F62: Minor | G62: N | H62: 1 | I62: 268 | J62: 24 | K62: 40 | L62: 0 | M62: 0 | N62: 332 | P62: 292 | Q62: 292 | R62: 123 | S62: 0 | T62: 0 | U62: 0 | V62: 0 | X62: 1.5 | Y62: =X62*(1+INDIRECT("CPI"&Y$7)) -> 1.533629526 | Z62: 1.570818119 | AA62: 1.60890849 | AB62: 1.647922504 | AC62: 1.687882559 | AD62: 1.728811596 | AF62: 0.158 | AH62: 0.158 | AI62: 0.158 | AJ62: 0.1437293284 | AK62: 0.1532291407 | AL62: 0.1205027699 | AO62: 61.43402301 | AP62: 61.43402301 | AQ62: 25.87803024 | AR62: 0 | AS62: 0 | AT62: 0 | AU62: 0
B63: 55 | C63: TF1x80 | D63: Lamp | E63: NonTraffic | F63: Minor | G63: N | H63: 1 | I63: 88 | J63: 9 | K63: 9 | L63: 0 | M63: 0 | N63: 106 | P63: 97 | Q63: 97 | R63: 48 | S63: 0 | T63: 0 | U63: 0 | V63: 0 | X63: 1.5 | Y63: =X63*(1+INDIRECT("CPI"&Y$7)) -> 1.533629526 | Z63: 1.570818119 | AA63: 1.60890849 | AB63: 1.647922504 | AC63: 1.687882559 | AD63: 1.728811596 | AF63: 0.06 | AH63: 0.06 | AI63: 0.06 | AJ63: 0.1437293284 | AK63: 0.1532291407 | AL63: 0.1205027699 | AO63: 10.90187751 | AP63: 10.90187751 | AQ63: 5.394743508 | AR63: 0 | AS63: 0 | AT63: 0 | AU63: 0
B64: 56 | C64: TF2x14 T5 | D64: Lamp | E64: NonTraffic | F64: Minor | G64: N | H64: 2 | I64: 222 | J64: 0 | K64: 0 | L64: 0 | M64: 0 | N64: 222 | P64: 222 | Q64: 222 | R64: 222 | S64: 222 | T64: 202 | U64: 182 | V64: 162 | X64: 1.5 | Y64: =X64*(1+INDIRECT("CPI"&Y$7)) -> 1.533629526 | Z64: 1.570818119 | AA64: 1.60890849 | AB64: 1.647922504 | AC64: 1.687882559 | AD64: 1.728811596 | AF64: 0.06 | AH64: 0.06 | AI64: 0.06 | AJ64: 0.0901 | AK64: 0.1532291407 | AL64: 0.1205027699 | AO64: 24.95068873 | AP64: 24.95068873 | AQ64: 24.95068873 | AR64: 24.95068873 | AS64: 22.70287893 | AT64: 20.45506914 | AU64: 18.20725934
B65: 57 | C65: TF2x20 | D65: Lamp | E65: NonTraffic | F65: Minor | G65: N | H65: 2 | I65: 9917 | J65: 35 | K65: 110 | L65: 0 | M65: 0 | N65: 10062 | P65: 9952 | Q65: 9952 | R65: 4477 | S65: 0 | T65: 0 | U65: 0 | V65: 0 | X65: 1.3 | Y65: =X65*(1+INDIRECT("CPI"&Y$7)) -> 1.329145589 | Z65: 1.361375703 | AA65: 1.394387358 | AB65: 1.428199504 | AC65: 1.462831551 | AD65: 1.498303383 | AF65: 0.1029 | AH65: 0.1029 | AI65: 0.1029 | AJ65: 0.2668005369 | AK65: 0.1532291407 | AL65: 0.1205027699 | AO65: 1545.450954 | AP65: 1545.450954 | AQ65: 695.2355226 | AR65: 0 | AS65: 0 | AT65: 0 | AU65: 0
B66: 58 | C66: TF2x26 | D66: Lamp | E66: NonTraffic | F66: Minor | G66: N | H66: 2 | I66: 14 | J66: 0 | K66: 23 | L66: 0 | M66: 0 | N66: 37 | P66: 14 | Q66: 14 | R66: 7 | S66: 0 | T66: 0 | U66: 0 | V66: 0 | X66: 1.5 | Y66: =X66*(1+INDIRECT("CPI"&Y$7)) -> 1.533629526 | Z66: 1.570818119 | AA66: 1.60890849 | AB66: 1.647922504 | AC66: 1.687882559 | AD66: 1.728811596 | AF66: 0.06 | AH66: 0.06 | AI66: 0.06 | AJ66: 0.2668005369 | AK66: 0.1532291407 | AL66: 0.1205027699 | AO66: 1.573466857 | AP66: 1.573466857 | AQ66: 0.7867334283 | AR66: 0 | AS66: 0 | AT66: 0 | AU66: 0
B67: 59 | C67: TF2x40 | D67: Lamp | E67: NonTraffic | F67: Minor | G67: N | H67: 2 | I67: 8 | J67: 6 | K67: 134 | L67: 0 | M67: 0 | N67: 148 | P67: 14 | Q67: 14 | R67: 7 | S67: 0 | T67: 0 | U67: 0 | V67: 0 | X67: 1.5 | Y67: =X67*(1+INDIRECT("CPI"&Y$7)) -> 1.533629526 | Z67: 1.570818119 | AA67: 1.60890849 | AB67: 1.647922504 | AC67: 1.687882559 | AD67: 1.728811596 | AF67: 0.06 | AH67: 0.06 | AI67: 0.06 | AJ67: 0.2668005369 | AK67: 0.1532291407 | AL67: 0.1205027699 | AO67: 1.573466857 | AP67: 1.573466857 | AQ67: 0.7867334283 | AR67: 0 | AS67: 0 | AT67: 0 | AU67: 0
B68: 60 | C68: TF4x20 | D68: Lamp | E68: NonTraffic | F68: Minor | G68: N | H68: 2 | I68: 12 | J68: 0 | K68: 38 | L68: 0 | M68: 0 | N68: 50 | P68: 12 | Q68: 12 | R68: 6 | S68: 0 | T68: 0 | U68: 0 | V68: 0 | X68: 1.3 | Y68: =X68*(1+INDIRECT("CPI"&Y$7)) -> 1.329145589 | Z68: 1.361375703 | AA68: 1.394387358 | AB68: 1.428199504 | AC68: 1.462831551 | AD68: 1.498303383 | AF68: 0.06 | AH68: 0.06 | AI68: 0.06 | AJ68: 0.4624185473 | AK68: 0.1532291407 | AL68: 0.1205027699 | AO68: 1.348685877 | AP68: 1.348685877 | AQ68: 0.6743429385 | AR68: 0 | AS68: 0 | AT68: 0 | AU68: 0
B69: 61 | C69: TF4x40 | D69: Lamp | E69: NonTraffic | F69: Minor | G69: N | H69: 4 | I69: 2 | J69: 0 | K69: 42 | L69: 0 | M69: 0 | N69: 44 | P69: 2 | Q69: 2 | R69: 2 | S69: 2 | T69: 2 | U69: 2 | V69: 2 | X69: 1.5 | Y69: =X69*(1+INDIRECT("CPI"&Y$7)) -> 1.533629526 | Z69: 1.570818119 | AA69: 1.60890849 | AB69: 1.647922504 | AC69: 1.687882559 | AD69: 1.728811596 | AF69: 0.06 | AH69: 0.06 | AI69: 0.06 | AJ69: 0.4624185473 | AK69: 0.1532291407 | AL69: 0.1205027699 | AO69: 0.2247809795 | AP69: 0.2247809795 | AQ69: 0.2247809795 | AR69: 0.2247809795 | AS69: 0.2247809795 | AT69: 0.2247809795 | AU69: 0.2247809795
B70: 62 | C70: TH1x1500 | D70: Lamp | E70: Traffic | F70: Major | G70: N | H70: 1 | I70: 10 | J70: 0 | K70: 12 | L70: 0 | M70: 0 | N70: 22 | P70: 10 | Q70: 10 | R70: 0 | S70: 0 | T70: 0 | U70: 0 | V70: 0 | X70: 10.9 | Y70: =X70*(1+INDIRECT("CPI"&Y$7)) -> 11.14437455 | Z70: 11.41461167 | AA70: 11.69140169 | AB70: 11.97490353 | AC70: 12.26527993 | AD70: 12.5626976 | AF70: 0.06 | AH70: 0.06 | AI70: 0.06 | AJ70: 0.2318765897 | AK70: 0.1532291407 | AL70: 0.1205027699 | AO70: 1.123904898 | AP70: 1.123904898 | AQ70: 0 | AR70: 0 | AS70: 0 | AT70: 0 | AU70: 0
B71: 63 | C71: TH1x500 | D71: Lamp | E71: Traffic | F71: Major | G71: N | H71: 1 | I71: 9 | J71: 0 | K71: 4 | L71: 0 | M71: 0 | N71: 13 | P71: 9 | Q71: 9 | R71: 0 | S71: 0 | T71: 0 | U71: 0 | V71: 0 | X71: 10.9 | Y71: =X71*(1+INDIRECT("CPI"&Y$7)) -> 11.14437455 | Z71: 11.41461167 | AA71: 11.69140169 | AB71: 11.97490353 | AC71: 12.26527993 | AD71: 12.5626976 | AF71: 0.06 | AH71: 0.06 | AI71: 0.06 | AJ71: 0.2318765897 | AK71: 0.1532291407 | AL71: 0.1205027699 | AO71: 1.011514408 | AP71: 1.011514408 | AQ71: 0 | AR71: 0 | AS71: 0 | AT71: 0 | AU71: 0
B72: 64 | C72: TH1x750 | D72: Lamp | E72: Traffic | F72: Major | G72: N | H72: 1 | I72: 8 | J72: 0 | K72: 3 | L72: 0 | M72: 0 | N72: 11 | P72: 8 | Q72: 8 | R72: 0 | S72: 0 | T72: 0 | U72: 0 | V72: 0 | X72: 10.9 | Y72: =X72*(1+INDIRECT("CPI"&Y$7)) -> 11.14437455 | Z72: 11.41461167 | AA72: 11.69140169 | AB72: 11.97490353 | AC72: 12.26527993 | AD72: 12.5626976 | AF72: 0.06 | AH72: 0.06 | AI72: 0.06 | AJ72: 0.2318765897 | AK72: 0.1532291407 | AL72: 0.1205027699 | AO72: 0.8991239181 | AP72: 0.8991239181 | AQ72: 0 | AR72: 0 | AS72: 0 | AT72: 0 | AU72: 0
M73: Total | P73: =SUM(P18:P72) -> 251908 | Q73: =SUM(Q18:Q72) -> 251908 | R73: 251907.6667 | S73: 251909 | T73: 251914 | U73: 251922 | V73: 251930 | AM73: Total Spot | AO73: =SUM(AO18:AO72) -> 24401.96203 | AP73: =SUM(AP18:AP72) -> 24401.96203 | AQ73: 22238.1578 | AR73: 20160.17871 | AS73: 18558.47955 | AT73: =SUM(AT18:AT72) -> 18327.35466 | AU73: =SUM(AU18:AU72) -> 18282.70138
M74: Non LED | P74: =SUM(P31:P72) -> 215407 | Q74: =SUM(Q31:Q72) -> 215407 | R74: 175922 | S74: 137113 | T74: 102848 | U74: 97926 | V74: 97134 | AM74: % of population | AO74: =AO73/P73 -> 0.09686854738 | AP74: =AP73/Q73 -> 0.09686854738 | AQ74: =AQ73/R73 -> 0.08827900357 | AR74: =AR73/S73 -> 0.08002960876 | AS74: =AS73/T73 -> 0.07366990145 | AT74: =AT73/U73 -> 0.07275011576 | AU74: 0.07257056077
AM75: Total for RIN | AO75: =P73/4+AO73 -> 87378.96203 | AP75: =Q73/4+AP73 -> 87378.96203 | AQ75: 85215.07447 | AR75: 83137.42871 | AS75: 81536.97955 | AT75: 81307.85466 | AU75: 81265.20138
AL78: Repex RIN | AM78: Lamp failure | AO78: =SUMPRODUCT($AF18:$AF72,P18:P72) -> 11204.37854 | AP78: =SUMPRODUCT($AF18:$AF72,Q18:Q72) -> 11204.37854 | AQ78: 9040.591774 | AR78: 6962.542828 | AS78: 5360.581717 | AT78: 5129.037702 | AU78: 5083.965291
AM79: Other failure | AO79: =AO73-AO78 -> 13197.58349 | AP79: =AP73-AP78 -> 13197.58349 | AQ79: 13197.56603 | AR79: 13197.63588 | AS79: 13197.89784 | AT79: 13198.31696 | AU79: 13198.73608

Sheet Calc - Opex FY18
B2: =CONCATENATE("This sheet contains no inputs and all values are calculated for " & "FY18" ) -> This sheet contains no inputs and all values are calculated for FY18 | AE2: Bulk contract | AO2: Bulk materials | AZ2: Spot labour | BH2: Spot materials | BL2: EWP costs | BN2: Connections | BR2: Overheads | BV2: CAM | BY2: RIN DATA - Other failure expense
L4: Totals ---> | M4: =SUM(M12:M75) -> 14219966.36 | O4: =SUMPRODUCT(O12:O75,P12:P75,$L$12:$L$75) -> 1014087.083 | Q4: =SUMPRODUCT(Q12:Q75,R12:R75,$L$12:$L$75) -> 541219.3015 | S4: =SUMPRODUCT(S12:S75,T12:T75,$L$12:$L$75) -> 20608.40791 | U4: =SUMPRODUCT(U12:U75,V12:V75,$L$12:$L$75) -> 0 | W4: =SUMPRODUCT(W12:W75,X12:X75,$L$12:$L$75) -> 36067.10327 | Y4: =SUMPRODUCT(Y12:Y75,Z12:Z75,$L$12:$L$75) -> 72968.57263 | AA4: =SUMPRODUCT(AA12:AA75,AB12:AB75,$L$12:$L$75) -> 152271.5533 | AC4: =SUMPRODUCT(AC12:AC75,AD12:AD75,$L$12:$L$75) -> 128317.2538 | AE4: =SUMPRODUCT(AE12:AE75,$L$12:$L$75) -> 1965539.275 | AG4: =SUMPRODUCT(AG12:AG75,AH12:AH75,$L$12:$L$75) -> 273127.7975 | AI4: =SUMPRODUCT(AI12:AI75,AJ12:AJ75,$L$12:$L$75) -> 89215.86904 | AK4: =SUMPRODUCT(AK12:AK75,AL12:AL75,$L$12:$L$75) -> 0 | AM4: =SUMPRODUCT(AM12:AM75,AN12:AN75,$L$12:$L$75) -> 84935.65706 | AO4: =SUMPRODUCT(AO12:AO75,$L$12:$L$75) -> 447279.3236 | AQ4: =SUMPRODUCT(AQ12:AQ75,AR12:AR75,AS12:AS75,$L$12:$L$75) -> 1748454.676 | AT4: =SUMPRODUCT(AT12:AT75,AU12:AU75,AV12:AV75,$L$12:$L$75) -> 743487.9091 | AW4: =SUMPRODUCT(AW12:AW75,AX12:AX75,AY12:AY75,$L$12:$L$75) -> 1220934.192 | AZ4: =SUMPRODUCT(AZ12:AZ75,$L$12:$L$75) -> 3712876.777 | BB4: =SUMPRODUCT(BB12:BB75,BC12:BC75,$L$12:$L$75) -> 58207.35125 | BD4: =SUMPRODUCT(BD12:BD75,BE12:BE75,$L$12:$L$75) -> 55157.3351 | BF4: =SUMPRODUCT(BF12:BF75,BG12:BG75,$L$12:$L$75) -> 123039.0933 | BH4: =SUMPRODUCT(BH12:BH75,$L$12:$L$75) -> 236403.7796 | BL4: =SUMPRODUCT(BL12:BL75,$L$12:$L$75) -> 1392570.099 | BN4: =SUMPRODUCT(BN12:BN75,$L$12:$L$75) -> 2728792.042 | BR4: =SUMPRODUCT(BR12:BR75,$L$12:$L$75) -> 2335315.664 | BV4: =SUMPRODUCT(BV12:BV75,$L$12:$L$75) -> 1401189.398 | BY4: =(AT4+AW4+BD4+BF4)+((AT4+AW4+BD4+BF4)/AZ4)*BL4*(1+RateOverhead)*(1+CorporateOverheads) -> 3232665.617
L6: Percent ---> | AE6: =AE4/$M4 -> 0.1382239047 | AO6: =AO4/$M4 -> 0.03145431658 | AZ6: =AZ4/$M4 -> 0.2611030634 | BH6: =BH4/$M4 -> 0.0166247777 | BL6: =BL4/$M4 -> 0.09793061837 | BN6: =BN4/$M4 -> 0.1918986286 | BR6: =BR4/$M4 -> 0.1642279317 | BV6: =BV4/$M4 -> 0.09853675902
M8: Sub-total annual cost | O8: Task 1 | Q8: Task 2 | S8: Task 3 | U8: Task 4 | W8: Task 5 | Y8: Task 6 | AA8: Task 7 | AC8: Task 8 | AE8: Sub-total annual cost per asset | AO8: Sub-total annual cost per asset | AZ8: Sub-total annual cost per asset | BH8: Sub-total annual cost per asset | BL8: Sub-total annual cost per asset | BN8: Sub-total annual cost per asset | BR8: Sub-total annual cost per asset | BV8: Sub-total annual cost per asset
O9: Minor | Q9: Major | S9: All | U9: All | W9: All | Y9: All | AA9: All | AC9: All | AG9: Lamp | AI9: Visors | AK9: PE Cell | AM9: Misc | AQ9: Lamp change | AT9: PE Cell change | AW9: Misc | BB9: Lamp | BD9: PE Cell | BF9: Misc | BJ9: Price | BK9: Hours (weighted by failure)
B10: # | C10: Description | D10: Type | E10: Route | F10: Category | G10: Lamps (#) | K10: Price | L10: Count | O10: Price | P10: Cycle | Q10: Price | R10: Cycle | S10: Price | T10: Cycle | U10: Price | V10: Cycle | W10: Price | X10: Cycle | Y10: Price | Z10: Cycle | AA10: Price | AB10: Cycle | AC10: Price | AD10: Cycle | AG10: Price | AH10: Cycle | AI10: Price | AJ10: Cycle | AK10: Price | AL10: Cycle | AM10: Price | AN10: Cycle | AQ10: Price | AR10: Failure | AS10: Hours | AT10: Price | AU10: Failure | AV10: Hours | AW10: Price | AX10: Failure | AY10: Hours | BB10: Price | BC10: Failure | BD10: Price | BE10: Failure | BF10: Price | BG10: Failure | BP10: Rate | BQ10: Cost | BT10: Rate | BU10: Cost
B12: ='Input - Inventory'!B9 -> 1 | C12: ='Input - Inventory'!C9 -> O/U | D12: ='Input - Inventory'!D9 -> Connection | E12: ='Input - Inventory'!E9 -> NonTraffic | F12: ='Input - Inventory'!F9 -> n/a | G12: ='Input - Inventory'!H9 -> 0 | I12: =CONCATENATE(D12," - ",C12) -> Connection - O/U | K12: =AE12+AO12+AZ12+BH12+BL12+BN12+BR12+BV12 -> 100.8664807 | L12: =INDIRECT(L$10&$B12&"FY18") -> 576 | M12: =L12*K12 -> 58099.09289 | O12: =IF(AND($D12="Lamp", OR($F12=O$9, O$9="All")),IF('Input - Inventory'!G9="N",INDIRECT("PriceBulkTask1" & "FY18"),INDIRECT("PriceBulkTask1LED" & "FY18")),0) -> 0 | P12: =IF(AND($D12="Lamp",CycleBulkTask1<>0, OR($F12=O$9,O$9="All")),IF('Input - Inventory'!G9="N",1/CycleBulkTask1,1/CycleBulkTask1LED),0) -> 0 | Q12: =IF(AND($D12="Lamp", OR($F12=Q$9, Q$9="All")),IF('Input - Inventory'!G9="N",INDIRECT("PriceBulkTask2" & "FY18"),INDIRECT("PriceBulkTask2LED" & "FY18")),0) -> 0 | R12: =IF(AND($D12="Lamp",CycleBulkTask2<>0, OR($F12=Q$9,Q$9="All")),IF('Input - Inventory'!G9="N",1/CycleBulkTask2,1/CycleBulkTask2LED),0) -> 0 | S12: =IF(AND($D12="Lamp", OR($F12=S$9, S$9="All")),INDIRECT("PriceBulkTask3" & "FY18"),0) -> 0 | T12: =IF(AND($D12="Lamp",CycleBulkTask3<>0, OR($F12=S$9,S$9="All")),1/CycleBulkTask3,0) -> 0 | U12: =IF(AND($D12="Lamp", OR($F12=U$9, U$9="All")),INDIRECT("PriceBulkTask4" & "FY18"),0) -> 0 | V12: =IF(AND($D12="Lamp",CycleBulkTask4<>0, OR($F12=U$9,U$9="All")),1/CycleBulkTask4,0) -> 0 | W12: =IF(AND($D12="Lamp", OR($F12=W$9, W$9="All")),INDIRECT("PriceBulkTask5" & "FY18"),0) -> 0 | X12: =IF(AND($D12="Lamp",CycleBulkTask5<>0, OR($F12=W$9,W$9="All")),1/CycleBulkTask5,0) -> 0 | Y12: =IF(AND($D12="Lamp", OR($F12=Y$9, Y$9="All")),INDIRECT("PriceBulkTask6" & "FY18"),0) -> 0 | Z12: =IF(AND($D12="Lamp",CycleBulkTask6<>0, OR($F12=Y$9,Y$9="All")),1/CycleBulkTask6,0) -> 0 | AA12: =IF(AND($D12="Lamp", OR($F12=AA$9, AA$9="All")),INDIRECT("PriceBulkTask7" & "FY18"),0) -> 0 | AB12: =IF(AND($D12="Lamp",CycleBulkTask7<>0, OR($F12=AA$9,AA$9="All")),1/CycleBulkTask7,0) -> 0 | AC12: =IF(AND($D12="Lamp", OR($F12=AC$9, AC$9="All")),INDIRECT("PriceBulkTask8" & "FY18"),0) -> 0 | AD12: =IF(AND($D12="Lamp",CycleBulkTask8<>0, OR($F12=AC$9,AC$9="All")),1/CycleBulkTask8,0) -> 0 | AE12: =O12*P12+Q12*R12+S12*T12+U12*V12+W12*X12+Y12*Z12+AA12*AB12+AC12*AD12 -> 0 | AG12: =IF($D12="Lamp",$G12*INDIRECT("Price" & $B12 & "FY18"),0) -> 0 | AH12: =MAX(P12,R12) -> 0 | AI12: =IF($D12="Lamp",INDIRECT("PriceVisor" & "FY18"),0) -> 0 | AJ12: =T12 -> 0 | AK12: =IF($D12="Lamp",INDIRECT("PricePECell" & "FY18"),0) -> 0 | AL12: =V12 -> 0 | AM12: =IF($D12="Lamp",INDIRECT("PriceMisc" & "FY18"),0) -> 0 | AN12: =X12+AB12 -> 0 | AO12: =AG12*AH12+AI12*AJ12+AK12*AL12+AM12*AN12 -> 0 | AQ12: =IF($D12=$AG$9,(INDIRECT("PriceLabour" & "FY18")*ProportionStandardHours + INDIRECT("PriceLabourOvertime" & "FY18")*ProportionOvertimeHours)*(1+RateOnCostAnnual),0) -> 0 | AR12: =BC12 -> 0 | AS12: =IF($D12="Lamp",(NumberOfCrew+INDIRECT($E12)*TrafficController)*(TimeToReplaceLamp),0) -> 0 | AT12: =IF($D12=$AG$9,(INDIRECT("PriceLabour" & "FY18")*ProportionStandardHours + INDIRECT("PriceLabourOvertime" & "FY18")*ProportionOvertimeHours)*(1+RateOnCostAnnual),0) -> 0 | AU12: =BE12 -> 0 | AV12: =IF($D12="Lamp",(NumberOfCrew+INDIRECT($E12)*TrafficController)*(TimeForPECellReplace),0) -> 0 | AW12: =IF($D12=$AG$9,(INDIRECT("PriceLabour" & "FY18")*ProportionStandardHours + INDIRECT("PriceLabourOvertime" & "FY18")*ProportionOvertimeHours)*(1+RateOnCostAnnual),0) -> 0 | AX12: =BG12 -> 0 | AY12: =IF($D12="Lamp",(NumberOfCrew+INDIRECT($E12)*TrafficController)*(TimeForOtherSpot),0) -> 0 | AZ12: =AQ12*AR12*AS12+AT12*AU12*AV12+AW12*AX12*AY12 -> 0 | BB12: =IF($D12="Lamp",INDIRECT("Price" & $B12 & "FY18"),0) -> 0 | BC12: =IF($D12="Lamp",INDIRECT(BC$10 & $B12),0) -> 0 | BD12: =IF($D12="Lamp",INDIRECT("pRICEpecELL" & "FY18"),0) -> 0 | BE12: =IF($D12="Lamp",INDIRECT("FailurePECell" & "Annual"),0) -> 0 | BF12: =IF($D12="Lamp",INDIRECT("PriceMisc" & "FY18"),0) -> 0 | BG12: =IF($D12="Lamp",INDIRECT("FailureMisc" & "Annual"),0) -> 0 | BH12: =BB12*BC12+BD12*BE12+BF12*BG12 -> 0 | BJ12: =IF(AND($D12="Lamp"),INDIRECT("PriceEWP"&"FY18"),0) -> 0 | BK12: =AR12*AS12+AU12*AV12+AX12*AY12 -> 0 | BL12: =BJ12*BK12 -> 0 | BN12: =IF($D12="Connection",VLOOKUP(C12,'Input - General'!$F$51:$N$59,3,FALSE),0) -> 74.36233111 | BP12: =RateOverhead -> 0.2227618911 | BQ12: =BL12+AZ12+BH12+AO12+AE12+BN12 -> 74.36233111 | BR12: =BQ12*BP12 -> 16.5650935 | BT12: =CorporateOverheads -> 0.109307573 | BU12: =AE12+AO12+AZ12+BH12+BL12+BN12+BR12 -> 90.92742461 | BV12: =BU12*BT12 -> 9.939056103
B13: ='Input - Inventory'!B10 -> 2 | C13: ='Input - Inventory'!C10 -> OH | D13: ='Input - Inventory'!D10 -> Connection | E13: ='Input - Inventory'!E10 -> NonTraffic | F13: ='Input - Inventory'!F10 -> n/a | G13: ='Input - Inventory'!H10 -> 0 | I13: Connection - OH | K13: 0 | L13: =INDIRECT(L$10&$B13&"FY18") -> 196623 | M13: 0 | O13: =IF(AND($D13="Lamp", OR($F13=O$9, O$9="All")),IF('Input - Inventory'!G10="N",INDIRECT("PriceBulkTask1" & "FY18"),INDIRECT("PriceBulkTask1LED" & "FY18")),0) -> 0 | P13: =IF(AND($D13="Lamp",CycleBulkTask1<>0, OR($F13=O$9,O$9="All")),IF('Input - Inventory'!G10="N",1/CycleBulkTask1,1/CycleBulkTask1LED),0) -> 0 | Q13: =IF(AND($D13="Lamp", OR($F13=Q$9, Q$9="All")),IF('Input - Inventory'!G10="N",INDIRECT("PriceBulkTask2" & "FY18"),INDIRECT("PriceBulkTask2LED" & "FY18")),0) -> 0 | R13: =IF(AND($D13="Lamp",CycleBulkTask2<>0, OR($F13=Q$9,Q$9="All")),IF('Input - Inventory'!G10="N",1/CycleBulkTask2,1/CycleBulkTask2LED),0) -> 0 | S13: 0 | T13: 0 | U13: 0 | V13: 0 | W13: 0 | X13: 0 | Y13: 0 | Z13: 0 | AA13: 0 | AB13: 0 | AC13: 0 | AD13: 0 | AE13: =O13*P13+Q13*R13+S13*T13+U13*V13+W13*X13+Y13*Z13+AA13*AB13+AC13*AD13 -> 0 | AG13: 0 | AH13: 0 | AI13: 0 | AJ13: =T13 -> 0 | AK13: 0 | AL13: =V13 -> 0 | AM13: 0 | AN13: =X13+AB13 -> 0 | AO13: 0 | AQ13: 0 | AR13: 0 | AS13: 0 | AT13: 0 | AU13: 0 | AV13: 0 | AW13: 0 | AX13: 0 | AY13: 0 | AZ13: 0 | BB13: 0 | BC13: 0 | BD13: 0 | BE13: 0 | BF13: 0 | BG13: 0 | BH13: 0 | BJ13: 0 | BK13: 0 | BL13: 0 | BN13: =IF($D13="Connection",VLOOKUP(C13,'Input - General'!$F$51:$N$59,3,FALSE),0) -> 0 | BP13: 0.2227618911 | BQ13: 0 | BR13: 0 | BT13: 0.109307573 | BU13: 0 | BV13: 0
B14: ='Input - Inventory'!B11 -> 3 | C14: ='Input - Inventory'!C11 -> OH2 | D14: ='Input - Inventory'!D11 -> Connection | E14: ='Input - Inventory'!E11 -> NonTraffic | F14: ='Input - Inventory'!F11 -> n/a | G14: ='Input - Inventory'!H11 -> 0 | I14: Connection - OH2 | K14: 0 | L14: 718 | M14: 0 | O14: =IF(AND($D14="Lamp", OR($F14=O$9, O$9="All")),IF('Input - Inventory'!G11="N",INDIRECT("PriceBulkTask1" & "FY18"),INDIRECT("PriceBulkTask1LED" & "FY18")),0) -> 0 | P14: =IF(AND($D14="Lamp",CycleBulkTask1<>0, OR($F14=O$9,O$9="All")),IF('Input - Inventory'!G11="N",1/CycleBulkTask1,1/CycleBulkTask1LED),0) -> 0 | Q14: =IF(AND($D14="Lamp", OR($F14=Q$9, Q$9="All")),IF('Input - Inventory'!G11="N",INDIRECT("PriceBulkTask2" & "FY18"),INDIRECT("PriceBulkTask2LED" & "FY18")),0) -> 0 | R14: =IF(AND($D14="Lamp",CycleBulkTask2<>0, OR($F14=Q$9,Q$9="All")),IF('Input - Inventory'!G11="N",1/CycleBulkTask2,1/CycleBulkTask2LED),0) -> 0 | S14: 0 | T14: 0 | U14: 0 | V14: 0 | W14: 0 | X14: 0 | Y14: 0 | Z14: 0 | AA14: 0 | AB14: 0 | AC14: 0 | AD14: 0 | AE14: 0 | AG14: 0 | AH14: 0 | AI14: 0 | AJ14: 0 | AK14: 0 | AL14: 0 | AM14: 0 | AN14: 0 | AO14: 0 | AQ14: 0 | AR14: 0 | AS14: 0 | AT14: 0 | AU14: 0 | AV14: 0 | AW14: 0 | AX14: 0 | AY14: 0 | AZ14: 0 | BB14: 0 | BC14: 0 | BD14: 0 | BE14: 0 | BF14: 0 | BG14: 0 | BH14: 0 | BJ14: 0 | BK14: 0 | BL14: 0 | BN14: =IF($D14="Connection",VLOOKUP(C14,'Input - General'!$F$51:$N$59,3,FALSE),0) -> 0 | BP14: 0.2227618911 | BQ14: 0 | BR14: 0 | BT14: 0.109307573 | BU14: 0 | BV14: 0
B15: ='Input - Inventory'!B12 -> 4 | C15: ='Input - Inventory'!C12 -> OHS | D15: ='Input - Inventory'!D12 -> Connection | E15: ='Input - Inventory'!E12 -> NonTraffic | F15: ='Input - Inventory'!F12 -> n/a | G15: ='Input - Inventory'!H12 -> 0 | I15: Connection - OHS | K15: 0 | L15: 9 | M15: 0 | O15: =IF(AND($D15="Lamp", OR($F15=O$9, O$9="All")),IF('Input - Inventory'!G12="N",INDIRECT("PriceBulkTask1" & "FY18"),INDIRECT("PriceBulkTask1LED" & "FY18")),0) -> 0 | P15: =IF(AND($D15="Lamp",CycleBulkTask1<>0, OR($F15=O$9,O$9="All")),IF('Input - Inventory'!G12="N",1/CycleBulkTask1,1/CycleBulkTask1LED),0) -> 0 | Q15: =IF(AND($D15="Lamp", OR($F15=Q$9, Q$9="All")),IF('Input - Inventory'!G12="N",INDIRECT("PriceBulkTask2" & "FY18"),INDIRECT("PriceBulkTask2LED" & "FY18")),0) -> 0 | R15: =IF(AND($D15="Lamp",CycleBulkTask2<>0, OR($F15=Q$9,Q$9="All")),IF('Input - Inventory'!G12="N",1/CycleBulkTask2,1/CycleBulkTask2LED),0) -> 0 | S15: 0 | T15: 0 | U15: 0 | V15: 0 | W15: 0 | X15: 0 | Y15: 0 | Z15: 0 | AA15: 0 | AB15: 0 | AC15: 0 | AD15: 0 | AE15: 0 | AG15: 0 | AH15: 0 | AI15: 0 | AJ15: 0 | AK15: 0 | AL15: 0 | AM15: 0 | AN15: 0 | AO15: 0 | AQ15: 0 | AR15: 0 | AS15: 0 | AT15: 0 | AU15: 0 | AV15: 0 | AW15: 0 | AX15: 0 | AY15: 0 | AZ15: 0 | BB15: 0 | BC15: 0 | BD15: 0 | BE15: 0 | BF15: 0 | BG15: 0 | BH15: 0 | BJ15: 0 | BK15: 0 | BL15: 0 | BN15: =IF($D15="Connection",VLOOKUP(C15,'Input - General'!$F$51:$N$59,3,FALSE),0) -> 0 | BP15: 0.2227618911 | BQ15: 0 | BR15: 0 | BT15: 0.109307573 | BU15: 0 | BV15: 0
B16: ='Input - Inventory'!B13 -> 5 | C16: ='Input - Inventory'!C13 -> UG2 | D16: ='Input - Inventory'!D13 -> Connection | E16: ='Input - Inventory'!E13 -> NonTraffic | F16: ='Input - Inventory'!F13 -> n/a | G16: ='Input - Inventory'!H13 -> 0 | I16: Connection - UG2 | K16: 0 | L16: 1134 | M16: 0 | O16: =IF(AND($D16="Lamp", OR($F16=O$9, O$9="All")),IF('Input - Inventory'!G13="N",INDIRECT("PriceBulkTask1" & "FY18"),INDIRECT("PriceBulkTask1LED" & "FY18")),0) -> 0 | P16: =IF(AND($D16="Lamp",CycleBulkTask1<>0, OR($F16=O$9,O$9="All")),IF('Input - Inventory'!G13="N",1/CycleBulkTask1,1/CycleBulkTask1LED),0) -> 0 | Q16: =IF(AND($D16="Lamp", OR($F16=Q$9, Q$9="All")),IF('Input - Inventory'!G13="N",INDIRECT("PriceBulkTask2" & "FY18"),INDIRECT("PriceBulkTask2LED" & "FY18")),0) -> 0 | R16: =IF(AND($D16="Lamp",CycleBulkTask2<>0, OR($F16=Q$9,Q$9="All")),IF('Input - Inventory'!G13="N",1/CycleBulkTask2,1/CycleBulkTask2LED),0) -> 0 | S16: 0 | T16: 0 | U16: 0 | V16: 0 | W16: 0 | X16: 0 | Y16: 0 | Z16: 0 | AA16: 0 | AB16: 0 | AC16: 0 | AD16: 0 | AE16: 0 | AG16: 0 | AH16: 0 | AI16: 0 | AJ16: 0 | AK16: 0 | AL16: 0 | AM16: 0 | AN16: 0 | AO16: 0 | AQ16: 0 | AR16: 0 | AS16: 0 | AT16: 0 | AU16: 0 | AV16: 0 | AW16: 0 | AX16: 0 | AY16: 0 | AZ16: 0 | BB16: 0 | BC16: 0 | BD16: 0 | BE16: 0 | BF16: 0 | BG16: 0 | BH16: 0 | BJ16: 0 | BK16: 0 | BL16: 0 | BN16: =IF($D16="Connection",VLOOKUP(C16,'Input - General'!$F$51:$N$59,3,FALSE),0) -> 0 | BP16: 0.2227618911 | BQ16: 0 | BR16: 0 | BT16: 0.109307573 | BU16: 0 | BV16: 0
B17: ='Input - Inventory'!B14 -> 6 | C17: ='Input - Inventory'!C14 -> UGR1 | D17: ='Input - Inventory'!D14 -> Connection | E17: ='Input - Inventory'!E14 -> NonTraffic | F17: ='Input - Inventory'!F14 -> n/a | G17: ='Input - Inventory'!H14 -> 0 | I17: Connection - UGR1 | K17: 92.45860325 | L17: 31792 | M17: 2939443.915 | O17: =IF(AND($D17="Lamp", OR($F17=O$9, O$9="All")),IF('Input - Inventory'!G14="N",INDIRECT("PriceBulkTask1" & "FY18"),INDIRECT("PriceBulkTask1LED" & "FY18")),0) -> 0 | P17: =IF(AND($D17="Lamp",CycleBulkTask1<>0, OR($F17=O$9,O$9="All")),IF('Input - Inventory'!G14="N",1/CycleBulkTask1,1/CycleBulkTask1LED),0) -> 0 | Q17: =IF(AND($D17="Lamp", OR($F17=Q$9, Q$9="All")),IF('Input - Inventory'!G14="N",INDIRECT("PriceBulkTask2" & "FY18"),INDIRECT("PriceBulkTask2LED" & "FY18")),0) -> 0 | R17: =IF(AND($D17="Lamp",CycleBulkTask2<>0, OR($F17=Q$9,Q$9="All")),IF('Input - Inventory'!G14="N",1/CycleBulkTask2,1/CycleBulkTask2LED),0) -> 0 | S17: 0 | T17: 0 | U17: 0 | V17: 0 | W17: 0 | X17: 0 | Y17: 0 | Z17: 0 | AA17: 0 | AB17: 0 | AC17: 0 | AD17: 0 | AE17: 0 | AG17: 0 | AH17: 0 | AI17: 0 | AJ17: 0 | AK17: 0 | AL17: 0 | AM17: 0 | AN17: 0 | AO17: 0 | AQ17: 0 | AR17: 0 | AS17: 0 | AT17: 0 | AU17: 0 | AV17: 0 | AW17: 0 | AX17: 0 | AY17: 0 | AZ17: 0 | BB17: 0 | BC17: 0 | BD17: 0 | BE17: 0 | BF17: 0 | BG17: 0 | BH17: 0 | BJ17: 0 | BK17: 0 | BL17: 0 | BN17: =IF($D17="Connection",VLOOKUP(C17,'Input - General'!$F$51:$N$59,3,FALSE),0) -> 68.16374696 | BP17: 0.2227618911 | BQ17: 68.16374696 | BR17: 15.18428518 | BT17: 0.109307573 | BU17: 83.34803214 | BV17: 9.110571107
B18: ='Input - Inventory'!B15 -> 7 | C18: ='Input - Inventory'!C15 -> UGR2 | D18: ='Input - Inventory'!D15 -> Connection | E18: ='Input - Inventory'!E15 -> NonTraffic | F18: ='Input - Inventory'!F15 -> n/a | G18: ='Input - Inventory'!H15 -> 0 | I18: Connection - UGR2 | K18: 33.61715796 | L18: 20937 | M18: 703842.4361 | O18: =IF(AND($D18="Lamp", OR($F18=O$9, O$9="All")),IF('Input - Inventory'!G15="N",INDIRECT("PriceBulkTask1" & "FY18"),INDIRECT("PriceBulkTask1LED" & "FY18")),0) -> 0 | P18: =IF(AND($D18="Lamp",CycleBulkTask1<>0, OR($F18=O$9,O$9="All")),IF('Input - Inventory'!G15="N",1/CycleBulkTask1,1/CycleBulkTask1LED),0) -> 0 | Q18: =IF(AND($D18="Lamp", OR($F18=Q$9, Q$9="All")),IF('Input - Inventory'!G15="N",INDIRECT("PriceBulkTask2" & "FY18"),INDIRECT("PriceBulkTask2LED" & "FY18")),0) -> 0 | R18: =IF(AND($D18="Lamp",CycleBulkTask2<>0, OR($F18=Q$9,Q$9="All")),IF('Input - Inventory'!G15="N",1/CycleBulkTask2,1/CycleBulkTask2LED),0) -> 0 | S18: 0 | T18: 0 | U18: 0 | V18: 0 | W18: 0 | X18: 0 | Y18: 0 | Z18: 0 | AA18: 0 | AB18: 0 | AC18: 0 | AD18: 0 | AE18: 0 | AG18: 0 | AH18: 0 | AI18: 0 | AJ18: 0 | AK18: 0 | AL18: 0 | AM18: 0 | AN18: 0 | AO18: 0 | AQ18: 0 | AR18: 0 | AS18: 0 | AT18: 0 | AU18: 0 | AV18: 0 | AW18: 0 | AX18: 0 | AY18: 0 | AZ18: 0 | BB18: 0 | BC18: 0 | BD18: 0 | BE18: 0 | BF18: 0 | BG18: 0 | BH18: 0 | BJ18: 0 | BK18: 0 | BL18: 0 | BN18: =IF($D18="Connection",VLOOKUP(C18,'Input - General'!$F$51:$N$59,3,FALSE),0) -> 24.78375584 | BP18: 0.2227618911 | BQ18: 24.78375584 | BR18: 5.520876321 | BT18: 0.109307573 | BU18: 30.30463216 | BV18: 3.312525792
B19: ='Input - Inventory'!B16 -> 8 | C19: ='Input - Inventory'!C16 -> UGS | D19: ='Input - Inventory'!D16 -> Connection | E19: ='Input - Inventory'!E16 -> NonTraffic | F19: ='Input - Inventory'!F16 -> n/a | G19: ='Input - Inventory'!H16 -> 0 | I19: Connection - UGS | K19: 0 | L19: 108 | M19: 0 | O19: =IF(AND($D19="Lamp", OR($F19=O$9, O$9="All")),IF('Input - Inventory'!G16="N",INDIRECT("PriceBulkTask1" & "FY18"),INDIRECT("PriceBulkTask1LED" & "FY18")),0) -> 0 | P19: =IF(AND($D19="Lamp",CycleBulkTask1<>0, OR($F19=O$9,O$9="All")),IF('Input - Inventory'!G16="N",1/CycleBulkTask1,1/CycleBulkTask1LED),0) -> 0 | Q19: =IF(AND($D19="Lamp", OR($F19=Q$9, Q$9="All")),IF('Input - Inventory'!G16="N",INDIRECT("PriceBulkTask2" & "FY18"),INDIRECT("PriceBulkTask2LED" & "FY18")),0) -> 0 | R19: =IF(AND($D19="Lamp",CycleBulkTask2<>0, OR($F19=Q$9,Q$9="All")),IF('Input - Inventory'!G16="N",1/CycleBulkTask2,1/CycleBulkTask2LED),0) -> 0 | S19: 0 | T19: 0 | U19: 0 | V19: 0 | W19: 0 | X19: 0 | Y19: 0 | Z19: 0 | AA19: 0 | AB19: 0 | AC19: 0 | AD19: 0 | AE19: 0 | AG19: 0 | AH19: 0 | AI19: 0 | AJ19: 0 | AK19: 0 | AL19: 0 | AM19: 0 | AN19: 0 | AO19: 0 | AQ19: 0 | AR19: 0 | AS19: 0 | AT19: 0 | AU19: 0 | AV19: 0 | AW19: 0 | AX19: 0 | AY19: 0 | AZ19: 0 | BB19: 0 | BC19: 0 | BD19: 0 | BE19: 0 | BF19: 0 | BG19: 0 | BH19: 0 | BJ19: 0 | BK19: 0 | BL19: 0 | BN19: =IF($D19="Connection",VLOOKUP(C19,'Input - General'!$F$51:$N$59,3,FALSE),0) -> 0 | BP19: 0.2227618911 | BQ19: 0 | BR19: 0 | BT19: 0.109307573 | BU19: 0 | BV19: 0
B20: ='Input - Inventory'!B17 -> 9 | C20: ='Input - Inventory'!C17 -> UG-SP | D20: ='Input - Inventory'!D17 -> Connection | E20: ='Input - Inventory'!E17 -> NonTraffic | F20: ='Input - Inventory'!F17 -> n/a | G20: ='Input - Inventory'!H17 -> 0 | I20: Connection - UG-SP | K20: 0 | L20: 13 | M20: 0 | O20: =IF(AND($D20="Lamp", OR($F20=O$9, O$9="All")),IF('Input - Inventory'!G17="N",INDIRECT("PriceBulkTask1" & "FY18"),INDIRECT("PriceBulkTask1LED" & "FY18")),0) -> 0 | P20: =IF(AND($D20="Lamp",CycleBulkTask1<>0, OR($F20=O$9,O$9="All")),IF('Input - Inventory'!G17="N",1/CycleBulkTask1,1/CycleBulkTask1LED),0) -> 0 | Q20: =IF(AND($D20="Lamp", OR($F20=Q$9, Q$9="All")),IF('Input - Inventory'!G17="N",INDIRECT("PriceBulkTask2" & "FY18"),INDIRECT("PriceBulkTask2LED" & "FY18")),0) -> 0 | R20: =IF(AND($D20="Lamp",CycleBulkTask2<>0, OR($F20=Q$9,Q$9="All")),IF('Input - Inventory'!G17="N",1/CycleBulkTask2,1/CycleBulkTask2LED),0) -> 0 | S20: 0 | T20: 0 | U20: 0 | V20: 0 | W20: 0 | X20: 0 | Y20: 0 | Z20: 0 | AA20: 0 | AB20: 0 | AC20: 0 | AD20: 0 | AE20: 0 | AG20: 0 | AH20: 0 | AI20: 0 | AJ20: 0 | AK20: 0 | AL20: 0 | AM20: 0 | AN20: 0 | AO20: 0 | AQ20: 0 | AR20: 0 | AS20: 0 | AT20: 0 | AU20: 0 | AV20: 0 | AW20: 0 | AX20: 0 | AY20: 0 | AZ20: 0 | BB20: 0 | BC20: 0 | BD20: 0 | BE20: 0 | BF20: 0 | BG20: 0 | BH20: 0 | BJ20: 0 | BK20: 0 | BL20: 0 | BN20: =IF($D20="Connection",VLOOKUP(C20,'Input - General'!$F$51:$N$59,3,FALSE),0) -> 0 | BP20: 0.2227618911 | BQ20: 0 | BR20: 0 | BT20: 0.109307573 | BU20: 0 | BV20: 0
B21: ='Input - Inventory'!B18 -> 10 | C21: ='Input - Inventory'!C18 -> LED TRIAL | D21: ='Input - Inventory'!D18 -> Lamp | E21: ='Input - Inventory'!E18 -> NonTraffic | F21: ='Input - Inventory'!F18 -> Minor | G21: ='Input - Inventory'!H18 -> 1 | I21: Lamp - LED TRIAL | K21: 22.30590748 | L21: 67 | M21: 1494.495801 | O21: =IF(AND($D21="Lamp", OR($F21=O$9, O$9="All")),IF('Input - Inventory'!G18="N",INDIRECT("PriceBulkTask1" & "FY18"),INDIRECT("PriceBulkTask1LED" & "FY18")),0) -> 24.6719008 | P21: =IF(AND($D21="Lamp",CycleBulkTask1<>0, OR($F21=O$9,O$9="All")),IF('Input - Inventory'!G18="N",1/CycleBulkTask1,1/CycleBulkTask1LED),0) -> 0.1666666667 | Q21: =IF(AND($D21="Lamp", OR($F21=Q$9, Q$9="All")),IF('Input - Inventory'!G18="N",INDIRECT("PriceBulkTask2" & "FY18"),INDIRECT("PriceBulkTask2LED" & "FY18")),0) -> 0 | R21: =IF(AND($D21="Lamp",CycleBulkTask2<>0, OR($F21=Q$9,Q$9="All")),IF('Input - Inventory'!G18="N",1/CycleBulkTask2,1/CycleBulkTask2LED),0) -> 0 | S21: 11.48500442 | T21: 0.007123137293 | U21: 5.574180491 | V21: 0 | W21: 24.13954103 | X21: 0.005931168948 | Y21: 14.46149856 | Z21: 0.02002998353 | AA21: 40.19950453 | AB21: 0.01503682404 | AC21: 8290.488177 | AD21: 6.144166728e-05 | AE21: 5.740486297 | AG21: 0 | AH21: 0.1666666667 | AI21: 49.71973843 | AJ21: 0.007123137293 | AK21: 11.04255977 | AL21: 0 | AM21: 15 | AN21: 0.02096799299 | AO21: 0.6686804178 | AQ21: 85.56283983 | AR21: 0 | AS21: 1.513333333 | AT21: 85.56283983 | AU21: 0.0198285774 | AV21: =IF($D21="Lamp",(NumberOfCrew+INDIRECT($E21)*TrafficController)*(TimeForPECellReplace),0) -> 1.513333333 | AW21: 85.56283983 | AX21: 0.03256191236 | AY21: 1.513333333 | AZ21: 6.78378768 | BB21: 0 | BC21: 0 | BD21: 11.04255977 | BE21: 0.0198285774 | BF21: 15 | BG21: 0.03256191236 | BH21: 0.7073869364 | BJ21: 32.09162584 | BK21: 0.0792842745 | BL21: 2.544361272 | BN21: =IF($D21="Connection",VLOOKUP(C21,'Input - General'!$F$51:$N$59,3,FALSE),0) -> 0 | BP21: 0.2227618911 | BQ21: 16.4447026 | BR21: 3.663253051 | BT21: 0.109307573 | BU21: 20.10795565 | BV21: 2.19795183
B22: ='Input - Inventory'!B19 -> 11 | C22: ='Input - Inventory'!C19 -> LED1x100 | D22: ='Input - Inventory'!D19 -> Lamp | E22: ='Input - Inventory'!E19 -> Traffic | F22: ='Input - Inventory'!F19 -> Major | G22: ='Input - Inventory'!H19 -> 1 | I22: Lamp - LED1x100 | K22: 29.55175777 | L22: 6 | M22: 177.3105466 | O22: =IF(AND($D22="Lamp", OR($F22=O$9, O$9="All")),IF('Input - Inventory'!G19="N",INDIRECT("PriceBulkTask1" & "FY18"),INDIRECT("PriceBulkTask1LED" & "FY18")),0) -> 0 | P22: =IF(AND($D22="Lamp",CycleBulkTask1<>0, OR($F22=O$9,O$9="All")),IF('Input - Inventory'!G19="N",1/CycleBulkTask1,1/CycleBulkTask1LED),0) -> 0 | Q22: =IF(AND($D22="Lamp", OR($F22=Q$9, Q$9="All")),IF('Input - Inventory'!G19="N",INDIRECT("PriceBulkTask2" & "FY18"),INDIRECT("PriceBulkTask2LED" & "FY18")),0) -> 28.738834 | R22: =IF(AND($D22="Lamp",CycleBulkTask2<>0, OR($F22=Q$9,Q$9="All")),IF('Input - Inventory'!G19="N",1/CycleBulkTask2,1/CycleBulkTask2LED),0) -> 0.1666666667 | S22: 11.48500442 | T22: 0.007123137293 | U22: 5.574180491 | V22: 0 | W22: 24.13954103 | X22: 0.005931168948 | Y22: 14.46149856 | Z22: 0.02002998353 | AA22: 40.19950453 | AB22: 0.01503682404 | AC22: 8290.488177 | AD22: 6.144166728e-05 | AE22: 6.418308497 | AG22: 0 | AH22: 0.1666666667 | AI22: 49.71973843 | AJ22: 0.007123137293 | AK22: 11.04255977 | AL22: 0 | AM22: 15 | AN22: 0.02096799299 | AO22: 0.6686804178 | AQ22: 85.56283983 | AR22: 0 | AS22: 2.27 | AT22: 85.56283983 | AU22: 0.0198285774 | AV22: 2.27 | AW22: 85.56283983 | AX22: 0.03256191236 | AY22: 2.27 | AZ22: 10.17568152 | BB22: 0 | BC22: 0 | BD22: 11.04255977 | BE22: 0.0198285774 | BF22: 15 | BG22: 0.03256191236 | BH22: 0.7073869364 | BJ22: 32.09162584 | BK22: 0.1189264117 | BL22: 3.816541908 | BN22: =IF($D22="Connection",VLOOKUP(C22,'Input - General'!$F$51:$N$59,3,FALSE),0) -> 0 | BP22: 0.2227618911 | BQ22: 21.78659928 | BR22: 4.853224056 | BT22: 0.109307573 | BU22: 26.63982334 | BV22: 2.911934434
B23: ='Input - Inventory'!B20 -> 12 | C23: ='Input - Inventory'!C20 -> LED1x17 | D23: ='Input - Inventory'!D20 -> Lamp | E23: ='Input - Inventory'!E20 -> NonTraffic | F23: ='Input - Inventory'!F20 -> Minor | G23: ='Input - Inventory'!H20 -> 1 | I23: Lamp - LED1x17 | K23: 22.30590748 | L23: 2793 | M23: 62300.3996 | O23: =IF(AND($D23="Lamp", OR($F23=O$9, O$9="All")),IF('Input - Inventory'!G20="N",INDIRECT("PriceBulkTask1" & "FY18"),INDIRECT("PriceBulkTask1LED" & "FY18")),0) -> 24.6719008 | P23: =IF(AND($D23="Lamp",CycleBulkTask1<>0, OR($F23=O$9,O$9="All")),IF('Input - Inventory'!G20="N",1/CycleBulkTask1,1/CycleBulkTask1LED),0) -> 0.1666666667 | Q23: =IF(AND($D23="Lamp", OR($F23=Q$9, Q$9="All")),IF('Input - Inventory'!G20="N",INDIRECT("PriceBulkTask2" & "FY18"),INDIRECT("PriceBulkTask2LED" & "FY18")),0) -> 0 | R23: =IF(AND($D23="Lamp",CycleBulkTask2<>0, OR($F23=Q$9,Q$9="All")),IF('Input - Inventory'!G20="N",1/CycleBulkTask2,1/CycleBulkTask2LED),0) -> 0 | S23: 11.48500442 | T23: 0.007123137293 | U23: 5.574180491 | V23: 0 | W23: 24.13954103 | X23: 0.005931168948 | Y23: 14.46149856 | Z23: 0.02002998353 | AA23: 40.19950453 | AB23: 0.01503682404 | AC23: 8290.488177 | AD23: 6.144166728e-05 | AE23: 5.740486297 | AG23: 0 | AH23: 0.1666666667 | AI23: 49.71973843 | AJ23: 0.007123137293 | AK23: 11.04255977 | AL23: 0 | AM23: 15 | AN23: 0.02096799299 | AO23: 0.6686804178 | AQ23: 85.56283983 | AR23: 0 | AS23: 1.513333333 | AT23: 85.56283983 | AU23: 0.0198285774 | AV23: 1.513333333 | AW23: 85.56283983 | AX23: 0.03256191236 | AY23: 1.513333333 | AZ23: 6.78378768 | BB23: 0 | BC23: 0 | BD23: 11.04255977 | BE23: 0.0198285774 | BF23: 15 | BG23: 0.03256191236 | BH23: 0.7073869364 | BJ23: 32.09162584 | BK23: 0.0792842745 | BL23: 2.544361272 | BN23: =IF($D23="Connection",VLOOKUP(C23,'Input - General'!$F$51:$N$59,3,FALSE),0) -> 0 | BP23: 0.2227618911 | BQ23: 16.4447026 | BR23: 3.663253051 | BT23: 0.109307573 | BU23: 20.10795565 | BV23: 2.19795183
B24: ='Input - Inventory'!B21 -> 13 | C24: ='Input - Inventory'!C21 -> LED1x18 | D24: ='Input - Inventory'!D21 -> Lamp | E24: ='Input - Inventory'!E21 -> NonTraffic | F24: ='Input - Inventory'!F21 -> Minor | G24: ='Input - Inventory'!H21 -> 1 | I24: Lamp - LED1x18 | K24: 22.30590748 | L24: 0 | M24: 0 | O24: =IF(AND($D24="Lamp", OR($F24=O$9, O$9="All")),IF('Input - Inventory'!G21="N",INDIRECT("PriceBulkTask1" & "FY18"),INDIRECT("PriceBulkTask1LED" & "FY18")),0) -> 24.6719008 | P24: =IF(AND($D24="Lamp",CycleBulkTask1<>0, OR($F24=O$9,O$9="All")),IF('Input - Inventory'!G21="N",1/CycleBulkTask1,1/CycleBulkTask1LED),0) -> 0.1666666667 | Q24: =IF(AND($D24="Lamp", OR($F24=Q$9, Q$9="All")),IF('Input - Inventory'!G21="N",INDIRECT("PriceBulkTask2" & "FY18"),INDIRECT("PriceBulkTask2LED" & "FY18")),0) -> 0 | R24: =IF(AND($D24="Lamp",CycleBulkTask2<>0, OR($F24=Q$9,Q$9="All")),IF('Input - Inventory'!G21="N",1/CycleBulkTask2,1/CycleBulkTask2LED),0) -> 0 | S24: 11.48500442 | T24: 0.007123137293 | U24: 5.574180491 | V24: 0 | W24: 24.13954103 | X24: 0.005931168948 | Y24: 14.46149856 | Z24: 0.02002998353 | AA24: 40.19950453 | AB24: 0.01503682404 | AC24: 8290.488177 | AD24: 6.144166728e-05 | AE24: 5.740486297 | AG24: 0 | AH24: 0.1666666667 | AI24: 49.71973843 | AJ24: 0.007123137293 | AK24: 11.04255977 | AL24: 0 | AM24: 15 | AN24: 0.02096799299 | AO24: 0.6686804178 | AQ24: 85.56283983 | AR24: 0 | AS24: 1.513333333 | AT24: 85.56283983 | AU24: 0.0198285774 | AV24: 1.513333333 | AW24: 85.56283983 | AX24: 0.03256191236 | AY24: 1.513333333 | AZ24: 6.78378768 | BB24: 0 | BC24: 0 | BD24: 11.04255977 | BE24: 0.0198285774 | BF24: 15 | BG24: 0.03256191236 | BH24: 0.7073869364 | BJ24: 32.09162584 | BK24: 0.0792842745 | BL24: 2.544361272 | BN24: =IF($D24="Connection",VLOOKUP(C24,'Input - General'!$F$51:$N$59,3,FALSE),0) -> 0 | BP24: 0.2227618911 | BQ24: 16.4447026 | BR24: 3.663253051 | BT24: 0.109307573 | BU24: 20.10795565 | BV24: 2.19795183
B25: ='Input - Inventory'!B22 -> 14 | C25: ='Input - Inventory'!C22 -> LED1x20 | D25: ='Input - Inventory'!D22 -> Lamp | E25: ='Input - Inventory'!E22 -> NonTraffic | F25: ='Input - Inventory'!F22 -> Minor | G25: ='Input - Inventory'!H22 -> 1 | I25: Lamp - LED1x20 | K25: 22.30590748 | L25: 0 | M25: 0 | O25: =IF(AND($D25="Lamp", OR($F25=O$9, O$9="All")),IF('Input - Inventory'!G22="N",INDIRECT("PriceBulkTask1" & "FY18"),INDIRECT("PriceBulkTask1LED" & "FY18")),0) -> 24.6719008 | P25: =IF(AND($D25="Lamp",CycleBulkTask1<>0, OR($F25=O$9,O$9="All")),IF('Input - Inventory'!G22="N",1/CycleBulkTask1,1/CycleBulkTask1LED),0) -> 0.1666666667 | Q25: =IF(AND($D25="Lamp", OR($F25=Q$9, Q$9="All")),IF('Input - Inventory'!G22="N",INDIRECT("PriceBulkTask2" & "FY18"),INDIRECT("PriceBulkTask2LED" & "FY18")),0) -> 0 | R25: =IF(AND($D25="Lamp",CycleBulkTask2<>0, OR($F25=Q$9,Q$9="All")),IF('Input - Inventory'!G22="N",1/CycleBulkTask2,1/CycleBulkTask2LED),0) -> 0 | S25: 11.48500442 | T25: 0.007123137293 | U25: 5.574180491 | V25: 0 | W25: 24.13954103 | X25: 0.005931168948 | Y25: 14.46149856 | Z25: 0.02002998353 | AA25: 40.19950453 | AB25: 0.01503682404 | AC25: 8290.488177 | AD25: 6.144166728e-05 | AE25: 5.740486297 | AG25: 0 | AH25: 0.1666666667 | AI25: 49.71973843 | AJ25: 0.007123137293 | AK25: 11.04255977 | AL25: 0 | AM25: 15 | AN25: 0.02096799299 | AO25: 0.6686804178 | AQ25: 85.56283983 | AR25: 0 | AS25: 1.513333333 | AT25: 85.56283983 | AU25: 0.0198285774 | AV25: 1.513333333 | AW25: 85.56283983 | AX25: 0.03256191236 | AY25: 1.513333333 | AZ25: 6.78378768 | BB25: 0 | BC25: 0 | BD25: 11.04255977 | BE25: 0.0198285774 | BF25: 15 | BG25: 0.03256191236 | BH25: 0.7073869364 | BJ25: 32.09162584 | BK25: 0.0792842745 | BL25: 2.544361272 | BN25: =IF($D25="Connection",VLOOKUP(C25,'Input - General'!$F$51:$N$59,3,FALSE),0) -> 0 | BP25: 0.2227618911 | BQ25: 16.4447026 | BR25: 3.663253051 | BT25: 0.109307573 | BU25: 20.10795565 | BV25: 2.19795183
B26: ='Input - Inventory'!B23 -> 15 | C26: ='Input - Inventory'!C23 -> LED1x200 | D26: ='Input - Inventory'!D23 -> Lamp | E26: ='Input - Inventory'!E23 -> Traffic | F26: ='Input - Inventory'!F23 -> Major | G26: ='Input - Inventory'!H23 -> 1 | I26: Lamp - LED1x200 | K26: 29.55175777 | L26: 14 | M26: 413.7246088 | O26: =IF(AND($D26="Lamp", OR($F26=O$9, O$9="All")),IF('Input - Inventory'!G23="N",INDIRECT("PriceBulkTask1" & "FY18"),INDIRECT("PriceBulkTask1LED" & "FY18")),0) -> 0 | P26: =IF(AND($D26="Lamp",CycleBulkTask1<>0, OR($F26=O$9,O$9="All")),IF('Input - Inventory'!G23="N",1/CycleBulkTask1,1/CycleBulkTask1LED),0) -> 0 | Q26: =IF(AND($D26="Lamp", OR($F26=Q$9, Q$9="All")),IF('Input - Inventory'!G23="N",INDIRECT("PriceBulkTask2" & "FY18"),INDIRECT("PriceBulkTask2LED" & "FY18")),0) -> 28.738834 | R26: =IF(AND($D26="Lamp",CycleBulkTask2<>0, OR($F26=Q$9,Q$9="All")),IF('Input - Inventory'!G23="N",1/CycleBulkTask2,1/CycleBulkTask2LED),0) -> 0.1666666667 | S26: 11.48500442 | T26: 0.007123137293 | U26: 5.574180491 | V26: 0 | W26: 24.13954103 | X26: 0.005931168948 | Y26: 14.46149856 | Z26: 0.02002998353 | AA26: 40.19950453 | AB26: 0.01503682404 | AC26: 8290.488177 | AD26: 6.144166728e-05 | AE26: 6.418308497 | AG26: 0 | AH26: 0.1666666667 | AI26: 49.71973843 | AJ26: 0.007123137293 | AK26: 11.04255977 | AL26: 0 | AM26: 15 | AN26: 0.02096799299 | AO26: 0.6686804178 | AQ26: 85.56283983 | AR26: 0 | AS26: 2.27 | AT26: 85.56283983 | AU26: 0.0198285774 | AV26: 2.27 | AW26: 85.56283983 | AX26: 0.03256191236 | AY26: 2.27 | AZ26: 10.17568152 | BB26: 0 | BC26: 0 | BD26: 11.04255977 | BE26: 0.0198285774 | BF26: 15 | BG26: 0.03256191236 | BH26: 0.7073869364 | BJ26: 32.09162584 | BK26: 0.1189264117 | BL26: 3.816541908 | BN26: =IF($D26="Connection",VLOOKUP(C26,'Input - General'!$F$51:$N$59,3,FALSE),0) -> 0 | BP26: 0.2227618911 | BQ26: 21.78659928 | BR26: 4.853224056 | BT26: 0.109307573 | BU26: 26.63982334 | BV26: 2.911934434
B27: ='Input - Inventory'!B24 -> 16 | C27: ='Input - Inventory'!C24 -> LED1x22 | D27: ='Input - Inventory'!D24 -> Lamp | E27: ='Input - Inventory'!E24 -> NonTraffic | F27: ='Input - Inventory'!F24 -> Minor | G27: ='Input - Inventory'!H24 -> 1 | I27: Lamp - LED1x22 | K27: 22.30590748 | L27: 14394 | M27: 321071.2323 | O27: =IF(AND($D27="Lamp", OR($F27=O$9, O$9="All")),IF('Input - Inventory'!G24="N",INDIRECT("PriceBulkTask1" & "FY18"),INDIRECT("PriceBulkTask1LED" & "FY18")),0) -> 24.6719008 | P27: =IF(AND($D27="Lamp",CycleBulkTask1<>0, OR($F27=O$9,O$9="All")),IF('Input - Inventory'!G24="N",1/CycleBulkTask1,1/CycleBulkTask1LED),0) -> 0.1666666667 | Q27: =IF(AND($D27="Lamp", OR($F27=Q$9, Q$9="All")),IF('Input - Inventory'!G24="N",INDIRECT("PriceBulkTask2" & "FY18"),INDIRECT("PriceBulkTask2LED" & "FY18")),0) -> 0 | R27: =IF(AND($D27="Lamp",CycleBulkTask2<>0, OR($F27=Q$9,Q$9="All")),IF('Input - Inventory'!G24="N",1/CycleBulkTask2,1/CycleBulkTask2LED),0) -> 0 | S27: 11.48500442 | T27: 0.007123137293 | U27: 5.574180491 | V27: 0 | W27: 24.13954103 | X27: 0.005931168948 | Y27: 14.46149856 | Z27: 0.02002998353 | AA27: 40.19950453 | AB27: 0.01503682404 | AC27: 8290.488177 | AD27: 6.144166728e-05 | AE27: 5.740486297 | AG27: 0 | AH27: 0.1666666667 | AI27: 49.71973843 | AJ27: 0.007123137293 | AK27: 11.04255977 | AL27: 0 | AM27: 15 | AN27: 0.02096799299 | AO27: 0.6686804178 | AQ27: 85.56283983 | AR27: 0 | AS27: 1.513333333 | AT27: 85.56283983 | AU27: 0.0198285774 | AV27: 1.513333333 | AW27: 85.56283983 | AX27: 0.03256191236 | AY27: 1.513333333 | AZ27: 6.78378768 | BB27: 0 | BC27: 0 | BD27: 11.04255977 | BE27: 0.0198285774 | BF27: 15 | BG27: 0.03256191236 | BH27: 0.7073869364 | BJ27: 32.09162584 | BK27: 0.0792842745 | BL27: 2.544361272 | BN27: =IF($D27="Connection",VLOOKUP(C27,'Input - General'!$F$51:$N$59,3,FALSE),0) -> 0 | BP27: 0.2227618911 | BQ27: 16.4447026 | BR27: 3.663253051 | BT27: 0.109307573 | BU27: 20.10795565 | BV27: 2.19795183
B28: ='Input - Inventory'!B25 -> 17 | C28: ='Input - Inventory'!C25 -> LED1x25 GE | D28: ='Input - Inventory'!D25 -> Lamp | E28: ='Input - Inventory'!E25 -> NonTraffic | F28: ='Input - Inventory'!F25 -> Minor | G28: ='Input - Inventory'!H25 -> 1 | I28: Lamp - LED1x25 GE | K28: 22.30590748 | L28: 3665 | M28: 81751.15093 | O28: =IF(AND($D28="Lamp", OR($F28=O$9, O$9="All")),IF('Input - Inventory'!G25="N",INDIRECT("PriceBulkTask1" & "FY18"),INDIRECT("PriceBulkTask1LED" & "FY18")),0) -> 24.6719008 | P28: =IF(AND($D28="Lamp",CycleBulkTask1<>0, OR($F28=O$9,O$9="All")),IF('Input - Inventory'!G25="N",1/CycleBulkTask1,1/CycleBulkTask1LED),0) -> 0.1666666667 | Q28: =IF(AND($D28="Lamp", OR($F28=Q$9, Q$9="All")),IF('Input - Inventory'!G25="N",INDIRECT("PriceBulkTask2" & "FY18"),INDIRECT("PriceBulkTask2LED" & "FY18")),0) -> 0 | R28: =IF(AND($D28="Lamp",CycleBulkTask2<>0, OR($F28=Q$9,Q$9="All")),IF('Input - Inventory'!G25="N",1/CycleBulkTask2,1/CycleBulkTask2LED),0) -> 0 | S28: 11.48500442 | T28: 0.007123137293 | U28: 5.574180491 | V28: 0 | W28: 24.13954103 | X28: 0.005931168948 | Y28: 14.46149856 | Z28: 0.02002998353 | AA28: 40.19950453 | AB28: 0.01503682404 | AC28: 8290.488177 | AD28: 6.144166728e-05 | AE28: 5.740486297 | AG28: 0 | AH28: 0.1666666667 | AI28: 49.71973843 | AJ28: 0.007123137293 | AK28: 11.04255977 | AL28: 0 | AM28: 15 | AN28: 0.02096799299 | AO28: 0.6686804178 | AQ28: 85.56283983 | AR28: 0 | AS28: 1.513333333 | AT28: 85.56283983 | AU28: 0.0198285774 | AV28: 1.513333333 | AW28: 85.56283983 | AX28: 0.03256191236 | AY28: 1.513333333 | AZ28: 6.78378768 | BB28: 0 | BC28: 0 | BD28: 11.04255977 | BE28: 0.0198285774 | BF28: 15 | BG28: 0.03256191236 | BH28: 0.7073869364 | BJ28: 32.09162584 | BK28: 0.0792842745 | BL28: 2.544361272 | BN28: =IF($D28="Connection",VLOOKUP(C28,'Input - General'!$F$51:$N$59,3,FALSE),0) -> 0 | BP28: 0.2227618911 | BQ28: 16.4447026 | BR28: 3.663253051 | BT28: 0.109307573 | BU28: 20.10795565 | BV28: 2.19795183
B29: ='Input - Inventory'!B26 -> 18 | C29: ='Input - Inventory'!C26 -> LED1x28 | D29: ='Input - Inventory'!D26 -> Lamp | E29: ='Input - Inventory'!E26 -> NonTraffic | F29: ='Input - Inventory'!F26 -> Minor | G29: ='Input - Inventory'!H26 -> 1 | I29: Lamp - LED1x28 | K29: 22.30590748 | L29: 0 | M29: 0 | O29: =IF(AND($D29="Lamp", OR($F29=O$9, O$9="All")),IF('Input - Inventory'!G26="N",INDIRECT("PriceBulkTask1" & "FY18"),INDIRECT("PriceBulkTask1LED" & "FY18")),0) -> 24.6719008 | P29: =IF(AND($D29="Lamp",CycleBulkTask1<>0, OR($F29=O$9,O$9="All")),IF('Input - Inventory'!G26="N",1/CycleBulkTask1,1/CycleBulkTask1LED),0) -> 0.1666666667 | Q29: =IF(AND($D29="Lamp", OR($F29=Q$9, Q$9="All")),IF('Input - Inventory'!G26="N",INDIRECT("PriceBulkTask2" & "FY18"),INDIRECT("PriceBulkTask2LED" & "FY18")),0) -> 0 | R29: =IF(AND($D29="Lamp",CycleBulkTask2<>0, OR($F29=Q$9,Q$9="All")),IF('Input - Inventory'!G26="N",1/CycleBulkTask2,1/CycleBulkTask2LED),0) -> 0 | S29: 11.48500442 | T29: 0.007123137293 | U29: 5.574180491 | V29: 0 | W29: 24.13954103 | X29: 0.005931168948 | Y29: 14.46149856 | Z29: 0.02002998353 | AA29: 40.19950453 | AB29: 0.01503682404 | AC29: 8290.488177 | AD29: 6.144166728e-05 | AE29: 5.740486297 | AG29: 0 | AH29: 0.1666666667 | AI29: 49.71973843 | AJ29: 0.007123137293 | AK29: 11.04255977 | AL29: 0 | AM29: 15 | AN29: 0.02096799299 | AO29: 0.6686804178 | AQ29: 85.56283983 | AR29: 0 | AS29: 1.513333333 | AT29: 85.56283983 | AU29: 0.0198285774 | AV29: 1.513333333 | AW29: 85.56283983 | AX29: 0.03256191236 | AY29: 1.513333333 | AZ29: 6.78378768 | BB29: 0 | BC29: 0 | BD29: 11.04255977 | BE29: 0.0198285774 | BF29: 15 | BG29: 0.03256191236 | BH29: 0.7073869364 | BJ29: 32.09162584 | BK29: 0.0792842745 | BL29: 2.544361272 | BN29: =IF($D29="Connection",VLOOKUP(C29,'Input - General'!$F$51:$N$59,3,FALSE),0) -> 0 | BP29: 0.2227618911 | BQ29: 16.4447026 | BR29: 3.663253051 | BT29: 0.109307573 | BU29: 20.10795565 | BV29: 2.19795183
B30: ='Input - Inventory'!B27 -> 19 | C30: ='Input - Inventory'!C27 -> LED1x29 | D30: ='Input - Inventory'!D27 -> Lamp | E30: ='Input - Inventory'!E27 -> NonTraffic | F30: ='Input - Inventory'!F27 -> Minor | G30: ='Input - Inventory'!H27 -> 1 | I30: Lamp - LED1x29 | K30: 22.30590748 | L30: 15545 | M30: 346745.3318 | O30: =IF(AND($D30="Lamp", OR($F30=O$9, O$9="All")),IF('Input - Inventory'!G27="N",INDIRECT("PriceBulkTask1" & "FY18"),INDIRECT("PriceBulkTask1LED" & "FY18")),0) -> 24.6719008 | P30: =IF(AND($D30="Lamp",CycleBulkTask1<>0, OR($F30=O$9,O$9="All")),IF('Input - Inventory'!G27="N",1/CycleBulkTask1,1/CycleBulkTask1LED),0) -> 0.1666666667 | Q30: =IF(AND($D30="Lamp", OR($F30=Q$9, Q$9="All")),IF('Input - Inventory'!G27="N",INDIRECT("PriceBulkTask2" & "FY18"),INDIRECT("PriceBulkTask2LED" & "FY18")),0) -> 0 | R30: =IF(AND($D30="Lamp",CycleBulkTask2<>0, OR($F30=Q$9,Q$9="All")),IF('Input - Inventory'!G27="N",1/CycleBulkTask2,1/CycleBulkTask2LED),0) -> 0 | S30: 11.48500442 | T30: 0.007123137293 | U30: 5.574180491 | V30: 0 | W30: 24.13954103 | X30: 0.005931168948 | Y30: 14.46149856 | Z30: 0.02002998353 | AA30: 40.19950453 | AB30: 0.01503682404 | AC30: 8290.488177 | AD30: 6.144166728e-05 | AE30: 5.740486297 | AG30: 0 | AH30: 0.1666666667 | AI30: 49.71973843 | AJ30: 0.007123137293 | AK30: 11.04255977 | AL30: 0 | AM30: 15 | AN30: 0.02096799299 | AO30: 0.6686804178 | AQ30: 85.56283983 | AR30: 0 | AS30: 1.513333333 | AT30: 85.56283983 | AU30: 0.0198285774 | AV30: 1.513333333 | AW30: 85.56283983 | AX30: 0.03256191236 | AY30: 1.513333333 | AZ30: 6.78378768 | BB30: 0 | BC30: 0 | BD30: 11.04255977 | BE30: 0.0198285774 | BF30: 15 | BG30: 0.03256191236 | BH30: 0.7073869364 | BJ30: 32.09162584 | BK30: 0.0792842745 | BL30: 2.544361272 | BN30: =IF($D30="Connection",VLOOKUP(C30,'Input - General'!$F$51:$N$59,3,FALSE),0) -> 0 | BP30: 0.2227618911 | BQ30: 16.4447026 | BR30: 3.663253051 | BT30: 0.109307573 | BU30: 20.10795565 | BV30: 2.19795183
B31: ='Input - Inventory'!B28 -> 20 | C31: ='Input - Inventory'!C28 -> LED1x298 | D31: ='Input - Inventory'!D28 -> Lamp | E31: ='Input - Inventory'!E28 -> Traffic | F31: ='Input - Inventory'!F28 -> Major | G31: ='Input - Inventory'!H28 -> 1 | I31: Lamp - LED1x298 | K31: 29.55175777 | L31: 0 | M31: =L31*K31 -> 0 | O31: =IF(AND($D31="Lamp", OR($F31=O$9, O$9="All")),IF('Input - Inventory'!G28="N",INDIRECT("PriceBulkTask1" & "FY18"),INDIRECT("PriceBulkTask1LED" & "FY18")),0) -> 0 | P31: =IF(AND($D31="Lamp",CycleBulkTask1<>0, OR($F31=O$9,O$9="All")),IF('Input - Inventory'!G28="N",1/CycleBulkTask1,1/CycleBulkTask1LED),0) -> 0 | Q31: =IF(AND($D31="Lamp", OR($F31=Q$9, Q$9="All")),IF('Input - Inventory'!G28="N",INDIRECT("PriceBulkTask2" & "FY18"),INDIRECT("PriceBulkTask2LED" & "FY18")),0) -> 28.738834 | R31: =IF(AND($D31="Lamp",CycleBulkTask2<>0, OR($F31=Q$9,Q$9="All")),IF('Input - Inventory'!G28="N",1/CycleBulkTask2,1/CycleBulkTask2LED),0) -> 0.1666666667 | S31: 11.48500442 | T31: =IF(AND($D31="Lamp",CycleBulkTask3<>0, OR($F31=S$9,S$9="All")),1/CycleBulkTask3,0) -> 0.007123137293 | U31: 5.574180491 | V31: =IF(AND($D31="Lamp",CycleBulkTask4<>0, OR($F31=U$9,U$9="All")),1/CycleBulkTask4,0) -> 0 | W31: 24.13954103 | X31: =IF(AND($D31="Lamp",CycleBulkTask5<>0, OR($F31=W$9,W$9="All")),1/CycleBulkTask5,0) -> 0.005931168948 | Y31: 14.46149856 | Z31: =IF(AND($D31="Lamp",CycleBulkTask6<>0, OR($F31=Y$9,Y$9="All")),1/CycleBulkTask6,0) -> 0.02002998353 | AA31: 40.19950453 | AB31: =IF(AND($D31="Lamp",CycleBulkTask7<>0, OR($F31=AA$9,AA$9="All")),1/CycleBulkTask7,0) -> 0.01503682404 | AC31: 8290.488177 | AD31: =IF(AND($D31="Lamp",CycleBulkTask8<>0, OR($F31=AC$9,AC$9="All")),1/CycleBulkTask8,0) -> 6.144166728e-05 | AE31: 6.418308497 | AG31: 0 | AH31: 0.1666666667 | AI31: 49.71973843 | AJ31: 0.007123137293 | AK31: 11.04255977 | AL31: 0 | AM31: 15 | AN31: 0.02096799299 | AO31: =AG31*AH31+AI31*AJ31+AK31*AL31+AM31*AN31 -> 0.6686804178 | AQ31: 85.56283983 | AR31: =BC31 -> 0 | AS31: =IF($D31="Lamp",(NumberOfCrew+INDIRECT($E31)*TrafficController)*(TimeToReplaceLamp),0) -> 2.27 | AT31: 85.56283983 | AU31: =BE31 -> 0.0198285774 | AV31: =IF($D31="Lamp",(NumberOfCrew+INDIRECT($E31)*TrafficController)*(TimeForPECellReplace),0) -> 2.27 | AW31: 85.56283983 | AX31: =BG31 -> 0.03256191236 | AY31: =IF($D31="Lamp",(NumberOfCrew+INDIRECT($E31)*TrafficController)*(TimeForOtherSpot),0) -> 2.27 | AZ31: =AQ31*AR31*AS31+AT31*AU31*AV31+AW31*AX31*AY31 -> 10.17568152 | BB31: 0 | BC31: =IF($D31="Lamp",INDIRECT(BC$10 & $B31),0) -> 0 | BD31: 11.04255977 | BE31: =IF($D31="Lamp",INDIRECT("FailurePECell" & "Annual"),0) -> 0.0198285774 | BF31: 15 | BG31: =IF($D31="Lamp",INDIRECT("FailureMisc" & "Annual"),0) -> 0.03256191236 | BH31: =BB31*BC31+BD31*BE31+BF31*BG31 -> 0.7073869364 | BJ31: 32.09162584 | BK31: =AR31*AS31+AU31*AV31+AX31*AY31 -> 0.1189264117 | BL31: =BJ31*BK31 -> 3.816541908 | BN31: =IF($D31="Connection",VLOOKUP(C31,'Input - General'!$F$51:$N$59,3,FALSE),0) -> 0 | BP31: =RateOverhead -> 0.2227618911 | BQ31: =BL31+AZ31+BH31+AO31+AE31+BN31 -> 21.78659928 | BR31: =BQ31*BP31 -> 4.853224056 | BT31: =CorporateOverheads -> 0.109307573 | BU31: 26.63982334 | BV31: =BU31*BT31 -> 2.911934434
B32: ='Input - Inventory'!B29 -> 21 | C32: ='Input - Inventory'!C29 -> LED1x33 | D32: ='Input - Inventory'!D29 -> Lamp | E32: ='Input - Inventory'!E29 -> NonTraffic | F32: ='Input - Inventory'!F29 -> Minor | G32: ='Input - Inventory'!H29 -> 1 | I32: =CONCATENATE(D32," - ",C32) -> Lamp - LED1x33 | K32: =AE32+AO32+AZ32+BH32+BL32+BN32+BR32+BV32 -> 22.30590748 | L32: 0 | M32: 0 | O32: =IF(AND($D32="Lamp", OR($F32=O$9, O$9="All")),IF('Input - Inventory'!G29="N",INDIRECT("PriceBulkTask1" & "FY18"),INDIRECT("PriceBulkTask1LED" & "FY18")),0) -> 24.6719008 | P32: =IF(AND($D32="Lamp",CycleBulkTask1<>0, OR($F32=O$9,O$9="All")),IF('Input - Inventory'!G29="N",1/CycleBulkTask1,1/CycleBulkTask1LED),0) -> 0.1666666667 | Q32: =IF(AND($D32="Lamp", OR($F32=Q$9, Q$9="All")),IF('Input - Inventory'!G29="N",INDIRECT("PriceBulkTask2" & "FY18"),INDIRECT("PriceBulkTask2LED" & "FY18")),0) -> 0 | R32: =IF(AND($D32="Lamp",CycleBulkTask2<>0, OR($F32=Q$9,Q$9="All")),IF('Input - Inventory'!G29="N",1/CycleBulkTask2,1/CycleBulkTask2LED),0) -> 0 | S32: 11.48500442 | T32: 0.007123137293 | U32: 5.574180491 | V32: 0 | W32: 24.13954103 | X32: 0.005931168948 | Y32: 14.46149856 | Z32: 0.02002998353 | AA32: 40.19950453 | AB32: 0.01503682404 | AC32: 8290.488177 | AD32: 6.144166728e-05 | AE32: 5.740486297 | AG32: 0 | AH32: 0.1666666667 | AI32: 49.71973843 | AJ32: 0.007123137293 | AK32: 11.04255977 | AL32: 0 | AM32: 15 | AN32: 0.02096799299 | AO32: 0.6686804178 | AQ32: 85.56283983 | AR32: 0 | AS32: 1.513333333 | AT32: 85.56283983 | AU32: 0.0198285774 | AV32: 1.513333333 | AW32: 85.56283983 | AX32: 0.03256191236 | AY32: 1.513333333 | AZ32: 6.78378768 | BB32: 0 | BC32: 0 | BD32: 11.04255977 | BE32: 0.0198285774 | BF32: 15 | BG32: 0.03256191236 | BH32: 0.7073869364 | BJ32: 32.09162584 | BK32: 0.0792842745 | BL32: 2.544361272 | BN32: =IF($D32="Connection",VLOOKUP(C32,'Input - General'!$F$51:$N$59,3,FALSE),0) -> 0 | BP32: 0.2227618911 | BQ32: 16.4447026 | BR32: 3.663253051 | BT32: 0.109307573 | BU32: =AE32+AO32+AZ32+BH32+BL32+BN32+BR32 -> 20.10795565 | BV32: 2.19795183
B33: ='Input - Inventory'!B30 -> 22 | C33: ='Input - Inventory'!C30 -> LED1x42 | D33: ='Input - Inventory'!D30 -> Lamp | E33: ='Input - Inventory'!E30 -> NonTraffic | F33: ='Input - Inventory'!F30 -> Minor | G33: ='Input - Inventory'!H30 -> 1 | I33: Lamp - LED1x42 | K33: 22.30590748 | L33: 17 | M33: 379.2004272 | O33: =IF(AND($D33="Lamp", OR($F33=O$9, O$9="All")),IF('Input - Inventory'!G30="N",INDIRECT("PriceBulkTask1" & "FY18"),INDIRECT("PriceBulkTask1LED" & "FY18")),0) -> 24.6719008 | P33: =IF(AND($D33="Lamp",CycleBulkTask1<>0, OR($F33=O$9,O$9="All")),IF('Input - Inventory'!G30="N",1/CycleBulkTask1,1/CycleBulkTask1LED),0) -> 0.1666666667 | Q33: =IF(AND($D33="Lamp", OR($F33=Q$9, Q$9="All")),IF('Input - Inventory'!G30="N",INDIRECT("PriceBulkTask2" & "FY18"),INDIRECT("PriceBulkTask2LED" & "FY18")),0) -> 0 | R33: =IF(AND($D33="Lamp",CycleBulkTask2<>0, OR($F33=Q$9,Q$9="All")),IF('Input - Inventory'!G30="N",1/CycleBulkTask2,1/CycleBulkTask2LED),0) -> 0 | S33: 11.48500442 | T33: 0.007123137293 | U33: 5.574180491 | V33: 0 | W33: 24.13954103 | X33: 0.005931168948 | Y33: 14.46149856 | Z33: 0.02002998353 | AA33: 40.19950453 | AB33: 0.01503682404 | AC33: 8290.488177 | AD33: 6.144166728e-05 | AE33: 5.740486297 | AG33: 0 | AH33: 0.1666666667 | AI33: 49.71973843 | AJ33: 0.007123137293 | AK33: 11.04255977 | AL33: 0 | AM33: 15 | AN33: 0.02096799299 | AO33: 0.6686804178 | AQ33: 85.56283983 | AR33: 0 | AS33: 1.513333333 | AT33: 85.56283983 | AU33: 0.0198285774 | AV33: 1.513333333 | AW33: 85.56283983 | AX33: 0.03256191236 | AY33: 1.513333333 | AZ33: 6.78378768 | BB33: 0 | BC33: 0 | BD33: 11.04255977 | BE33: 0.0198285774 | BF33: 15 | BG33: 0.03256191236 | BH33: 0.7073869364 | BJ33: 32.09162584 | BK33: 0.0792842745 | BL33: 2.544361272 | BN33: =IF($D33="Connection",VLOOKUP(C33,'Input - General'!$F$51:$N$59,3,FALSE),0) -> 0 | BP33: 0.2227618911 | BQ33: 16.4447026 | BR33: 3.663253051 | BT33: 0.109307573 | BU33: 20.10795565 | BV33: 2.19795183
B34: ='Input - Inventory'!B31 -> 23 | C34: ='Input - Inventory'!C31 -> MBF1x1000 | D34: ='Input - Inventory'!D31 -> Lamp | E34: ='Input - Inventory'!E31 -> Traffic | F34: ='Input - Inventory'!F31 -> Major | G34: ='Input - Inventory'!H31 -> 1 | I34: Lamp - MBF1x1000 | K34: 74.22535572 | L34: 6 | M34: 445.3521343 | O34: =IF(AND($D34="Lamp", OR($F34=O$9, O$9="All")),IF('Input - Inventory'!G31="N",INDIRECT("PriceBulkTask1" & "FY18"),INDIRECT("PriceBulkTask1LED" & "FY18")),0) -> 0 | P34: =IF(AND($D34="Lamp",CycleBulkTask1<>0, OR($F34=O$9,O$9="All")),IF('Input - Inventory'!G31="N",1/CycleBulkTask1,1/CycleBulkTask1LED),0) -> 0 | Q34: =IF(AND($D34="Lamp", OR($F34=Q$9, Q$9="All")),IF('Input - Inventory'!G31="N",INDIRECT("PriceBulkTask2" & "FY18"),INDIRECT("PriceBulkTask2LED" & "FY18")),0) -> 28.738834 | R34: =IF(AND($D34="Lamp",CycleBulkTask2<>0, OR($F34=Q$9,Q$9="All")),IF('Input - Inventory'!G31="N",1/CycleBulkTask2,1/CycleBulkTask2LED),0) -> 0.25 | S34: 11.48500442 | T34: 0.007123137293 | U34: 5.574180491 | V34: 0 | W34: 24.13954103 | X34: 0.005931168948 | Y34: 14.46149856 | Z34: 0.02002998353 | AA34: 40.19950453 | AB34: 0.01503682404 | AC34: 8290.488177 | AD34: 6.144166728e-05 | AE34: 8.81321133 | AG34: 27.8 | AH34: 0.25 | AI34: 49.71973843 | AJ34: 0.007123137293 | AK34: 11.04255977 | AL34: 0 | AM34: 15 | AN34: 0.02096799299 | AO34: 7.618680418 | AQ34: 85.56283983 | AR34: 0.08 | AS34: 2.27 | AT34: 85.56283983 | AU34: 0.0198285774 | AV34: 2.27 | AW34: 85.56283983 | AX34: 0.03256191236 | AY34: 2.27 | AZ34: 25.71389323 | BB34: 27.8 | BC34: 0.08 | BD34: 11.04255977 | BE34: 0.0198285774 | BF34: 15 | BG34: 0.03256191236 | BH34: 2.931386936 | BJ34: 32.09162584 | BK34: 0.3005264117 | BL34: 9.644381159 | BN34: =IF($D34="Connection",VLOOKUP(C34,'Input - General'!$F$51:$N$59,3,FALSE),0) -> 0 | BP34: 0.2227618911 | BQ34: 54.72155308 | BR34: 12.18987665 | BT34: 0.109307573 | BU34: 66.91142973 | BV34: 7.313925989
B35: ='Input - Inventory'!B32 -> 24 | C35: ='Input - Inventory'!C32 -> MBF1x125 | D35: ='Input - Inventory'!D32 -> Lamp | E35: ='Input - Inventory'!E32 -> NonTraffic | F35: ='Input - Inventory'!F32 -> Minor | G35: ='Input - Inventory'!H32 -> 1 | I35: Lamp - MBF1x125 | K35: 39.27040695 | L35: 4462 | M35: 175224.5558 | O35: =IF(AND($D35="Lamp", OR($F35=O$9, O$9="All")),IF('Input - Inventory'!G32="N",INDIRECT("PriceBulkTask1" & "FY18"),INDIRECT("PriceBulkTask1LED" & "FY18")),0) -> 24.6719008 | P35: =IF(AND($D35="Lamp",CycleBulkTask1<>0, OR($F35=O$9,O$9="All")),IF('Input - Inventory'!G32="N",1/CycleBulkTask1,1/CycleBulkTask1LED),0) -> 0.25 | Q35: =IF(AND($D35="Lamp", OR($F35=Q$9, Q$9="All")),IF('Input - Inventory'!G32="N",INDIRECT("PriceBulkTask2" & "FY18"),INDIRECT("PriceBulkTask2LED" & "FY18")),0) -> 0 | R35: =IF(AND($D35="Lamp",CycleBulkTask2<>0, OR($F35=Q$9,Q$9="All")),IF('Input - Inventory'!G32="N",1/CycleBulkTask2,1/CycleBulkTask2LED),0) -> 0 | S35: 11.48500442 | T35: 0.007123137293 | U35: 5.574180491 | V35: 0 | W35: 24.13954103 | X35: 0.005931168948 | Y35: 14.46149856 | Z35: 0.02002998353 | AA35: 40.19950453 | AB35: 0.01503682404 | AC35: 8290.488177 | AD35: 6.144166728e-05 | AE35: 7.79647803 | AG35: 5.1 | AH35: 0.25 | AI35: 49.71973843 | AJ35: 0.007123137293 | AK35: 11.04255977 | AL35: 0 | AM35: 15 | AN35: 0.02096799299 | AO35: 1.943680418 | AQ35: 85.56283983 | AR35: 0.0501 | AS35: 1.513333333 | AT35: 85.56283983 | AU35: 0.0198285774 | AV35: 1.513333333 | AW35: 85.56283983 | AX35: 0.03256191236 | AY35: 1.513333333 | AZ35: 13.27099107 | BB35: 5.1 | BC35: 0.0501 | BD35: 11.04255977 | BE35: 0.0198285774 | BF35: 15 | BG35: 0.03256191236 | BH35: 0.9628969364 | BJ35: 32.09162584 | BK35: 0.1551022745 | BL35: 4.977484159 | BN35: =IF($D35="Connection",VLOOKUP(C35,'Input - General'!$F$51:$N$59,3,FALSE),0) -> 0 | BP35: 0.2227618911 | BQ35: 28.95153061 | BR35: 6.44929771 | BT35: 0.109307573 | BU35: 35.40082832 | BV35: 3.869578626
B36: ='Input - Inventory'!B33 -> 25 | C36: ='Input - Inventory'!C33 -> MBF1x250 | D36: ='Input - Inventory'!D33 -> Lamp | E36: ='Input - Inventory'!E33 -> Traffic | F36: ='Input - Inventory'!F33 -> Major | G36: ='Input - Inventory'!H33 -> 1 | I36: Lamp - MBF1x250 | K36: 53.18863738 | L36: 15031 | M36: 799478.4085 | O36: =IF(AND($D36="Lamp", OR($F36=O$9, O$9="All")),IF('Input - Inventory'!G33="N",INDIRECT("PriceBulkTask1" & "FY18"),INDIRECT("PriceBulkTask1LED" & "FY18")),0) -> 0 | P36: =IF(AND($D36="Lamp",CycleBulkTask1<>0, OR($F36=O$9,O$9="All")),IF('Input - Inventory'!G33="N",1/CycleBulkTask1,1/CycleBulkTask1LED),0) -> 0 | Q36: =IF(AND($D36="Lamp", OR($F36=Q$9, Q$9="All")),IF('Input - Inventory'!G33="N",INDIRECT("PriceBulkTask2" & "FY18"),INDIRECT("PriceBulkTask2LED" & "FY18")),0) -> 28.738834 | R36: =IF(AND($D36="Lamp",CycleBulkTask2<>0, OR($F36=Q$9,Q$9="All")),IF('Input - Inventory'!G33="N",1/CycleBulkTask2,1/CycleBulkTask2LED),0) -> 0.25 | S36: 11.48500442 | T36: 0.007123137293 | U36: 5.574180491 | V36: 0 | W36: 24.13954103 | X36: 0.005931168948 | Y36: 14.46149856 | Z36: 0.02002998353 | AA36: 40.19950453 | AB36: 0.01503682404 | AC36: 8290.488177 | AD36: 6.144166728e-05 | AE36: 8.81321133 | AG36: 5.5 | AH36: 0.25 | AI36: 49.71973843 | AJ36: 0.007123137293 | AK36: 11.04255977 | AL36: 0 | AM36: 15 | AN36: 0.02096799299 | AO36: 2.043680418 | AQ36: 85.56283983 | AR36: 0.0501 | AS36: 2.27 | AT36: 85.56283983 | AU36: 0.0198285774 | AV36: 2.27 | AW36: 85.56283983 | AX36: 0.03256191236 | AY36: 2.27 | AZ36: 19.90648661 | BB36: 5.5 | BC36: 0.0501 | BD36: 11.04255977 | BE36: 0.0198285774 | BF36: 15 | BG36: 0.03256191236 | BH36: 0.9829369364 | BJ36: 32.09162584 | BK36: 0.2326534117 | BL36: 7.466226239 | BN36: =IF($D36="Connection",VLOOKUP(C36,'Input - General'!$F$51:$N$59,3,FALSE),0) -> 0 | BP36: 0.2227618911 | BQ36: 39.21254153 | BR36: 8.735059907 | BT36: 0.109307573 | BU36: 47.94760144 | BV36: 5.241035944
B37: ='Input - Inventory'!B34 -> 26 | C37: ='Input - Inventory'!C34 -> MBF1x400 | D37: ='Input - Inventory'!D34 -> Lamp | E37: ='Input - Inventory'!E34 -> Traffic | F37: ='Input - Inventory'!F34 -> Major | G37: ='Input - Inventory'!H34 -> 1 | I37: Lamp - MBF1x400 | K37: 53.18863738 | L37: 5491 | M37: 292058.8079 | O37: =IF(AND($D37="Lamp", OR($F37=O$9, O$9="All")),IF('Input - Inventory'!G34="N",INDIRECT("PriceBulkTask1" & "FY18"),INDIRECT("PriceBulkTask1LED" & "FY18")),0) -> 0 | P37: =IF(AND($D37="Lamp",CycleBulkTask1<>0, OR($F37=O$9,O$9="All")),IF('Input - Inventory'!G34="N",1/CycleBulkTask1,1/CycleBulkTask1LED),0) -> 0 | Q37: =IF(AND($D37="Lamp", OR($F37=Q$9, Q$9="All")),IF('Input - Inventory'!G34="N",INDIRECT("PriceBulkTask2" & "FY18"),INDIRECT("PriceBulkTask2LED" & "FY18")),0) -> 28.738834 | R37: =IF(AND($D37="Lamp",CycleBulkTask2<>0, OR($F37=Q$9,Q$9="All")),IF('Input - Inventory'!G34="N",1/CycleBulkTask2,1/CycleBulkTask2LED),0) -> 0.25 | S37: 11.48500442 | T37: 0.007123137293 | U37: 5.574180491 | V37: 0 | W37: 24.13954103 | X37: 0.005931168948 | Y37: 14.46149856 | Z37: 0.02002998353 | AA37: 40.19950453 | AB37: 0.01503682404 | AC37: 8290.488177 | AD37: 6.144166728e-05 | AE37: 8.81321133 | AG37: 5.5 | AH37: 0.25 | AI37: 49.71973843 | AJ37: 0.007123137293 | AK37: 11.04255977 | AL37: 0 | AM37: 15 | AN37: 0.02096799299 | AO37: 2.043680418 | AQ37: 85.56283983 | AR37: 0.0501 | AS37: 2.27 | AT37: 85.56283983 | AU37: 0.0198285774 | AV37: 2.27 | AW37: 85.56283983 | AX37: 0.03256191236 | AY37: 2.27 | AZ37: 19.90648661 | BB37: 5.5 | BC37: 0.0501 | BD37: 11.04255977 | BE37: 0.0198285774 | BF37: 15 | BG37: 0.03256191236 | BH37: 0.9829369364 | BJ37: 32.09162584 | BK37: 0.2326534117 | BL37: 7.466226239 | BN37: =IF($D37="Connection",VLOOKUP(C37,'Input - General'!$F$51:$N$59,3,FALSE),0) -> 0 | BP37: 0.2227618911 | BQ37: 39.21254153 | BR37: 8.735059907 | BT37: 0.109307573 | BU37: 47.94760144 | BV37: 5.241035944
B38: ='Input - Inventory'!B35 -> 27 | C38: ='Input - Inventory'!C35 -> MBF1x42 | D38: ='Input - Inventory'!D35 -> Lamp | E38: ='Input - Inventory'!E35 -> NonTraffic | F38: ='Input - Inventory'!F35 -> Minor | G38: ='Input - Inventory'!H35 -> 1 | I38: Lamp - MBF1x42 | K38: 34.81968919 | L38: 42152 | M38: 1467719.539 | O38: =IF(AND($D38="Lamp", OR($F38=O$9, O$9="All")),IF('Input - Inventory'!G35="N",INDIRECT("PriceBulkTask1" & "FY18"),INDIRECT("PriceBulkTask1LED" & "FY18")),0) -> 24.6719008 | P38: =IF(AND($D38="Lamp",CycleBulkTask1<>0, OR($F38=O$9,O$9="All")),IF('Input - Inventory'!G35="N",1/CycleBulkTask1,1/CycleBulkTask1LED),0) -> 0.25 | Q38: =IF(AND($D38="Lamp", OR($F38=Q$9, Q$9="All")),IF('Input - Inventory'!G35="N",INDIRECT("PriceBulkTask2" & "FY18"),INDIRECT("PriceBulkTask2LED" & "FY18")),0) -> 0 | R38: =IF(AND($D38="Lamp",CycleBulkTask2<>0, OR($F38=Q$9,Q$9="All")),IF('Input - Inventory'!G35="N",1/CycleBulkTask2,1/CycleBulkTask2LED),0) -> 0 | S38: 11.48500442 | T38: 0.007123137293 | U38: 5.574180491 | V38: 0 | W38: 24.13954103 | X38: 0.005931168948 | Y38: 14.46149856 | Z38: 0.02002998353 | AA38: 40.19950453 | AB38: 0.01503682404 | AC38: 8290.488177 | AD38: 6.144166728e-05 | AE38: 7.79647803 | AG38: 3.1 | AH38: 0.25 | AI38: 49.71973843 | AJ38: 0.007123137293 | AK38: 11.04255977 | AL38: 0 | AM38: 15 | AN38: 0.02096799299 | AO38: 1.443680418 | AQ38: 85.56283983 | AR38: 0.0353 | AS38: 1.513333333 | AT38: 85.56283983 | AU38: 0.0198285774 | AV38: 1.513333333 | AW38: 85.56283983 | AX38: 0.03256191236 | AY38: 1.513333333 | AZ38: 11.35461163 | BB38: 3.1 | BC38: 0.0353 | BD38: 11.04255977 | BE38: 0.0198285774 | BF38: 15 | BG38: 0.03256191236 | BH38: 0.8168169364 | BJ38: 32.09162584 | BK38: 0.1327049412 | BL38: 4.258717318 | BN38: =IF($D38="Connection",VLOOKUP(C38,'Input - General'!$F$51:$N$59,3,FALSE),0) -> 0 | BP38: 0.2227618911 | BQ38: 25.67030433 | BR38: 5.718365538 | BT38: 0.109307573 | BU38: 31.38866987 | BV38: 3.431019323
B39: ='Input - Inventory'!B36 -> 28 | C39: ='Input - Inventory'!C36 -> MBF1x50 | D39: ='Input - Inventory'!D36 -> Lamp | E39: ='Input - Inventory'!E36 -> NonTraffic | F39: ='Input - Inventory'!F36 -> Minor | G39: ='Input - Inventory'!H36 -> 1 | I39: Lamp - MBF1x50 | K39: 39.41287842 | L39: 9467 | M39: 373121.72 | O39: =IF(AND($D39="Lamp", OR($F39=O$9, O$9="All")),IF('Input - Inventory'!G36="N",INDIRECT("PriceBulkTask1" & "FY18"),INDIRECT("PriceBulkTask1LED" & "FY18")),0) -> 24.6719008 | P39: =IF(AND($D39="Lamp",CycleBulkTask1<>0, OR($F39=O$9,O$9="All")),IF('Input - Inventory'!G36="N",1/CycleBulkTask1,1/CycleBulkTask1LED),0) -> 0.25 | Q39: =IF(AND($D39="Lamp", OR($F39=Q$9, Q$9="All")),IF('Input - Inventory'!G36="N",INDIRECT("PriceBulkTask2" & "FY18"),INDIRECT("PriceBulkTask2LED" & "FY18")),0) -> 0 | R39: =IF(AND($D39="Lamp",CycleBulkTask2<>0, OR($F39=Q$9,Q$9="All")),IF('Input - Inventory'!G36="N",1/CycleBulkTask2,1/CycleBulkTask2LED),0) -> 0 | S39: 11.48500442 | T39: 0.007123137293 | U39: 5.574180491 | V39: 0 | W39: 24.13954103 | X39: 0.005931168948 | Y39: 14.46149856 | Z39: 0.02002998353 | AA39: 40.19950453 | AB39: 0.01503682404 | AC39: 8290.488177 | AD39: 6.144166728e-05 | AE39: 7.79647803 | AG39: 5.45 | AH39: 0.25 | AI39: 49.71973843 | AJ39: 0.007123137293 | AK39: 11.04255977 | AL39: 0 | AM39: 15 | AN39: 0.02096799299 | AO39: 2.031180418 | AQ39: 85.56283983 | AR39: 0.0501 | AS39: 1.513333333 | AT39: 85.56283983 | AU39: 0.0198285774 | AV39: 1.513333333 | AW39: 85.56283983 | AX39: 0.03256191236 | AY39: 1.513333333 | AZ39: 13.27099107 | BB39: 5.45 | BC39: 0.0501 | BD39: 11.04255977 | BE39: 0.0198285774 | BF39: 15 | BG39: 0.03256191236 | BH39: 0.9804319364 | BJ39: 32.09162584 | BK39: 0.1551022745 | BL39: 4.977484159 | BN39: =IF($D39="Connection",VLOOKUP(C39,'Input - General'!$F$51:$N$59,3,FALSE),0) -> 0 | BP39: 0.2227618911 | BQ39: 29.05656561 | BR39: 6.472695506 | BT39: 0.109307573 | BU39: 35.52926112 | BV39: 3.883617303
B40: ='Input - Inventory'!B37 -> 29 | C40: ='Input - Inventory'!C37 -> MBF1x80 | D40: ='Input - Inventory'!D37 -> Lamp | E40: ='Input - Inventory'!E37 -> NonTraffic | F40: ='Input - Inventory'!F37 -> Minor | G40: ='Input - Inventory'!H37 -> 1 | I40: Lamp - MBF1x80 | K40: 37.32928683 | L40: 70228 | M40: 2621561.155 | O40: =IF(AND($D40="Lamp", OR($F40=O$9, O$9="All")),IF('Input - Inventory'!G37="N",INDIRECT("PriceBulkTask1" & "FY18"),INDIRECT("PriceBulkTask1LED" & "FY18")),0) -> 24.6719008 | P40: =IF(AND($D40="Lamp",CycleBulkTask1<>0, OR($F40=O$9,O$9="All")),IF('Input - Inventory'!G37="N",1/CycleBulkTask1,1/CycleBulkTask1LED),0) -> 0.25 | Q40: =IF(AND($D40="Lamp", OR($F40=Q$9, Q$9="All")),IF('Input - Inventory'!G37="N",INDIRECT("PriceBulkTask2" & "FY18"),INDIRECT("PriceBulkTask2LED" & "FY18")),0) -> 0 | R40: =IF(AND($D40="Lamp",CycleBulkTask2<>0, OR($F40=Q$9,Q$9="All")),IF('Input - Inventory'!G37="N",1/CycleBulkTask2,1/CycleBulkTask2LED),0) -> 0 | S40: 11.48500442 | T40: 0.007123137293 | U40: 5.574180491 | V40: 0 | W40: 24.13954103 | X40: 0.005931168948 | Y40: 14.46149856 | Z40: 0.02002998353 | AA40: 40.19950453 | AB40: 0.01503682404 | AC40: 8290.488177 | AD40: 6.144166728e-05 | AE40: 7.79647803 | AG40: 3.6 | AH40: 0.25 | AI40: 49.71973843 | AJ40: 0.007123137293 | AK40: 11.04255977 | AL40: 0 | AM40: 15 | AN40: 0.02096799299 | AO40: 1.568680418 | AQ40: 85.56283983 | AR40: 0.0447 | AS40: 1.513333333 | AT40: 85.56283983 | AU40: 0.0198285774 | AV40: 1.513333333 | AW40: 85.56283983 | AX40: 0.03256191236 | AY40: 1.513333333 | AZ40: 12.57177154 | BB40: 3.6 | BC40: 0.0447 | BD40: 11.04255977 | BE40: 0.0198285774 | BF40: 15 | BG40: 0.03256191236 | BH40: 0.8683069364 | BJ40: 32.09162584 | BK40: 0.1469302745 | BL40: 4.715231393 | BN40: =IF($D40="Connection",VLOOKUP(C40,'Input - General'!$F$51:$N$59,3,FALSE),0) -> 0 | BP40: 0.2227618911 | BQ40: 27.52046832 | BR40: 6.130511568 | BT40: 0.109307573 | BU40: 33.65097989 | BV40: 3.678306941
B41: ='Input - Inventory'!B38 -> 30 | C41: ='Input - Inventory'!C38 -> MBF2x80 | D41: ='Input - Inventory'!D38 -> Lamp | E41: ='Input - Inventory'!E38 -> NonTraffic | F41: ='Input - Inventory'!F38 -> Minor | G41: ='Input - Inventory'!H38 -> 2 | I41: Lamp - MBF2x80 | K41: 47.2477754 | L41: 16 | M41: 755.9644065 | O41: =IF(AND($D41="Lamp", OR($F41=O$9, O$9="All")),IF('Input - Inventory'!G38="N",INDIRECT("PriceBulkTask1" & "FY18"),INDIRECT("PriceBulkTask1LED" & "FY18")),0) -> 24.6719008 | P41: =IF(AND($D41="Lamp",CycleBulkTask1<>0, OR($F41=O$9,O$9="All")),IF('Input - Inventory'!G38="N",1/CycleBulkTask1,1/CycleBulkTask1LED),0) -> 0.25 | Q41: =IF(AND($D41="Lamp", OR($F41=Q$9, Q$9="All")),IF('Input - Inventory'!G38="N",INDIRECT("PriceBulkTask2" & "FY18"),INDIRECT("PriceBulkTask2LED" & "FY18")),0) -> 0 | R41: =IF(AND($D41="Lamp",CycleBulkTask2<>0, OR($F41=Q$9,Q$9="All")),IF('Input - Inventory'!G38="N",1/CycleBulkTask2,1/CycleBulkTask2LED),0) -> 0 | S41: 11.48500442 | T41: 0.007123137293 | U41: 5.574180491 | V41: 0 | W41: 24.13954103 | X41: 0.005931168948 | Y41: 14.46149856 | Z41: 0.02002998353 | AA41: 40.19950453 | AB41: 0.01503682404 | AC41: 8290.488177 | AD41: 6.144166728e-05 | AE41: 7.79647803 | AG41: 7.2 | AH41: 0.25 | AI41: 49.71973843 | AJ41: 0.007123137293 | AK41: 11.04255977 | AL41: 0 | AM41: 15 | AN41: 0.02096799299 | AO41: 2.468680418 | AQ41: 85.56283983 | AR41: 0.08 | AS41: 1.513333333 | AT41: 85.56283983 | AU41: 0.0198285774 | AV41: 1.513333333 | AW41: 85.56283983 | AX41: 0.03256191236 | AY41: 1.513333333 | AZ41: 17.14259549 | BB41: 3.6 | BC41: 0.08 | BD41: 11.04255977 | BE41: 0.0198285774 | BF41: 15 | BG41: 0.03256191236 | BH41: 0.9953869364 | BJ41: 32.09162584 | BK41: 0.2003509412 | BL41: 6.42958744 | BN41: =IF($D41="Connection",VLOOKUP(C41,'Input - General'!$F$51:$N$59,3,FALSE),0) -> 0 | BP41: 0.2227618911 | BQ41: 34.83272831 | BR41: 7.759404432 | BT41: 0.109307573 | BU41: 42.59213275 | BV41: 4.655642659
B42: ='Input - Inventory'!B39 -> 31 | C42: ='Input - Inventory'!C39 -> MBI1x100 | D42: ='Input - Inventory'!D39 -> Lamp | E42: ='Input - Inventory'!E39 -> Traffic | F42: ='Input - Inventory'!F39 -> Major | G42: ='Input - Inventory'!H39 -> 1 | I42: Lamp - MBI1x100 | K42: 52.94744718 | L42: 30 | M42: 1588.423415 | O42: =IF(AND($D42="Lamp", OR($F42=O$9, O$9="All")),IF('Input - Inventory'!G39="N",INDIRECT("PriceBulkTask1" & "FY18"),INDIRECT("PriceBulkTask1LED" & "FY18")),0) -> 0 | P42: =IF(AND($D42="Lamp",CycleBulkTask1<>0, OR($F42=O$9,O$9="All")),IF('Input - Inventory'!G39="N",1/CycleBulkTask1,1/CycleBulkTask1LED),0) -> 0 | Q42: =IF(AND($D42="Lamp", OR($F42=Q$9, Q$9="All")),IF('Input - Inventory'!G39="N",INDIRECT("PriceBulkTask2" & "FY18"),INDIRECT("PriceBulkTask2LED" & "FY18")),0) -> 28.738834 | R42: =IF(AND($D42="Lamp",CycleBulkTask2<>0, OR($F42=Q$9,Q$9="All")),IF('Input - Inventory'!G39="N",1/CycleBulkTask2,1/CycleBulkTask2LED),0) -> 0.25 | S42: 11.48500442 | T42: 0.007123137293 | U42: 5.574180491 | V42: 0 | W42: 24.13954103 | X42: 0.005931168948 | Y42: 14.46149856 | Z42: 0.02002998353 | AA42: 40.19950453 | AB42: 0.01503682404 | AC42: 8290.488177 | AD42: 6.144166728e-05 | AE42: 8.81321133 | AG42: 14.38 | AH42: 0.25 | AI42: 49.71973843 | AJ42: 0.007123137293 | AK42: 11.04255977 | AL42: 0 | AM42: 15 | AN42: 0.02096799299 | AO42: 4.263680418 | AQ42: 85.56283983 | AR42: 0.04 | AS42: 2.27 | AT42: 85.56283983 | AU42: 0.0198285774 | AV42: 2.27 | AW42: 85.56283983 | AX42: 0.03256191236 | AY42: 2.27 | AZ42: 17.94478738 | BB42: 14.38 | BC42: 0.04 | BD42: 11.04255977 | BE42: 0.0198285774 | BF42: 15 | BG42: 0.03256191236 | BH42: 1.282586936 | BJ42: 32.09162584 | BK42: 0.2097264117 | BL42: 6.730461534 | BN42: =IF($D42="Connection",VLOOKUP(C42,'Input - General'!$F$51:$N$59,3,FALSE),0) -> 0 | BP42: 0.2227618911 | BQ42: 39.0347276 | BR42: 8.695449738 | BT42: 0.109307573 | BU42: 47.73017733 | BV42: 5.217269843
B43: ='Input - Inventory'!B40 -> 32 | C43: ='Input - Inventory'!C40 -> MBI1x1000 | D43: ='Input - Inventory'!D40 -> Lamp | E43: ='Input - Inventory'!E40 -> Traffic | F43: ='Input - Inventory'!F40 -> Major | G43: ='Input - Inventory'!H40 -> 1 | I43: Lamp - MBI1x1000 | K43: 66.36894215 | L43: 13 | M43: 862.796248 | O43: =IF(AND($D43="Lamp", OR($F43=O$9, O$9="All")),IF('Input - Inventory'!G40="N",INDIRECT("PriceBulkTask1" & "FY18"),INDIRECT("PriceBulkTask1LED" & "FY18")),0) -> 0 | P43: =IF(AND($D43="Lamp",CycleBulkTask1<>0, OR($F43=O$9,O$9="All")),IF('Input - Inventory'!G40="N",1/CycleBulkTask1,1/CycleBulkTask1LED),0) -> 0 | Q43: =IF(AND($D43="Lamp", OR($F43=Q$9, Q$9="All")),IF('Input - Inventory'!G40="N",INDIRECT("PriceBulkTask2" & "FY18"),INDIRECT("PriceBulkTask2LED" & "FY18")),0) -> 28.738834 | R43: =IF(AND($D43="Lamp",CycleBulkTask2<>0, OR($F43=Q$9,Q$9="All")),IF('Input - Inventory'!G40="N",1/CycleBulkTask2,1/CycleBulkTask2LED),0) -> 0.25 | S43: 11.48500442 | T43: 0.007123137293 | U43: 5.574180491 | V43: 0 | W43: 24.13954103 | X43: 0.005931168948 | Y43: 14.46149856 | Z43: 0.02002998353 | AA43: 40.19950453 | AB43: 0.01503682404 | AC43: 8290.488177 | AD43: 6.144166728e-05 | AE43: 8.81321133 | AG43: 48.5 | AH43: 0.25 | AI43: 49.71973843 | AJ43: 0.007123137293 | AK43: 11.04255977 | AL43: 0 | AM43: 15 | AN43: 0.02096799299 | AO43: 12.79368042 | AQ43: 85.56283983 | AR43: 0.04 | AS43: 2.27 | AT43: 85.56283983 | AU43: 0.0198285774 | AV43: 2.27 | AW43: 85.56283983 | AX43: 0.03256191236 | AY43: 2.27 | AZ43: 17.94478738 | BB43: 48.5 | BC43: 0.04 | BD43: 11.04255977 | BE43: 0.0198285774 | BF43: 15 | BG43: 0.03256191236 | BH43: 2.647386936 | BJ43: 32.09162584 | BK43: 0.2097264117 | BL43: 6.730461534 | BN43: =IF($D43="Connection",VLOOKUP(C43,'Input - General'!$F$51:$N$59,3,FALSE),0) -> 0 | BP43: 0.2227618911 | BQ43: 48.9295276 | BR43: 10.8996341 | BT43: 0.109307573 | BU43: 59.82916169 | BV43: 6.539780459
B44: ='Input - Inventory'!B41 -> 33 | C44: ='Input - Inventory'!C41 -> MBI1x150 | D44: ='Input - Inventory'!D41 -> Lamp | E44: ='Input - Inventory'!E41 -> Traffic | F44: ='Input - Inventory'!F41 -> Major | G44: ='Input - Inventory'!H41 -> 1 | I44: Lamp - MBI1x150 | K44: 52.94744718 | L44: 4 | M44: 211.7897887 | O44: =IF(AND($D44="Lamp", OR($F44=O$9, O$9="All")),IF('Input - Inventory'!G41="N",INDIRECT("PriceBulkTask1" & "FY18"),INDIRECT("PriceBulkTask1LED" & "FY18")),0) -> 0 | P44: =IF(AND($D44="Lamp",CycleBulkTask1<>0, OR($F44=O$9,O$9="All")),IF('Input - Inventory'!G41="N",1/CycleBulkTask1,1/CycleBulkTask1LED),0) -> 0 | Q44: =IF(AND($D44="Lamp", OR($F44=Q$9, Q$9="All")),IF('Input - Inventory'!G41="N",INDIRECT("PriceBulkTask2" & "FY18"),INDIRECT("PriceBulkTask2LED" & "FY18")),0) -> 28.738834 | R44: =IF(AND($D44="Lamp",CycleBulkTask2<>0, OR($F44=Q$9,Q$9="All")),IF('Input - Inventory'!G41="N",1/CycleBulkTask2,1/CycleBulkTask2LED),0) -> 0.25 | S44: =IF(AND($D44="Lamp", OR($F44=S$9, S$9="All")),INDIRECT("PriceBulkTask3" & "FY18"),0) -> 11.48500442 | T44: 0.007123137293 | U44: =IF(AND($D44="Lamp", OR($F44=U$9, U$9="All")),INDIRECT("PriceBulkTask4" & "FY18"),0) -> 5.574180491 | V44: 0 | W44: =IF(AND($D44="Lamp", OR($F44=W$9, W$9="All")),INDIRECT("PriceBulkTask5" & "FY18"),0) -> 24.13954103 | X44: 0.005931168948 | Y44: =IF(AND($D44="Lamp", OR($F44=Y$9, Y$9="All")),INDIRECT("PriceBulkTask6" & "FY18"),0) -> 14.46149856 | Z44: 0.02002998353 | AA44: =IF(AND($D44="Lamp", OR($F44=AA$9, AA$9="All")),INDIRECT("PriceBulkTask7" & "FY18"),0) -> 40.19950453 | AB44: 0.01503682404 | AC44: =IF(AND($D44="Lamp", OR($F44=AC$9, AC$9="All")),INDIRECT("PriceBulkTask8" & "FY18"),0) -> 8290.488177 | AD44: 6.144166728e-05 | AE44: 8.81321133 | AG44: =IF($D44="Lamp",$G44*INDIRECT("Price" & $B44 & "FY18"),0) -> 14.38 | AH44: =MAX(P44,R44) -> 0.25 | AI44: =IF($D44="Lamp",INDIRECT("PriceVisor" & "FY18"),0) -> 49.71973843 | AJ44: 0.007123137293 | AK44: =IF($D44="Lamp",INDIRECT("PricePECell" & "FY18"),0) -> 11.04255977 | AL44: 0 | AM44: =IF($D44="Lamp",INDIRECT("PriceMisc" & "FY18"),0) -> 15 | AN44: 0.02096799299 | AO44: 4.263680418 | AQ44: =IF($D44=$AG$9,(INDIRECT("PriceLabour" & "FY18")*ProportionStandardHours + INDIRECT("PriceLabourOvertime" & "FY18")*ProportionOvertimeHours)*(1+RateOnCostAnnual),0) -> 85.56283983 | AR44: 0.04 | AS44: 2.27 | AT44: =IF($D44=$AG$9,(INDIRECT("PriceLabour" & "FY18")*ProportionStandardHours + INDIRECT("PriceLabourOvertime" & "FY18")*ProportionOvertimeHours)*(1+RateOnCostAnnual),0) -> 85.56283983 | AU44: 0.0198285774 | AV44: 2.27 | AW44: =IF($D44=$AG$9,(INDIRECT("PriceLabour" & "FY18")*ProportionStandardHours + INDIRECT("PriceLabourOvertime" & "FY18")*ProportionOvertimeHours)*(1+RateOnCostAnnual),0) -> 85.56283983 | AX44: 0.03256191236 | AY44: 2.27 | AZ44: 17.94478738 | BB44: =IF($D44="Lamp",INDIRECT("Price" & $B44 & "FY18"),0) -> 14.38 | BC44: 0.04 | BD44: =IF($D44="Lamp",INDIRECT("pRICEpecELL" & "FY18"),0) -> 11.04255977 | BE44: 0.0198285774 | BF44: =IF($D44="Lamp",INDIRECT("PriceMisc" & "FY18"),0) -> 15 | BG44: 0.03256191236 | BH44: 1.282586936 | BJ44: =IF(AND($D44="Lamp"),INDIRECT("PriceEWP"&"FY18"),0) -> 32.09162584 | BK44: 0.2097264117 | BL44: 6.730461534 | BN44: =IF($D44="Connection",VLOOKUP(C44,'Input - General'!$F$51:$N$59,3,FALSE),0) -> 0 | BP44: 0.2227618911 | BQ44: 39.0347276 | BR44: 8.695449738 | BT44: 0.109307573 | BU44: 47.73017733 | BV44: 5.217269843
B45: ='Input - Inventory'!B42 -> 34 | C45: ='Input - Inventory'!C42 -> MBI1x250 | D45: ='Input - Inventory'!D42 -> Lamp | E45: ='Input - Inventory'!E42 -> Traffic | F45: ='Input - Inventory'!F42 -> Major | G45: ='Input - Inventory'!H42 -> 1 | I45: Lamp - MBI1x250 | K45: 50.516473 | L45: 57 | M45: 2879.438961 | O45: =IF(AND($D45="Lamp", OR($F45=O$9, O$9="All")),IF('Input - Inventory'!G42="N",INDIRECT("PriceBulkTask1" & "FY18"),INDIRECT("PriceBulkTask1LED" & "FY18")),0) -> 0 | P45: =IF(AND($D45="Lamp",CycleBulkTask1<>0, OR($F45=O$9,O$9="All")),IF('Input - Inventory'!G42="N",1/CycleBulkTask1,1/CycleBulkTask1LED),0) -> 0 | Q45: =IF(AND($D45="Lamp", OR($F45=Q$9, Q$9="All")),IF('Input - Inventory'!G42="N",INDIRECT("PriceBulkTask2" & "FY18"),INDIRECT("PriceBulkTask2LED" & "FY18")),0) -> 28.738834 | R45: =IF(AND($D45="Lamp",CycleBulkTask2<>0, OR($F45=Q$9,Q$9="All")),IF('Input - Inventory'!G42="N",1/CycleBulkTask2,1/CycleBulkTask2LED),0) -> 0.25 | S45: 11.48500442 | T45: 0.007123137293 | U45: 5.574180491 | V45: 0 | W45: 24.13954103 | X45: 0.005931168948 | Y45: 14.46149856 | Z45: 0.02002998353 | AA45: 40.19950453 | AB45: 0.01503682404 | AC45: 8290.488177 | AD45: 6.144166728e-05 | AE45: 8.81321133 | AG45: 8.2 | AH45: 0.25 | AI45: 49.71973843 | AJ45: 0.007123137293 | AK45: 11.04255977 | AL45: 0 | AM45: 15 | AN45: 0.02096799299 | AO45: 2.718680418 | AQ45: 85.56283983 | AR45: 0.04 | AS45: 2.27 | AT45: 85.56283983 | AU45: 0.0198285774 | AV45: 2.27 | AW45: 85.56283983 | AX45: 0.03256191236 | AY45: 2.27 | AZ45: 17.94478738 | BB45: 8.2 | BC45: 0.04 | BD45: 11.04255977 | BE45: 0.0198285774 | BF45: 15 | BG45: 0.03256191236 | BH45: 1.035386936 | BJ45: 32.09162584 | BK45: 0.2097264117 | BL45: 6.730461534 | BN45: =IF($D45="Connection",VLOOKUP(C45,'Input - General'!$F$51:$N$59,3,FALSE),0) -> 0 | BP45: 0.2227618911 | BQ45: 37.2425276 | BR45: 8.296215877 | BT45: 0.109307573 | BU45: 45.53874347 | BV45: 4.977729526
B46: ='Input - Inventory'!B43 -> 35 | C46: ='Input - Inventory'!C43 -> MBI1x400 | D46: ='Input - Inventory'!D43 -> Lamp | E46: ='Input - Inventory'!E43 -> Traffic | F46: ='Input - Inventory'!F43 -> Major | G46: ='Input - Inventory'!H43 -> 1 | I46: Lamp - MBI1x400 | K46: 50.4378007 | L46: 128 | M46: 6456.038489 | O46: =IF(AND($D46="Lamp", OR($F46=O$9, O$9="All")),IF('Input - Inventory'!G43="N",INDIRECT("PriceBulkTask1" & "FY18"),INDIRECT("PriceBulkTask1LED" & "FY18")),0) -> 0 | P46: =IF(AND($D46="Lamp",CycleBulkTask1<>0, OR($F46=O$9,O$9="All")),IF('Input - Inventory'!G43="N",1/CycleBulkTask1,1/CycleBulkTask1LED),0) -> 0 | Q46: =IF(AND($D46="Lamp", OR($F46=Q$9, Q$9="All")),IF('Input - Inventory'!G43="N",INDIRECT("PriceBulkTask2" & "FY18"),INDIRECT("PriceBulkTask2LED" & "FY18")),0) -> 28.738834 | R46: =IF(AND($D46="Lamp",CycleBulkTask2<>0, OR($F46=Q$9,Q$9="All")),IF('Input - Inventory'!G43="N",1/CycleBulkTask2,1/CycleBulkTask2LED),0) -> 0.25 | S46: 11.48500442 | T46: 0.007123137293 | U46: 5.574180491 | V46: 0 | W46: 24.13954103 | X46: 0.005931168948 | Y46: 14.46149856 | Z46: 0.02002998353 | AA46: 40.19950453 | AB46: 0.01503682404 | AC46: 8290.488177 | AD46: 6.144166728e-05 | AE46: 8.81321133 | AG46: 8 | AH46: 0.25 | AI46: 49.71973843 | AJ46: 0.007123137293 | AK46: 11.04255977 | AL46: 0 | AM46: 15 | AN46: 0.02096799299 | AO46: 2.668680418 | AQ46: 85.56283983 | AR46: 0.04 | AS46: 2.27 | AT46: 85.56283983 | AU46: 0.0198285774 | AV46: 2.27 | AW46: 85.56283983 | AX46: 0.03256191236 | AY46: 2.27 | AZ46: 17.94478738 | BB46: 8 | BC46: 0.04 | BD46: 11.04255977 | BE46: 0.0198285774 | BF46: 15 | BG46: 0.03256191236 | BH46: 1.027386936 | BJ46: 32.09162584 | BK46: 0.2097264117 | BL46: 6.730461534 | BN46: =IF($D46="Connection",VLOOKUP(C46,'Input - General'!$F$51:$N$59,3,FALSE),0) -> 0 | BP46: 0.2227618911 | BQ46: 37.1845276 | BR46: 8.283295687 | BT46: 0.109307573 | BU46: 45.46782328 | BV46: 4.969977412
B47: ='Input - Inventory'!B44 -> 36 | C47: ='Input - Inventory'!C44 -> MBI1x70 | D47: ='Input - Inventory'!D44 -> Lamp | E47: ='Input - Inventory'!E44 -> NonTraffic | F47: ='Input - Inventory'!F44 -> Minor | G47: ='Input - Inventory'!H44 -> 1 | I47: Lamp - MBI1x70 | K47: 40.45887514 | L47: 291 | M47: 11773.53266 | O47: =IF(AND($D47="Lamp", OR($F47=O$9, O$9="All")),IF('Input - Inventory'!G44="N",INDIRECT("PriceBulkTask1" & "FY18"),INDIRECT("PriceBulkTask1LED" & "FY18")),0) -> 24.6719008 | P47: =IF(AND($D47="Lamp",CycleBulkTask1<>0, OR($F47=O$9,O$9="All")),IF('Input - Inventory'!G44="N",1/CycleBulkTask1,1/CycleBulkTask1LED),0) -> 0.25 | Q47: =IF(AND($D47="Lamp", OR($F47=Q$9, Q$9="All")),IF('Input - Inventory'!G44="N",INDIRECT("PriceBulkTask2" & "FY18"),INDIRECT("PriceBulkTask2LED" & "FY18")),0) -> 0 | R47: =IF(AND($D47="Lamp",CycleBulkTask2<>0, OR($F47=Q$9,Q$9="All")),IF('Input - Inventory'!G44="N",1/CycleBulkTask2,1/CycleBulkTask2LED),0) -> 0 | S47: 11.48500442 | T47: 0.007123137293 | U47: 5.574180491 | V47: 0 | W47: 24.13954103 | X47: 0.005931168948 | Y47: 14.46149856 | Z47: 0.02002998353 | AA47: 40.19950453 | AB47: 0.01503682404 | AC47: 8290.488177 | AD47: 6.144166728e-05 | AE47: 7.79647803 | AG47: 14.5 | AH47: 0.25 | AI47: 49.71973843 | AJ47: 0.007123137293 | AK47: 11.04255977 | AL47: 0 | AM47: 15 | AN47: 0.02096799299 | AO47: 4.293680418 | AQ47: 85.56283983 | AR47: 0.04 | AS47: 1.513333333 | AT47: 85.56283983 | AU47: 0.0198285774 | AV47: 1.513333333 | AW47: 85.56283983 | AX47: 0.03256191236 | AY47: 1.513333333 | AZ47: 11.96319158 | BB47: 14.5 | BC47: 0.04 | BD47: 11.04255977 | BE47: 0.0198285774 | BF47: 15 | BG47: 0.03256191236 | BH47: 1.287386936 | BJ47: 32.09162584 | BK47: 0.1398176078 | BL47: 4.486974356 | BN47: =IF($D47="Connection",VLOOKUP(C47,'Input - General'!$F$51:$N$59,3,FALSE),0) -> 0 | BP47: 0.2227618911 | BQ47: 29.82771132 | BR47: 6.644477382 | BT47: 0.109307573 | BU47: 36.47218871 | BV47: 3.986686429
B48: ='Input - Inventory'!B45 -> 37 | C48: ='Input - Inventory'!C45 -> MBI1x70 II | D48: ='Input - Inventory'!D45 -> Lamp | E48: ='Input - Inventory'!E45 -> NonTraffic | F48: ='Input - Inventory'!F45 -> Minor | G48: ='Input - Inventory'!H45 -> 1 | I48: Lamp - MBI1x70 II | K48: 57.57010115 | L48: 396 | M48: 22797.76005 | O48: =IF(AND($D48="Lamp", OR($F48=O$9, O$9="All")),IF('Input - Inventory'!G45="N",INDIRECT("PriceBulkTask1" & "FY18"),INDIRECT("PriceBulkTask1LED" & "FY18")),0) -> 24.6719008 | P48: =IF(AND($D48="Lamp",CycleBulkTask1<>0, OR($F48=O$9,O$9="All")),IF('Input - Inventory'!G45="N",1/CycleBulkTask1,1/CycleBulkTask1LED),0) -> 0.25 | Q48: =IF(AND($D48="Lamp", OR($F48=Q$9, Q$9="All")),IF('Input - Inventory'!G45="N",INDIRECT("PriceBulkTask2" & "FY18"),INDIRECT("PriceBulkTask2LED" & "FY18")),0) -> 0 | R48: =IF(AND($D48="Lamp",CycleBulkTask2<>0, OR($F48=Q$9,Q$9="All")),IF('Input - Inventory'!G45="N",1/CycleBulkTask2,1/CycleBulkTask2LED),0) -> 0 | S48: 11.48500442 | T48: 0.007123137293 | U48: 5.574180491 | V48: 0 | W48: 24.13954103 | X48: 0.005931168948 | Y48: 14.46149856 | Z48: 0.02002998353 | AA48: 40.19950453 | AB48: 0.01503682404 | AC48: 8290.488177 | AD48: 6.144166728e-05 | AE48: 7.79647803 | AG48: 58 | AH48: 0.25 | AI48: 49.71973843 | AJ48: 0.007123137293 | AK48: 11.04255977 | AL48: 0 | AM48: 15 | AN48: 0.02096799299 | AO48: 15.16868042 | AQ48: 85.56283983 | AR48: 0.04 | AS48: 1.513333333 | AT48: 85.56283983 | AU48: 0.0198285774 | AV48: 1.513333333 | AW48: 85.56283983 | AX48: 0.03256191236 | AY48: 1.513333333 | AZ48: 11.96319158 | BB48: 58 | BC48: 0.04 | BD48: 11.04255977 | BE48: 0.0198285774 | BF48: 15 | BG48: 0.03256191236 | BH48: 3.027386936 | BJ48: 32.09162584 | BK48: 0.1398176078 | BL48: 4.486974356 | BN48: =IF($D48="Connection",VLOOKUP(C48,'Input - General'!$F$51:$N$59,3,FALSE),0) -> 0 | BP48: 0.2227618911 | BQ48: 42.44271132 | BR48: 9.454618639 | BT48: 0.109307573 | BU48: 51.89732996 | BV48: 5.672771183
B49: ='Input - Inventory'!B46 -> 38 | C49: ='Input - Inventory'!C46 -> SON1x100 | D49: ='Input - Inventory'!D46 -> Lamp | E49: ='Input - Inventory'!E46 -> Traffic | F49: ='Input - Inventory'!F46 -> Major | G49: ='Input - Inventory'!H46 -> 1 | I49: Lamp - SON1x100 | K49: 62.07117533 | L49: 1424 | M49: 88389.35367 | O49: =IF(AND($D49="Lamp", OR($F49=O$9, O$9="All")),IF('Input - Inventory'!G46="N",INDIRECT("PriceBulkTask1" & "FY18"),INDIRECT("PriceBulkTask1LED" & "FY18")),0) -> 0 | P49: =IF(AND($D49="Lamp",CycleBulkTask1<>0, OR($F49=O$9,O$9="All")),IF('Input - Inventory'!G46="N",1/CycleBulkTask1,1/CycleBulkTask1LED),0) -> 0 | Q49: =IF(AND($D49="Lamp", OR($F49=Q$9, Q$9="All")),IF('Input - Inventory'!G46="N",INDIRECT("PriceBulkTask2" & "FY18"),INDIRECT("PriceBulkTask2LED" & "FY18")),0) -> 28.738834 | R49: =IF(AND($D49="Lamp",CycleBulkTask2<>0, OR($F49=Q$9,Q$9="All")),IF('Input - Inventory'!G46="N",1/CycleBulkTask2,1/CycleBulkTask2LED),0) -> 0.25 | S49: 11.48500442 | T49: 0.007123137293 | U49: 5.574180491 | V49: 0 | W49: 24.13954103 | X49: 0.005931168948 | Y49: 14.46149856 | Z49: 0.02002998353 | AA49: 40.19950453 | AB49: 0.01503682404 | AC49: 8290.488177 | AD49: 6.144166728e-05 | AE49: 8.81321133 | AG49: 13.23 | AH49: 0.25 | AI49: 49.71973843 | AJ49: 0.007123137293 | AK49: 11.04255977 | AL49: 0 | AM49: 15 | AN49: 0.02096799299 | AO49: 3.976180418 | AQ49: 85.56283983 | AR49: 0.06518620254 | AS49: 2.27 | AT49: 85.56283983 | AU49: 0.0198285774 | AV49: 2.27 | AW49: 85.56283983 | AX49: 0.03256191236 | AY49: 2.27 | AZ49: 22.83664422 | BB49: 13.23 | BC49: 0.06518620254 | BD49: 11.04255977 | BE49: 0.0198285774 | BF49: 15 | BG49: 0.03256191236 | BH49: 1.569800396 | BJ49: 32.09162584 | BK49: 0.2668990915 | BL49: 8.56522578 | BN49: =IF($D49="Connection",VLOOKUP(C49,'Input - General'!$F$51:$N$59,3,FALSE),0) -> 0 | BP49: 0.2227618911 | BQ49: 45.76106214 | BR49: 10.19382074 | BT49: 0.109307573 | BU49: 55.95488289 | BV49: 6.116292445
B50: ='Input - Inventory'!B47 -> 39 | C50: ='Input - Inventory'!C47 -> SON1x1000 | D50: ='Input - Inventory'!D47 -> Lamp | E50: ='Input - Inventory'!E47 -> Traffic | F50: ='Input - Inventory'!F47 -> Major | G50: ='Input - Inventory'!H47 -> 1 | I50: Lamp - SON1x1000 | K50: 68.3002082 | L50: 49 | M50: 3346.710202 | O50: =IF(AND($D50="Lamp", OR($F50=O$9, O$9="All")),IF('Input - Inventory'!G47="N",INDIRECT("PriceBulkTask1" & "FY18"),INDIRECT("PriceBulkTask1LED" & "FY18")),0) -> 0 | P50: =IF(AND($D50="Lamp",CycleBulkTask1<>0, OR($F50=O$9,O$9="All")),IF('Input - Inventory'!G47="N",1/CycleBulkTask1,1/CycleBulkTask1LED),0) -> 0 | Q50: =IF(AND($D50="Lamp", OR($F50=Q$9, Q$9="All")),IF('Input - Inventory'!G47="N",INDIRECT("PriceBulkTask2" & "FY18"),INDIRECT("PriceBulkTask2LED" & "FY18")),0) -> 28.738834 | R50: =IF(AND($D50="Lamp",CycleBulkTask2<>0, OR($F50=Q$9,Q$9="All")),IF('Input - Inventory'!G47="N",1/CycleBulkTask2,1/CycleBulkTask2LED),0) -> 0.25 | S50: 11.48500442 | T50: 0.007123137293 | U50: 5.574180491 | V50: 0 | W50: 24.13954103 | X50: 0.005931168948 | Y50: 14.46149856 | Z50: 0.02002998353 | AA50: 40.19950453 | AB50: 0.01503682404 | AC50: 8290.488177 | AD50: 6.144166728e-05 | AE50: 8.81321133 | AG50: 27.8 | AH50: 0.25 | AI50: 49.71973843 | AJ50: 0.007123137293 | AK50: 11.04255977 | AL50: 0 | AM50: 15 | AN50: 0.02096799299 | AO50: 7.618680418 | AQ50: 85.56283983 | AR50: 0.06518620254 | AS50: 2.27 | AT50: 85.56283983 | AU50: 0.0198285774 | AV50: 2.27 | AW50: 85.56283983 | AX50: 0.03256191236 | AY50: 2.27 | AZ50: 22.83664422 | BB50: 27.8 | BC50: 0.06518620254 | BD50: 11.04255977 | BE50: 0.0198285774 | BF50: 15 | BG50: 0.03256191236 | BH50: 2.519563367 | BJ50: 32.09162584 | BK50: 0.2668990915 | BL50: 8.56522578 | BN50: =IF($D50="Connection",VLOOKUP(C50,'Input - General'!$F$51:$N$59,3,FALSE),0) -> 0 | BP50: 0.2227618911 | BQ50: 50.35332511 | BR50: 11.21680193 | BT50: 0.109307573 | BU50: 61.57012704 | BV50: 6.730081156
B51: ='Input - Inventory'!B48 -> 40 | C51: ='Input - Inventory'!C48 -> SON1x150 | D51: ='Input - Inventory'!D48 -> Lamp | E51: ='Input - Inventory'!E48 -> Traffic | F51: ='Input - Inventory'!F48 -> Major | G51: ='Input - Inventory'!H48 -> 1 | I51: Lamp - SON1x150 | K51: 58.98017275 | L51: 19878 | M51: 1172407.874 | O51: =IF(AND($D51="Lamp", OR($F51=O$9, O$9="All")),IF('Input - Inventory'!G48="N",INDIRECT("PriceBulkTask1" & "FY18"),INDIRECT("PriceBulkTask1LED" & "FY18")),0) -> 0 | P51: =IF(AND($D51="Lamp",CycleBulkTask1<>0, OR($F51=O$9,O$9="All")),IF('Input - Inventory'!G48="N",1/CycleBulkTask1,1/CycleBulkTask1LED),0) -> 0 | Q51: =IF(AND($D51="Lamp", OR($F51=Q$9, Q$9="All")),IF('Input - Inventory'!G48="N",INDIRECT("PriceBulkTask2" & "FY18"),INDIRECT("PriceBulkTask2LED" & "FY18")),0) -> 28.738834 | R51: =IF(AND($D51="Lamp",CycleBulkTask2<>0, OR($F51=Q$9,Q$9="All")),IF('Input - Inventory'!G48="N",1/CycleBulkTask2,1/CycleBulkTask2LED),0) -> 0.25 | S51: 11.48500442 | T51: 0.007123137293 | U51: 5.574180491 | V51: 0 | W51: 24.13954103 | X51: 0.005931168948 | Y51: 14.46149856 | Z51: 0.02002998353 | AA51: 40.19950453 | AB51: 0.01503682404 | AC51: 8290.488177 | AD51: 6.144166728e-05 | AE51: 8.81321133 | AG51: 6 | AH51: 0.25 | AI51: 49.71973843 | AJ51: 0.007123137293 | AK51: 11.04255977 | AL51: 0 | AM51: 15 | AN51: 0.02096799299 | AO51: 2.168680418 | AQ51: 85.56283983 | AR51: 0.06518620254 | AS51: 2.27 | AT51: 85.56283983 | AU51: 0.0198285774 | AV51: 2.27 | AW51: 85.56283983 | AX51: 0.03256191236 | AY51: 2.27 | AZ51: 22.83664422 | BB51: 6 | BC51: 0.06518620254 | BD51: 11.04255977 | BE51: 0.0198285774 | BF51: 15 | BG51: 0.03256191236 | BH51: 1.098504152 | BJ51: 32.09162584 | BK51: 0.2668990915 | BL51: 8.56522578 | BN51: =IF($D51="Connection",VLOOKUP(C51,'Input - General'!$F$51:$N$59,3,FALSE),0) -> 0 | BP51: 0.2227618911 | BQ51: 43.4822659 | BR51: 9.686191782 | BT51: 0.109307573 | BU51: 53.16845768 | BV51: 5.811715069
B52: ='Input - Inventory'!B49 -> 41 | C52: ='Input - Inventory'!C49 -> SON1x150 AR | D52: ='Input - Inventory'!D49 -> Lamp | E52: ='Input - Inventory'!E49 -> Traffic | F52: ='Input - Inventory'!F49 -> Major | G52: ='Input - Inventory'!H49 -> 1 | I52: Lamp - SON1x150 AR | K52: 58.98017275 | L52: 2615 | M52: 154233.1517 | O52: =IF(AND($D52="Lamp", OR($F52=O$9, O$9="All")),IF('Input - Inventory'!G49="N",INDIRECT("PriceBulkTask1" & "FY18"),INDIRECT("PriceBulkTask1LED" & "FY18")),0) -> 0 | P52: =IF(AND($D52="Lamp",CycleBulkTask1<>0, OR($F52=O$9,O$9="All")),IF('Input - Inventory'!G49="N",1/CycleBulkTask1,1/CycleBulkTask1LED),0) -> 0 | Q52: =IF(AND($D52="Lamp", OR($F52=Q$9, Q$9="All")),IF('Input - Inventory'!G49="N",INDIRECT("PriceBulkTask2" & "FY18"),INDIRECT("PriceBulkTask2LED" & "FY18")),0) -> 28.738834 | R52: =IF(AND($D52="Lamp",CycleBulkTask2<>0, OR($F52=Q$9,Q$9="All")),IF('Input - Inventory'!G49="N",1/CycleBulkTask2,1/CycleBulkTask2LED),0) -> 0.25 | S52: 11.48500442 | T52: 0.007123137293 | U52: 5.574180491 | V52: 0 | W52: 24.13954103 | X52: 0.005931168948 | Y52: 14.46149856 | Z52: 0.02002998353 | AA52: 40.19950453 | AB52: 0.01503682404 | AC52: 8290.488177 | AD52: 6.144166728e-05 | AE52: 8.81321133 | AG52: 6 | AH52: 0.25 | AI52: 49.71973843 | AJ52: 0.007123137293 | AK52: 11.04255977 | AL52: 0 | AM52: 15 | AN52: 0.02096799299 | AO52: 2.168680418 | AQ52: 85.56283983 | AR52: 0.06518620254 | AS52: 2.27 | AT52: 85.56283983 | AU52: 0.0198285774 | AV52: 2.27 | AW52: 85.56283983 | AX52: 0.03256191236 | AY52: 2.27 | AZ52: 22.83664422 | BB52: 6 | BC52: 0.06518620254 | BD52: 11.04255977 | BE52: 0.0198285774 | BF52: 15 | BG52: 0.03256191236 | BH52: 1.098504152 | BJ52: 32.09162584 | BK52: 0.2668990915 | BL52: 8.56522578 | BN52: =IF($D52="Connection",VLOOKUP(C52,'Input - General'!$F$51:$N$59,3,FALSE),0) -> 0 | BP52: 0.2227618911 | BQ52: 43.4822659 | BR52: 9.686191782 | BT52: 0.109307573 | BU52: 53.16845768 | BV52: 5.811715069
B53: ='Input - Inventory'!B50 -> 42 | C53: ='Input - Inventory'!C50 -> SON1x250 | D53: ='Input - Inventory'!D50 -> Lamp | E53: ='Input - Inventory'!E50 -> Traffic | F53: ='Input - Inventory'!F50 -> Major | G53: ='Input - Inventory'!H50 -> 1 | I53: Lamp - SON1x250 | K53: 60.43375626 | L53: 24760 | M53: 1496339.805 | O53: =IF(AND($D53="Lamp", OR($F53=O$9, O$9="All")),IF('Input - Inventory'!G50="N",INDIRECT("PriceBulkTask1" & "FY18"),INDIRECT("PriceBulkTask1LED" & "FY18")),0) -> 0 | P53: =IF(AND($D53="Lamp",CycleBulkTask1<>0, OR($F53=O$9,O$9="All")),IF('Input - Inventory'!G50="N",1/CycleBulkTask1,1/CycleBulkTask1LED),0) -> 0 | Q53: =IF(AND($D53="Lamp", OR($F53=Q$9, Q$9="All")),IF('Input - Inventory'!G50="N",INDIRECT("PriceBulkTask2" & "FY18"),INDIRECT("PriceBulkTask2LED" & "FY18")),0) -> 28.738834 | R53: =IF(AND($D53="Lamp",CycleBulkTask2<>0, OR($F53=Q$9,Q$9="All")),IF('Input - Inventory'!G50="N",1/CycleBulkTask2,1/CycleBulkTask2LED),0) -> 0.25 | S53: 11.48500442 | T53: 0.007123137293 | U53: 5.574180491 | V53: 0 | W53: 24.13954103 | X53: 0.005931168948 | Y53: 14.46149856 | Z53: 0.02002998353 | AA53: 40.19950453 | AB53: 0.01503682404 | AC53: 8290.488177 | AD53: 6.144166728e-05 | AE53: 8.81321133 | AG53: 9.4 | AH53: 0.25 | AI53: 49.71973843 | AJ53: 0.007123137293 | AK53: 11.04255977 | AL53: 0 | AM53: 15 | AN53: 0.02096799299 | AO53: 3.018680418 | AQ53: 85.56283983 | AR53: 0.06518620254 | AS53: 2.27 | AT53: 85.56283983 | AU53: 0.0198285774 | AV53: 2.27 | AW53: 85.56283983 | AX53: 0.03256191236 | AY53: 2.27 | AZ53: 22.83664422 | BB53: 9.4 | BC53: 0.06518620254 | BD53: 11.04255977 | BE53: 0.0198285774 | BF53: 15 | BG53: 0.03256191236 | BH53: 1.32013724 | BJ53: 32.09162584 | BK53: 0.2668990915 | BL53: 8.56522578 | BN53: =IF($D53="Connection",VLOOKUP(C53,'Input - General'!$F$51:$N$59,3,FALSE),0) -> 0 | BP53: 0.2227618911 | BQ53: 44.55389899 | BR53: 9.924910795 | BT53: 0.109307573 | BU53: 54.47880978 | BV53: 5.954946477
B54: ='Input - Inventory'!B51 -> 43 | C54: ='Input - Inventory'!C51 -> SON1x250 AR | D54: ='Input - Inventory'!D51 -> Lamp | E54: ='Input - Inventory'!E51 -> Traffic | F54: ='Input - Inventory'!F51 -> Major | G54: ='Input - Inventory'!H51 -> 1 | I54: Lamp - SON1x250 AR | K54: 60.43375626 | L54: 3306 | M54: 199793.9982 | O54: =IF(AND($D54="Lamp", OR($F54=O$9, O$9="All")),IF('Input - Inventory'!G51="N",INDIRECT("PriceBulkTask1" & "FY18"),INDIRECT("PriceBulkTask1LED" & "FY18")),0) -> 0 | P54: =IF(AND($D54="Lamp",CycleBulkTask1<>0, OR($F54=O$9,O$9="All")),IF('Input - Inventory'!G51="N",1/CycleBulkTask1,1/CycleBulkTask1LED),0) -> 0 | Q54: =IF(AND($D54="Lamp", OR($F54=Q$9, Q$9="All")),IF('Input - Inventory'!G51="N",INDIRECT("PriceBulkTask2" & "FY18"),INDIRECT("PriceBulkTask2LED" & "FY18")),0) -> 28.738834 | R54: =IF(AND($D54="Lamp",CycleBulkTask2<>0, OR($F54=Q$9,Q$9="All")),IF('Input - Inventory'!G51="N",1/CycleBulkTask2,1/CycleBulkTask2LED),0) -> 0.25 | S54: 11.48500442 | T54: 0.007123137293 | U54: 5.574180491 | V54: 0 | W54: 24.13954103 | X54: 0.005931168948 | Y54: 14.46149856 | Z54: 0.02002998353 | AA54: 40.19950453 | AB54: 0.01503682404 | AC54: 8290.488177 | AD54: 6.144166728e-05 | AE54: 8.81321133 | AG54: 9.4 | AH54: 0.25 | AI54: 49.71973843 | AJ54: 0.007123137293 | AK54: 11.04255977 | AL54: 0 | AM54: 15 | AN54: 0.02096799299 | AO54: 3.018680418 | AQ54: 85.56283983 | AR54: 0.06518620254 | AS54: 2.27 | AT54: 85.56283983 | AU54: 0.0198285774 | AV54: 2.27 | AW54: 85.56283983 | AX54: 0.03256191236 | AY54: 2.27 | AZ54: 22.83664422 | BB54: 9.4 | BC54: 0.06518620254 | BD54: 11.04255977 | BE54: 0.0198285774 | BF54: 15 | BG54: 0.03256191236 | BH54: 1.32013724 | BJ54: 32.09162584 | BK54: 0.2668990915 | BL54: 8.56522578 | BN54: =IF($D54="Connection",VLOOKUP(C54,'Input - General'!$F$51:$N$59,3,FALSE),0) -> 0 | BP54: 0.2227618911 | BQ54: 44.55389899 | BR54: 9.924910795 | BT54: 0.109307573 | BU54: 54.47880978 | BV54: 5.954946477
B55: ='Input - Inventory'!B52 -> 44 | C55: ='Input - Inventory'!C52 -> SON1x400 | D55: ='Input - Inventory'!D52 -> Lamp | E55: ='Input - Inventory'!E52 -> Traffic | F55: ='Input - Inventory'!F52 -> Major | G55: ='Input - Inventory'!H52 -> 1 | I55: Lamp - SON1x400 | K55: 61.0750431 | L55: 2122 | M55: 129601.2415 | O55: =IF(AND($D55="Lamp", OR($F55=O$9, O$9="All")),IF('Input - Inventory'!G52="N",INDIRECT("PriceBulkTask1" & "FY18"),INDIRECT("PriceBulkTask1LED" & "FY18")),0) -> 0 | P55: =IF(AND($D55="Lamp",CycleBulkTask1<>0, OR($F55=O$9,O$9="All")),IF('Input - Inventory'!G52="N",1/CycleBulkTask1,1/CycleBulkTask1LED),0) -> 0 | Q55: =IF(AND($D55="Lamp", OR($F55=Q$9, Q$9="All")),IF('Input - Inventory'!G52="N",INDIRECT("PriceBulkTask2" & "FY18"),INDIRECT("PriceBulkTask2LED" & "FY18")),0) -> 28.738834 | R55: =IF(AND($D55="Lamp",CycleBulkTask2<>0, OR($F55=Q$9,Q$9="All")),IF('Input - Inventory'!G52="N",1/CycleBulkTask2,1/CycleBulkTask2LED),0) -> 0.25 | S55: 11.48500442 | T55: 0.007123137293 | U55: 5.574180491 | V55: 0 | W55: 24.13954103 | X55: 0.005931168948 | Y55: 14.46149856 | Z55: 0.02002998353 | AA55: 40.19950453 | AB55: 0.01503682404 | AC55: 8290.488177 | AD55: 6.144166728e-05 | AE55: 8.81321133 | AG55: 10.9 | AH55: 0.25 | AI55: 49.71973843 | AJ55: 0.007123137293 | AK55: 11.04255977 | AL55: 0 | AM55: 15 | AN55: 0.02096799299 | AO55: 3.393680418 | AQ55: 85.56283983 | AR55: 0.06518620254 | AS55: 2.27 | AT55: 85.56283983 | AU55: 0.0198285774 | AV55: 2.27 | AW55: 85.56283983 | AX55: 0.03256191236 | AY55: 2.27 | AZ55: 22.83664422 | BB55: 10.9 | BC55: 0.06518620254 | BD55: 11.04255977 | BE55: 0.0198285774 | BF55: 15 | BG55: 0.03256191236 | BH55: 1.417916544 | BJ55: 32.09162584 | BK55: 0.2668990915 | BL55: 8.56522578 | BN55: =IF($D55="Connection",VLOOKUP(C55,'Input - General'!$F$51:$N$59,3,FALSE),0) -> 0 | BP55: 0.2227618911 | BQ55: 45.02667829 | BR55: 10.03022801 | BT55: 0.109307573 | BU55: 55.0569063 | BV55: 6.018136804
B56: ='Input - Inventory'!B53 -> 45 | C56: ='Input - Inventory'!C53 -> SON1x400 AR | D56: ='Input - Inventory'!D53 -> Lamp | E56: ='Input - Inventory'!E53 -> Traffic | F56: ='Input - Inventory'!F53 -> Major | G56: ='Input - Inventory'!H53 -> 1 | I56: Lamp - SON1x400 AR | K56: 84.38575528 | L56: 332 | M56: 28016.07075 | O56: =IF(AND($D56="Lamp", OR($F56=O$9, O$9="All")),IF('Input - Inventory'!G53="N",INDIRECT("PriceBulkTask1" & "FY18"),INDIRECT("PriceBulkTask1LED" & "FY18")),0) -> 0 | P56: =IF(AND($D56="Lamp",CycleBulkTask1<>0, OR($F56=O$9,O$9="All")),IF('Input - Inventory'!G53="N",1/CycleBulkTask1,1/CycleBulkTask1LED),0) -> 0 | Q56: =IF(AND($D56="Lamp", OR($F56=Q$9, Q$9="All")),IF('Input - Inventory'!G53="N",INDIRECT("PriceBulkTask2" & "FY18"),INDIRECT("PriceBulkTask2LED" & "FY18")),0) -> 28.738834 | R56: =IF(AND($D56="Lamp",CycleBulkTask2<>0, OR($F56=Q$9,Q$9="All")),IF('Input - Inventory'!G53="N",1/CycleBulkTask2,1/CycleBulkTask2LED),0) -> 0.25 | S56: 11.48500442 | T56: 0.007123137293 | U56: 5.574180491 | V56: 0 | W56: 24.13954103 | X56: 0.005931168948 | Y56: 14.46149856 | Z56: 0.02002998353 | AA56: 40.19950453 | AB56: 0.01503682404 | AC56: 8290.488177 | AD56: 6.144166728e-05 | AE56: 8.81321133 | AG56: 10.9 | AH56: 0.25 | AI56: 49.71973843 | AJ56: 0.007123137293 | AK56: 11.04255977 | AL56: 0 | AM56: 140 | AN56: 0.125 | AO56: 20.57916052 | AQ56: 85.56283983 | AR56: 0.06518620254 | AS56: 2.27 | AT56: 85.56283983 | AU56: 0.0198285774 | AV56: 2.27 | AW56: 85.56283983 | AX56: 0.03256191236 | AY56: 2.27 | AZ56: 22.83664422 | BB56: 10.9 | BC56: 0.06518620254 | BD56: 11.04255977 | BE56: 0.0198285774 | BF56: 15 | BG56: 0.03256191236 | BH56: 1.417916544 | BJ56: 32.09162584 | BK56: 0.2668990915 | BL56: 8.56522578 | BN56: =IF($D56="Connection",VLOOKUP(C56,'Input - General'!$F$51:$N$59,3,FALSE),0) -> 0 | BP56: 0.2227618911 | BQ56: 62.2121584 | BR56: 13.85849805 | BT56: 0.109307573 | BU56: 76.07065645 | BV56: 8.315098833
B57: ='Input - Inventory'!B54 -> 46 | C57: ='Input - Inventory'!C54 -> SON1x50 | D57: ='Input - Inventory'!D54 -> Lamp | E57: ='Input - Inventory'!E54 -> NonTraffic | F57: ='Input - Inventory'!F54 -> Minor | G57: ='Input - Inventory'!H54 -> 1 | I57: Lamp - SON1x50 | K57: 45.13877477 | L57: 465 | M57: 20989.53027 | O57: =IF(AND($D57="Lamp", OR($F57=O$9, O$9="All")),IF('Input - Inventory'!G54="N",INDIRECT("PriceBulkTask1" & "FY18"),INDIRECT("PriceBulkTask1LED" & "FY18")),0) -> 24.6719008 | P57: =IF(AND($D57="Lamp",CycleBulkTask1<>0, OR($F57=O$9,O$9="All")),IF('Input - Inventory'!G54="N",1/CycleBulkTask1,1/CycleBulkTask1LED),0) -> 0.25 | Q57: =IF(AND($D57="Lamp", OR($F57=Q$9, Q$9="All")),IF('Input - Inventory'!G54="N",INDIRECT("PriceBulkTask2" & "FY18"),INDIRECT("PriceBulkTask2LED" & "FY18")),0) -> 0 | R57: =IF(AND($D57="Lamp",CycleBulkTask2<>0, OR($F57=Q$9,Q$9="All")),IF('Input - Inventory'!G54="N",1/CycleBulkTask2,1/CycleBulkTask2LED),0) -> 0 | S57: 11.48500442 | T57: 0.007123137293 | U57: 5.574180491 | V57: 0 | W57: 24.13954103 | X57: 0.005931168948 | Y57: 14.46149856 | Z57: 0.02002998353 | AA57: 40.19950453 | AB57: 0.01503682404 | AC57: 8290.488177 | AD57: 6.144166728e-05 | AE57: 7.79647803 | AG57: 10.06 | AH57: 0.25 | AI57: 49.71973843 | AJ57: 0.007123137293 | AK57: 11.04255977 | AL57: 0 | AM57: 15 | AN57: 0.02096799299 | AO57: 3.183680418 | AQ57: 85.56283983 | AR57: 0.06518620254 | AS57: 1.513333333 | AT57: 85.56283983 | AU57: 0.0198285774 | AV57: 1.513333333 | AW57: 85.56283983 | AX57: 0.03256191236 | AY57: 1.513333333 | AZ57: 15.22442948 | BB57: 10.06 | BC57: 0.06518620254 | BD57: 11.04255977 | BE57: 0.0198285774 | BF57: 15 | BG57: 0.03256191236 | BH57: 1.363160134 | BJ57: 32.09162584 | BK57: 0.1779327277 | BL57: 5.71015052 | BN57: =IF($D57="Connection",VLOOKUP(C57,'Input - General'!$F$51:$N$59,3,FALSE),0) -> 0 | BP57: 0.2227618911 | BQ57: 33.27789858 | BR57: 7.41304762 | BT57: 0.109307573 | BU57: 40.6909462 | BV57: 4.447828572
B58: ='Input - Inventory'!B55 -> 47 | C58: ='Input - Inventory'!C55 -> SON1x600 | D58: ='Input - Inventory'!D55 -> Lamp | E58: ='Input - Inventory'!E55 -> Traffic | F58: ='Input - Inventory'!F55 -> Major | G58: ='Input - Inventory'!H55 -> 1 | I58: Lamp - SON1x600 | K58: 68.3002082 | L58: 1 | M58: 68.3002082 | O58: =IF(AND($D58="Lamp", OR($F58=O$9, O$9="All")),IF('Input - Inventory'!G55="N",INDIRECT("PriceBulkTask1" & "FY18"),INDIRECT("PriceBulkTask1LED" & "FY18")),0) -> 0 | P58: =IF(AND($D58="Lamp",CycleBulkTask1<>0, OR($F58=O$9,O$9="All")),IF('Input - Inventory'!G55="N",1/CycleBulkTask1,1/CycleBulkTask1LED),0) -> 0 | Q58: =IF(AND($D58="Lamp", OR($F58=Q$9, Q$9="All")),IF('Input - Inventory'!G55="N",INDIRECT("PriceBulkTask2" & "FY18"),INDIRECT("PriceBulkTask2LED" & "FY18")),0) -> 28.738834 | R58: =IF(AND($D58="Lamp",CycleBulkTask2<>0, OR($F58=Q$9,Q$9="All")),IF('Input - Inventory'!G55="N",1/CycleBulkTask2,1/CycleBulkTask2LED),0) -> 0.25 | S58: 11.48500442 | T58: 0.007123137293 | U58: 5.574180491 | V58: 0 | W58: 24.13954103 | X58: 0.005931168948 | Y58: 14.46149856 | Z58: 0.02002998353 | AA58: 40.19950453 | AB58: 0.01503682404 | AC58: 8290.488177 | AD58: 6.144166728e-05 | AE58: 8.81321133 | AG58: 27.8 | AH58: 0.25 | AI58: 49.71973843 | AJ58: 0.007123137293 | AK58: 11.04255977 | AL58: 0 | AM58: 15 | AN58: 0.02096799299 | AO58: 7.618680418 | AQ58: 85.56283983 | AR58: 0.06518620254 | AS58: 2.27 | AT58: 85.56283983 | AU58: 0.0198285774 | AV58: 2.27 | AW58: 85.56283983 | AX58: 0.03256191236 | AY58: 2.27 | AZ58: 22.83664422 | BB58: 27.8 | BC58: 0.06518620254 | BD58: 11.04255977 | BE58: 0.0198285774 | BF58: 15 | BG58: 0.03256191236 | BH58: 2.519563367 | BJ58: 32.09162584 | BK58: 0.2668990915 | BL58: 8.56522578 | BN58: =IF($D58="Connection",VLOOKUP(C58,'Input - General'!$F$51:$N$59,3,FALSE),0) -> 0 | BP58: 0.2227618911 | BQ58: 50.35332511 | BR58: 11.21680193 | BT58: 0.109307573 | BU58: 61.57012704 | BV58: 6.730081156
B59: ='Input - Inventory'!B56 -> 48 | C59: ='Input - Inventory'!C56 -> SON1x70 | D59: ='Input - Inventory'!D56 -> Lamp | E59: ='Input - Inventory'!E56 -> NonTraffic | F59: ='Input - Inventory'!F56 -> Minor | G59: ='Input - Inventory'!H56 -> 1 | I59: Lamp - SON1x70 | K59: 43.53128242 | L59: 2005 | M59: 87280.22125 | O59: =IF(AND($D59="Lamp", OR($F59=O$9, O$9="All")),IF('Input - Inventory'!G56="N",INDIRECT("PriceBulkTask1" & "FY18"),INDIRECT("PriceBulkTask1LED" & "FY18")),0) -> 24.6719008 | P59: =IF(AND($D59="Lamp",CycleBulkTask1<>0, OR($F59=O$9,O$9="All")),IF('Input - Inventory'!G56="N",1/CycleBulkTask1,1/CycleBulkTask1LED),0) -> 0.25 | Q59: =IF(AND($D59="Lamp", OR($F59=Q$9, Q$9="All")),IF('Input - Inventory'!G56="N",INDIRECT("PriceBulkTask2" & "FY18"),INDIRECT("PriceBulkTask2LED" & "FY18")),0) -> 0 | R59: =IF(AND($D59="Lamp",CycleBulkTask2<>0, OR($F59=Q$9,Q$9="All")),IF('Input - Inventory'!G56="N",1/CycleBulkTask2,1/CycleBulkTask2LED),0) -> 0 | S59: 11.48500442 | T59: 0.007123137293 | U59: 5.574180491 | V59: 0 | W59: 24.13954103 | X59: 0.005931168948 | Y59: 14.46149856 | Z59: 0.02002998353 | AA59: 40.19950453 | AB59: 0.01503682404 | AC59: 8290.488177 | AD59: 6.144166728e-05 | AE59: 7.79647803 | AG59: 6.3 | AH59: 0.25 | AI59: 49.71973843 | AJ59: 0.007123137293 | AK59: 11.04255977 | AL59: 0 | AM59: 15 | AN59: 0.02096799299 | AO59: 2.243680418 | AQ59: 85.56283983 | AR59: 0.06518620254 | AS59: 1.513333333 | AT59: 85.56283983 | AU59: 0.0198285774 | AV59: 1.513333333 | AW59: 85.56283983 | AX59: 0.03256191236 | AY59: 1.513333333 | AZ59: 15.22442948 | BB59: 6.3 | BC59: 0.06518620254 | BD59: 11.04255977 | BE59: 0.0198285774 | BF59: 15 | BG59: 0.03256191236 | BH59: 1.118060012 | BJ59: 32.09162584 | BK59: 0.1779327277 | BL59: 5.71015052 | BN59: =IF($D59="Connection",VLOOKUP(C59,'Input - General'!$F$51:$N$59,3,FALSE),0) -> 0 | BP59: 0.2227618911 | BQ59: 32.09279846 | BR59: 7.149052476 | BT59: 0.109307573 | BU59: 39.24185094 | BV59: 4.289431486
B60: ='Input - Inventory'!B57 -> 49 | C60: ='Input - Inventory'!C57 -> SON2x250 | D60: ='Input - Inventory'!D57 -> Lamp | E60: ='Input - Inventory'!E57 -> Traffic | F60: ='Input - Inventory'!F57 -> Major | G60: ='Input - Inventory'!H57 -> 2 | I60: Lamp - SON2x250 | K60: 86.47372616 | L60: 30 | M60: 2594.211785 | O60: =IF(AND($D60="Lamp", OR($F60=O$9, O$9="All")),IF('Input - Inventory'!G57="N",INDIRECT("PriceBulkTask1" & "FY18"),INDIRECT("PriceBulkTask1LED" & "FY18")),0) -> 0 | P60: =IF(AND($D60="Lamp",CycleBulkTask1<>0, OR($F60=O$9,O$9="All")),IF('Input - Inventory'!G57="N",1/CycleBulkTask1,1/CycleBulkTask1LED),0) -> 0 | Q60: =IF(AND($D60="Lamp", OR($F60=Q$9, Q$9="All")),IF('Input - Inventory'!G57="N",INDIRECT("PriceBulkTask2" & "FY18"),INDIRECT("PriceBulkTask2LED" & "FY18")),0) -> 28.738834 | R60: =IF(AND($D60="Lamp",CycleBulkTask2<>0, OR($F60=Q$9,Q$9="All")),IF('Input - Inventory'!G57="N",1/CycleBulkTask2,1/CycleBulkTask2LED),0) -> 0.25 | S60: 11.48500442 | T60: 0.007123137293 | U60: 5.574180491 | V60: 0 | W60: 24.13954103 | X60: 0.005931168948 | Y60: 14.46149856 | Z60: 0.02002998353 | AA60: 40.19950453 | AB60: 0.01503682404 | AC60: 8290.488177 | AD60: 6.144166728e-05 | AE60: 8.81321133 | AG60: 18.8 | AH60: 0.25 | AI60: 49.71973843 | AJ60: 0.007123137293 | AK60: 11.04255977 | AL60: 0 | AM60: 15 | AN60: 0.02096799299 | AO60: 5.368680418 | AQ60: 85.56283983 | AR60: 0.1261231641 | AS60: 2.27 | AT60: 85.56283983 | AU60: 0.0198285774 | AV60: 2.27 | AW60: 85.56283983 | AX60: 0.03256191236 | AY60: 2.27 | AZ60: 34.67228684 | BB60: 9.4 | BC60: 0.1261231641 | BD60: 11.04255977 | BE60: 0.0198285774 | BF60: 15 | BG60: 0.03256191236 | BH60: 1.892944679 | BJ60: 32.09162584 | BK60: 0.4052259942 | BL60: 13.00436098 | BN60: =IF($D60="Connection",VLOOKUP(C60,'Input - General'!$F$51:$N$59,3,FALSE),0) -> 0 | BP60: 0.2227618911 | BQ60: 63.75148425 | BR60: 14.20140119 | BT60: 0.109307573 | BU60: 77.95288544 | BV60: 8.520840716
B61: ='Input - Inventory'!B58 -> 50 | C61: ='Input - Inventory'!C58 -> SON2x400 | D61: ='Input - Inventory'!D58 -> Lamp | E61: ='Input - Inventory'!E58 -> Traffic | F61: ='Input - Inventory'!F58 -> Major | G61: ='Input - Inventory'!H58 -> 2 | I61: Lamp - SON2x400 | K61: 87.74765422 | L61: 4 | M61: 350.9906169 | O61: =IF(AND($D61="Lamp", OR($F61=O$9, O$9="All")),IF('Input - Inventory'!G58="N",INDIRECT("PriceBulkTask1" & "FY18"),INDIRECT("PriceBulkTask1LED" & "FY18")),0) -> 0 | P61: =IF(AND($D61="Lamp",CycleBulkTask1<>0, OR($F61=O$9,O$9="All")),IF('Input - Inventory'!G58="N",1/CycleBulkTask1,1/CycleBulkTask1LED),0) -> 0 | Q61: =IF(AND($D61="Lamp", OR($F61=Q$9, Q$9="All")),IF('Input - Inventory'!G58="N",INDIRECT("PriceBulkTask2" & "FY18"),INDIRECT("PriceBulkTask2LED" & "FY18")),0) -> 28.738834 | R61: =IF(AND($D61="Lamp",CycleBulkTask2<>0, OR($F61=Q$9,Q$9="All")),IF('Input - Inventory'!G58="N",1/CycleBulkTask2,1/CycleBulkTask2LED),0) -> 0.25 | S61: 11.48500442 | T61: 0.007123137293 | U61: 5.574180491 | V61: 0 | W61: 24.13954103 | X61: 0.005931168948 | Y61: 14.46149856 | Z61: 0.02002998353 | AA61: 40.19950453 | AB61: 0.01503682404 | AC61: 8290.488177 | AD61: 6.144166728e-05 | AE61: 8.81321133 | AG61: 21.8 | AH61: 0.25 | AI61: 49.71973843 | AJ61: 0.007123137293 | AK61: 11.04255977 | AL61: 0 | AM61: 15 | AN61: 0.02096799299 | AO61: 6.118680418 | AQ61: 85.56283983 | AR61: 0.1261231641 | AS61: 2.27 | AT61: 85.56283983 | AU61: 0.0198285774 | AV61: 2.27 | AW61: 85.56283983 | AX61: 0.03256191236 | AY61: 2.27 | AZ61: 34.67228684 | BB61: 10.9 | BC61: 0.1261231641 | BD61: 11.04255977 | BE61: 0.0198285774 | BF61: 15 | BG61: 0.03256191236 | BH61: 2.082129425 | BJ61: 32.09162584 | BK61: 0.4052259942 | BL61: 13.00436098 | BN61: =IF($D61="Connection",VLOOKUP(C61,'Input - General'!$F$51:$N$59,3,FALSE),0) -> 0 | BP61: 0.2227618911 | BQ61: 64.690669 | BR61: 14.41061576 | BT61: 0.109307573 | BU61: 79.10128476 | BV61: 8.646369458
B62: ='Input - Inventory'!B59 -> 51 | C62: ='Input - Inventory'!C59 -> SON4x250 | D62: ='Input - Inventory'!D59 -> Lamp | E62: ='Input - Inventory'!E59 -> Traffic | F62: ='Input - Inventory'!F59 -> Major | G62: ='Input - Inventory'!H59 -> 4 | I62: Lamp - SON4x250 | K62: 134.1817906 | L62: 6 | M62: 805.0907437 | O62: =IF(AND($D62="Lamp", OR($F62=O$9, O$9="All")),IF('Input - Inventory'!G59="N",INDIRECT("PriceBulkTask1" & "FY18"),INDIRECT("PriceBulkTask1LED" & "FY18")),0) -> 0 | P62: =IF(AND($D62="Lamp",CycleBulkTask1<>0, OR($F62=O$9,O$9="All")),IF('Input - Inventory'!G59="N",1/CycleBulkTask1,1/CycleBulkTask1LED),0) -> 0 | Q62: =IF(AND($D62="Lamp", OR($F62=Q$9, Q$9="All")),IF('Input - Inventory'!G59="N",INDIRECT("PriceBulkTask2" & "FY18"),INDIRECT("PriceBulkTask2LED" & "FY18")),0) -> 28.738834 | R62: =IF(AND($D62="Lamp",CycleBulkTask2<>0, OR($F62=Q$9,Q$9="All")),IF('Input - Inventory'!G59="N",1/CycleBulkTask2,1/CycleBulkTask2LED),0) -> 0.25 | S62: 11.48500442 | T62: 0.007123137293 | U62: 5.574180491 | V62: 0 | W62: 24.13954103 | X62: 0.005931168948 | Y62: 14.46149856 | Z62: 0.02002998353 | AA62: 40.19950453 | AB62: 0.01503682404 | AC62: 8290.488177 | AD62: 6.144166728e-05 | AE62: 8.81321133 | AG62: 37.6 | AH62: 0.25 | AI62: 49.71973843 | AJ62: 0.007123137293 | AK62: 11.04255977 | AL62: 0 | AM62: 15 | AN62: 0.02096799299 | AO62: 10.06868042 | AQ62: 85.56283983 | AR62: 0.2363392756 | AS62: 2.27 | AT62: 85.56283983 | AU62: 0.0198285774 | AV62: 2.27 | AW62: 85.56283983 | AX62: 0.03256191236 | AY62: 2.27 | AZ62: 56.07930278 | BB62: 9.4 | BC62: 0.2363392756 | BD62: 11.04255977 | BE62: 0.0198285774 | BF62: 15 | BG62: 0.03256191236 | BH62: 2.928976127 | BJ62: 32.09162584 | BK62: 0.6554165674 | BL62: 21.03338325 | BN62: =IF($D62="Connection",VLOOKUP(C62,'Input - General'!$F$51:$N$59,3,FALSE),0) -> 0 | BP62: 0.2227618911 | BQ62: 98.92355391 | BR62: 22.03639794 | BT62: 0.109307573 | BU62: 120.9599519 | BV62: 13.22183877
B63: ='Input - Inventory'!B60 -> 52 | C63: ='Input - Inventory'!C60 -> SON4x600 | D63: ='Input - Inventory'!D60 -> Lamp | E63: ='Input - Inventory'!E60 -> Traffic | F63: ='Input - Inventory'!F60 -> Major | G63: ='Input - Inventory'!H60 -> 4 | I63: Lamp - SON4x600 | K63: 165.0384823 | L63: 2 | M63: 330.0769647 | O63: =IF(AND($D63="Lamp", OR($F63=O$9, O$9="All")),IF('Input - Inventory'!G60="N",INDIRECT("PriceBulkTask1" & "FY18"),INDIRECT("PriceBulkTask1LED" & "FY18")),0) -> 0 | P63: =IF(AND($D63="Lamp",CycleBulkTask1<>0, OR($F63=O$9,O$9="All")),IF('Input - Inventory'!G60="N",1/CycleBulkTask1,1/CycleBulkTask1LED),0) -> 0 | Q63: =IF(AND($D63="Lamp", OR($F63=Q$9, Q$9="All")),IF('Input - Inventory'!G60="N",INDIRECT("PriceBulkTask2" & "FY18"),INDIRECT("PriceBulkTask2LED" & "FY18")),0) -> 28.738834 | R63: =IF(AND($D63="Lamp",CycleBulkTask2<>0, OR($F63=Q$9,Q$9="All")),IF('Input - Inventory'!G60="N",1/CycleBulkTask2,1/CycleBulkTask2LED),0) -> 0.25 | S63: 11.48500442 | T63: 0.007123137293 | U63: 5.574180491 | V63: 0 | W63: 24.13954103 | X63: 0.005931168948 | Y63: 14.46149856 | Z63: 0.02002998353 | AA63: 40.19950453 | AB63: 0.01503682404 | AC63: 8290.488177 | AD63: 6.144166728e-05 | AE63: 8.81321133 | AG63: 111.2 | AH63: 0.25 | AI63: 49.71973843 | AJ63: 0.007123137293 | AK63: 11.04255977 | AL63: 0 | AM63: 15 | AN63: 0.02096799299 | AO63: 28.46868042 | AQ63: 85.56283983 | AR63: 0.2363392756 | AS63: 2.27 | AT63: 85.56283983 | AU63: 0.0198285774 | AV63: 2.27 | AW63: 85.56283983 | AX63: 0.03256191236 | AY63: 2.27 | AZ63: 56.07930278 | BB63: 27.8 | BC63: 0.2363392756 | BD63: 11.04255977 | BE63: 0.0198285774 | BF63: 15 | BG63: 0.03256191236 | BH63: 7.277618799 | BJ63: 32.09162584 | BK63: 0.6554165674 | BL63: 21.03338325 | BN63: =IF($D63="Connection",VLOOKUP(C63,'Input - General'!$F$51:$N$59,3,FALSE),0) -> 0 | BP63: 0.2227618911 | BQ63: 121.6721966 | BR63: 27.10392861 | BT63: 0.109307573 | BU63: 148.7761252 | BV63: 16.26235716
B64: ='Input - Inventory'!B61 -> 53 | C64: ='Input - Inventory'!C61 -> TF1x20 | D64: ='Input - Inventory'!D61 -> Lamp | E64: ='Input - Inventory'!E61 -> NonTraffic | F64: ='Input - Inventory'!F61 -> Minor | G64: ='Input - Inventory'!H61 -> 1 | I64: Lamp - TF1x20 | K64: 40.13198967 | L64: 4 | M64: 160.5279587 | O64: =IF(AND($D64="Lamp", OR($F64=O$9, O$9="All")),IF('Input - Inventory'!G61="N",INDIRECT("PriceBulkTask1" & "FY18"),INDIRECT("PriceBulkTask1LED" & "FY18")),0) -> 24.6719008 | P64: =IF(AND($D64="Lamp",CycleBulkTask1<>0, OR($F64=O$9,O$9="All")),IF('Input - Inventory'!G61="N",1/CycleBulkTask1,1/CycleBulkTask1LED),0) -> 0.25 | Q64: =IF(AND($D64="Lamp", OR($F64=Q$9, Q$9="All")),IF('Input - Inventory'!G61="N",INDIRECT("PriceBulkTask2" & "FY18"),INDIRECT("PriceBulkTask2LED" & "FY18")),0) -> 0 | R64: =IF(AND($D64="Lamp",CycleBulkTask2<>0, OR($F64=Q$9,Q$9="All")),IF('Input - Inventory'!G61="N",1/CycleBulkTask2,1/CycleBulkTask2LED),0) -> 0 | S64: 11.48500442 | T64: 0.007123137293 | U64: 5.574180491 | V64: 0 | W64: 24.13954103 | X64: 0.005931168948 | Y64: 14.46149856 | Z64: 0.02002998353 | AA64: 40.19950453 | AB64: 0.01503682404 | AC64: 8290.488177 | AD64: 6.144166728e-05 | AE64: 7.79647803 | AG64: 1.3 | AH64: 0.25 | AI64: 49.71973843 | AJ64: 0.007123137293 | AK64: 11.04255977 | AL64: 0 | AM64: 15 | AN64: 0.02096799299 | AO64: 0.9936804178 | AQ64: 85.56283983 | AR64: 0.06 | AS64: 1.513333333 | AT64: 85.56283983 | AU64: 0.0198285774 | AV64: 1.513333333 | AW64: 85.56283983 | AX64: 0.03256191236 | AY64: 1.513333333 | AZ64: 14.55289354 | BB64: 1.3 | BC64: 0.06 | BD64: 11.04255977 | BE64: 0.0198285774 | BF64: 15 | BG64: 0.03256191236 | BH64: 0.7853869364 | BJ64: 32.09162584 | BK64: 0.1700842745 | BL64: 5.458280898 | BN64: =IF($D64="Connection",VLOOKUP(C64,'Input - General'!$F$51:$N$59,3,FALSE),0) -> 0 | BP64: 0.2227618911 | BQ64: 29.58671982 | BR64: 6.590793659 | BT64: 0.109307573 | BU64: 36.17751348 | BV64: 3.954476195
B65: ='Input - Inventory'!B62 -> 54 | C65: ='Input - Inventory'!C62 -> TF1x40 | D65: ='Input - Inventory'!D62 -> Lamp | E65: ='Input - Inventory'!E62 -> NonTraffic | F65: ='Input - Inventory'!F62 -> Minor | G65: ='Input - Inventory'!H62 -> 1 | I65: Lamp - TF1x40 | K65: 64.08355765 | L65: 292 | M65: 18712.39883 | O65: =IF(AND($D65="Lamp", OR($F65=O$9, O$9="All")),IF('Input - Inventory'!G62="N",INDIRECT("PriceBulkTask1" & "FY18"),INDIRECT("PriceBulkTask1LED" & "FY18")),0) -> 24.6719008 | P65: =IF(AND($D65="Lamp",CycleBulkTask1<>0, OR($F65=O$9,O$9="All")),IF('Input - Inventory'!G62="N",1/CycleBulkTask1,1/CycleBulkTask1LED),0) -> 0.25 | Q65: =IF(AND($D65="Lamp", OR($F65=Q$9, Q$9="All")),IF('Input - Inventory'!G62="N",INDIRECT("PriceBulkTask2" & "FY18"),INDIRECT("PriceBulkTask2LED" & "FY18")),0) -> 0 | R65: =IF(AND($D65="Lamp",CycleBulkTask2<>0, OR($F65=Q$9,Q$9="All")),IF('Input - Inventory'!G62="N",1/CycleBulkTask2,1/CycleBulkTask2LED),0) -> 0 | S65: 11.48500442 | T65: 0.007123137293 | U65: 5.574180491 | V65: 0 | W65: 24.13954103 | X65: 0.005931168948 | Y65: 14.46149856 | Z65: 0.02002998353 | AA65: 40.19950453 | AB65: 0.01503682404 | AC65: 8290.488177 | AD65: 6.144166728e-05 | AE65: 7.79647803 | AG65: 1.5 | AH65: 0.25 | AI65: 49.71973843 | AJ65: 0.007123137293 | AK65: 11.04255977 | AL65: 0 | AM65: 15 | AN65: 0.02096799299 | AO65: 1.043680418 | AQ65: 85.56283983 | AR65: 0.158 | AS65: 1.513333333 | AT65: 85.56283983 | AU65: 0.0198285774 | AV65: 1.513333333 | AW65: 85.56283983 | AX65: 0.03256191236 | AY65: 1.513333333 | AZ65: 27.2424331 | BB65: 1.5 | BC65: 0.158 | BD65: 11.04255977 | BE65: 0.0198285774 | BF65: 15 | BG65: 0.03256191236 | BH65: 0.9443869364 | BJ65: 32.09162584 | BK65: 0.3183909412 | BL65: 10.21768295 | BN65: =IF($D65="Connection",VLOOKUP(C65,'Input - General'!$F$51:$N$59,3,FALSE),0) -> 0 | BP65: 0.2227618911 | BQ65: 47.24466144 | BR65: 10.52431013 | BT65: 0.109307573 | BU65: 57.76897157 | BV65: 6.314586077
B66: ='Input - Inventory'!B63 -> 55 | C66: ='Input - Inventory'!C63 -> TF1x80 | D66: ='Input - Inventory'!D63 -> Lamp | E66: ='Input - Inventory'!E63 -> NonTraffic | F66: ='Input - Inventory'!F63 -> Minor | G66: ='Input - Inventory'!H63 -> 1 | I66: Lamp - TF1x80 | K66: 40.21608765 | L66: 97 | M66: 3900.960502 | O66: =IF(AND($D66="Lamp", OR($F66=O$9, O$9="All")),IF('Input - Inventory'!G63="N",INDIRECT("PriceBulkTask1" & "FY18"),INDIRECT("PriceBulkTask1LED" & "FY18")),0) -> 24.6719008 | P66: =IF(AND($D66="Lamp",CycleBulkTask1<>0, OR($F66=O$9,O$9="All")),IF('Input - Inventory'!G63="N",1/CycleBulkTask1,1/CycleBulkTask1LED),0) -> 0.25 | Q66: =IF(AND($D66="Lamp", OR($F66=Q$9, Q$9="All")),IF('Input - Inventory'!G63="N",INDIRECT("PriceBulkTask2" & "FY18"),INDIRECT("PriceBulkTask2LED" & "FY18")),0) -> 0 | R66: =IF(AND($D66="Lamp",CycleBulkTask2<>0, OR($F66=Q$9,Q$9="All")),IF('Input - Inventory'!G63="N",1/CycleBulkTask2,1/CycleBulkTask2LED),0) -> 0 | S66: 11.48500442 | T66: 0.007123137293 | U66: 5.574180491 | V66: 0 | W66: 24.13954103 | X66: 0.005931168948 | Y66: 14.46149856 | Z66: 0.02002998353 | AA66: 40.19950453 | AB66: 0.01503682404 | AC66: 8290.488177 | AD66: 6.144166728e-05 | AE66: 7.79647803 | AG66: 1.5 | AH66: 0.25 | AI66: 49.71973843 | AJ66: 0.007123137293 | AK66: 11.04255977 | AL66: 0 | AM66: 15 | AN66: 0.02096799299 | AO66: 1.043680418 | AQ66: 85.56283983 | AR66: 0.06 | AS66: 1.513333333 | AT66: 85.56283983 | AU66: 0.0198285774 | AV66: 1.513333333 | AW66: 85.56283983 | AX66: 0.03256191236 | AY66: 1.513333333 | AZ66: 14.55289354 | BB66: 1.5 | BC66: 0.06 | BD66: 11.04255977 | BE66: 0.0198285774 | BF66: 15 | BG66: 0.03256191236 | BH66: 0.7973869364 | BJ66: 32.09162584 | BK66: 0.1700842745 | BL66: 5.458280898 | BN66: =IF($D66="Connection",VLOOKUP(C66,'Input - General'!$F$51:$N$59,3,FALSE),0) -> 0 | BP66: 0.2227618911 | BQ66: 29.64871982 | BR66: 6.604604896 | BT66: 0.109307573 | BU66: 36.25332472 | BV66: 3.962762938
B67: ='Input - Inventory'!B64 -> 56 | C67: ='Input - Inventory'!C64 -> TF2x14 T5 | D67: ='Input - Inventory'!D64 -> Lamp | E67: ='Input - Inventory'!E64 -> NonTraffic | F67: ='Input - Inventory'!F64 -> Minor | G67: ='Input - Inventory'!H64 -> 2 | I67: Lamp - TF2x14 T5 | K67: 40.72474479 | L67: 222 | M67: 9040.893343 | O67: =IF(AND($D67="Lamp", OR($F67=O$9, O$9="All")),IF('Input - Inventory'!G64="N",INDIRECT("PriceBulkTask1" & "FY18"),INDIRECT("PriceBulkTask1LED" & "FY18")),0) -> 24.6719008 | P67: =IF(AND($D67="Lamp",CycleBulkTask1<>0, OR($F67=O$9,O$9="All")),IF('Input - Inventory'!G64="N",1/CycleBulkTask1,1/CycleBulkTask1LED),0) -> 0.25 | Q67: =IF(AND($D67="Lamp", OR($F67=Q$9, Q$9="All")),IF('Input - Inventory'!G64="N",INDIRECT("PriceBulkTask2" & "FY18"),INDIRECT("PriceBulkTask2LED" & "FY18")),0) -> 0 | R67: =IF(AND($D67="Lamp",CycleBulkTask2<>0, OR($F67=Q$9,Q$9="All")),IF('Input - Inventory'!G64="N",1/CycleBulkTask2,1/CycleBulkTask2LED),0) -> 0 | S67: 11.48500442 | T67: 0.007123137293 | U67: 5.574180491 | V67: 0 | W67: 24.13954103 | X67: 0.005931168948 | Y67: 14.46149856 | Z67: 0.02002998353 | AA67: 40.19950453 | AB67: 0.01503682404 | AC67: 8290.488177 | AD67: 6.144166728e-05 | AE67: 7.79647803 | AG67: 3 | AH67: 0.25 | AI67: 49.71973843 | AJ67: 0.007123137293 | AK67: 11.04255977 | AL67: 0 | AM67: 15 | AN67: 0.02096799299 | AO67: 1.418680418 | AQ67: 85.56283983 | AR67: 0.06 | AS67: 1.513333333 | AT67: 85.56283983 | AU67: 0.0198285774 | AV67: 1.513333333 | AW67: 85.56283983 | AX67: 0.03256191236 | AY67: 1.513333333 | AZ67: 14.55289354 | BB67: 1.5 | BC67: 0.06 | BD67: 11.04255977 | BE67: 0.0198285774 | BF67: 15 | BG67: 0.03256191236 | BH67: 0.7973869364 | BJ67: 32.09162584 | BK67: 0.1700842745 | BL67: 5.458280898 | BN67: =IF($D67="Connection",VLOOKUP(C67,'Input - General'!$F$51:$N$59,3,FALSE),0) -> 0 | BP67: 0.2227618911 | BQ67: 30.02371982 | BR67: 6.688140605 | BT67: 0.109307573 | BU67: 36.71186042 | BV67: 4.012884363
B68: ='Input - Inventory'!B65 -> 57 | C68: ='Input - Inventory'!C65 -> TF2x20 | D68: ='Input - Inventory'!D65 -> Lamp | E68: ='Input - Inventory'!E65 -> NonTraffic | F68: ='Input - Inventory'!F65 -> Minor | G68: ='Input - Inventory'!H65 -> 2 | I68: Lamp - TF2x20 | K68: 51.00929454 | L68: 9952 | M68: 507644.4993 | O68: =IF(AND($D68="Lamp", OR($F68=O$9, O$9="All")),IF('Input - Inventory'!G65="N",INDIRECT("PriceBulkTask1" & "FY18"),INDIRECT("PriceBulkTask1LED" & "FY18")),0) -> 24.6719008 | P68: =IF(AND($D68="Lamp",CycleBulkTask1<>0, OR($F68=O$9,O$9="All")),IF('Input - Inventory'!G65="N",1/CycleBulkTask1,1/CycleBulkTask1LED),0) -> 0.25 | Q68: =IF(AND($D68="Lamp", OR($F68=Q$9, Q$9="All")),IF('Input - Inventory'!G65="N",INDIRECT("PriceBulkTask2" & "FY18"),INDIRECT("PriceBulkTask2LED" & "FY18")),0) -> 0 | R68: =IF(AND($D68="Lamp",CycleBulkTask2<>0, OR($F68=Q$9,Q$9="All")),IF('Input - Inventory'!G65="N",1/CycleBulkTask2,1/CycleBulkTask2LED),0) -> 0 | S68: 11.48500442 | T68: 0.007123137293 | U68: 5.574180491 | V68: 0 | W68: 24.13954103 | X68: 0.005931168948 | Y68: 14.46149856 | Z68: 0.02002998353 | AA68: 40.19950453 | AB68: 0.01503682404 | AC68: 8290.488177 | AD68: 6.144166728e-05 | AE68: 7.79647803 | AG68: 2.6 | AH68: 0.25 | AI68: 49.71973843 | AJ68: 0.007123137293 | AK68: 11.04255977 | AL68: 0 | AM68: 15 | AN68: 0.02096799299 | AO68: 1.318680418 | AQ68: 85.56283983 | AR68: 0.1029 | AS68: 1.513333333 | AT68: 85.56283983 | AU68: 0.0198285774 | AV68: 1.513333333 | AW68: 85.56283983 | AX68: 0.03256191236 | AY68: 1.513333333 | AZ68: 20.10780422 | BB68: 1.3 | BC68: 0.1029 | BD68: 11.04255977 | BE68: 0.0198285774 | BF68: 15 | BG68: 0.03256191236 | BH68: 0.8411569364 | BJ68: 32.09162584 | BK68: 0.2350062745 | BL68: 7.54173343 | BN68: =IF($D68="Connection",VLOOKUP(C68,'Input - General'!$F$51:$N$59,3,FALSE),0) -> 0 | BP68: 0.2227618911 | BQ68: 37.60585304 | BR68: 8.37715094 | BT68: 0.109307573 | BU68: 45.98300398 | BV68: 5.026290564
B69: ='Input - Inventory'!B66 -> 58 | C69: ='Input - Inventory'!C66 -> TF2x26 | D69: ='Input - Inventory'!D66 -> Lamp | E69: ='Input - Inventory'!E66 -> NonTraffic | F69: ='Input - Inventory'!F66 -> Minor | G69: ='Input - Inventory'!H66 -> 2 | I69: Lamp - TF2x26 | K69: 40.72474479 | L69: 14 | M69: 570.146427 | O69: =IF(AND($D69="Lamp", OR($F69=O$9, O$9="All")),IF('Input - Inventory'!G66="N",INDIRECT("PriceBulkTask1" & "FY18"),INDIRECT("PriceBulkTask1LED" & "FY18")),0) -> 24.6719008 | P69: =IF(AND($D69="Lamp",CycleBulkTask1<>0, OR($F69=O$9,O$9="All")),IF('Input - Inventory'!G66="N",1/CycleBulkTask1,1/CycleBulkTask1LED),0) -> 0.25 | Q69: =IF(AND($D69="Lamp", OR($F69=Q$9, Q$9="All")),IF('Input - Inventory'!G66="N",INDIRECT("PriceBulkTask2" & "FY18"),INDIRECT("PriceBulkTask2LED" & "FY18")),0) -> 0 | R69: =IF(AND($D69="Lamp",CycleBulkTask2<>0, OR($F69=Q$9,Q$9="All")),IF('Input - Inventory'!G66="N",1/CycleBulkTask2,1/CycleBulkTask2LED),0) -> 0 | S69: 11.48500442 | T69: 0.007123137293 | U69: 5.574180491 | V69: 0 | W69: 24.13954103 | X69: 0.005931168948 | Y69: 14.46149856 | Z69: 0.02002998353 | AA69: 40.19950453 | AB69: 0.01503682404 | AC69: 8290.488177 | AD69: 6.144166728e-05 | AE69: 7.79647803 | AG69: 3 | AH69: 0.25 | AI69: 49.71973843 | AJ69: 0.007123137293 | AK69: 11.04255977 | AL69: 0 | AM69: 15 | AN69: 0.02096799299 | AO69: 1.418680418 | AQ69: 85.56283983 | AR69: 0.06 | AS69: 1.513333333 | AT69: 85.56283983 | AU69: 0.0198285774 | AV69: 1.513333333 | AW69: 85.56283983 | AX69: 0.03256191236 | AY69: 1.513333333 | AZ69: 14.55289354 | BB69: 1.5 | BC69: 0.06 | BD69: 11.04255977 | BE69: 0.0198285774 | BF69: 15 | BG69: 0.03256191236 | BH69: 0.7973869364 | BJ69: 32.09162584 | BK69: 0.1700842745 | BL69: 5.458280898 | BN69: =IF($D69="Connection",VLOOKUP(C69,'Input - General'!$F$51:$N$59,3,FALSE),0) -> 0 | BP69: 0.2227618911 | BQ69: 30.02371982 | BR69: 6.688140605 | BT69: 0.109307573 | BU69: 36.71186042 | BV69: 4.012884363
B70: ='Input - Inventory'!B67 -> 59 | C70: ='Input - Inventory'!C67 -> TF2x40 | D70: ='Input - Inventory'!D67 -> Lamp | E70: ='Input - Inventory'!E67 -> NonTraffic | F70: ='Input - Inventory'!F67 -> Minor | G70: ='Input - Inventory'!H67 -> 2 | I70: Lamp - TF2x40 | K70: 40.72474479 | L70: 14 | M70: 570.146427 | O70: =IF(AND($D70="Lamp", OR($F70=O$9, O$9="All")),IF('Input - Inventory'!G67="N",INDIRECT("PriceBulkTask1" & "FY18"),INDIRECT("PriceBulkTask1LED" & "FY18")),0) -> 24.6719008 | P70: =IF(AND($D70="Lamp",CycleBulkTask1<>0, OR($F70=O$9,O$9="All")),IF('Input - Inventory'!G67="N",1/CycleBulkTask1,1/CycleBulkTask1LED),0) -> 0.25 | Q70: =IF(AND($D70="Lamp", OR($F70=Q$9, Q$9="All")),IF('Input - Inventory'!G67="N",INDIRECT("PriceBulkTask2" & "FY18"),INDIRECT("PriceBulkTask2LED" & "FY18")),0) -> 0 | R70: =IF(AND($D70="Lamp",CycleBulkTask2<>0, OR($F70=Q$9,Q$9="All")),IF('Input - Inventory'!G67="N",1/CycleBulkTask2,1/CycleBulkTask2LED),0) -> 0 | S70: 11.48500442 | T70: 0.007123137293 | U70: 5.574180491 | V70: 0 | W70: 24.13954103 | X70: 0.005931168948 | Y70: 14.46149856 | Z70: 0.02002998353 | AA70: 40.19950453 | AB70: 0.01503682404 | AC70: 8290.488177 | AD70: 6.144166728e-05 | AE70: 7.79647803 | AG70: 3 | AH70: 0.25 | AI70: 49.71973843 | AJ70: 0.007123137293 | AK70: 11.04255977 | AL70: 0 | AM70: 15 | AN70: 0.02096799299 | AO70: 1.418680418 | AQ70: 85.56283983 | AR70: 0.06 | AS70: 1.513333333 | AT70: 85.56283983 | AU70: 0.0198285774 | AV70: 1.513333333 | AW70: 85.56283983 | AX70: 0.03256191236 | AY70: 1.513333333 | AZ70: 14.55289354 | BB70: 1.5 | BC70: 0.06 | BD70: 11.04255977 | BE70: 0.0198285774 | BF70: 15 | BG70: 0.03256191236 | BH70: 0.7973869364 | BJ70: 32.09162584 | BK70: 0.1700842745 | BL70: 5.458280898 | BN70: =IF($D70="Connection",VLOOKUP(C70,'Input - General'!$F$51:$N$59,3,FALSE),0) -> 0 | BP70: 0.2227618911 | BQ70: 30.02371982 | BR70: 6.688140605 | BT70: 0.109307573 | BU70: 36.71186042 | BV70: 4.012884363
B71: ='Input - Inventory'!B68 -> 60 | C71: ='Input - Inventory'!C68 -> TF4x20 | D71: ='Input - Inventory'!D68 -> Lamp | E71: ='Input - Inventory'!E68 -> NonTraffic | F71: ='Input - Inventory'!F68 -> Minor | G71: ='Input - Inventory'!H68 -> 2 | I71: Lamp - TF4x20 | K71: 40.57282586 | L71: 12 | M71: 486.8739103 | O71: =IF(AND($D71="Lamp", OR($F71=O$9, O$9="All")),IF('Input - Inventory'!G68="N",INDIRECT("PriceBulkTask1" & "FY18"),INDIRECT("PriceBulkTask1LED" & "FY18")),0) -> 24.6719008 | P71: =IF(AND($D71="Lamp",CycleBulkTask1<>0, OR($F71=O$9,O$9="All")),IF('Input - Inventory'!G68="N",1/CycleBulkTask1,1/CycleBulkTask1LED),0) -> 0.25 | Q71: =IF(AND($D71="Lamp", OR($F71=Q$9, Q$9="All")),IF('Input - Inventory'!G68="N",INDIRECT("PriceBulkTask2" & "FY18"),INDIRECT("PriceBulkTask2LED" & "FY18")),0) -> 0 | R71: =IF(AND($D71="Lamp",CycleBulkTask2<>0, OR($F71=Q$9,Q$9="All")),IF('Input - Inventory'!G68="N",1/CycleBulkTask2,1/CycleBulkTask2LED),0) -> 0 | S71: 11.48500442 | T71: 0.007123137293 | U71: 5.574180491 | V71: 0 | W71: 24.13954103 | X71: 0.005931168948 | Y71: 14.46149856 | Z71: 0.02002998353 | AA71: 40.19950453 | AB71: 0.01503682404 | AC71: 8290.488177 | AD71: 6.144166728e-05 | AE71: 7.79647803 | AG71: 2.6 | AH71: 0.25 | AI71: 49.71973843 | AJ71: 0.007123137293 | AK71: 11.04255977 | AL71: 0 | AM71: 15 | AN71: 0.02096799299 | AO71: 1.318680418 | AQ71: 85.56283983 | AR71: 0.06 | AS71: 1.513333333 | AT71: 85.56283983 | AU71: 0.0198285774 | AV71: 1.513333333 | AW71: 85.56283983 | AX71: 0.03256191236 | AY71: 1.513333333 | AZ71: 14.55289354 | BB71: 1.3 | BC71: 0.06 | BD71: 11.04255977 | BE71: 0.0198285774 | BF71: 15 | BG71: 0.03256191236 | BH71: 0.7853869364 | BJ71: 32.09162584 | BK71: 0.1700842745 | BL71: 5.458280898 | BN71: =IF($D71="Connection",VLOOKUP(C71,'Input - General'!$F$51:$N$59,3,FALSE),0) -> 0 | BP71: 0.2227618911 | BQ71: 29.91171982 | BR71: 6.663191273 | BT71: 0.109307573 | BU71: 36.57491109 | BV71: 3.997914764
B72: ='Input - Inventory'!B69 -> 61 | C72: ='Input - Inventory'!C69 -> TF4x40 | D72: ='Input - Inventory'!D69 -> Lamp | E72: ='Input - Inventory'!E69 -> NonTraffic | F72: ='Input - Inventory'!F69 -> Minor | G72: ='Input - Inventory'!H69 -> 4 | I72: Lamp - TF4x40 | K72: 41.74205906 | L72: 2 | M72: 83.48411811 | O72: =IF(AND($D72="Lamp", OR($F72=O$9, O$9="All")),IF('Input - Inventory'!G69="N",INDIRECT("PriceBulkTask1" & "FY18"),INDIRECT("PriceBulkTask1LED" & "FY18")),0) -> 24.6719008 | P72: =IF(AND($D72="Lamp",CycleBulkTask1<>0, OR($F72=O$9,O$9="All")),IF('Input - Inventory'!G69="N",1/CycleBulkTask1,1/CycleBulkTask1LED),0) -> 0.25 | Q72: =IF(AND($D72="Lamp", OR($F72=Q$9, Q$9="All")),IF('Input - Inventory'!G69="N",INDIRECT("PriceBulkTask2" & "FY18"),INDIRECT("PriceBulkTask2LED" & "FY18")),0) -> 0 | R72: =IF(AND($D72="Lamp",CycleBulkTask2<>0, OR($F72=Q$9,Q$9="All")),IF('Input - Inventory'!G69="N",1/CycleBulkTask2,1/CycleBulkTask2LED),0) -> 0 | S72: 11.48500442 | T72: 0.007123137293 | U72: 5.574180491 | V72: 0 | W72: 24.13954103 | X72: 0.005931168948 | Y72: 14.46149856 | Z72: 0.02002998353 | AA72: 40.19950453 | AB72: 0.01503682404 | AC72: 8290.488177 | AD72: 6.144166728e-05 | AE72: 7.79647803 | AG72: 6 | AH72: 0.25 | AI72: 49.71973843 | AJ72: 0.007123137293 | AK72: 11.04255977 | AL72: 0 | AM72: 15 | AN72: 0.02096799299 | AO72: 2.168680418 | AQ72: 85.56283983 | AR72: 0.06 | AS72: 1.513333333 | AT72: 85.56283983 | AU72: 0.0198285774 | AV72: 1.513333333 | AW72: 85.56283983 | AX72: 0.03256191236 | AY72: 1.513333333 | AZ72: 14.55289354 | BB72: 1.5 | BC72: 0.06 | BD72: 11.04255977 | BE72: 0.0198285774 | BF72: 15 | BG72: 0.03256191236 | BH72: 0.7973869364 | BJ72: 32.09162584 | BK72: 0.1700842745 | BL72: 5.458280898 | BN72: =IF($D72="Connection",VLOOKUP(C72,'Input - General'!$F$51:$N$59,3,FALSE),0) -> 0 | BP72: 0.2227618911 | BQ72: 30.77371982 | BR72: 6.855212024 | BT72: 0.109307573 | BU72: 37.62893184 | BV72: 4.113127214
B73: ='Input - Inventory'!B70 -> 62 | C73: ='Input - Inventory'!C70 -> TH1x1500 | D73: ='Input - Inventory'!D70 -> Lamp | E73: ='Input - Inventory'!E70 -> Traffic | F73: ='Input - Inventory'!F70 -> Major | G73: ='Input - Inventory'!H70 -> 1 | I73: Lamp - TH1x1500 | K73: 59.11957795 | L73: 10 | M73: 591.1957795 | O73: =IF(AND($D73="Lamp", OR($F73=O$9, O$9="All")),IF('Input - Inventory'!G70="N",INDIRECT("PriceBulkTask1" & "FY18"),INDIRECT("PriceBulkTask1LED" & "FY18")),0) -> 0 | P73: =IF(AND($D73="Lamp",CycleBulkTask1<>0, OR($F73=O$9,O$9="All")),IF('Input - Inventory'!G70="N",1/CycleBulkTask1,1/CycleBulkTask1LED),0) -> 0 | Q73: =IF(AND($D73="Lamp", OR($F73=Q$9, Q$9="All")),IF('Input - Inventory'!G70="N",INDIRECT("PriceBulkTask2" & "FY18"),INDIRECT("PriceBulkTask2LED" & "FY18")),0) -> 28.738834 | R73: =IF(AND($D73="Lamp",CycleBulkTask2<>0, OR($F73=Q$9,Q$9="All")),IF('Input - Inventory'!G70="N",1/CycleBulkTask2,1/CycleBulkTask2LED),0) -> 0.25 | S73: 11.48500442 | T73: 0.007123137293 | U73: 5.574180491 | V73: 0 | W73: 24.13954103 | X73: 0.005931168948 | Y73: 14.46149856 | Z73: 0.02002998353 | AA73: 40.19950453 | AB73: 0.01503682404 | AC73: 8290.488177 | AD73: 6.144166728e-05 | AE73: 8.81321133 | AG73: 10.9 | AH73: 0.25 | AI73: 49.71973843 | AJ73: 0.007123137293 | AK73: 11.04255977 | AL73: 0 | AM73: 15 | AN73: 0.02096799299 | AO73: 3.393680418 | AQ73: 85.56283983 | AR73: 0.06 | AS73: 2.27 | AT73: 85.56283983 | AU73: 0.0198285774 | AV73: 2.27 | AW73: 85.56283983 | AX73: 0.03256191236 | AY73: 2.27 | AZ73: 21.82934031 | BB73: 10.9 | BC73: 0.06 | BD73: 11.04255977 | BE73: 0.0198285774 | BF73: 15 | BG73: 0.03256191236 | BH73: 1.361386936 | BJ73: 32.09162584 | BK73: 0.2551264117 | BL73: 8.187421346 | BN73: =IF($D73="Connection",VLOOKUP(C73,'Input - General'!$F$51:$N$59,3,FALSE),0) -> 0 | BP73: 0.2227618911 | BQ73: 43.58504034 | BR73: 9.70908601 | BT73: 0.109307573 | BU73: 53.29412635 | BV73: 5.825451606
B74: ='Input - Inventory'!B71 -> 63 | C74: ='Input - Inventory'!C71 -> TH1x500 | D74: ='Input - Inventory'!D71 -> Lamp | E74: ='Input - Inventory'!E71 -> Traffic | F74: ='Input - Inventory'!F71 -> Major | G74: ='Input - Inventory'!H71 -> 1 | I74: Lamp - TH1x500 | K74: 59.11957795 | L74: 9 | M74: 532.0762016 | O74: =IF(AND($D74="Lamp", OR($F74=O$9, O$9="All")),IF('Input - Inventory'!G71="N",INDIRECT("PriceBulkTask1" & "FY18"),INDIRECT("PriceBulkTask1LED" & "FY18")),0) -> 0 | P74: =IF(AND($D74="Lamp",CycleBulkTask1<>0, OR($F74=O$9,O$9="All")),IF('Input - Inventory'!G71="N",1/CycleBulkTask1,1/CycleBulkTask1LED),0) -> 0 | Q74: =IF(AND($D74="Lamp", OR($F74=Q$9, Q$9="All")),IF('Input - Inventory'!G71="N",INDIRECT("PriceBulkTask2" & "FY18"),INDIRECT("PriceBulkTask2LED" & "FY18")),0) -> 28.738834 | R74: =IF(AND($D74="Lamp",CycleBulkTask2<>0, OR($F74=Q$9,Q$9="All")),IF('Input - Inventory'!G71="N",1/CycleBulkTask2,1/CycleBulkTask2LED),0) -> 0.25 | S74: 11.48500442 | T74: 0.007123137293 | U74: 5.574180491 | V74: 0 | W74: 24.13954103 | X74: 0.005931168948 | Y74: 14.46149856 | Z74: 0.02002998353 | AA74: 40.19950453 | AB74: 0.01503682404 | AC74: 8290.488177 | AD74: 6.144166728e-05 | AE74: 8.81321133 | AG74: 10.9 | AH74: 0.25 | AI74: 49.71973843 | AJ74: 0.007123137293 | AK74: 11.04255977 | AL74: 0 | AM74: 15 | AN74: 0.02096799299 | AO74: 3.393680418 | AQ74: 85.56283983 | AR74: 0.06 | AS74: 2.27 | AT74: 85.56283983 | AU74: 0.0198285774 | AV74: 2.27 | AW74: 85.56283983 | AX74: 0.03256191236 | AY74: 2.27 | AZ74: 21.82934031 | BB74: 10.9 | BC74: 0.06 | BD74: 11.04255977 | BE74: 0.0198285774 | BF74: 15 | BG74: 0.03256191236 | BH74: 1.361386936 | BJ74: 32.09162584 | BK74: 0.2551264117 | BL74: 8.187421346 | BN74: =IF($D74="Connection",VLOOKUP(C74,'Input - General'!$F$51:$N$59,3,FALSE),0) -> 0 | BP74: 0.2227618911 | BQ74: 43.58504034 | BR74: 9.70908601 | BT74: 0.109307573 | BU74: 53.29412635 | BV74: 5.825451606
B75: ='Input - Inventory'!B72 -> 64 | C75: ='Input - Inventory'!C72 -> TH1x750 | D75: ='Input - Inventory'!D72 -> Lamp | E75: ='Input - Inventory'!E72 -> Traffic | F75: ='Input - Inventory'!F72 -> Major | G75: ='Input - Inventory'!H72 -> 1 | I75: Lamp - TH1x750 | K75: 59.11957795 | L75: 8 | M75: 472.9566236 | O75: =IF(AND($D75="Lamp", OR($F75=O$9, O$9="All")),IF('Input - Inventory'!G72="N",INDIRECT("PriceBulkTask1" & "FY18"),INDIRECT("PriceBulkTask1LED" & "FY18")),0) -> 0 | P75: =IF(AND($D75="Lamp",CycleBulkTask1<>0, OR($F75=O$9,O$9="All")),IF('Input - Inventory'!G72="N",1/CycleBulkTask1,1/CycleBulkTask1LED),0) -> 0 | Q75: =IF(AND($D75="Lamp", OR($F75=Q$9, Q$9="All")),IF('Input - Inventory'!G72="N",INDIRECT("PriceBulkTask2" & "FY18"),INDIRECT("PriceBulkTask2LED" & "FY18")),0) -> 28.738834 | R75: =IF(AND($D75="Lamp",CycleBulkTask2<>0, OR($F75=Q$9,Q$9="All")),IF('Input - Inventory'!G72="N",1/CycleBulkTask2,1/CycleBulkTask2LED),0) -> 0.25 | S75: 11.48500442 | T75: 0.007123137293 | U75: 5.574180491 | V75: 0 | W75: 24.13954103 | X75: 0.005931168948 | Y75: 14.46149856 | Z75: 0.02002998353 | AA75: 40.19950453 | AB75: 0.01503682404 | AC75: 8290.488177 | AD75: 6.144166728e-05 | AE75: 8.81321133 | AG75: 10.9 | AH75: 0.25 | AI75: 49.71973843 | AJ75: 0.007123137293 | AK75: 11.04255977 | AL75: 0 | AM75: 15 | AN75: 0.02096799299 | AO75: 3.393680418 | AQ75: 85.56283983 | AR75: 0.06 | AS75: 2.27 | AT75: 85.56283983 | AU75: 0.0198285774 | AV75: 2.27 | AW75: 85.56283983 | AX75: 0.03256191236 | AY75: 2.27 | AZ75: 21.82934031 | BB75: 10.9 | BC75: 0.06 | BD75: 11.04255977 | BE75: 0.0198285774 | BF75: 15 | BG75: 0.03256191236 | BH75: 1.361386936 | BJ75: 32.09162584 | BK75: 0.2551264117 | BL75: 8.187421346 | BN75: =IF($D75="Connection",VLOOKUP(C75,'Input - General'!$F$51:$N$59,3,FALSE),0) -> 0 | BP75: 0.2227618911 | BQ75: 43.58504034 | BR75: 9.70908601 | BT75: 0.109307573 | BU75: 53.29412635 | BV75: 5.825451606

Sheet Calc - Opex FY19
B2: =CONCATENATE("This sheet contains no inputs and all values are calculated for " & "FY19" ) -> This sheet contains no inputs and all values are calculated for FY19 | AE2: Bulk contract | AO2: Bulk materials | AZ2: Spot labour | BH2: Spot materials | BL2: EWP costs | BN2: Connections | BR2: Overheads | BV2: CAM | BY2: RIN DATA - Other failure expense
L4: Totals ---> | M4: =SUM(M12:M75) -> 14587326.69 | O4: =SUMPRODUCT(O12:O75,P12:P75,$L$12:$L$75) -> 1036822.594 | Q4: =SUMPRODUCT(Q12:Q75,R12:R75,$L$12:$L$75) -> 553353.2671 | S4: =SUMPRODUCT(S12:S75,T12:T75,$L$12:$L$75) -> 21070.44189 | U4: =SUMPRODUCT(U12:U75,V12:V75,$L$12:$L$75) -> 0 | W4: =SUMPRODUCT(W12:W75,X12:X75,$L$12:$L$75) -> 36875.71632 | Y4: =SUMPRODUCT(Y12:Y75,Z12:Z75,$L$12:$L$75) -> 74604.50495 | AA4: =SUMPRODUCT(AA12:AA75,AB12:AB75,$L$12:$L$75) -> 155685.4334 | AC4: =SUMPRODUCT(AC12:AC75,AD12:AD75,$L$12:$L$75) -> 131194.086 | AE4: =SUMPRODUCT(AE12:AE75,$L$12:$L$75) -> 2009606.044 | AG4: =SUMPRODUCT(AG12:AG75,AH12:AH75,$L$12:$L$75) -> 279251.2363 | AI4: =SUMPRODUCT(AI12:AI75,AJ12:AJ75,$L$12:$L$75) -> 91216.06061 | AK4: =SUMPRODUCT(AK12:AK75,AL12:AL75,$L$12:$L$75) -> 0 | AM4: =SUMPRODUCT(AM12:AM75,AN12:AN75,$L$12:$L$75) -> 86709.62926 | AO4: =SUMPRODUCT(AO12:AO75,$L$12:$L$75) -> 457176.9262 | AQ4: =SUMPRODUCT(AQ12:AQ75,AR12:AR75,AS12:AS75,$L$12:$L$75) -> 1804572.327 | AT4: =SUMPRODUCT(AT12:AT75,AU12:AU75,AV12:AV75,$L$12:$L$75) -> 767350.578 | AW4: =SUMPRODUCT(AW12:AW75,AX12:AX75,AY12:AY75,$L$12:$L$75) -> 1260120.772 | AZ4: =SUMPRODUCT(AZ12:AZ75,$L$12:$L$75) -> 3832043.677 | BB4: =SUMPRODUCT(BB12:BB75,BC12:BC75,$L$12:$L$75) -> 59512.34165 | BD4: =SUMPRODUCT(BD12:BD75,BE12:BE75,$L$12:$L$75) -> 56393.94511 | BF4: =SUMPRODUCT(BF12:BF75,BG12:BG75,$L$12:$L$75) -> 125797.5908 | BH4: =SUMPRODUCT(BH12:BH75,$L$12:$L$75) -> 241703.8776 | BL4: =SUMPRODUCT(BL12:BL75,$L$12:$L$75) -> 1423791.08 | BN4: =SUMPRODUCT(BN12:BN75,$L$12:$L$75) -> 2789970.697 | BR4: =SUMPRODUCT(BR12:BR75,$L$12:$L$75) -> 2395646.491 | BV4: =SUMPRODUCT(BV12:BV75,$L$12:$L$75) -> 1437387.894 | BY4: =(AT4+AW4+BD4+BF4)+((AT4+AW4+BD4+BF4)/AZ4)*BL4*(1+RateOverhead)*(1+CorporateOverheads) -> 3323279.525
L6: Percent ---> | AE6: =AE4/$M4 -> 0.1377638334 | AO6: =AO4/$M4 -> 0.03134069292 | AZ6: =AZ4/$M4 -> 0.262696775 | BH6: =BH4/$M4 -> 0.01656944297 | BL6: =BL4/$M4 -> 0.09760466125 | BN6: =BN4/$M4 -> 0.1912599037 | BR6: =BR4/$M4 -> 0.1642279317 | BV6: =BV4/$M4 -> 0.09853675902
M8: Sub-total annual cost | O8: Task 1 | Q8: Task 2 | S8: Task 3 | U8: Task 4 | W8: Task 5 | Y8: Task 6 | AA8: Task 7 | AC8: Task 8 | AE8: Sub-total annual cost per asset | AO8: Sub-total annual cost per asset | AZ8: Sub-total annual cost per asset | BH8: Sub-total annual cost per asset | BL8: Sub-total annual cost per asset | BN8: Sub-total annual cost per asset | BR8: Sub-total annual cost per asset | BV8: Sub-total annual cost per asset
O9: Minor | Q9: Major | S9: All | U9: All | W9: All | Y9: All | AA9: All | AC9: All | AG9: Lamp | AI9: Visors | AK9: PE Cell | AM9: Misc | AQ9: Lamp change | AT9: PE Cell change | AW9: Misc | BB9: Lamp | BD9: PE Cell | BF9: Misc | BJ9: Price | BK9: Hours (weighted by failure)
B10: # | C10: Description | D10: Type | E10: Route | F10: Category | G10: Lamps (#) | K10: Price | L10: Count | O10: Price | P10: Cycle | Q10: Price | R10: Cycle | S10: Price | T10: Cycle | U10: Price | V10: Cycle | W10: Price | X10: Cycle | Y10: Price | Z10: Cycle | AA10: Price | AB10: Cycle | AC10: Price | AD10: Cycle | AG10: Price | AH10: Cycle | AI10: Price | AJ10: Cycle | AK10: Price | AL10: Cycle | AM10: Price | AN10: Cycle | AQ10: Price | AR10: Failure | AS10: Hours | AT10: Price | AU10: Failure | AV10: Hours | AW10: Price | AX10: Failure | AY10: Hours | BB10: Price | BC10: Failure | BD10: Price | BE10: Failure | BF10: Price | BG10: Failure | BP10: Rate | BQ10: Cost | BT10: Rate | BU10: Cost
B12: ='Input - Inventory'!B9 -> 1 | C12: ='Input - Inventory'!C9 -> O/U | D12: ='Input - Inventory'!D9 -> Connection | E12: ='Input - Inventory'!E9 -> NonTraffic | F12: ='Input - Inventory'!F9 -> n/a | G12: ='Input - Inventory'!H9 -> 0 | I12: =CONCATENATE(D12," - ",C12) -> Connection - O/U | K12: =AE12+AO12+AZ12+BH12+BL12+BN12+BR12+BV12 -> 103.1278753 | L12: =INDIRECT(L$10&$B12&"FY19") -> 576 | M12: =L12*K12 -> 59401.65618 | O12: =IF(AND($D12="Lamp", OR($F12=O$9, O$9="All")),IF('Input - Inventory'!G9="N",INDIRECT("PriceBulkTask1" & "FY19"),INDIRECT("PriceBulkTask1LED" & "FY19")),0) -> 0 | P12: =IF(AND($D12="Lamp",CycleBulkTask1<>0, OR($F12=O$9,O$9="All")),IF('Input - Inventory'!G9="N",1/CycleBulkTask1,1/CycleBulkTask1LED),0) -> 0 | Q12: =IF(AND($D12="Lamp", OR($F12=Q$9, Q$9="All")),IF('Input - Inventory'!G9="N",INDIRECT("PriceBulkTask2" & "FY19"),INDIRECT("PriceBulkTask2LED" & "FY19")),0) -> 0 | R12: =IF(AND($D12="Lamp",CycleBulkTask2<>0, OR($F12=Q$9,Q$9="All")),IF('Input - Inventory'!G9="N",1/CycleBulkTask2,1/CycleBulkTask2LED),0) -> 0 | S12: =IF(AND($D12="Lamp", OR($F12=S$9, S$9="All")),INDIRECT("PriceBulkTask3" & "FY19"),0) -> 0 | T12: =IF(AND($D12="Lamp",CycleBulkTask3<>0, OR($F12=S$9,S$9="All")),1/CycleBulkTask3,0) -> 0 | U12: =IF(AND($D12="Lamp", OR($F12=U$9, U$9="All")),INDIRECT("PriceBulkTask4" & "FY19"),0) -> 0 | V12: =IF(AND($D12="Lamp",CycleBulkTask4<>0, OR($F12=U$9,U$9="All")),1/CycleBulkTask4,0) -> 0 | W12: =IF(AND($D12="Lamp", OR($F12=W$9, W$9="All")),INDIRECT("PriceBulkTask5" & "FY19"),0) -> 0 | X12: =IF(AND($D12="Lamp",CycleBulkTask5<>0, OR($F12=W$9,W$9="All")),1/CycleBulkTask5,0) -> 0 | Y12: =IF(AND($D12="Lamp", OR($F12=Y$9, Y$9="All")),INDIRECT("PriceBulkTask6" & "FY19"),0) -> 0 | Z12: =IF(AND($D12="Lamp",CycleBulkTask6<>0, OR($F12=Y$9,Y$9="All")),1/CycleBulkTask6,0) -> 0 | AA12: =IF(AND($D12="Lamp", OR($F12=AA$9, AA$9="All")),INDIRECT("PriceBulkTask7" & "FY19"),0) -> 0 | AB12: =IF(AND($D12="Lamp",CycleBulkTask7<>0, OR($F12=AA$9,AA$9="All")),1/CycleBulkTask7,0) -> 0 | AC12: =IF(AND($D12="Lamp", OR($F12=AC$9, AC$9="All")),INDIRECT("PriceBulkTask8" & "FY19"),0) -> 0 | AD12: =IF(AND($D12="Lamp",CycleBulkTask8<>0, OR($F12=AC$9,AC$9="All")),1/CycleBulkTask8,0) -> 0 | AE12: =O12*P12+Q12*R12+S12*T12+U12*V12+W12*X12+Y12*Z12+AA12*AB12+AC12*AD12 -> 0 | AG12: =IF($D12="Lamp",$G12*INDIRECT("Price" & $B12 & "FY19"),0) -> 0 | AH12: =MAX(P12,R12) -> 0 | AI12: =IF($D12="Lamp",INDIRECT("PriceVisor" & "FY19"),0) -> 0 | AJ12: =T12 -> 0 | AK12: =IF($D12="Lamp",INDIRECT("PricePECell" & "FY19"),0) -> 0 | AL12: =V12 -> 0 | AM12: =IF($D12="Lamp",INDIRECT("PriceMisc" & "FY19"),0) -> 0 | AN12: =X12+AB12 -> 0 | AO12: =AG12*AH12+AI12*AJ12+AK12*AL12+AM12*AN12 -> 0 | AQ12: =IF($D12=$AG$9,(INDIRECT("PriceLabour" & "FY19")*ProportionStandardHours + INDIRECT("PriceLabourOvertime" & "FY19")*ProportionOvertimeHours)*(1+RateOnCostAnnual),0) -> 0 | AR12: =BC12 -> 0 | AS12: =IF($D12="Lamp",(NumberOfCrew+INDIRECT($E12)*TrafficController)*(TimeToReplaceLamp),0) -> 0 | AT12: =IF($D12=$AG$9,(INDIRECT("PriceLabour" & "FY19")*ProportionStandardHours + INDIRECT("PriceLabourOvertime" & "FY19")*ProportionOvertimeHours)*(1+RateOnCostAnnual),0) -> 0 | AU12: =BE12 -> 0 | AV12: =IF($D12="Lamp",(NumberOfCrew+INDIRECT($E12)*TrafficController)*(TimeForPECellReplace),0) -> 0 | AW12: =IF($D12=$AG$9,(INDIRECT("PriceLabour" & "FY19")*ProportionStandardHours + INDIRECT("PriceLabourOvertime" & "FY19")*ProportionOvertimeHours)*(1+RateOnCostAnnual),0) -> 0 | AX12: =BG12 -> 0 | AY12: =IF($D12="Lamp",(NumberOfCrew+INDIRECT($E12)*TrafficController)*(TimeForOtherSpot),0) -> 0 | AZ12: =AQ12*AR12*AS12+AT12*AU12*AV12+AW12*AX12*AY12 -> 0 | BB12: =IF($D12="Lamp",INDIRECT("Price" & $B12 & "FY19"),0) -> 0 | BC12: =IF($D12="Lamp",INDIRECT(BC$10 & $B12),0) -> 0 | BD12: =IF($D12="Lamp",INDIRECT("pRICEpecELL" & "FY19"),0) -> 0 | BE12: =IF($D12="Lamp",INDIRECT("FailurePECell" & "Annual"),0) -> 0 | BF12: =IF($D12="Lamp",INDIRECT("PriceMisc" & "FY19"),0) -> 0 | BG12: =IF($D12="Lamp",INDIRECT("FailureMisc" & "Annual"),0) -> 0 | BH12: =BB12*BC12+BD12*BE12+BF12*BG12 -> 0 | BJ12: =IF(AND($D12="Lamp"),INDIRECT("PriceEWP"&"FY19"),0) -> 0 | BK12: =AR12*AS12+AU12*AV12+AX12*AY12 -> 0 | BL12: =BJ12*BK12 -> 0 | BN12: =IF($D12="Connection",VLOOKUP(C12,'Input - General'!$F$51:$N$59,4,FALSE),0) -> 76.02951105 | BP12: =RateOverhead -> 0.2227618911 | BQ12: =BL12+AZ12+BH12+AO12+AE12+BN12 -> 76.02951105 | BR12: =BQ12*BP12 -> 16.93647766 | BT12: =CorporateOverheads -> 0.109307573 | BU12: =AE12+AO12+AZ12+BH12+BL12+BN12+BR12 -> 92.96598872 | BV12: =BU12*BT12 -> 10.1618866
B13: ='Input - Inventory'!B10 -> 2 | C13: ='Input - Inventory'!C10 -> OH | D13: ='Input - Inventory'!D10 -> Connection | E13: ='Input - Inventory'!E10 -> NonTraffic | F13: ='Input - Inventory'!F10 -> n/a | G13: ='Input - Inventory'!H10 -> 0 | I13: Connection - OH | K13: 0 | L13: 196623 | M13: 0 | O13: =IF(AND($D13="Lamp", OR($F13=O$9, O$9="All")),IF('Input - Inventory'!G10="N",INDIRECT("PriceBulkTask1" & "FY19"),INDIRECT("PriceBulkTask1LED" & "FY19")),0) -> 0 | P13: =IF(AND($D13="Lamp",CycleBulkTask1<>0, OR($F13=O$9,O$9="All")),IF('Input - Inventory'!G10="N",1/CycleBulkTask1,1/CycleBulkTask1LED),0) -> 0 | Q13: =IF(AND($D13="Lamp", OR($F13=Q$9, Q$9="All")),IF('Input - Inventory'!G10="N",INDIRECT("PriceBulkTask2" & "FY19"),INDIRECT("PriceBulkTask2LED" & "FY19")),0) -> 0 | R13: =IF(AND($D13="Lamp",CycleBulkTask2<>0, OR($F13=Q$9,Q$9="All")),IF('Input - Inventory'!G10="N",1/CycleBulkTask2,1/CycleBulkTask2LED),0) -> 0 | S13: 0 | T13: 0 | U13: 0 | V13: 0 | W13: 0 | X13: 0 | Y13: 0 | Z13: 0 | AA13: 0 | AB13: 0 | AC13: 0 | AD13: 0 | AE13: =O13*P13+Q13*R13+S13*T13+U13*V13+W13*X13+Y13*Z13+AA13*AB13+AC13*AD13 -> 0 | AG13: 0 | AH13: 0 | AI13: 0 | AJ13: =T13 -> 0 | AK13: 0 | AL13: =V13 -> 0 | AM13: 0 | AN13: =X13+AB13 -> 0 | AO13: 0 | AQ13: 0 | AR13: 0 | AS13: 0 | AT13: 0 | AU13: 0 | AV13: 0 | AW13: 0 | AX13: 0 | AY13: 0 | AZ13: 0 | BB13: 0 | BC13: 0 | BD13: 0 | BE13: 0 | BF13: 0 | BG13: 0 | BH13: 0 | BJ13: 0 | BK13: 0 | BL13: 0 | BN13: =IF($D13="Connection",VLOOKUP(C13,'Input - General'!$F$51:$N$59,4,FALSE),0) -> 0 | BP13: 0.2227618911 | BQ13: 0 | BR13: 0 | BT13: 0.109307573 | BU13: 0 | BV13: 0
B14: ='Input - Inventory'!B11 -> 3 | C14: ='Input - Inventory'!C11 -> OH2 | D14: ='Input - Inventory'!D11 -> Connection | E14: ='Input - Inventory'!E11 -> NonTraffic | F14: ='Input - Inventory'!F11 -> n/a | G14: ='Input - Inventory'!H11 -> 0 | I14: Connection - OH2 | K14: 0 | L14: 718 | M14: 0 | O14: =IF(AND($D14="Lamp", OR($F14=O$9, O$9="All")),IF('Input - Inventory'!G11="N",INDIRECT("PriceBulkTask1" & "FY19"),INDIRECT("PriceBulkTask1LED" & "FY19")),0) -> 0 | P14: =IF(AND($D14="Lamp",CycleBulkTask1<>0, OR($F14=O$9,O$9="All")),IF('Input - Inventory'!G11="N",1/CycleBulkTask1,1/CycleBulkTask1LED),0) -> 0 | Q14: =IF(AND($D14="Lamp", OR($F14=Q$9, Q$9="All")),IF('Input - Inventory'!G11="N",INDIRECT("PriceBulkTask2" & "FY19"),INDIRECT("PriceBulkTask2LED" & "FY19")),0) -> 0 | R14: =IF(AND($D14="Lamp",CycleBulkTask2<>0, OR($F14=Q$9,Q$9="All")),IF('Input - Inventory'!G11="N",1/CycleBulkTask2,1/CycleBulkTask2LED),0) -> 0 | S14: 0 | T14: 0 | U14: 0 | V14: 0 | W14: 0 | X14: 0 | Y14: 0 | Z14: 0 | AA14: 0 | AB14: 0 | AC14: 0 | AD14: 0 | AE14: 0 | AG14: 0 | AH14: 0 | AI14: 0 | AJ14: 0 | AK14: 0 | AL14: 0 | AM14: 0 | AN14: 0 | AO14: 0 | AQ14: 0 | AR14: 0 | AS14: 0 | AT14: 0 | AU14: 0 | AV14: 0 | AW14: 0 | AX14: 0 | AY14: 0 | AZ14: 0 | BB14: 0 | BC14: 0 | BD14: 0 | BE14: 0 | BF14: 0 | BG14: 0 | BH14: 0 | BJ14: 0 | BK14: 0 | BL14: 0 | BN14: =IF($D14="Connection",VLOOKUP(C14,'Input - General'!$F$51:$N$59,4,FALSE),0) -> 0 | BP14: 0.2227618911 | BQ14: 0 | BR14: 0 | BT14: 0.109307573 | BU14: 0 | BV14: 0
B15: ='Input - Inventory'!B12 -> 4 | C15: ='Input - Inventory'!C12 -> OHS | D15: ='Input - Inventory'!D12 -> Connection | E15: ='Input - Inventory'!E12 -> NonTraffic | F15: ='Input - Inventory'!F12 -> n/a | G15: ='Input - Inventory'!H12 -> 0 | I15: Connection - OHS | K15: 0 | L15: 9 | M15: 0 | O15: =IF(AND($D15="Lamp", OR($F15=O$9, O$9="All")),IF('Input - Inventory'!G12="N",INDIRECT("PriceBulkTask1" & "FY19"),INDIRECT("PriceBulkTask1LED" & "FY19")),0) -> 0 | P15: =IF(AND($D15="Lamp",CycleBulkTask1<>0, OR($F15=O$9,O$9="All")),IF('Input - Inventory'!G12="N",1/CycleBulkTask1,1/CycleBulkTask1LED),0) -> 0 | Q15: =IF(AND($D15="Lamp", OR($F15=Q$9, Q$9="All")),IF('Input - Inventory'!G12="N",INDIRECT("PriceBulkTask2" & "FY19"),INDIRECT("PriceBulkTask2LED" & "FY19")),0) -> 0 | R15: =IF(AND($D15="Lamp",CycleBulkTask2<>0, OR($F15=Q$9,Q$9="All")),IF('Input - Inventory'!G12="N",1/CycleBulkTask2,1/CycleBulkTask2LED),0) -> 0 | S15: 0 | T15: 0 | U15: 0 | V15: 0 | W15: 0 | X15: 0 | Y15: 0 | Z15: 0 | AA15: 0 | AB15: 0 | AC15: 0 | AD15: 0 | AE15: 0 | AG15: 0 | AH15: 0 | AI15: 0 | AJ15: 0 | AK15: 0 | AL15: 0 | AM15: 0 | AN15: 0 | AO15: 0 | AQ15: 0 | AR15: 0 | AS15: 0 | AT15: 0 | AU15: 0 | AV15: 0 | AW15: 0 | AX15: 0 | AY15: 0 | AZ15: 0 | BB15: 0 | BC15: 0 | BD15: 0 | BE15: 0 | BF15: 0 | BG15: 0 | BH15: 0 | BJ15: 0 | BK15: 0 | BL15: 0 | BN15: =IF($D15="Connection",VLOOKUP(C15,'Input - General'!$F$51:$N$59,4,FALSE),0) -> 0 | BP15: 0.2227618911 | BQ15: 0 | BR15: 0 | BT15: 0.109307573 | BU15: 0 | BV15: 0
B16: ='Input - Inventory'!B13 -> 5 | C16: ='Input - Inventory'!C13 -> UG2 | D16: ='Input - Inventory'!D13 -> Connection | E16: ='Input - Inventory'!E13 -> NonTraffic | F16: ='Input - Inventory'!F13 -> n/a | G16: ='Input - Inventory'!H13 -> 0 | I16: Connection - UG2 | K16: 0 | L16: 1134 | M16: 0 | O16: =IF(AND($D16="Lamp", OR($F16=O$9, O$9="All")),IF('Input - Inventory'!G13="N",INDIRECT("PriceBulkTask1" & "FY19"),INDIRECT("PriceBulkTask1LED" & "FY19")),0) -> 0 | P16: =IF(AND($D16="Lamp",CycleBulkTask1<>0, OR($F16=O$9,O$9="All")),IF('Input - Inventory'!G13="N",1/CycleBulkTask1,1/CycleBulkTask1LED),0) -> 0 | Q16: =IF(AND($D16="Lamp", OR($F16=Q$9, Q$9="All")),IF('Input - Inventory'!G13="N",INDIRECT("PriceBulkTask2" & "FY19"),INDIRECT("PriceBulkTask2LED" & "FY19")),0) -> 0 | R16: =IF(AND($D16="Lamp",CycleBulkTask2<>0, OR($F16=Q$9,Q$9="All")),IF('Input - Inventory'!G13="N",1/CycleBulkTask2,1/CycleBulkTask2LED),0) -> 0 | S16: 0 | T16: 0 | U16: 0 | V16: 0 | W16: 0 | X16: 0 | Y16: 0 | Z16: 0 | AA16: 0 | AB16: 0 | AC16: 0 | AD16: 0 | AE16: 0 | AG16: 0 | AH16: 0 | AI16: 0 | AJ16: 0 | AK16: 0 | AL16: 0 | AM16: 0 | AN16: 0 | AO16: 0 | AQ16: 0 | AR16: 0 | AS16: 0 | AT16: 0 | AU16: 0 | AV16: 0 | AW16: 0 | AX16: 0 | AY16: 0 | AZ16: 0 | BB16: 0 | BC16: 0 | BD16: 0 | BE16: 0 | BF16: 0 | BG16: 0 | BH16: 0 | BJ16: 0 | BK16: 0 | BL16: 0 | BN16: =IF($D16="Connection",VLOOKUP(C16,'Input - General'!$F$51:$N$59,4,FALSE),0) -> 0 | BP16: 0.2227618911 | BQ16: 0 | BR16: 0 | BT16: 0.109307573 | BU16: 0 | BV16: 0
B17: ='Input - Inventory'!B14 -> 6 | C17: ='Input - Inventory'!C14 -> UGR1 | D17: ='Input - Inventory'!D14 -> Connection | E17: ='Input - Inventory'!E14 -> NonTraffic | F17: ='Input - Inventory'!F14 -> n/a | G17: ='Input - Inventory'!H14 -> 0 | I17: Connection - UGR1 | K17: 94.5314959 | L17: 31792 | M17: 3005345.317 | O17: =IF(AND($D17="Lamp", OR($F17=O$9, O$9="All")),IF('Input - Inventory'!G14="N",INDIRECT("PriceBulkTask1" & "FY19"),INDIRECT("PriceBulkTask1LED" & "FY19")),0) -> 0 | P17: =IF(AND($D17="Lamp",CycleBulkTask1<>0, OR($F17=O$9,O$9="All")),IF('Input - Inventory'!G14="N",1/CycleBulkTask1,1/CycleBulkTask1LED),0) -> 0 | Q17: =IF(AND($D17="Lamp", OR($F17=Q$9, Q$9="All")),IF('Input - Inventory'!G14="N",INDIRECT("PriceBulkTask2" & "FY19"),INDIRECT("PriceBulkTask2LED" & "FY19")),0) -> 0 | R17: =IF(AND($D17="Lamp",CycleBulkTask2<>0, OR($F17=Q$9,Q$9="All")),IF('Input - Inventory'!G14="N",1/CycleBulkTask2,1/CycleBulkTask2LED),0) -> 0 | S17: 0 | T17: 0 | U17: 0 | V17: 0 | W17: 0 | X17: 0 | Y17: 0 | Z17: 0 | AA17: 0 | AB17: 0 | AC17: 0 | AD17: 0 | AE17: 0 | AG17: 0 | AH17: 0 | AI17: 0 | AJ17: 0 | AK17: 0 | AL17: 0 | AM17: 0 | AN17: 0 | AO17: 0 | AQ17: 0 | AR17: 0 | AS17: 0 | AT17: 0 | AU17: 0 | AV17: 0 | AW17: 0 | AX17: 0 | AY17: 0 | AZ17: 0 | BB17: 0 | BC17: 0 | BD17: 0 | BE17: 0 | BF17: 0 | BG17: 0 | BH17: 0 | BJ17: 0 | BK17: 0 | BL17: 0 | BN17: =IF($D17="Connection",VLOOKUP(C17,'Input - General'!$F$51:$N$59,4,FALSE),0) -> 69.69195661 | BP17: 0.2227618911 | BQ17: 69.69195661 | BR17: 15.52471205 | BT17: 0.109307573 | BU17: 85.21666866 | BV17: 9.31482723
B18: ='Input - Inventory'!B15 -> 7 | C18: ='Input - Inventory'!C15 -> UGR2 | D18: ='Input - Inventory'!D15 -> Connection | E18: ='Input - Inventory'!E15 -> NonTraffic | F18: ='Input - Inventory'!F15 -> n/a | G18: ='Input - Inventory'!H15 -> 0 | I18: Connection - UGR2 | K18: 34.37084401 | L18: 20937 | M18: 719622.3609 | O18: =IF(AND($D18="Lamp", OR($F18=O$9, O$9="All")),IF('Input - Inventory'!G15="N",INDIRECT("PriceBulkTask1" & "FY19"),INDIRECT("PriceBulkTask1LED" & "FY19")),0) -> 0 | P18: =IF(AND($D18="Lamp",CycleBulkTask1<>0, OR($F18=O$9,O$9="All")),IF('Input - Inventory'!G15="N",1/CycleBulkTask1,1/CycleBulkTask1LED),0) -> 0 | Q18: =IF(AND($D18="Lamp", OR($F18=Q$9, Q$9="All")),IF('Input - Inventory'!G15="N",INDIRECT("PriceBulkTask2" & "FY19"),INDIRECT("PriceBulkTask2LED" & "FY19")),0) -> 0 | R18: =IF(AND($D18="Lamp",CycleBulkTask2<>0, OR($F18=Q$9,Q$9="All")),IF('Input - Inventory'!G15="N",1/CycleBulkTask2,1/CycleBulkTask2LED),0) -> 0 | S18: 0 | T18: 0 | U18: 0 | V18: 0 | W18: 0 | X18: 0 | Y18: 0 | Z18: 0 | AA18: 0 | AB18: 0 | AC18: 0 | AD18: 0 | AE18: 0 | AG18: 0 | AH18: 0 | AI18: 0 | AJ18: 0 | AK18: 0 | AL18: 0 | AM18: 0 | AN18: 0 | AO18: 0 | AQ18: 0 | AR18: 0 | AS18: 0 | AT18: 0 | AU18: 0 | AV18: 0 | AW18: 0 | AX18: 0 | AY18: 0 | AZ18: 0 | BB18: 0 | BC18: 0 | BD18: 0 | BE18: 0 | BF18: 0 | BG18: 0 | BH18: 0 | BJ18: 0 | BK18: 0 | BL18: 0 | BN18: =IF($D18="Connection",VLOOKUP(C18,'Input - General'!$F$51:$N$59,4,FALSE),0) -> 25.33939981 | BP18: 0.2227618911 | BQ18: 25.33939981 | BR18: 5.644652622 | BT18: 0.109307573 | BU18: 30.98405243 | BV18: 3.386791573
B19: ='Input - Inventory'!B16 -> 8 | C19: ='Input - Inventory'!C16 -> UGS | D19: ='Input - Inventory'!D16 -> Connection | E19: ='Input - Inventory'!E16 -> NonTraffic | F19: ='Input - Inventory'!F16 -> n/a | G19: ='Input - Inventory'!H16 -> 0 | I19: Connection - UGS | K19: 0 | L19: 108 | M19: 0 | O19: =IF(AND($D19="Lamp", OR($F19=O$9, O$9="All")),IF('Input - Inventory'!G16="N",INDIRECT("PriceBulkTask1" & "FY19"),INDIRECT("PriceBulkTask1LED" & "FY19")),0) -> 0 | P19: =IF(AND($D19="Lamp",CycleBulkTask1<>0, OR($F19=O$9,O$9="All")),IF('Input - Inventory'!G16="N",1/CycleBulkTask1,1/CycleBulkTask1LED),0) -> 0 | Q19: =IF(AND($D19="Lamp", OR($F19=Q$9, Q$9="All")),IF('Input - Inventory'!G16="N",INDIRECT("PriceBulkTask2" & "FY19"),INDIRECT("PriceBulkTask2LED" & "FY19")),0) -> 0 | R19: =IF(AND($D19="Lamp",CycleBulkTask2<>0, OR($F19=Q$9,Q$9="All")),IF('Input - Inventory'!G16="N",1/CycleBulkTask2,1/CycleBulkTask2LED),0) -> 0 | S19: 0 | T19: 0 | U19: 0 | V19: 0 | W19: 0 | X19: 0 | Y19: 0 | Z19: 0 | AA19: 0 | AB19: 0 | AC19: 0 | AD19: 0 | AE19: 0 | AG19: 0 | AH19: 0 | AI19: 0 | AJ19: 0 | AK19: 0 | AL19: 0 | AM19: 0 | AN19: 0 | AO19: 0 | AQ19: 0 | AR19: 0 | AS19: 0 | AT19: 0 | AU19: 0 | AV19: 0 | AW19: 0 | AX19: 0 | AY19: 0 | AZ19: 0 | BB19: 0 | BC19: 0 | BD19: 0 | BE19: 0 | BF19: 0 | BG19: 0 | BH19: 0 | BJ19: 0 | BK19: 0 | BL19: 0 | BN19: =IF($D19="Connection",VLOOKUP(C19,'Input - General'!$F$51:$N$59,4,FALSE),0) -> 0 | BP19: 0.2227618911 | BQ19: 0 | BR19: 0 | BT19: 0.109307573 | BU19: 0 | BV19: 0
B20: ='Input - Inventory'!B17 -> 9 | C20: ='Input - Inventory'!C17 -> UG-SP | D20: ='Input - Inventory'!D17 -> Connection | E20: ='Input - Inventory'!E17 -> NonTraffic | F20: ='Input - Inventory'!F17 -> n/a | G20: ='Input - Inventory'!H17 -> 0 | I20: Connection - UG-SP | K20: 0 | L20: 13 | M20: 0 | O20: =IF(AND($D20="Lamp", OR($F20=O$9, O$9="All")),IF('Input - Inventory'!G17="N",INDIRECT("PriceBulkTask1" & "FY19"),INDIRECT("PriceBulkTask1LED" & "FY19")),0) -> 0 | P20: =IF(AND($D20="Lamp",CycleBulkTask1<>0, OR($F20=O$9,O$9="All")),IF('Input - Inventory'!G17="N",1/CycleBulkTask1,1/CycleBulkTask1LED),0) -> 0 | Q20: =IF(AND($D20="Lamp", OR($F20=Q$9, Q$9="All")),IF('Input - Inventory'!G17="N",INDIRECT("PriceBulkTask2" & "FY19"),INDIRECT("PriceBulkTask2LED" & "FY19")),0) -> 0 | R20: =IF(AND($D20="Lamp",CycleBulkTask2<>0, OR($F20=Q$9,Q$9="All")),IF('Input - Inventory'!G17="N",1/CycleBulkTask2,1/CycleBulkTask2LED),0) -> 0 | S20: 0 | T20: 0 | U20: 0 | V20: 0 | W20: 0 | X20: 0 | Y20: 0 | Z20: 0 | AA20: 0 | AB20: 0 | AC20: 0 | AD20: 0 | AE20: 0 | AG20: 0 | AH20: 0 | AI20: 0 | AJ20: 0 | AK20: 0 | AL20: 0 | AM20: 0 | AN20: 0 | AO20: 0 | AQ20: 0 | AR20: 0 | AS20: 0 | AT20: 0 | AU20: 0 | AV20: 0 | AW20: 0 | AX20: 0 | AY20: 0 | AZ20: 0 | BB20: 0 | BC20: 0 | BD20: 0 | BE20: 0 | BF20: 0 | BG20: 0 | BH20: 0 | BJ20: 0 | BK20: 0 | BL20: 0 | BN20: =IF($D20="Connection",VLOOKUP(C20,'Input - General'!$F$51:$N$59,4,FALSE),0) -> 0 | BP20: 0.2227618911 | BQ20: 0 | BR20: 0 | BT20: 0.109307573 | BU20: 0 | BV20: 0
B21: ='Input - Inventory'!B18 -> 10 | C21: ='Input - Inventory'!C18 -> LED TRIAL | D21: ='Input - Inventory'!D18 -> Lamp | E21: ='Input - Inventory'!E18 -> NonTraffic | F21: ='Input - Inventory'!F18 -> Minor | G21: ='Input - Inventory'!H18 -> 1 | I21: Lamp - LED TRIAL | K21: 22.89503309 | L21: 67 | M21: 1533.967217 | O21: =IF(AND($D21="Lamp", OR($F21=O$9, O$9="All")),IF('Input - Inventory'!G18="N",INDIRECT("PriceBulkTask1" & "FY19"),INDIRECT("PriceBulkTask1LED" & "FY19")),0) -> 25.22503701 | P21: =IF(AND($D21="Lamp",CycleBulkTask1<>0, OR($F21=O$9,O$9="All")),IF('Input - Inventory'!G18="N",1/CycleBulkTask1,1/CycleBulkTask1LED),0) -> 0.1666666667 | Q21: =IF(AND($D21="Lamp", OR($F21=Q$9, Q$9="All")),IF('Input - Inventory'!G18="N",INDIRECT("PriceBulkTask2" & "FY19"),INDIRECT("PriceBulkTask2LED" & "FY19")),0) -> 0 | R21: =IF(AND($D21="Lamp",CycleBulkTask2<>0, OR($F21=Q$9,Q$9="All")),IF('Input - Inventory'!G18="N",1/CycleBulkTask2,1/CycleBulkTask2LED),0) -> 0 | S21: 11.74249459 | T21: 0.007123137293 | U21: 5.699151855 | V21: 0 | W21: 24.68074191 | X21: 0.005931168948 | Y21: 14.78572079 | Z21: 0.02002998353 | AA21: 41.10076471 | AB21: 0.01503682404 | AC21: 8476.3583 | AD21: 6.144166728e-05 | AE21: 5.869186184 | AG21: 0 | AH21: 0.1666666667 | AI21: 50.83443924 | AJ21: 0.007123137293 | AK21: 11.29013046 | AL21: 0 | AM21: 15.33629526 | AN21: 0.02096799299 | AO21: 0.6836720213 | AQ21: 88.30902802 | AR21: 0 | AS21: 1.513333333 | AT21: 88.30902802 | AU21: 0.0198285774 | AV21: =IF($D21="Lamp",(NumberOfCrew+INDIRECT($E21)*TrafficController)*(TimeForPECellReplace),0) -> 1.513333333 | AW21: 88.30902802 | AX21: 0.03256191236 | AY21: 1.513333333 | AZ21: 7.001517219 | BB21: 0 | BC21: 0 | BD21: 11.29013046 | BE21: 0.0198285774 | BF21: 15.33629526 | BG21: 0.03256191236 | BH21: 0.7232463278 | BJ21: 32.81110994 | BK21: 0.0792842745 | BL21: 2.601405047 | BN21: =IF($D21="Connection",VLOOKUP(C21,'Input - General'!$F$51:$N$59,4,FALSE),0) -> 0 | BP21: 0.2227618911 | BQ21: 16.8790268 | BR21: 3.76000393 | BT21: 0.109307573 | BU21: 20.63903073 | BV21: 2.256002358
B22: ='Input - Inventory'!B19 -> 11 | C22: ='Input - Inventory'!C19 -> LED1x100 | D22: ='Input - Inventory'!D19 -> Lamp | E22: ='Input - Inventory'!E19 -> Traffic | F22: ='Input - Inventory'!F19 -> Major | G22: ='Input - Inventory'!H19 -> 1 | I22: Lamp - LED1x100 | K22: 30.34785015 | L22: 6 | M22: 182.0871009 | O22: =IF(AND($D22="Lamp", OR($F22=O$9, O$9="All")),IF('Input - Inventory'!G19="N",INDIRECT("PriceBulkTask1" & "FY19"),INDIRECT("PriceBulkTask1LED" & "FY19")),0) -> 0 | P22: =IF(AND($D22="Lamp",CycleBulkTask1<>0, OR($F22=O$9,O$9="All")),IF('Input - Inventory'!G19="N",1/CycleBulkTask1,1/CycleBulkTask1LED),0) -> 0 | Q22: =IF(AND($D22="Lamp", OR($F22=Q$9, Q$9="All")),IF('Input - Inventory'!G19="N",INDIRECT("PriceBulkTask2" & "FY19"),INDIRECT("PriceBulkTask2LED" & "FY19")),0) -> 29.38314957 | R22: =IF(AND($D22="Lamp",CycleBulkTask2<>0, OR($F22=Q$9,Q$9="All")),IF('Input - Inventory'!G19="N",1/CycleBulkTask2,1/CycleBulkTask2LED),0) -> 0.1666666667 | S22: 11.74249459 | T22: 0.007123137293 | U22: 5.699151855 | V22: 0 | W22: 24.68074191 | X22: 0.005931168948 | Y22: 14.78572079 | Z22: 0.02002998353 | AA22: 41.10076471 | AB22: 0.01503682404 | AC22: 8476.3583 | AD22: 6.144166728e-05 | AE22: 6.562204943 | AG22: 0 | AH22: 0.1666666667 | AI22: 50.83443924 | AJ22: 0.007123137293 | AK22: 11.29013046 | AL22: 0 | AM22: 15.33629526 | AN22: 0.02096799299 | AO22: 0.6836720213 | AQ22: 88.30902802 | AR22: 0 | AS22: 2.27 | AT22: 88.30902802 | AU22: 0.0198285774 | AV22: 2.27 | AW22: 88.30902802 | AX22: 0.03256191236 | AY22: 2.27 | AZ22: 10.50227583 | BB22: 0 | BC22: 0 | BD22: 11.29013046 | BE22: 0.0198285774 | BF22: 15.33629526 | BG22: 0.03256191236 | BH22: 0.7232463278 | BJ22: 32.81110994 | BK22: 0.1189264117 | BL22: 3.90210757 | BN22: =IF($D22="Connection",VLOOKUP(C22,'Input - General'!$F$51:$N$59,4,FALSE),0) -> 0 | BP22: 0.2227618911 | BQ22: 22.37350669 | BR22: 4.983964661 | BT22: 0.109307573 | BU22: 27.35747135 | BV22: 2.990378797
B23: ='Input - Inventory'!B20 -> 12 | C23: ='Input - Inventory'!C20 -> LED1x17 | D23: ='Input - Inventory'!D20 -> Lamp | E23: ='Input - Inventory'!E20 -> NonTraffic | F23: ='Input - Inventory'!F20 -> Minor | G23: ='Input - Inventory'!H20 -> 1 | I23: Lamp - LED1x17 | K23: 22.89503309 | L23: 2793 | M23: 63945.82741 | O23: =IF(AND($D23="Lamp", OR($F23=O$9, O$9="All")),IF('Input - Inventory'!G20="N",INDIRECT("PriceBulkTask1" & "FY19"),INDIRECT("PriceBulkTask1LED" & "FY19")),0) -> 25.22503701 | P23: =IF(AND($D23="Lamp",CycleBulkTask1<>0, OR($F23=O$9,O$9="All")),IF('Input - Inventory'!G20="N",1/CycleBulkTask1,1/CycleBulkTask1LED),0) -> 0.1666666667 | Q23: =IF(AND($D23="Lamp", OR($F23=Q$9, Q$9="All")),IF('Input - Inventory'!G20="N",INDIRECT("PriceBulkTask2" & "FY19"),INDIRECT("PriceBulkTask2LED" & "FY19")),0) -> 0 | R23: =IF(AND($D23="Lamp",CycleBulkTask2<>0, OR($F23=Q$9,Q$9="All")),IF('Input - Inventory'!G20="N",1/CycleBulkTask2,1/CycleBulkTask2LED),0) -> 0 | S23: 11.74249459 | T23: 0.007123137293 | U23: 5.699151855 | V23: 0 | W23: 24.68074191 | X23: 0.005931168948 | Y23: 14.78572079 | Z23: 0.02002998353 | AA23: 41.10076471 | AB23: 0.01503682404 | AC23: 8476.3583 | AD23: 6.144166728e-05 | AE23: 5.869186184 | AG23: 0 | AH23: 0.1666666667 | AI23: 50.83443924 | AJ23: 0.007123137293 | AK23: 11.29013046 | AL23: 0 | AM23: 15.33629526 | AN23: 0.02096799299 | AO23: 0.6836720213 | AQ23: 88.30902802 | AR23: 0 | AS23: 1.513333333 | AT23: 88.30902802 | AU23: 0.0198285774 | AV23: 1.513333333 | AW23: 88.30902802 | AX23: 0.03256191236 | AY23: 1.513333333 | AZ23: 7.001517219 | BB23: 0 | BC23: 0 | BD23: 11.29013046 | BE23: 0.0198285774 | BF23: 15.33629526 | BG23: 0.03256191236 | BH23: 0.7232463278 | BJ23: 32.81110994 | BK23: 0.0792842745 | BL23: 2.601405047 | BN23: =IF($D23="Connection",VLOOKUP(C23,'Input - General'!$F$51:$N$59,4,FALSE),0) -> 0 | BP23: 0.2227618911 | BQ23: 16.8790268 | BR23: 3.76000393 | BT23: 0.109307573 | BU23: 20.63903073 | BV23: 2.256002358
B24: ='Input - Inventory'!B21 -> 13 | C24: ='Input - Inventory'!C21 -> LED1x18 | D24: ='Input - Inventory'!D21 -> Lamp | E24: ='Input - Inventory'!E21 -> NonTraffic | F24: ='Input - Inventory'!F21 -> Minor | G24: ='Input - Inventory'!H21 -> 1 | I24: Lamp - LED1x18 | K24: 22.89503309 | L24: 0 | M24: 0 | O24: =IF(AND($D24="Lamp", OR($F24=O$9, O$9="All")),IF('Input - Inventory'!G21="N",INDIRECT("PriceBulkTask1" & "FY19"),INDIRECT("PriceBulkTask1LED" & "FY19")),0) -> 25.22503701 | P24: =IF(AND($D24="Lamp",CycleBulkTask1<>0, OR($F24=O$9,O$9="All")),IF('Input - Inventory'!G21="N",1/CycleBulkTask1,1/CycleBulkTask1LED),0) -> 0.1666666667 | Q24: =IF(AND($D24="Lamp", OR($F24=Q$9, Q$9="All")),IF('Input - Inventory'!G21="N",INDIRECT("PriceBulkTask2" & "FY19"),INDIRECT("PriceBulkTask2LED" & "FY19")),0) -> 0 | R24: =IF(AND($D24="Lamp",CycleBulkTask2<>0, OR($F24=Q$9,Q$9="All")),IF('Input - Inventory'!G21="N",1/CycleBulkTask2,1/CycleBulkTask2LED),0) -> 0 | S24: 11.74249459 | T24: 0.007123137293 | U24: 5.699151855 | V24: 0 | W24: 24.68074191 | X24: 0.005931168948 | Y24: 14.78572079 | Z24: 0.02002998353 | AA24: 41.10076471 | AB24: 0.01503682404 | AC24: 8476.3583 | AD24: 6.144166728e-05 | AE24: 5.869186184 | AG24: 0 | AH24: 0.1666666667 | AI24: 50.83443924 | AJ24: 0.007123137293 | AK24: 11.29013046 | AL24: 0 | AM24: 15.33629526 | AN24: 0.02096799299 | AO24: 0.6836720213 | AQ24: 88.30902802 | AR24: 0 | AS24: 1.513333333 | AT24: 88.30902802 | AU24: 0.0198285774 | AV24: 1.513333333 | AW24: 88.30902802 | AX24: 0.03256191236 | AY24: 1.513333333 | AZ24: 7.001517219 | BB24: 0 | BC24: 0 | BD24: 11.29013046 | BE24: 0.0198285774 | BF24: 15.33629526 | BG24: 0.03256191236 | BH24: 0.7232463278 | BJ24: 32.81110994 | BK24: 0.0792842745 | BL24: 2.601405047 | BN24: =IF($D24="Connection",VLOOKUP(C24,'Input - General'!$F$51:$N$59,4,FALSE),0) -> 0 | BP24: 0.2227618911 | BQ24: 16.8790268 | BR24: 3.76000393 | BT24: 0.109307573 | BU24: 20.63903073 | BV24: 2.256002358
B25: ='Input - Inventory'!B22 -> 14 | C25: ='Input - Inventory'!C22 -> LED1x20 | D25: ='Input - Inventory'!D22 -> Lamp | E25: ='Input - Inventory'!E22 -> NonTraffic | F25: ='Input - Inventory'!F22 -> Minor | G25: ='Input - Inventory'!H22 -> 1 | I25: Lamp - LED1x20 | K25: 22.89503309 | L25: 0 | M25: 0 | O25: =IF(AND($D25="Lamp", OR($F25=O$9, O$9="All")),IF('Input - Inventory'!G22="N",INDIRECT("PriceBulkTask1" & "FY19"),INDIRECT("PriceBulkTask1LED" & "FY19")),0) -> 25.22503701 | P25: =IF(AND($D25="Lamp",CycleBulkTask1<>0, OR($F25=O$9,O$9="All")),IF('Input - Inventory'!G22="N",1/CycleBulkTask1,1/CycleBulkTask1LED),0) -> 0.1666666667 | Q25: =IF(AND($D25="Lamp", OR($F25=Q$9, Q$9="All")),IF('Input - Inventory'!G22="N",INDIRECT("PriceBulkTask2" & "FY19"),INDIRECT("PriceBulkTask2LED" & "FY19")),0) -> 0 | R25: =IF(AND($D25="Lamp",CycleBulkTask2<>0, OR($F25=Q$9,Q$9="All")),IF('Input - Inventory'!G22="N",1/CycleBulkTask2,1/CycleBulkTask2LED),0) -> 0 | S25: 11.74249459 | T25: 0.007123137293 | U25: 5.699151855 | V25: 0 | W25: 24.68074191 | X25: 0.005931168948 | Y25: 14.78572079 | Z25: 0.02002998353 | AA25: 41.10076471 | AB25: 0.01503682404 | AC25: 8476.3583 | AD25: 6.144166728e-05 | AE25: 5.869186184 | AG25: 0 | AH25: 0.1666666667 | AI25: 50.83443924 | AJ25: 0.007123137293 | AK25: 11.29013046 | AL25: 0 | AM25: 15.33629526 | AN25: 0.02096799299 | AO25: 0.6836720213 | AQ25: 88.30902802 | AR25: 0 | AS25: 1.513333333 | AT25: 88.30902802 | AU25: 0.0198285774 | AV25: 1.513333333 | AW25: 88.30902802 | AX25: 0.03256191236 | AY25: 1.513333333 | AZ25: 7.001517219 | BB25: 0 | BC25: 0 | BD25: 11.29013046 | BE25: 0.0198285774 | BF25: 15.33629526 | BG25: 0.03256191236 | BH25: 0.7232463278 | BJ25: 32.81110994 | BK25: 0.0792842745 | BL25: 2.601405047 | BN25: =IF($D25="Connection",VLOOKUP(C25,'Input - General'!$F$51:$N$59,4,FALSE),0) -> 0 | BP25: 0.2227618911 | BQ25: 16.8790268 | BR25: 3.76000393 | BT25: 0.109307573 | BU25: 20.63903073 | BV25: 2.256002358
B26: ='Input - Inventory'!B23 -> 15 | C26: ='Input - Inventory'!C23 -> LED1x200 | D26: ='Input - Inventory'!D23 -> Lamp | E26: ='Input - Inventory'!E23 -> Traffic | F26: ='Input - Inventory'!F23 -> Major | G26: ='Input - Inventory'!H23 -> 1 | I26: Lamp - LED1x200 | K26: 30.34785015 | L26: 14 | M26: 424.8699021 | O26: =IF(AND($D26="Lamp", OR($F26=O$9, O$9="All")),IF('Input - Inventory'!G23="N",INDIRECT("PriceBulkTask1" & "FY19"),INDIRECT("PriceBulkTask1LED" & "FY19")),0) -> 0 | P26: =IF(AND($D26="Lamp",CycleBulkTask1<>0, OR($F26=O$9,O$9="All")),IF('Input - Inventory'!G23="N",1/CycleBulkTask1,1/CycleBulkTask1LED),0) -> 0 | Q26: =IF(AND($D26="Lamp", OR($F26=Q$9, Q$9="All")),IF('Input - Inventory'!G23="N",INDIRECT("PriceBulkTask2" & "FY19"),INDIRECT("PriceBulkTask2LED" & "FY19")),0) -> 29.38314957 | R26: =IF(AND($D26="Lamp",CycleBulkTask2<>0, OR($F26=Q$9,Q$9="All")),IF('Input - Inventory'!G23="N",1/CycleBulkTask2,1/CycleBulkTask2LED),0) -> 0.1666666667 | S26: 11.74249459 | T26: 0.007123137293 | U26: 5.699151855 | V26: 0 | W26: 24.68074191 | X26: 0.005931168948 | Y26: 14.78572079 | Z26: 0.02002998353 | AA26: 41.10076471 | AB26: 0.01503682404 | AC26: 8476.3583 | AD26: 6.144166728e-05 | AE26: 6.562204943 | AG26: 0 | AH26: 0.1666666667 | AI26: 50.83443924 | AJ26: 0.007123137293 | AK26: 11.29013046 | AL26: 0 | AM26: 15.33629526 | AN26: 0.02096799299 | AO26: 0.6836720213 | AQ26: 88.30902802 | AR26: 0 | AS26: 2.27 | AT26: 88.30902802 | AU26: 0.0198285774 | AV26: 2.27 | AW26: 88.30902802 | AX26: 0.03256191236 | AY26: 2.27 | AZ26: 10.50227583 | BB26: 0 | BC26: 0 | BD26: 11.29013046 | BE26: 0.0198285774 | BF26: 15.33629526 | BG26: 0.03256191236 | BH26: 0.7232463278 | BJ26: 32.81110994 | BK26: 0.1189264117 | BL26: 3.90210757 | BN26: =IF($D26="Connection",VLOOKUP(C26,'Input - General'!$F$51:$N$59,4,FALSE),0) -> 0 | BP26: 0.2227618911 | BQ26: 22.37350669 | BR26: 4.983964661 | BT26: 0.109307573 | BU26: 27.35747135 | BV26: 2.990378797
B27: ='Input - Inventory'!B24 -> 16 | C27: ='Input - Inventory'!C24 -> LED1x22 | D27: ='Input - Inventory'!D24 -> Lamp | E27: ='Input - Inventory'!E24 -> NonTraffic | F27: ='Input - Inventory'!F24 -> Minor | G27: ='Input - Inventory'!H24 -> 1 | I27: Lamp - LED1x22 | K27: 22.89503309 | L27: 14394 | M27: 329551.1062 | O27: =IF(AND($D27="Lamp", OR($F27=O$9, O$9="All")),IF('Input - Inventory'!G24="N",INDIRECT("PriceBulkTask1" & "FY19"),INDIRECT("PriceBulkTask1LED" & "FY19")),0) -> 25.22503701 | P27: =IF(AND($D27="Lamp",CycleBulkTask1<>0, OR($F27=O$9,O$9="All")),IF('Input - Inventory'!G24="N",1/CycleBulkTask1,1/CycleBulkTask1LED),0) -> 0.1666666667 | Q27: =IF(AND($D27="Lamp", OR($F27=Q$9, Q$9="All")),IF('Input - Inventory'!G24="N",INDIRECT("PriceBulkTask2" & "FY19"),INDIRECT("PriceBulkTask2LED" & "FY19")),0) -> 0 | R27: =IF(AND($D27="Lamp",CycleBulkTask2<>0, OR($F27=Q$9,Q$9="All")),IF('Input - Inventory'!G24="N",1/CycleBulkTask2,1/CycleBulkTask2LED),0) -> 0 | S27: 11.74249459 | T27: 0.007123137293 | U27: 5.699151855 | V27: 0 | W27: 24.68074191 | X27: 0.005931168948 | Y27: 14.78572079 | Z27: 0.02002998353 | AA27: 41.10076471 | AB27: 0.01503682404 | AC27: 8476.3583 | AD27: 6.144166728e-05 | AE27: 5.869186184 | AG27: 0 | AH27: 0.1666666667 | AI27: 50.83443924 | AJ27: 0.007123137293 | AK27: 11.29013046 | AL27: 0 | AM27: 15.33629526 | AN27: 0.02096799299 | AO27: 0.6836720213 | AQ27: 88.30902802 | AR27: 0 | AS27: 1.513333333 | AT27: 88.30902802 | AU27: 0.0198285774 | AV27: 1.513333333 | AW27: 88.30902802 | AX27: 0.03256191236 | AY27: 1.513333333 | AZ27: 7.001517219 | BB27: 0 | BC27: 0 | BD27: 11.29013046 | BE27: 0.0198285774 | BF27: 15.33629526 | BG27: 0.03256191236 | BH27: 0.7232463278 | BJ27: 32.81110994 | BK27: 0.0792842745 | BL27: 2.601405047 | BN27: =IF($D27="Connection",VLOOKUP(C27,'Input - General'!$F$51:$N$59,4,FALSE),0) -> 0 | BP27: 0.2227618911 | BQ27: 16.8790268 | BR27: 3.76000393 | BT27: 0.109307573 | BU27: 20.63903073 | BV27: 2.256002358
B28: ='Input - Inventory'!B25 -> 17 | C28: ='Input - Inventory'!C25 -> LED1x25 GE | D28: ='Input - Inventory'!D25 -> Lamp | E28: ='Input - Inventory'!E25 -> NonTraffic | F28: ='Input - Inventory'!F25 -> Minor | G28: ='Input - Inventory'!H25 -> 1 | I28: Lamp - LED1x25 GE | K28: 22.89503309 | L28: 3665 | M28: 83910.29626 | O28: =IF(AND($D28="Lamp", OR($F28=O$9, O$9="All")),IF('Input - Inventory'!G25="N",INDIRECT("PriceBulkTask1" & "FY19"),INDIRECT("PriceBulkTask1LED" & "FY19")),0) -> 25.22503701 | P28: =IF(AND($D28="Lamp",CycleBulkTask1<>0, OR($F28=O$9,O$9="All")),IF('Input - Inventory'!G25="N",1/CycleBulkTask1,1/CycleBulkTask1LED),0) -> 0.1666666667 | Q28: =IF(AND($D28="Lamp", OR($F28=Q$9, Q$9="All")),IF('Input - Inventory'!G25="N",INDIRECT("PriceBulkTask2" & "FY19"),INDIRECT("PriceBulkTask2LED" & "FY19")),0) -> 0 | R28: =IF(AND($D28="Lamp",CycleBulkTask2<>0, OR($F28=Q$9,Q$9="All")),IF('Input - Inventory'!G25="N",1/CycleBulkTask2,1/CycleBulkTask2LED),0) -> 0 | S28: 11.74249459 | T28: 0.007123137293 | U28: 5.699151855 | V28: 0 | W28: 24.68074191 | X28: 0.005931168948 | Y28: 14.78572079 | Z28: 0.02002998353 | AA28: 41.10076471 | AB28: 0.01503682404 | AC28: 8476.3583 | AD28: 6.144166728e-05 | AE28: 5.869186184 | AG28: 0 | AH28: 0.1666666667 | AI28: 50.83443924 | AJ28: 0.007123137293 | AK28: 11.29013046 | AL28: 0 | AM28: 15.33629526 | AN28: 0.02096799299 | AO28: 0.6836720213 | AQ28: 88.30902802 | AR28: 0 | AS28: 1.513333333 | AT28: 88.30902802 | AU28: 0.0198285774 | AV28: 1.513333333 | AW28: 88.30902802 | AX28: 0.03256191236 | AY28: 1.513333333 | AZ28: 7.001517219 | BB28: 0 | BC28: 0 | BD28: 11.29013046 | BE28: 0.0198285774 | BF28: 15.33629526 | BG28: 0.03256191236 | BH28: 0.7232463278 | BJ28: 32.81110994 | BK28: 0.0792842745 | BL28: 2.601405047 | BN28: =IF($D28="Connection",VLOOKUP(C28,'Input - General'!$F$51:$N$59,4,FALSE),0) -> 0 | BP28: 0.2227618911 | BQ28: 16.8790268 | BR28: 3.76000393 | BT28: 0.109307573 | BU28: 20.63903073 | BV28: 2.256002358
B29: ='Input - Inventory'!B26 -> 18 | C29: ='Input - Inventory'!C26 -> LED1x28 | D29: ='Input - Inventory'!D26 -> Lamp | E29: ='Input - Inventory'!E26 -> NonTraffic | F29: ='Input - Inventory'!F26 -> Minor | G29: ='Input - Inventory'!H26 -> 1 | I29: Lamp - LED1x28 | K29: 22.89503309 | L29: 0 | M29: 0 | O29: =IF(AND($D29="Lamp", OR($F29=O$9, O$9="All")),IF('Input - Inventory'!G26="N",INDIRECT("PriceBulkTask1" & "FY19"),INDIRECT("PriceBulkTask1LED" & "FY19")),0) -> 25.22503701 | P29: =IF(AND($D29="Lamp",CycleBulkTask1<>0, OR($F29=O$9,O$9="All")),IF('Input - Inventory'!G26="N",1/CycleBulkTask1,1/CycleBulkTask1LED),0) -> 0.1666666667 | Q29: =IF(AND($D29="Lamp", OR($F29=Q$9, Q$9="All")),IF('Input - Inventory'!G26="N",INDIRECT("PriceBulkTask2" & "FY19"),INDIRECT("PriceBulkTask2LED" & "FY19")),0) -> 0 | R29: =IF(AND($D29="Lamp",CycleBulkTask2<>0, OR($F29=Q$9,Q$9="All")),IF('Input - Inventory'!G26="N",1/CycleBulkTask2,1/CycleBulkTask2LED),0) -> 0 | S29: 11.74249459 | T29: 0.007123137293 | U29: 5.699151855 | V29: 0 | W29: 24.68074191 | X29: 0.005931168948 | Y29: 14.78572079 | Z29: 0.02002998353 | AA29: 41.10076471 | AB29: 0.01503682404 | AC29: 8476.3583 | AD29: 6.144166728e-05 | AE29: 5.869186184 | AG29: 0 | AH29: 0.1666666667 | AI29: 50.83443924 | AJ29: 0.007123137293 | AK29: 11.29013046 | AL29: 0 | AM29: 15.33629526 | AN29: 0.02096799299 | AO29: 0.6836720213 | AQ29: 88.30902802 | AR29: 0 | AS29: 1.513333333 | AT29: 88.30902802 | AU29: 0.0198285774 | AV29: 1.513333333 | AW29: 88.30902802 | AX29: 0.03256191236 | AY29: 1.513333333 | AZ29: 7.001517219 | BB29: 0 | BC29: 0 | BD29: 11.29013046 | BE29: 0.0198285774 | BF29: 15.33629526 | BG29: 0.03256191236 | BH29: 0.7232463278 | BJ29: 32.81110994 | BK29: 0.0792842745 | BL29: 2.601405047 | BN29: =IF($D29="Connection",VLOOKUP(C29,'Input - General'!$F$51:$N$59,4,FALSE),0) -> 0 | BP29: 0.2227618911 | BQ29: 16.8790268 | BR29: 3.76000393 | BT29: 0.109307573 | BU29: 20.63903073 | BV29: 2.256002358
B30: ='Input - Inventory'!B27 -> 19 | C30: ='Input - Inventory'!C27 -> LED1x29 | D30: ='Input - Inventory'!D27 -> Lamp | E30: ='Input - Inventory'!E27 -> NonTraffic | F30: ='Input - Inventory'!F27 -> Minor | G30: ='Input - Inventory'!H27 -> 1 | I30: Lamp - LED1x29 | K30: 22.89503309 | L30: 15545 | M30: 355903.2893 | O30: =IF(AND($D30="Lamp", OR($F30=O$9, O$9="All")),IF('Input - Inventory'!G27="N",INDIRECT("PriceBulkTask1" & "FY19"),INDIRECT("PriceBulkTask1LED" & "FY19")),0) -> 25.22503701 | P30: =IF(AND($D30="Lamp",CycleBulkTask1<>0, OR($F30=O$9,O$9="All")),IF('Input - Inventory'!G27="N",1/CycleBulkTask1,1/CycleBulkTask1LED),0) -> 0.1666666667 | Q30: =IF(AND($D30="Lamp", OR($F30=Q$9, Q$9="All")),IF('Input - Inventory'!G27="N",INDIRECT("PriceBulkTask2" & "FY19"),INDIRECT("PriceBulkTask2LED" & "FY19")),0) -> 0 | R30: =IF(AND($D30="Lamp",CycleBulkTask2<>0, OR($F30=Q$9,Q$9="All")),IF('Input - Inventory'!G27="N",1/CycleBulkTask2,1/CycleBulkTask2LED),0) -> 0 | S30: 11.74249459 | T30: 0.007123137293 | U30: 5.699151855 | V30: 0 | W30: 24.68074191 | X30: 0.005931168948 | Y30: 14.78572079 | Z30: 0.02002998353 | AA30: 41.10076471 | AB30: 0.01503682404 | AC30: 8476.3583 | AD30: 6.144166728e-05 | AE30: 5.869186184 | AG30: 0 | AH30: 0.1666666667 | AI30: 50.83443924 | AJ30: 0.007123137293 | AK30: 11.29013046 | AL30: 0 | AM30: 15.33629526 | AN30: 0.02096799299 | AO30: 0.6836720213 | AQ30: 88.30902802 | AR30: 0 | AS30: 1.513333333 | AT30: 88.30902802 | AU30: 0.0198285774 | AV30: 1.513333333 | AW30: 88.30902802 | AX30: 0.03256191236 | AY30: 1.513333333 | AZ30: 7.001517219 | BB30: 0 | BC30: 0 | BD30: 11.29013046 | BE30: 0.0198285774 | BF30: 15.33629526 | BG30: 0.03256191236 | BH30: 0.7232463278 | BJ30: 32.81110994 | BK30: 0.0792842745 | BL30: 2.601405047 | BN30: =IF($D30="Connection",VLOOKUP(C30,'Input - General'!$F$51:$N$59,4,FALSE),0) -> 0 | BP30: 0.2227618911 | BQ30: 16.8790268 | BR30: 3.76000393 | BT30: 0.109307573 | BU30: 20.63903073 | BV30: 2.256002358
B31: ='Input - Inventory'!B28 -> 20 | C31: ='Input - Inventory'!C28 -> LED1x298 | D31: ='Input - Inventory'!D28 -> Lamp | E31: ='Input - Inventory'!E28 -> Traffic | F31: ='Input - Inventory'!F28 -> Major | G31: ='Input - Inventory'!H28 -> 1 | I31: Lamp - LED1x298 | K31: 30.34785015 | L31: 0 | M31: 0 | O31: =IF(AND($D31="Lamp", OR($F31=O$9, O$9="All")),IF('Input - Inventory'!G28="N",INDIRECT("PriceBulkTask1" & "FY19"),INDIRECT("PriceBulkTask1LED" & "FY19")),0) -> 0 | P31: =IF(AND($D31="Lamp",CycleBulkTask1<>0, OR($F31=O$9,O$9="All")),IF('Input - Inventory'!G28="N",1/CycleBulkTask1,1/CycleBulkTask1LED),0) -> 0 | Q31: =IF(AND($D31="Lamp", OR($F31=Q$9, Q$9="All")),IF('Input - Inventory'!G28="N",INDIRECT("PriceBulkTask2" & "FY19"),INDIRECT("PriceBulkTask2LED" & "FY19")),0) -> 29.38314957 | R31: =IF(AND($D31="Lamp",CycleBulkTask2<>0, OR($F31=Q$9,Q$9="All")),IF('Input - Inventory'!G28="N",1/CycleBulkTask2,1/CycleBulkTask2LED),0) -> 0.1666666667 | S31: 11.74249459 | T31: 0.007123137293 | U31: 5.699151855 | V31: 0 | W31: 24.68074191 | X31: 0.005931168948 | Y31: 14.78572079 | Z31: 0.02002998353 | AA31: 41.10076471 | AB31: 0.01503682404 | AC31: 8476.3583 | AD31: 6.144166728e-05 | AE31: 6.562204943 | AG31: 0 | AH31: 0.1666666667 | AI31: 50.83443924 | AJ31: 0.007123137293 | AK31: 11.29013046 | AL31: 0 | AM31: 15.33629526 | AN31: 0.02096799299 | AO31: 0.6836720213 | AQ31: 88.30902802 | AR31: 0 | AS31: 2.27 | AT31: 88.30902802 | AU31: 0.0198285774 | AV31: 2.27 | AW31: 88.30902802 | AX31: 0.03256191236 | AY31: 2.27 | AZ31: 10.50227583 | BB31: 0 | BC31: 0 | BD31: 11.29013046 | BE31: 0.0198285774 | BF31: 15.33629526 | BG31: 0.03256191236 | BH31: 0.7232463278 | BJ31: 32.81110994 | BK31: 0.1189264117 | BL31: 3.90210757 | BN31: =IF($D31="Connection",VLOOKUP(C31,'Input - General'!$F$51:$N$59,4,FALSE),0) -> 0 | BP31: 0.2227618911 | BQ31: 22.37350669 | BR31: 4.983964661 | BT31: 0.109307573 | BU31: 27.35747135 | BV31: 2.990378797
B32: ='Input - Inventory'!B29 -> 21 | C32: ='Input - Inventory'!C29 -> LED1x33 | D32: ='Input - Inventory'!D29 -> Lamp | E32: ='Input - Inventory'!E29 -> NonTraffic | F32: ='Input - Inventory'!F29 -> Minor | G32: ='Input - Inventory'!H29 -> 1 | I32: Lamp - LED1x33 | K32: 22.89503309 | L32: 0 | M32: 0 | O32: =IF(AND($D32="Lamp", OR($F32=O$9, O$9="All")),IF('Input - Inventory'!G29="N",INDIRECT("PriceBulkTask1" & "FY19"),INDIRECT("PriceBulkTask1LED" & "FY19")),0) -> 25.22503701 | P32: =IF(AND($D32="Lamp",CycleBulkTask1<>0, OR($F32=O$9,O$9="All")),IF('Input - Inventory'!G29="N",1/CycleBulkTask1,1/CycleBulkTask1LED),0) -> 0.1666666667 | Q32: =IF(AND($D32="Lamp", OR($F32=Q$9, Q$9="All")),IF('Input - Inventory'!G29="N",INDIRECT("PriceBulkTask2" & "FY19"),INDIRECT("PriceBulkTask2LED" & "FY19")),0) -> 0 | R32: =IF(AND($D32="Lamp",CycleBulkTask2<>0, OR($F32=Q$9,Q$9="All")),IF('Input - Inventory'!G29="N",1/CycleBulkTask2,1/CycleBulkTask2LED),0) -> 0 | S32: 11.74249459 | T32: 0.007123137293 | U32: 5.699151855 | V32: 0 | W32: 24.68074191 | X32: 0.005931168948 | Y32: 14.78572079 | Z32: 0.02002998353 | AA32: 41.10076471 | AB32: 0.01503682404 | AC32: 8476.3583 | AD32: 6.144166728e-05 | AE32: 5.869186184 | AG32: 0 | AH32: 0.1666666667 | AI32: 50.83443924 | AJ32: 0.007123137293 | AK32: 11.29013046 | AL32: 0 | AM32: 15.33629526 | AN32: 0.02096799299 | AO32: 0.6836720213 | AQ32: 88.30902802 | AR32: 0 | AS32: 1.513333333 | AT32: 88.30902802 | AU32: 0.0198285774 | AV32: 1.513333333 | AW32: 88.30902802 | AX32: 0.03256191236 | AY32: 1.513333333 | AZ32: 7.001517219 | BB32: 0 | BC32: 0 | BD32: 11.29013046 | BE32: 0.0198285774 | BF32: 15.33629526 | BG32: 0.03256191236 | BH32: 0.7232463278 | BJ32: 32.81110994 | BK32: 0.0792842745 | BL32: 2.601405047 | BN32: =IF($D32="Connection",VLOOKUP(C32,'Input - General'!$F$51:$N$59,4,FALSE),0) -> 0 | BP32: 0.2227618911 | BQ32: 16.8790268 | BR32: 3.76000393 | BT32: 0.109307573 | BU32: 20.63903073 | BV32: 2.256002358
B33: ='Input - Inventory'!B30 -> 22 | C33: ='Input - Inventory'!C30 -> LED1x42 | D33: ='Input - Inventory'!D30 -> Lamp | E33: ='Input - Inventory'!E30 -> NonTraffic | F33: ='Input - Inventory'!F30 -> Minor | G33: ='Input - Inventory'!H30 -> 1 | I33: Lamp - LED1x42 | K33: 22.89503309 | L33: 17 | M33: 389.2155625 | O33: =IF(AND($D33="Lamp", OR($F33=O$9, O$9="All")),IF('Input - Inventory'!G30="N",INDIRECT("PriceBulkTask1" & "FY19"),INDIRECT("PriceBulkTask1LED" & "FY19")),0) -> 25.22503701 | P33: =IF(AND($D33="Lamp",CycleBulkTask1<>0, OR($F33=O$9,O$9="All")),IF('Input - Inventory'!G30="N",1/CycleBulkTask1,1/CycleBulkTask1LED),0) -> 0.1666666667 | Q33: =IF(AND($D33="Lamp", OR($F33=Q$9, Q$9="All")),IF('Input - Inventory'!G30="N",INDIRECT("PriceBulkTask2" & "FY19"),INDIRECT("PriceBulkTask2LED" & "FY19")),0) -> 0 | R33: =IF(AND($D33="Lamp",CycleBulkTask2<>0, OR($F33=Q$9,Q$9="All")),IF('Input - Inventory'!G30="N",1/CycleBulkTask2,1/CycleBulkTask2LED),0) -> 0 | S33: 11.74249459 | T33: 0.007123137293 | U33: 5.699151855 | V33: 0 | W33: 24.68074191 | X33: 0.005931168948 | Y33: 14.78572079 | Z33: 0.02002998353 | AA33: 41.10076471 | AB33: 0.01503682404 | AC33: 8476.3583 | AD33: 6.144166728e-05 | AE33: 5.869186184 | AG33: 0 | AH33: 0.1666666667 | AI33: 50.83443924 | AJ33: 0.007123137293 | AK33: 11.29013046 | AL33: 0 | AM33: 15.33629526 | AN33: 0.02096799299 | AO33: 0.6836720213 | AQ33: 88.30902802 | AR33: 0 | AS33: 1.513333333 | AT33: 88.30902802 | AU33: 0.0198285774 | AV33: 1.513333333 | AW33: 88.30902802 | AX33: 0.03256191236 | AY33: 1.513333333 | AZ33: 7.001517219 | BB33: 0 | BC33: 0 | BD33: 11.29013046 | BE33: 0.0198285774 | BF33: 15.33629526 | BG33: 0.03256191236 | BH33: 0.7232463278 | BJ33: 32.81110994 | BK33: 0.0792842745 | BL33: 2.601405047 | BN33: =IF($D33="Connection",VLOOKUP(C33,'Input - General'!$F$51:$N$59,4,FALSE),0) -> 0 | BP33: 0.2227618911 | BQ33: 16.8790268 | BR33: 3.76000393 | BT33: 0.109307573 | BU33: 20.63903073 | BV33: 2.256002358
B34: ='Input - Inventory'!B31 -> 23 | C34: ='Input - Inventory'!C31 -> MBF1x1000 | D34: ='Input - Inventory'!D31 -> Lamp | E34: ='Input - Inventory'!E31 -> Traffic | F34: ='Input - Inventory'!F31 -> Major | G34: ='Input - Inventory'!H31 -> 1 | I34: Lamp - MBF1x1000 | K34: 76.22694818 | L34: 6 | M34: 457.3616891 | O34: =IF(AND($D34="Lamp", OR($F34=O$9, O$9="All")),IF('Input - Inventory'!G31="N",INDIRECT("PriceBulkTask1" & "FY19"),INDIRECT("PriceBulkTask1LED" & "FY19")),0) -> 0 | P34: =IF(AND($D34="Lamp",CycleBulkTask1<>0, OR($F34=O$9,O$9="All")),IF('Input - Inventory'!G31="N",1/CycleBulkTask1,1/CycleBulkTask1LED),0) -> 0 | Q34: =IF(AND($D34="Lamp", OR($F34=Q$9, Q$9="All")),IF('Input - Inventory'!G31="N",INDIRECT("PriceBulkTask2" & "FY19"),INDIRECT("PriceBulkTask2LED" & "FY19")),0) -> 29.38314957 | R34: =IF(AND($D34="Lamp",CycleBulkTask2<>0, OR($F34=Q$9,Q$9="All")),IF('Input - Inventory'!G31="N",1/CycleBulkTask2,1/CycleBulkTask2LED),0) -> 0.25 | S34: 11.74249459 | T34: 0.007123137293 | U34: 5.699151855 | V34: 0 | W34: 24.68074191 | X34: 0.005931168948 | Y34: 14.78572079 | Z34: 0.02002998353 | AA34: 41.10076471 | AB34: 0.01503682404 | AC34: 8476.3583 | AD34: 6.144166728e-05 | AE34: 9.010800741 | AG34: 28.42326721 | AH34: 0.25 | AI34: 50.83443924 | AJ34: 0.007123137293 | AK34: 11.29013046 | AL34: 0 | AM34: 15.33629526 | AN34: 0.02096799299 | AO34: 7.789488823 | AQ34: 88.30902802 | AR34: 0.08 | AS34: 2.27 | AT34: 88.30902802 | AU34: 0.0198285774 | AV34: 2.27 | AW34: 88.30902802 | AX34: 0.03256191236 | AY34: 2.27 | AZ34: 26.53919532 | BB34: 28.42326721 | BC34: 0.08 | BD34: 11.29013046 | BE34: 0.0198285774 | BF34: 15.33629526 | BG34: 0.03256191236 | BH34: 2.997107704 | BJ34: 32.81110994 | BK34: 0.3005264117 | BL34: 9.860605135 | BN34: =IF($D34="Connection",VLOOKUP(C34,'Input - General'!$F$51:$N$59,4,FALSE),0) -> 0 | BP34: 0.2227618911 | BQ34: 56.19719772 | BR34: 12.51859404 | BT34: 0.109307573 | BU34: 68.71579176 | BV34: 7.511156424
B35: ='Input - Inventory'!B32 -> 24 | C35: ='Input - Inventory'!C32 -> MBF1x125 | D35: ='Input - Inventory'!D32 -> Lamp | E35: ='Input - Inventory'!E32 -> NonTraffic | F35: ='Input - Inventory'!F32 -> Minor | G35: ='Input - Inventory'!H32 -> 1 | I35: Lamp - MBF1x125 | K35: 40.32501294 | L35: 4462 | M35: 179930.2077 | O35: =IF(AND($D35="Lamp", OR($F35=O$9, O$9="All")),IF('Input - Inventory'!G32="N",INDIRECT("PriceBulkTask1" & "FY19"),INDIRECT("PriceBulkTask1LED" & "FY19")),0) -> 25.22503701 | P35: =IF(AND($D35="Lamp",CycleBulkTask1<>0, OR($F35=O$9,O$9="All")),IF('Input - Inventory'!G32="N",1/CycleBulkTask1,1/CycleBulkTask1LED),0) -> 0.25 | Q35: =IF(AND($D35="Lamp", OR($F35=Q$9, Q$9="All")),IF('Input - Inventory'!G32="N",INDIRECT("PriceBulkTask2" & "FY19"),INDIRECT("PriceBulkTask2LED" & "FY19")),0) -> 0 | R35: =IF(AND($D35="Lamp",CycleBulkTask2<>0, OR($F35=Q$9,Q$9="All")),IF('Input - Inventory'!G32="N",1/CycleBulkTask2,1/CycleBulkTask2LED),0) -> 0 | S35: 11.74249459 | T35: 0.007123137293 | U35: 5.699151855 | V35: 0 | W35: 24.68074191 | X35: 0.005931168948 | Y35: 14.78572079 | Z35: 0.02002998353 | AA35: 41.10076471 | AB35: 0.01503682404 | AC35: 8476.3583 | AD35: 6.144166728e-05 | AE35: 7.971272602 | AG35: 5.214340387 | AH35: 0.25 | AI35: 50.83443924 | AJ35: 0.007123137293 | AK35: 11.29013046 | AL35: 0 | AM35: 15.33629526 | AN35: 0.02096799299 | AO35: 1.987257118 | AQ35: 88.30902802 | AR35: 0.0501 | AS35: 1.513333333 | AT35: 88.30902802 | AU35: 0.0198285774 | AV35: 1.513333333 | AW35: 88.30902802 | AX35: 0.03256191236 | AY35: 1.513333333 | AZ35: 13.69693111 | BB35: 5.214340387 | BC35: 0.0501 | BD35: 11.29013046 | BE35: 0.0198285774 | BF35: 15.33629526 | BG35: 0.03256191236 | BH35: 0.9844847812 | BJ35: 32.81110994 | BK35: 0.1551022745 | BL35: 5.08907778 | BN35: =IF($D35="Connection",VLOOKUP(C35,'Input - General'!$F$51:$N$59,4,FALSE),0) -> 0 | BP35: 0.2227618911 | BQ35: 29.72902339 | BR35: 6.622493471 | BT35: 0.109307573 | BU35: 36.35151686 | BV35: 3.973496082
B36: ='Input - Inventory'!B33 -> 25 | C36: ='Input - Inventory'!C33 -> MBF1x250 | D36: ='Input - Inventory'!D33 -> Lamp | E36: ='Input - Inventory'!E33 -> Traffic | F36: ='Input - Inventory'!F33 -> Major | G36: ='Input - Inventory'!H33 -> 1 | I36: Lamp - MBF1x250 | K36: 54.64237364 | L36: 15031 | M36: 821329.5181 | O36: =IF(AND($D36="Lamp", OR($F36=O$9, O$9="All")),IF('Input - Inventory'!G33="N",INDIRECT("PriceBulkTask1" & "FY19"),INDIRECT("PriceBulkTask1LED" & "FY19")),0) -> 0 | P36: =IF(AND($D36="Lamp",CycleBulkTask1<>0, OR($F36=O$9,O$9="All")),IF('Input - Inventory'!G33="N",1/CycleBulkTask1,1/CycleBulkTask1LED),0) -> 0 | Q36: =IF(AND($D36="Lamp", OR($F36=Q$9, Q$9="All")),IF('Input - Inventory'!G33="N",INDIRECT("PriceBulkTask2" & "FY19"),INDIRECT("PriceBulkTask2LED" & "FY19")),0) -> 29.38314957 | R36: =IF(AND($D36="Lamp",CycleBulkTask2<>0, OR($F36=Q$9,Q$9="All")),IF('Input - Inventory'!G33="N",1/CycleBulkTask2,1/CycleBulkTask2LED),0) -> 0.25 | S36: 11.74249459 | T36: 0.007123137293 | U36: 5.699151855 | V36: 0 | W36: 24.68074191 | X36: 0.005931168948 | Y36: 14.78572079 | Z36: 0.02002998353 | AA36: 41.10076471 | AB36: 0.01503682404 | AC36: 8476.3583 | AD36: 6.144166728e-05 | AE36: 9.010800741 | AG36: 5.623308261 | AH36: 0.25 | AI36: 50.83443924 | AJ36: 0.007123137293 | AK36: 11.29013046 | AL36: 0 | AM36: 15.33629526 | AN36: 0.02096799299 | AO36: 2.089499087 | AQ36: 88.30902802 | AR36: 0.0501 | AS36: 2.27 | AT36: 88.30902802 | AU36: 0.0198285774 | AV36: 2.27 | AW36: 88.30902802 | AX36: 0.03256191236 | AY36: 2.27 | AZ36: 20.54539666 | BB36: 5.623308261 | BC36: 0.0501 | BD36: 11.29013046 | BE36: 0.0198285774 | BF36: 15.33629526 | BG36: 0.03256191236 | BH36: 1.004974072 | BJ36: 32.81110994 | BK36: 0.2326534117 | BL36: 7.63361667 | BN36: =IF($D36="Connection",VLOOKUP(C36,'Input - General'!$F$51:$N$59,4,FALSE),0) -> 0 | BP36: 0.2227618911 | BQ36: 40.28428723 | BR36: 8.973804005 | BT36: 0.109307573 | BU36: 49.25809123 | BV36: 5.384282403
B37: ='Input - Inventory'!B34 -> 26 | C37: ='Input - Inventory'!C34 -> MBF1x400 | D37: ='Input - Inventory'!D34 -> Lamp | E37: ='Input - Inventory'!E34 -> Traffic | F37: ='Input - Inventory'!F34 -> Major | G37: ='Input - Inventory'!H34 -> 1 | I37: Lamp - MBF1x400 | K37: 54.64237364 | L37: 5491 | M37: 300041.2736 | O37: =IF(AND($D37="Lamp", OR($F37=O$9, O$9="All")),IF('Input - Inventory'!G34="N",INDIRECT("PriceBulkTask1" & "FY19"),INDIRECT("PriceBulkTask1LED" & "FY19")),0) -> 0 | P37: =IF(AND($D37="Lamp",CycleBulkTask1<>0, OR($F37=O$9,O$9="All")),IF('Input - Inventory'!G34="N",1/CycleBulkTask1,1/CycleBulkTask1LED),0) -> 0 | Q37: =IF(AND($D37="Lamp", OR($F37=Q$9, Q$9="All")),IF('Input - Inventory'!G34="N",INDIRECT("PriceBulkTask2" & "FY19"),INDIRECT("PriceBulkTask2LED" & "FY19")),0) -> 29.38314957 | R37: =IF(AND($D37="Lamp",CycleBulkTask2<>0, OR($F37=Q$9,Q$9="All")),IF('Input - Inventory'!G34="N",1/CycleBulkTask2,1/CycleBulkTask2LED),0) -> 0.25 | S37: 11.74249459 | T37: 0.007123137293 | U37: 5.699151855 | V37: 0 | W37: 24.68074191 | X37: 0.005931168948 | Y37: 14.78572079 | Z37: 0.02002998353 | AA37: 41.10076471 | AB37: 0.01503682404 | AC37: 8476.3583 | AD37: 6.144166728e-05 | AE37: 9.010800741 | AG37: 5.623308261 | AH37: 0.25 | AI37: 50.83443924 | AJ37: 0.007123137293 | AK37: 11.29013046 | AL37: 0 | AM37: 15.33629526 | AN37: 0.02096799299 | AO37: 2.089499087 | AQ37: 88.30902802 | AR37: 0.0501 | AS37: 2.27 | AT37: 88.30902802 | AU37: 0.0198285774 | AV37: 2.27 | AW37: 88.30902802 | AX37: 0.03256191236 | AY37: 2.27 | AZ37: 20.54539666 | BB37: 5.623308261 | BC37: 0.0501 | BD37: 11.29013046 | BE37: 0.0198285774 | BF37: 15.33629526 | BG37: 0.03256191236 | BH37: 1.004974072 | BJ37: 32.81110994 | BK37: 0.2326534117 | BL37: 7.63361667 | BN37: =IF($D37="Connection",VLOOKUP(C37,'Input - General'!$F$51:$N$59,4,FALSE),0) -> 0 | BP37: 0.2227618911 | BQ37: 40.28428723 | BR37: 8.973804005 | BT37: 0.109307573 | BU37: 49.25809123 | BV37: 5.384282403
B38: ='Input - Inventory'!B35 -> 27 | C38: ='Input - Inventory'!C35 -> MBF1x42 | D38: ='Input - Inventory'!D35 -> Lamp | E38: ='Input - Inventory'!E35 -> NonTraffic | F38: ='Input - Inventory'!F35 -> Minor | G38: ='Input - Inventory'!H35 -> 1 | I38: Lamp - MBF1x42 | K38: 35.74935986 | L38: 42152 | M38: 1506907.017 | O38: =IF(AND($D38="Lamp", OR($F38=O$9, O$9="All")),IF('Input - Inventory'!G35="N",INDIRECT("PriceBulkTask1" & "FY19"),INDIRECT("PriceBulkTask1LED" & "FY19")),0) -> 25.22503701 | P38: =IF(AND($D38="Lamp",CycleBulkTask1<>0, OR($F38=O$9,O$9="All")),IF('Input - Inventory'!G35="N",1/CycleBulkTask1,1/CycleBulkTask1LED),0) -> 0.25 | Q38: =IF(AND($D38="Lamp", OR($F38=Q$9, Q$9="All")),IF('Input - Inventory'!G35="N",INDIRECT("PriceBulkTask2" & "FY19"),INDIRECT("PriceBulkTask2LED" & "FY19")),0) -> 0 | R38: =IF(AND($D38="Lamp",CycleBulkTask2<>0, OR($F38=Q$9,Q$9="All")),IF('Input - Inventory'!G35="N",1/CycleBulkTask2,1/CycleBulkTask2LED),0) -> 0 | S38: 11.74249459 | T38: 0.007123137293 | U38: 5.699151855 | V38: 0 | W38: 24.68074191 | X38: 0.005931168948 | Y38: 14.78572079 | Z38: 0.02002998353 | AA38: 41.10076471 | AB38: 0.01503682404 | AC38: 8476.3583 | AD38: 6.144166728e-05 | AE38: 7.971272602 | AG38: 3.16950102 | AH38: 0.25 | AI38: 50.83443924 | AJ38: 0.007123137293 | AK38: 11.29013046 | AL38: 0 | AM38: 15.33629526 | AN38: 0.02096799299 | AO38: 1.476047276 | AQ38: 88.30902802 | AR38: 0.0353 | AS38: 1.513333333 | AT38: 88.30902802 | AU38: 0.0198285774 | AV38: 1.513333333 | AW38: 88.30902802 | AX38: 0.03256191236 | AY38: 1.513333333 | AZ38: 11.71904437 | BB38: 3.16950102 | BC38: 0.0353 | BD38: 11.29013046 | BE38: 0.0198285774 | BF38: 15.33629526 | BG38: 0.03256191236 | BH38: 0.8351297138 | BJ38: 32.81110994 | BK38: 0.1327049412 | BL38: 4.354196414 | BN38: =IF($D38="Connection",VLOOKUP(C38,'Input - General'!$F$51:$N$59,4,FALSE),0) -> 0 | BP38: 0.2227618911 | BQ38: 26.35569037 | BR38: 5.871043429 | BT38: 0.109307573 | BU38: 32.2267338 | BV38: 3.522626058
